Workbook

Sheet Supplementary Table 1
C1: Meat quality | CG1: Meat quality | EE1: keeg L1 | EF1: Metabolism | EG1: Metabolism | EH1: Metabolism | EI1: Metabolism | EJ1: Environmental Information Processing | EK1: Genetic Information Processing | EL1: Metabolism | EM1: Metabolism | EN1: Environmental Information Processing | EO1: Metabolism | EP1: Metabolism | EQ1: Metabolism | ER1: Metabolism | ES1: Cellular Processes | ET1: Genetic Information Processing | EU1: Metabolism | EV1: Genetic Information Processing | EW1: Metabolism | EX1: Metabolism | EY1: Metabolism | EZ1: Genetic Information Processing | FA1: Metabolism | FB1: Metabolism | FC1: Metabolism | FD1: Metabolism | FE1: Metabolism | FF1: Metabolism | FG1: Genetic Information Processing | FH1: Metabolism | FI1: Metabolism | FJ1: Environmental Information Processing | FK1: Metabolism | FL1: Environmental Information Processing | FM1: Metabolism | FN1: Genetic Information Processing | FO1: Metabolism | FP1: Metabolism | FQ1: Metabolism | FR1: Metabolism | FS1: Metabolism | FT1: Metabolism | FU1: Genetic Information Processing | FV1: Metabolism | FW1: Metabolism | FX1: Genetic Information Processing | FY1: Metabolism | FZ1: Metabolism | GA1: Metabolism | GB1: Cellular Processes | GC1: Metabolism | GD1: Genetic Information Processing | GE1: Metabolism | GF1: Metabolism | GG1: Metabolism
C2: pH index | E2: Marbling score | F2: Meat color | M2: Microbial a-diversity | R2: Microbial abundances at the phylum level | AG2: Microbial abundances at the genus level | CG2: pH index | CI2: Marbling score | CJ2: Meat color | CQ2: Fatty acids in the muscle | EE2: keeg L2 | EF2: Global and overview maps | EG2: Global and overview maps | EH2: Global and overview maps | EI2: Global and overview maps | EJ2: Membrane transport | EK2: Translation | EL2: Global and overview maps | EM2: Nucleotide metabolism | EN2: Signal transduction | EO2: Nucleotide metabolism | EP2: Carbohydrate metabolism | EQ2: Carbohydrate metabolism | ER2: Carbohydrate metabolism | ES2: Cellular community - prokaryotes | ET2: Translation | EU2: Amino acid metabolism | EV2: Replication and repair | EW2: Energy metabolism | EX2: Amino acid metabolism | EY2: Carbohydrate metabolism | EZ2: Replication and repair | FA2: Carbohydrate metabolism | FB2: Glycan biosynthesis and metabolism | FC2: Carbohydrate metabolism | FD2: Carbohydrate metabolism | FE2: Carbohydrate metabolism | FF2: Amino acid metabolism | FG2: Replication and repair | FH2: Metabolism of cofactors and vitamins | FI2: Metabolism of cofactors and vitamins | FJ2: Membrane transport | FK2: Amino acid metabolism | FL2: Membrane transport | FM2: Lipid metabolism | FN2: Folding, sorting and degradation | FO2: Energy metabolism | FP2: Metabolism of terpenoids and polyketides | FQ2: Global and overview maps | FR2: Carbohydrate metabolism | FS2: Carbohydrate metabolism | FT2: Lipid metabolism | FU2: Folding, sorting and degradation | FV2: Global and overview maps | FW2: Metabolism of cofactors and vitamins | FX2: Replication and repair | FY2: Metabolism of cofactors and vitamins | FZ2: Amino acid metabolism | GA2: Carbohydrate metabolism | GB2: Cell motility | GC2: Lipid metabolism | GD2: Replication and repair | GE2: Amino acid metabolism | GF2: Energy metabolism | GG2: Amino acid metabolism
A3: Sample ID | B3: Breed | C3: pH (45min) | D3: pH (24h) | E3: Marbling score | F3: a-45mim | G3: b-45mim | H3: L-45mim | I3: a-24h | J3: b-24h | K3: L-24h | M3: ACE | N3: Chao1 | O3: Simpson | P3: Shannon | R3: F/B | S3: Firmicutes | T3: Proteobacteria | U3: Tenericutes | V3: Bacteroidetes | W3: Cyanobacteria | X3: Spirochaetes | Y3: Actinobacteria | Z3: Basidiomycota | AA3: Ascomycota | AB3: Chlamydiae | AC3: Mucoromycota | AD3: Euryarchaeota | AE3: Fusobacteria | AG3: Lactobacillus | AH3: Escherichia | AI3: Mycoplasma | AJ3: Streptococcus | AK3: Terrisporobacter | AL3: Clostridium | AM3: Romboutsia | AN3: Actinobacillus | AO3: Turicibacter | AP3: Acinetobacter | AQ3: Bacillus | AR3: Staphylococcus | AS3: Klebsiella | AT3: Campylobacter | AU3: Bacteroides | AV3: Prevotella | AW3: Phascolarctobacterium | AX3: Psychrobacter | AY3: Enterococcus | AZ3: Eubacterium | BA3: Clostridioides | BB3: Paeniclostridium | BC3: Paraclostridium | BD3: Corynebacterium | BE3: Aerococcus | BF3: Puccinia | BG3: Bradyrhizobium | BH3: Intestinibacter | BI3: Cellulosilyticum | BJ3: Kazachstania | BK3: Paenibacillus | BL3: Jeotgalicoccus | BM3: Chlamydia | BN3: Dehalobacter | BO3: Ruminococcus | BP3: Lachnoclostridium | BQ3: Weissella | BR3: Megamonas | BS3: Blautia | BT3: Lysinibacillus | BU3: Mycobacterium | BV3: Neisseria | BW3: Rhizophagus | BX3: Enterobacter | BY3: Brevibacterium | BZ3: Dorea | CA3: Anaerococcus | CB3: Francisella | CC3: Roseburia | CD3: Salmonella | CE3: Peptostreptococcus | CG3: pH (45min) | CH3: pH (24h) | CI3: Marbling score | CJ3: a-45mim | CK3: b-45mim | CL3: L-45mim | CM3: a-24h | CN3: b-24h | CO3: L-24h | CQ3: C6:0 | CR3: C8:0 | CS3: C10:0 | CT3: C12:0 | CU3: C14:0 | CV3: C14:1 | CW3: C15:0 | CX3: C16:0 | CY3: C16:1 | CZ3: C17:0 | DA3: C17:1 | DB3: C18:0 | DC3: C18:1n9c | DD3: C18:2n6c | DE3: C18:3n6 | DF3: C18:3n3 | DG3: C20:0 | DH3: C20:1 | DI3: C20:2 | DJ3: C21:0 | DK3: C20:3n6 | DL3: C20:4n6 | DM3: C20:3n3 | DN3: C20:5n3 | DO3: C22:0 | DP3: C22:1n9 | DQ3: C22:2 | DR3: C23:0 | DS3: C24:0 | DT3: C22:6n3 | DU3: C24:1 | DV3: TFA | DW3: SFA | DX3: UFA | DY3: MUFA | DZ3: PUFA | EA3: SFA ratio | EB3: UFA ratio | EC3: MUFA ratio | ED3: PUFA ratio | EE3: keeg L3 | EF3: Biosynthesis of secondary metabolites | EG3: Biosynthesis of antibiotics | EH3: Microbial metabolism in diverse environments | EI3: Biosynthesis of amino acids | EJ3: ABC transporters | EK3: Ribosome | EL3: Carbon metabolism | EM3: Purine metabolism | EN3: Two-component system | EO3: Pyrimidine metabolism | EP3: Pyruvate metabolism | EQ3: Amino sugar and nucleotide sugar metabolism | ER3: Glycolysis / Gluconeogenesis | ES3: Quorum sensing | ET3: Aminoacyl-tRNA biosynthesis | EU3: Cysteine and methionine metabolism | EV3: Homologous recombination | EW3: Oxidative phosphorylation | EX3: Alanine, aspartate and glutamate metabolism | EY3: Pentose phosphate pathway | EZ3: Mismatch repair | FA3: Propanoate metabolism | FB3: Peptidoglycan biosynthesis | FC3: Galactose metabolism | FD3: Starch and sucrose metabolism | FE3: Fructose and mannose metabolism | FF3: Glycine, serine and threonine metabolism | FG3: DNA replication | FH3: Porphyrin and chlorophyll metabolism | FI3: One carbon pool by folate | FJ3: Phosphotransferase system (PTS) | FK3: Lysine biosynthesis | FL3: Bacterial secretion system | FM3: Glycerophospholipid metabolism | FN3: Protein export | FO3: Methane metabolism | FP3: Terpenoid backbone biosynthesis | FQ3: Fatty acid metabolism | FR3: Glyoxylate and dicarboxylate metabolism | FS3: Butanoate metabolism | FT3: Fatty acid biosynthesis | FU3: RNA degradation | FV3: 2-Oxocarboxylic acid metabolism | FW3: Nicotinate and nicotinamide metabolism | FX3: Base excision repair | FY3: Pantothenate and CoA biosynthesis | FZ3: Phenylalanine, tyrosine and tryptophan biosynthesis | GA3: Citrate cycle (TCA cycle) | GB3: Flagellar assembly | GC3: Glycerolipid metabolism | GD3: Nucleotide excision repair | GE3: Arginine biosynthesis | GF3: Sulfur metabolism | GG3: Arginine and proline metabolism | GH3: Fatty_acid_degradation | GI3: Biosynthesis_of_unsaturated_fatty_acids
A4: DCD2 | B4: DLY | C4: 6.303333333 | D4: 6.15 | E4: 2 | M4: 152.3587 | N4: 155.8333 | O4: 0.8006 | P4: 3.5964 | R4: =S4/V4 -> 42.71308017 | S4: 0.9475802677 | T4: 0.01085837312 | U4: 0.007301319854 | V4: 0.02218477956 | W4: 0.0003744266592 | X4: 0 | Y4: 0.0009360666479 | Z4: 0 | AA4: 0 | AB4: 0 | AC4: 0 | AD4: 0 | AE4: 0 | AG4: 0.5950575681 | AH4: 0.002901806609 | AI4: 0.006926893195 | AJ4: 0.02901806609 | AK4: 0.09856781803 | AL4: 0.03416643265 | AM4: 0.009547879809 | AN4: 0 | AO4: 0.005054759899 | AP4: 0.00234016662 | AQ4: 9.36E-05 | AR4: 0 | AS4: 9.36E-05 | AT4: 0.005335579893 | AU4: 0 | AV4: 0.006552466536 | AW4: 0.009547879809 | AX4: 0 | AY4: 0 | AZ4: 0.003369839933 | BA4: 0 | BB4: 0 | BC4: 0 | BD4: 0 | BE4: 0 | BF4: 0 | BG4: 0 | BH4: 0.0009360666479 | BI4: 0 | BJ4: 0 | BK4: 0 | BL4: 0 | BM4: 0 | BN4: 0 | BO4: 0 | BP4: 0 | BQ4: 0 | BR4: 0 | BS4: 0.003837873257 | BT4: 0 | BU4: 0 | BV4: 0 | BW4: 0 | BX4: 0 | BY4: 0 | BZ4: 0 | CA4: 0 | CB4: 0 | CC4: 0.002808199944 | CD4: 0 | CE4: 0 | CG4: 6.303333333 | CH4: 6.15 | CI4: 2 | CQ4: 0.004344990893 | CR4: 0.004384335155 | CS4: 0.1956795993 | CT4: 0.3805499089 | CU4: 0.2337856102 | CV4: 0.004493442623 | CW4: 0.01076757741 | CX4: 0.01236648452 | CY4: 0.01213023679 | CZ4: 0.003679052823 | DA4: 0.009191074681 | DB4: 0.06382896175 | DC4: 0.005916757741 | DD4: 0.004672859745 | DE4: 0.004367030965 | DF4: 0.003940255009 | DG4: 0.004462659381 | DH4: 0.005552459016 | DI4: 0.0178 | DJ4: 0.0040 | DK4: 0.0162 | DL4: 0.1431 | DM4: 0.0067 | DN4: 0.0065 | DO4: 0.0043 | DP4: 0.0062 | DQ4: 0.0045 | DR4: 0.0041 | DS4: 0.0047 | DT4: 0.0065 | DU4: 0.0000 | DV4: =SUM(CQ4:DU4) -> 1.1887 | DW4: =CQ4+CR4+CS4+CT4+CU4+CW4+CX4+CZ4+DB4+DG4+DJ4+DO4+DR4+DS4 -> 0.9309 | DX4: =CV4+CY4+DA4+DC4+DD4+DE4+DF4+DH4+DI4+DK4+DL4+DM4+DN4+DP4+DQ4+DT4+DU4 -> 0.2578 | DY4: =CV4+CY4+DA4+DC4+DH4+DP4+DU4 -> 0.0435 | DZ4: =DD4+DE4+DF4+DI4+DK4+DL4+DM4+DQ4+DT4 -> 0.2078 | EA4: =DW4/DV4 -> 0.7831 | EB4: =DX4/DV4 -> 0.2169 | EC4: =DY4/DV4 -> 0.0366 | ED4: =DZ4/DV4 -> 0.1748 | EF4: 0.07416290376 | EG4: 0.05470292472 | EH4: 0.04234388496 | EI4: 0.03352699006 | EJ4: 0.028461752 | EK4: 0.02755741541 | EL4: 0.02504469537 | EM4: 0.027202452 | EN4: 0.02184977713 | EO4: 0.02169169927 | EP4: 0.01373872403 | EQ4: 0.01226663168 | ER4: 0.0139964516 | ES4: 0.01075108957 | ET4: 0.01222844294 | EU4: 0.01117036108 | EV4: 0.009630804015 | EW4: 0.007491491864 | EX4: 0.009527069287 | EY4: 0.009510852998 | EZ4: 0.00884870853 | FA4: 0.009342315011 | FB4: 0.008282871484 | FC4: 0.008048292354 | FD4: 0.007337065762 | FE4: 0.005764271494 | FF4: 0.006859427992 | FG4: 0.007347649675 | FH4: 0.01074805675 | FI4: 0.007543359229 | FJ4: 0.005469221702 | FK4: 0.008408640558 | FL4: 0.005050445344 | FM4: 0.005536500729 | FN4: 0.005948344933 | FO4: 0.005542380681 | FP4: 0.00660857068 | FQ4: 0.00581397256 | FR4: 0.004389600655 | FS4: 0.005286200465 | FT4: 0.00594376476 | FU4: 0.005574379998 | FV4: 0.004677532611 | FW4: 0.005121747497 | FX4: 0.0051624739 | FY4: 0.00504394645 | FZ4: 0.003613880276 | GA4: 0.003620874324 | GB4: 0.003571111364 | GC4: 0.004756633437 | GD4: 0.004561047671 | GE4: 0.004247120139 | GF4: 0.003113713007 | GG4: 0.003414023809 | GH4: 0.001926024636 | GI4: 0.0008295683589
A5: DCD3 | B5: DLY | C5: 6.183333333 | D5: 5.886666667 | E5: 2 | M5: 84.7523 | N5: 72 | O5: 0.7136 | P5: 2.4759 | R5: =S5/V5 -> 2230.25 | S5: 0.8667897396 | T5: 0.1226195103 | U5: 0.009619121648 | V5: 0.0003886513797 | W5: 0 | X5: 0 | Y5: 0 | Z5: 0 | AA5: 0 | AB5: 0 | AC5: 0 | AD5: 0 | AE5: 0 | AG5: 0.8155849203 | AH5: 0.1136805286 | AI5: 0.0007773027594 | AJ5: 0.02166731442 | AK5: 0.004372328022 | AL5: 0.007773027594 | AM5: 0.005635445006 | AN5: 0 | AO5: 0.0005829770696 | AP5: 0.0004858142246 | AQ5: 0 | AR5: 0 | AS5: 0 | AT5: 9.72E-05 | AU5: 0 | AV5: 9.72E-05 | AW5: 9.72E-05 | AX5: 0 | AY5: 0.0006801399145 | AZ5: 0 | BA5: 0 | BB5: 0 | BC5: 0 | BD5: 0 | BE5: 0 | BF5: 0 | BG5: 0 | BH5: 0.0005829770696 | BI5: 0 | BJ5: 0 | BK5: 0 | BL5: 0 | BM5: 0 | BN5: 0 | BO5: 0 | BP5: 0 | BQ5: 0 | BR5: 0 | BS5: 0.0001943256899 | BT5: 0 | BU5: 0 | BV5: 0 | BW5: 0 | BX5: 0 | BY5: 0 | BZ5: 0 | CA5: 0 | CB5: 0 | CC5: 0 | CD5: 0 | CE5: 0 | CG5: 6.183333333 | CH5: 5.886666667 | CI5: 2 | CQ5: 0.0146809434 | CR5: 0.01288773585 | CS5: 1.040407358 | CT5: 3.076298302 | CU5: 0.9991409434 | CV5: 0.006601132075 | CW5: 0.07916377358 | CX5: 0.07751264151 | CY5: 0.06442603774 | CZ5: 0.004199433962 | DA5: 0.02138490566 | DB5: 0.07914509434 | DC5: 0.007103773585 | DD5: 0.006255660377 | DE5: 0.005459056604 | DF5: 0.004136792453 | DG5: 0.004917358491 | DH5: 0.007315660377 | DI5: 0.0897 | DJ5: 0.0045 | DK5: 0.0255 | DL5: 0.1082 | DM5: 0.0194 | DN5: 0.0054 | DO5: 0.0066 | DP5: 0.0101 | DQ5: 0.0054 | DR5: 0.0044 | DS5: 0.0059 | DT5: 0.0055 | DU5: 0.0000 | DV5: =SUM(CQ5:DU5) -> 5.8018 | DW5: =CQ5+CR5+CS5+CT5+CU5+CW5+CX5+CZ5+DB5+DG5+DJ5+DO5+DR5+DS5 -> 5.4098 | DX5: =CV5+CY5+DA5+DC5+DD5+DE5+DF5+DH5+DI5+DK5+DL5+DM5+DN5+DP5+DQ5+DT5+DU5 -> 0.3919 | DY5: =CV5+CY5+DA5+DC5+DH5+DP5+DU5 -> 0.1169 | DZ5: =DD5+DE5+DF5+DI5+DK5+DL5+DM5+DQ5+DT5 -> 0.2697 | EA5: =DW5/DV5 -> 0.9324 | EB5: =DX5/DV5 -> 0.0676 | EC5: =DY5/DV5 -> 0.0201 | ED5: =DZ5/DV5 -> 0.0465 | EF5: 0.0694496456 | EG5: 0.05230462205 | EH5: 0.04374153404 | EI5: 0.02797563559 | EJ5: 0.02863302908 | EK5: 0.02965898527 | EL5: 0.02513153544 | EM5: 0.0291686538 | EN5: 0.02237101564 | EO5: 0.0233196082 | EP5: 0.01412202001 | EQ5: 0.01423431568 | ER5: 0.01519889409 | ES5: 0.0115174116 | ET5: 0.01319000537 | EU5: 0.01021555145 | EV5: 0.0105410905 | EW5: 0.007713568268 | EX5: 0.009503490294 | EY5: 0.0101486477 | EZ5: 0.009385668644 | FA5: 0.009310377255 | FB5: 0.008714361541 | FC5: 0.009352216769 | FD5: 0.007229058805 | FE5: 0.00768337277 | FF5: 0.006680605935 | FG5: 0.008029239505 | FH5: 0.007531507177 | FI5: 0.007188699463 | FJ5: 0.008284914457 | FK5: 0.0083595151 | FL5: 0.005731914698 | FM5: 0.006316977143 | FN5: 0.00646341544 | FO5: 0.005890786436 | FP5: 0.00691851883 | FQ5: 0.005009196305 | FR5: 0.00404590071 | FS5: 0.005456405447 | FT5: 0.005314012951 | FU5: 0.005750170146 | FV5: 0.002971493575 | FW5: 0.005378153715 | FX5: 0.00575411727 | FY5: 0.004579354509 | FZ5: 0.001420865938 | GA5: 0.003569976241 | GB5: 0.002318935311 | GC5: 0.004741679981 | GD5: 0.004708622818 | GE5: 0.003408341516 | GF5: 0.003388112506 | GG5: 0.002924818834 | GH5: 0.002090495513 | GI5: 0.000801858227
A6: DCD5 | B6: DLY | C6: 6.366666667 | D6: 6.073333333 | E6: 2 | M6: 119.3784 | N6: 118 | O6: 0.5872 | P6: 2.4558 | R6: 41.3452381 | S6: 0.3123763267 | T6: 0.6750314805 | U6: 0.0001798884691 | V6: 0.007555315704 | W6: 0.0009893865803 | X6: 0.0008994423457 | Y6: 0.0003597769383 | Z6: 0 | AA6: 0 | AB6: 0 | AC6: 0 | AD6: 0 | AE6: 0.001708940457 | AG6: 0.08364813815 | AH6: 0.6316783594 | AI6: 0.0001798884691 | AJ6: 0.07042633567 | AK6: 0.058283864 | AL6: 0.0288720993 | AM6: 0.01259219284 | AN6: 0.02572405109 | AO6: 0.004227379025 | AP6: 0.002248605864 | AQ6: 0 | AR6: 0.0002698327037 | AS6: 0.001439107753 | AT6: 0 | AU6: 0 | AV6: 0.001978773161 | AW6: 0.0008094981112 | AX6: 0 | AY6: 0.0003597769383 | AZ6: 0 | BA6: 0 | BB6: 0 | BC6: 0 | BD6: 0 | BE6: 0 | BF6: 0 | BG6: 0 | BH6: 0.0001798884691 | BI6: 0 | BJ6: 0 | BK6: 0 | BL6: 0 | BM6: 0 | BN6: 0 | BO6: 0 | BP6: 0 | BQ6: 0 | BR6: 0 | BS6: 0.0001798884691 | BT6: 0 | BU6: 0 | BV6: 0 | BW6: 0 | BX6: 0 | BY6: 0 | BZ6: 0 | CA6: 0.0007195538766 | CB6: 0 | CC6: 0 | CD6: 0 | CE6: 0 | CG6: 6.366666667 | CH6: 6.073333333 | CI6: 2 | CQ6: 0.009599051233 | CR6: 0.008047248577 | CS6: 0.5789914611 | CT6: 1.69293055 | CU6: 0.6830781784 | CV6: 0.006181404175 | CW6: 0.05066622391 | CX6: 0.03573055028 | CY6: 0.03888595825 | CZ6: 0.004071347249 | DA6: 0.01590607211 | DB6: 0.06627912713 | DC6: 0.006155218216 | DD6: 0.005636432638 | DE6: 0.00524516129 | DF6: 0.004167741935 | DG6: 0.004842314991 | DH6: 0.006787476281 | DI6: 0.0271 | DJ6: 0.0043 | DK6: 0.0222 | DL6: 0.1085 | DM6: 0.0083 | DN6: 0.0062 | DO6: 0.0051 | DP6: 0.0074 | DQ6: 0.0046 | DR6: 0.0042 | DS6: 0.0050 | DT6: 0.0061 | DU6: 0.0000 | DV6: 3.4323 | DW6: 3.1529 | DX6: 0.2794 | DY6: 0.0813 | DZ6: 0.1919 | EA6: 0.9186 | EB6: 0.0814 | EC6: 0.0237 | ED6: 0.0559 | EF6: 0.07231705297 | EG6: 0.05058006002 | EH6: 0.04784550722 | EI6: 0.03286953684 | EJ6: 0.03599642173 | EK6: 0.02006644558 | EL6: 0.02512382439 | EM6: 0.02181746638 | EN6: 0.02812527108 | EO6: 0.01684403468 | EP6: 0.01191045372 | EQ6: 0.01235595232 | ER6: 0.01083255361 | ES6: 0.01294734519 | ET6: 0.008761375918 | EU6: 0.009042164508 | EV6: 0.008138719984 | EW6: 0.008056220244 | EX6: 0.007901931256 | EY6: 0.007604256755 | EZ6: 0.007268468339 | FA6: 0.007207293093 | FB6: 0.006614549345 | FC6: 0.007784984256 | FD6: 0.008345403544 | FE6: 0.008933901691 | FF6: 0.007317968183 | FG6: 0.005812420292 | FH6: 0.006413655241 | FI6: 0.005873595538 | FJ6: 0.01002328422 | FK6: 0.005223922146 | FL6: 0.007180661598 | FM6: 0.00637283958 | FN6: 0.005192948559 | FO6: 0.006188638406 | FP6: 0.004589204846 | FQ6: 0.005294457011 | FR6: 0.007123345989 | FS6: 0.006733619146 | FT6: 0.004515003326 | FU6: 0.004785081422 | FV6: 0.006769320788 | FW6: 0.004554178641 | FX6: 0.004108197589 | FY6: 0.005031808716 | FZ6: 0.005866165737 | GA6: 0.005044159554 | GB6: 0.006667136899 | GC6: 0.00370322518 | GD6: 0.003205332011 | GE6: 0.004461257881 | GF6: 0.004879063583 | GG6: 0.004776300748 | GH6: 0.002548614781 | GI6: 0.001200443588
A7: DCD7 | B7: DLY | C7: 6.26 | D7: 5.526666667 | E7: 3 | M7: 140.816 | N7: 143.25 | O7: 0.9211 | P7: 4.4958 | R7: 25.21428571 | S7: 0.7620075553 | T7: 0.05603525814 | U7: 0.01214247167 | V7: 0.03022126282 | W7: 0.006565929124 | X7: 0.0003597769383 | Y7: 0 | Z7: 0 | AA7: 0 | AB7: 0 | AC7: 0 | AD7: 0 | AE7: 0.0008094981112 | AG7: 0.296006476 | AH7: 0.03552797266 | AI7: 0.008544702285 | AJ7: 0.06916711639 | AK7: 0.0921028962 | AL7: 0.1248425976 | AM7: 0.01771901421 | AN7: 0.01178269473 | AO7: 0.001888828926 | AP7: 0.0005396654074 | AQ7: 0 | AR7: 0.001888828926 | AS7: 0 | AT7: 0.003867602087 | AU7: 0.0002698327037 | AV7: 0.006565929124 | AW7: 0.009534088865 | AX7: 0 | AY7: 0 | AZ7: 0.003597769383 | BA7: 0 | BB7: 0 | BC7: 0 | BD7: 0 | BE7: 0 | BF7: 0 | BG7: 0 | BH7: 0.0003597769383 | BI7: 0 | BJ7: 0 | BK7: 0 | BL7: 0 | BM7: 0 | BN7: 0 | BO7: 0 | BP7: 0 | BQ7: 0 | BR7: 0 | BS7: 0.002248605864 | BT7: 0 | BU7: 0 | BV7: 0 | BW7: 0 | BX7: 0 | BY7: 0 | BZ7: 0 | CA7: 0 | CB7: 0 | CC7: 0.004767044432 | CD7: 0 | CE7: 0 | CG7: 6.26 | CH7: 5.526666667 | CI7: 3 | CQ7: 0.01798411765 | CR7: 0.01380176471 | CS7: 1.981729608 | CT7: 4.346153333 | CU7: 1.443108039 | CV7: 0.007135490196 | CW7: 0.1246390196 | CX7: 0.1367041176 | CY7: 0.1006584314 | CZ7: 0.004348627451 | DA7: 0.02106529412 | DB7: 0.09687490196 | DC7: 0.007457254902 | DD7: 0.007344705882 | DE7: 0.006260980392 | DF7: 0.004269215686 | DG7: 0.005126862745 | DH7: 0.00746 | DI7: 0.0118 | DJ7: 0.0039 | DK7: 0.0173 | DL7: 0.1116 | DM7: 0.0048 | DN7: 0.0062 | DO7: 0.0041 | DP7: 0.0057 | DQ7: 0.0046 | DR7: 0.0040 | DS7: 0.0046 | DT7: 0.0057 | DU7: 0.0000 | DV7: 8.5165 | DW7: 8.1871 | DX7: 0.3295 | DY7: 0.1495 | DZ7: 0.1737 | EA7: 0.9613 | EB7: 0.0387 | EC7: 0.0176 | ED7: 0.0204 | EF7: 0.07522822616 | EG7: 0.05426246167 | EH7: 0.03970498594 | EI7: 0.03803502075 | EJ7: 0.03115955863 | EK7: 0.02584890718 | EL7: 0.02538856656 | EM7: 0.02345090896 | EN7: 0.02327626905 | EO7: 0.01908016302 | EP7: 0.01223730113 | EQ7: 0.01267013711 | ER7: 0.01198043686 | ES7: 0.01276162619 | ET7: 0.01166671038 | EU7: 0.01007665337 | EV7: 0.009013295505 | EW7: 0.009438546005 | EX7: 0.008966971922 | EY7: 0.007792842786 | EZ7: 0.008565925495 | FA7: 0.006445695065 | FB7: 0.007462439825 | FC7: 0.00683417622 | FD7: 0.007593825089 | FE7: 0.006894512688 | FF7: 0.006800475813 | FG7: 0.006871235087 | FH7: 0.008212244933 | FI7: 0.007352826645 | FJ7: 0.00739451787 | FK7: 0.006446737346 | FL7: 0.005941289142 | FM7: 0.005670759413 | FN7: 0.006177249897 | FO7: 0.006541121648 | FP7: 0.005892996806 | FQ7: 0.005232769929 | FR7: 0.005088356156 | FS7: 0.005545975259 | FT7: 0.00523033794 | FU7: 0.0055620148 | FV7: 0.007086292325 | FW7: 0.004531720392 | FX7: 0.00455094468 | FY7: 0.005411173631 | FZ7: 0.006689820352 | GA7: 0.004815336534 | GB7: 0.007635632124 | GC7: 0.004010406361 | GD7: 0.00435835438 | GE7: 0.004752278556 | GF7: 0.003234370524 | GG7: 0.003878094625 | GH7: 0.001412290261 | GI7: 0.00090985309
A8: DCD9 | B8: DLY | C8: 6.28 | D8: 6.146666667 | E8: 2 | M8: 85.2716 | N8: 62.8571 | O8: 0.1982 | P8: 0.7596 | R8: 154.8571429 | S8: 0.09435933148 | T8: 0.01088091922 | U8: 0.8938022284 | V8: 0.0006093314763 | W8: 0 | X8: 0 | Y8: 0 | Z8: 0 | AA8: 0 | AB8: 0 | AC8: 0 | AD8: 0 | AE8: 0 | AG8: 0.0820856546 | AH8: 0.01044568245 | AI8: 0.8937151811 | AJ8: 0.002263231198 | AK8: 0.004004178273 | AL8: 0.001653899721 | AM8: 0.0002611420613 | AN8: 8.70E-05 | AO8: 0.000348189415 | AP8: 0 | AQ8: 0 | AR8: 0 | AS8: 0 | AT8: 0 | AU8: 0 | AV8: 0.0001740947075 | AW8: 0 | AX8: 0 | AY8: 0 | AZ8: 0 | BA8: 0 | BB8: 0 | BC8: 0 | BD8: 0 | BE8: 0 | BF8: 0 | BG8: 0 | BH8: 8.70E-05 | BI8: 0 | BJ8: 0 | BK8: 0 | BL8: 0 | BM8: 0 | BN8: 0 | BO8: 0 | BP8: 0 | BQ8: 0 | BR8: 0 | BS8: 0 | BT8: 0 | BU8: 0 | BV8: 0 | BW8: 0 | BX8: 0 | BY8: 0 | BZ8: 0 | CA8: 0 | CB8: 0 | CC8: 0 | CD8: 0 | CE8: 0 | CG8: 6.28 | CH8: 6.146666667 | CI8: 2 | CQ8: 0.004378015564 | CR8: 0.005392412451 | CS8: 0.2285566148 | CT8: 0.6118346304 | CU8: 0.223292607 | CV8: 0.004744747082 | CW8: 0.01208521401 | CX8: 0.01699046693 | CY8: 0.01353871595 | CZ8: 0.003905642023 | DA8: 0.008893968872 | DB8: 0.05083638132 | DC8: 0.005994747082 | DD8: 0.005186381323 | DE8: 0.004646498054 | DF8: 0.004204085603 | DG8: 0.004747081712 | DH8: 0.005985214008 | DI8: 0.0451 | DJ8: 0.0042 | DK8: 0.0211 | DL8: 0.0906 | DM8: 0.0108 | DN8: 0.0059 | DO8: 0.0055 | DP8: 0.0079 | DQ8: 0.0047 | DR8: 0.0041 | DS8: 0.0048 | DT8: 0.0056 | DU8: 0.0000 | DV8: 1.4257 | DW8: 1.1807 | DX8: 0.2450 | DY8: 0.0471 | DZ8: 0.1921 | EA8: 0.8281 | EB8: 0.1719 | EC8: 0.0330 | ED8: 0.1347 | EF8: 0.07480188668 | EG8: 0.05683214125 | EH8: 0.03725236238 | EI8: 0.03163390452 | EJ8: 0.03386488118 | EK8: 0.03644725752 | EL8: 0.02522191801 | EM8: 0.02987825764 | EN8: 0.01107943225 | EO8: 0.02807683477 | EP8: 0.01281139785 | EQ8: 0.01567019294 | ER8: 0.01406450793 | ES8: 0.01178857797 | ET8: 0.01686982916 | EU8: 0.00825101737 | EV8: 0.01299802752 | EW8: 0.008522911406 | EX8: 0.009333833755 | EY8: 0.009993971556 | EZ8: 0.01169931775 | FA8: 0.007598401167 | FB8: 0.009236993173 | FC8: 0.008053046544 | FD8: 0.009685821064 | FE8: 0.006600555341 | FF8: 0.006646507607 | FG8: 0.01037046282 | FH8: 0.002149179273 | FI8: 0.009707328135 | FJ8: 0.002388636416 | FK8: 0.007481640101 | FL8: 0.004708932057 | FM8: 0.007777391708 | FN8: 0.006596677017 | FO8: 0.004725209266 | FP8: 0.007877816802 | FQ8: 0.007738197128 | FR8: 0.004593757579 | FS8: 0.003493841309 | FT8: 0.007768107235 | FU8: 0.007146047526 | FV8: 0.002090828122 | FW8: 0.005925668154 | FX8: 0.007150689763 | FY8: 0.004055845754 | FZ8: 0.005565277809 | GA8: 0.002730340289 | GB8: 0.0001680607186 | GC8: 0.005880303513 | GD8: 0.005259125242 | GE8: 0.002147122586 | GF8: 0.00271617853 | GG8: 0.002084246723 | GH8: 0.001998394726 | GI8: 0.0012696811
A9: DCD10 | B9: DLY | C9: 6.553333333 | D9: 5.846666667 | E9: 2 | M9: 148.6489 | N9: 137.7895 | O9: 0.8304 | P9: 3.3906 | R9: 16.68791946 | S9: 0.5592667566 | T9: 0.3666216824 | U9: 0.03317588844 | V9: 0.03351327036 | W9: 0.0008996851102 | X9: 0 | Y9: 0 | Z9: 0 | AA9: 0 | AB9: 0 | AC9: 0 | AD9: 0 | AE9: 0 | AG9: 0.3088169141 | AH9: 0.3205128205 | AI9: 0.0005623031939 | AJ9: 0.1861223572 | AK9: 0.005060728745 | AL9: 0.006297795771 | AM9: 0.0006747638327 | AN9: 0.00371120108 | AO9: 0.0008996851102 | AP9: 0.0007872244714 | AQ9: 0 | AR9: 0.0003373819163 | AS9: 0.001461988304 | AT9: 0.0005623031939 | AU9: 0.001349527665 | AV9: 0.03036437247 | AW9: 0.001124606388 | AX9: 0.0001124606388 | AY9: 0.002923976608 | AZ9: 0.00179937022 | BA9: 0 | BB9: 0 | BC9: 0 | BD9: 0 | BE9: 0 | BF9: 0 | BG9: 0 | BH9: 0 | BI9: 0 | BJ9: 0 | BK9: 0 | BL9: 0 | BM9: 0 | BN9: 0 | BO9: 0.0001124606388 | BP9: 0 | BQ9: 0.0002249212776 | BR9: 0 | BS9: 0.0002249212776 | BT9: 0 | BU9: 0 | BV9: 0 | BW9: 0 | BX9: 0 | BY9: 0 | BZ9: 0 | CA9: 0.0004498425551 | CB9: 0 | CC9: 0.0005623031939 | CD9: 0 | CE9: 0 | CG9: 6.553333333 | CH9: 5.846666667 | CI9: 2 | CQ9: 0.003271400778 | CR9: 0.00448229572 | CS9: 0.08399883268 | CT9: 0.2038877432 | CU9: 0.08999338521 | CV9: 0.004178793774 | CW9: 0.00716459144 | CX9: 0.007827431907 | CY9: 0.007421400778 | CZ9: 0.00376770428 | DA9: 0.005806809339 | DB9: 0.02666245136 | DC9: 0.004990661479 | DD9: 0.005032684825 | DE9: 0.004555642023 | DF9: 0.00418307393 | DG9: 0.004687937743 | DH9: 0.005386964981 | DI9: 0.0223 | DJ9: 0.0042 | DK9: 0.0225 | DL9: 0.1081 | DM9: 0.0072 | DN9: 0.0061 | DO9: 0.0046 | DP9: 0.0062 | DQ9: 0.0052 | DR9: 0.0041 | DS9: 0.0049 | DT9: 0.0056 | DU9: 0.0000 | DV9: 0.6782 | DW9: 0.4536 | DX9: 0.2246 | DY9: 0.0339 | DZ9: 0.1845 | EA9: 0.6688 | EB9: 0.3312 | EC9: 0.0500 | ED9: 0.2721 | EF9: 0.0722463531 | EG9: 0.0530470483 | EH9: 0.04465404373 | EI9: 0.03224052871 | EJ9: 0.03191412009 | EK9: 0.02469056752 | EL9: 0.02518405405 | EM9: 0.02549394156 | EN9: 0.02395691817 | EO9: 0.02006185616 | EP9: 0.01278612675 | EQ9: 0.01294125718 | ER9: 0.01266375852 | ES9: 0.01228190616 | ET9: 0.01098233875 | EU9: 0.00968473146 | EV9: 0.009257702735 | EW9: 0.008124559845 | EX9: 0.008610765884 | EY9: 0.008743401473 | EZ9: 0.008171136312 | FA9: 0.008089930849 | FB9: 0.008013952405 | FC9: 0.00855877572 | FD9: 0.007775563036 | FE9: 0.007345640783 | FF9: 0.00742581951 | FG9: 0.006922625662 | FH9: 0.006605177642 | FI9: 0.006787469904 | FJ9: 0.008413632624 | FK9: 0.006785509772 | FL9: 0.006136986148 | FM9: 0.005948066773 | FN9: 0.005624925037 | FO9: 0.005898970137 | FP9: 0.00562175149 | FQ9: 0.005667114541 | FR9: 0.005664221013 | FS9: 0.005815524524 | FT9: 0.005447019736 | FU9: 0.005170641145 | FV9: 0.005387935762 | FW9: 0.005040712405 | FX9: 0.00480138964 | FY9: 0.004949239586 | FZ9: 0.004450526039 | GA9: 0.004397042441 | GB9: 0.004484314978 | GC9: 0.004313690168 | GD9: 0.003766813381 | GE9: 0.004064193385 | GF9: 0.004146332243 | GG9: 0.003556425896 | GH9: 0.00225872527 | GI9: 0.001122222155
A10: DCD15 | B10: DLY | C10: 6.41 | D10: 5.663333333 | E10: 2 | M10: 170.5279 | N10: 168.4348 | O10: 0.8663 | P10: 3.8988 | R10: 25.81871345 | S10: 0.806908526 | T10: 0.1261080143 | U10: 0.01900758476 | V10: 0.03125285571 | W10: 0.005208809284 | X10: 0.0008224435712 | Y10: 0 | Z10: 0 | AA10: 0 | AB10: 0 | AC10: 0 | AD10: 0 | AE10: 0 | AG10: 0.04285844832 | AH10: 0.1195284657 | AI10: 0.01818514119 | AJ10: 0.05674860642 | AK10: 0.2751530659 | AL10: 0.1417344421 | AM10: 0.1094763776 | AN10: 0.003472539523 | AO10: 0.01389015809 | AP10: 0.0008224435712 | AQ10: 0 | AR10: 0 | AS10: 9.14E-05 | AT10: 0 | AU10: 0 | AV10: 0.002650095952 | AW10: 0.005391574523 | AX10: 0 | AY10: 0 | AZ10: 0.0004569130951 | BA10: 0 | BB10: 0 | BC10: 0 | BD10: 0 | BE10: 0 | BF10: 0 | BG10: 0 | BH10: 0.001005208809 | BI10: 0 | BJ10: 0 | BK10: 0 | BL10: 0 | BM10: 0 | BN10: 0 | BO10: 0 | BP10: 0 | BQ10: 0 | BR10: 0 | BS10: 0.0001827652381 | BT10: 0 | BU10: 0 | BV10: 0 | BW10: 0 | BX10: 0 | BY10: 0 | BZ10: 0 | CA10: 0.0009138261903 | CB10: 0 | CC10: 0.001553504523 | CD10: 0 | CE10: 0 | CG10: 6.41 | CH10: 5.663333333 | CI10: 2 | CQ10: 0.003256648452 | CR10: 0.003339162113 | CS10: 0.08685500911 | CT10: 0.154696357 | CU10: 0.1116058288 | CV10: 0.003843169399 | CW10: 0.007137887067 | CX10: 0.006949908925 | CY10: 0.007886703097 | CZ10: 0.003541530055 | DA10: 0.005606739526 | DB10: 0.02663187614 | DC10: 0.004843169399 | DD10: 0.004659744991 | DE10: 0.004255191257 | DF10: 0.003944444444 | DG10: 0.004415846995 | DH10: 0.004921675774 | DI10: 0.0146 | DJ10: 0.0040 | DK10: 0.0207 | DL10: 0.0949 | DM10: 0.0060 | DN10: 0.0058 | DO10: 0.0044 | DP10: 0.0057 | DQ10: 0.0047 | DR10: 0.0040 | DS10: 0.0046 | DT10: 0.0056 | DU10: 0.0000 | DV10: 0.6234 | DW10: 0.4255 | DX10: 0.1979 | DY10: 0.0328 | DZ10: 0.1594 | EA10: 0.6825 | EB10: 0.3175 | EC10: 0.0526 | ED10: 0.2556 | EF10: 0.07409111904 | EG10: 0.05229947111 | EH10: 0.04093116643 | EI10: 0.03836856601 | EJ10: 0.03482927916 | EK10: 0.02384315321 | EL10: 0.02563252393 | EM10: 0.02248469134 | EN10: 0.0247442239 | EO10: 0.01880640598 | EP10: 0.01179255936 | EQ10: 0.01283141872 | ER10: 0.01223899465 | ES10: 0.01351868172 | ET10: 0.01042919087 | EU10: 0.01059695698 | EV10: 0.008637266015 | EW10: 0.007587181917 | EX10: 0.009024284144 | EY10: 0.00785267716 | EZ10: 0.008514802133 | FA10: 0.006348562589 | FB10: 0.007226982167 | FC10: 0.007275510665 | FD10: 0.008830640651 | FE10: 0.007160507535 | FF10: 0.006772951694 | FG10: 0.006414566723 | FH10: 0.00913720364 | FI10: 0.007839839289 | FJ10: 0.009116300091 | FK10: 0.005952873855 | FL10: 0.004947554271 | FM10: 0.005847415111 | FN10: 0.005564511446 | FO10: 0.006212521482 | FP10: 0.005544884962 | FQ10: 0.005617207211 | FR10: 0.005195708306 | FS10: 0.005953613209 | FT10: 0.005250823775 | FU10: 0.005525258478 | FV10: 0.007106333063 | FW10: 0.00431513788 | FX10: 0.00419388385 | FY10: 0.005202564133 | FZ10: 0.00700087432 | GA10: 0.004211292272 | GB10: 0.008287887717 | GC10: 0.00437973052 | GD10: 0.004317423156 | GE10: 0.004981497334 | GF10: 0.003317951189 | GG10: 0.004954678954 | GH10: 0.001788026447 | GI10: 0.00110493071
A11: DCD17 | B11: DLY | C11: 6.333333333 | D11: 6.053333333 | E11: 3 | M11: 361.2077 | N11: 158.5 | O11: 0.6561 | P11: 2.2258 | R11: 286.6666667 | S11: 0.9596072305 | T11: 0.03403258201 | U11: 0 | V11: 0.003347467083 | W11: 0.0001115822361 | X11: 0.0004463289444 | Y11: 0.0001115822361 | Z11: 0 | AA11: 0 | AB11: 0 | AC11: 0 | AD11: 0 | AE11: 0 | AG11: 0.6826601205 | AH11: 0.03269359518 | AI11: 0 | AJ11: 0.2323142156 | AK11: 0.005132782861 | AL11: 0.005579111805 | AM11: 0.01807632225 | AN11: 0.0005579111805 | AO11: 0.003235884847 | AP11: 0.0003347467083 | AQ11: 0 | AR11: 0.0001115822361 | AS11: 0.0001115822361 | AT11: 0.0003347467083 | AU11: 0 | AV11: 0.0007810756528 | AW11: 0.0001115822361 | AX11: 0 | AY11: 0 | AZ11: 0 | BA11: 0 | BB11: 0 | BC11: 0 | BD11: 0 | BE11: 0 | BF11: 0 | BG11: 0 | BH11: 0 | BI11: 0 | BJ11: 0 | BK11: 0 | BL11: 0 | BM11: 0 | BN11: 0 | BO11: 0.0002231644722 | BP11: 0 | BQ11: 0 | BR11: 0 | BS11: 0.0001115822361 | BT11: 0 | BU11: 0 | BV11: 0 | BW11: 0 | BX11: 0 | BY11: 0 | BZ11: 0 | CA11: 0 | CB11: 0 | CC11: 0 | CD11: 0 | CE11: 0 | CG11: 6.333333333 | CH11: 6.053333333 | CI11: 3 | CQ11: 0.005469142857 | CR11: 0.005447238095 | CS11: 0.4399064762 | CT11: 1.434318857 | CU11: 0.3863032381 | CV11: 0.005171809524 | CW11: 0.02686628571 | CX11: 0.02794952381 | CY11: 0.02103257143 | CZ11: 0.003829142857 | DA11: 0.008961142857 | DB11: 0.04698895238 | DC11: 0.005537142857 | DD11: 0.005224190476 | DE11: 0.004699428571 | DF11: 0.004117142857 | DG11: 0.004672571429 | DH11: 0.005430666667 | DI11: 0.0339 | DJ11: 0.0041 | DK11: 0.0208 | DL11: 0.0556 | DM11: 0.0075 | DN11: 0.0052 | DO11: 0.0048 | DP11: 0.0064 | DQ11: 0.0047 | DR11: 0.0041 | DS11: 0.0049 | DT11: 0.0052 | DU11: 0.0000 | DV11: 2.5992 | DW11: 2.3996 | DX11: 0.1996 | DY11: 0.0525 | DZ11: 0.1418 | EA11: 0.9232 | EB11: 0.0768 | EC11: 0.0202 | ED11: 0.0546 | EF11: 0.07312877489 | EG11: 0.05549226999 | EH11: 0.04397220476 | EI11: 0.03015342304 | EJ11: 0.02666022815 | EK11: 0.02914386454 | EL11: 0.02487754224 | EM11: 0.03016949638 | EN11: 0.02018833815 | EO11: 0.02349600084 | EP11: 0.01484908248 | EQ11: 0.01264596406 | ER11: 0.01512937083 | ES11: 0.009765852078 | ET11: 0.01296345069 | EU11: 0.01134310546 | EV11: 0.01015895992 | EW11: 0.006757076879 | EX11: 0.009373739248 | EY11: 0.01046787411 | EZ11: 0.009029004486 | FA11: 0.01098076657 | FB11: 0.009146492909 | FC11: 0.009244540252 | FD11: 0.006960366294 | FE11: 0.005588315818 | FF11: 0.007031548206 | FG11: 0.007888027333 | FH11: 0.01006060642 | FI11: 0.007352785283 | FJ11: 0.005980275569 | FK11: 0.009546412788 | FL11: 0.004962986554 | FM11: 0.005438757265 | FN11: 0.005963819536 | FO11: 0.005133363903 | FP11: 0.006890944796 | FQ11: 0.005884371338 | FR11: 0.003880485724 | FS11: 0.00483325178 | FT11: 0.006349043793 | FU11: 0.005342546875 | FV11: 0.003287685828 | FW11: 0.005416178056 | FX11: 0.005574691754 | FY11: 0.004902979438 | FZ11: 0.001653793074 | GA11: 0.003399127616 | GB11: 0.0005569793213 | GC11: 0.00518104813 | GD11: 0.004545309468 | GE11: 0.003728937138 | GF11: 0.003263116587 | GG11: 0.002719608251 | GH11: 0.002003120217 | GI11: 0.0006662014584
A12: DCD18 | B12: DLY | C12: 6.37 | D12: 6.13 | E12: 2 | M12: 155.548 | N12: 154.3158 | O12: 0.6902 | P12: 2.5806 | R12: 59.84431138 | S12: 0.9706682207 | T12: 0.0101981352 | U12: 0 | V12: 0.01621989122 | W12: 0.0001942501942 | X12: 0.0002913752914 | Y12: 0 | Z12: 0 | AA12: 0 | AB12: 0 | AC12: 0 | AD12: 0 | AE12: 0 | AG12: 0.7704933955 | AH12: 0.008935508936 | AI12: 0 | AJ12: 0.01660839161 | AK12: 0.05264180264 | AL12: 0.03991841492 | AM12: 0.01320901321 | AN12: 9.71E-05 | AO12: 0.000777000777 | AP12: 0.0005827505828 | AQ12: 0 | AR12: 0 | AS12: 0 | AT12: 0.0002913752914 | AU12: 9.71E-05 | AV12: 0.004953379953 | AW12: 0.0005827505828 | AX12: 0 | AY12: 0 | AZ12: 0.0001942501942 | BA12: 0 | BB12: 0 | BC12: 0 | BD12: 0 | BE12: 0 | BF12: 0 | BG12: 0 | BH12: 0.0001942501942 | BI12: 0 | BJ12: 0 | BK12: 0 | BL12: 0 | BM12: 0 | BN12: 0 | BO12: 9.71E-05 | BP12: 0 | BQ12: 0 | BR12: 0 | BS12: 0.0001942501942 | BT12: 0 | BU12: 0 | BV12: 0 | BW12: 0 | BX12: 0 | BY12: 0 | BZ12: 0 | CA12: 0 | CB12: 0 | CC12: 0.0001942501942 | CD12: 0 | CE12: 0 | CG12: 6.37 | CH12: 6.13 | CI12: 2 | CQ12: 0.0052066 | CR12: 0.0056028 | CS12: 0.3086354 | CT12: 0.9282676 | CU12: 0.2546232 | CV12: 0.0046246 | CW12: 0.01667 | CX12: 0.0205838 | CY12: 0.0153238 | CZ12: 0.0039644 | DA12: 0.0077732 | DB12: 0.0375924 | DC12: 0.0055416 | DD12: 0.0053932 | DE12: 0.0047798 | DF12: 0.0043176 | DG12: 0.004825 | DH12: 0.0055784 | DI12: 0.0095 | DJ12: 0.0039 | DK12: 0.0100 | DL12: 0.0565 | DM12: 0.0049 | DN12: 0.0054 | DO12: 0.0043 | DP12: 0.0056 | DQ12: 0.0048 | DR12: 0.0042 | DS12: 0.0048 | DT12: 0.0054 | DU12: 0.0000 | DV12: 1.7586 | DW12: 1.6033 | DX12: 0.1553 | DY12: 0.0444 | DZ12: 0.1055 | EA12: 0.9117 | EB12: 0.0883 | EC12: 0.0252 | ED12: 0.0600 | EF12: 0.07026706632 | EG12: 0.05207120248 | EH12: 0.04120566557 | EI12: 0.03152850969 | EJ12: 0.03027277917 | EK12: 0.0288569795 | EL12: 0.02500701557 | EM12: 0.02717342451 | EN12: 0.02264467252 | EO12: 0.02233119619 | EP12: 0.01330508548 | EQ12: 0.01491298636 | ER12: 0.01512562096 | ES12: 0.01241713068 | ET12: 0.01269711479 | EU12: 0.01047193474 | EV12: 0.01015042757 | EW12: 0.007500069585 | EX12: 0.009539354056 | EY12: 0.009639100674 | EZ12: 0.009467441581 | FA12: 0.007918676847 | FB12: 0.008321769996 | FC12: 0.009322612777 | FD12: 0.008204501557 | FE12: 0.008232974516 | FF12: 0.006512003132 | FG12: 0.007726210591 | FH12: 0.008141076214 | FI12: 0.007717723459 | FJ12: 0.009821710905 | FK12: 0.007469862696 | FL12: 0.005245960285 | FM12: 0.006241601275 | FN12: 0.006484077729 | FO12: 0.006054154292 | FP12: 0.00672007476 | FQ12: 0.005006312875 | FR12: 0.003759799558 | FS12: 0.005386864931 | FT12: 0.005273611909 | FU12: 0.005920459145 | FV12: 0.004257255015 | FW12: 0.004906292478 | FX12: 0.005416889302 | FY12: 0.00483848668 | FZ12: 0.003039214657 | GA12: 0.003320385133 | GB12: 0.004550015446 | GC12: 0.004700776116 | GD12: 0.004855917242 | GE12: 0.003934287695 | GF12: 0.00298719675 | GG12: 0.003319837576 | GH12: 0.001817067623 | GI12: 0.0008603944326
A13: DCD21 | B13: DLY | C13: 6.086666667 | D13: 5.806666667 | E13: 2 | M13: 300.8127 | N13: 104 | O13: 0.3565 | P13: 0.958 | R13: 2762 | S13: 0.9981929888 | T13: 0.000843271895 | U13: 0.0001204674136 | V13: 0.0003614022407 | W13: 0 | X13: 0 | Y13: 0 | Z13: 0 | AA13: 0 | AB13: 0 | AC13: 0 | AD13: 0 | AE13: 0 | AG13: 0.9842187688 | AH13: 0 | AI13: 0 | AJ13: 0.0004818696543 | AK13: 0.001204674136 | AL13: 0.002288880858 | AM13: 0.00674617516 | AN13: 0 | AO13: 0.001325141549 | AP13: 0.0004818696543 | AQ13: 0 | AR13: 0.0001204674136 | AS13: 0 | AT13: 0 | AU13: 0.0001204674136 | AV13: 0 | AW13: 0.0001204674136 | AX13: 0 | AY13: 0 | AZ13: 0 | BA13: 0 | BB13: 0 | BC13: 0 | BD13: 0 | BE13: 0 | BF13: 0 | BG13: 0 | BH13: 0 | BI13: 0 | BJ13: 0 | BK13: 0 | BL13: 0 | BM13: 0 | BN13: 0 | BO13: 0 | BP13: 0 | BQ13: 0 | BR13: 0 | BS13: 0 | BT13: 0 | BU13: 0 | BV13: 0 | BW13: 0 | BX13: 0 | BY13: 0 | BZ13: 0 | CA13: 0.0001204674136 | CB13: 0 | CC13: 0.0001204674136 | CD13: 0 | CE13: 0 | CG13: 6.086666667 | CH13: 5.806666667 | CI13: 2 | CQ13: 0.01134696673 | CR13: 0.008580430528 | CS13: 0.7264483366 | CT13: 1.757986497 | CU13: 0.6836976517 | CV13: 0.00597553816 | CW13: 0.05095244618 | CX13: 0.04591976517 | CY13: 0.04212348337 | CZ13: 0.004005283757 | DA13: 0.01339197652 | DB13: 0.05985459883 | DC13: 0.006060078278 | DD13: 0.005536399217 | DE13: 0.005033659491 | DF13: 0.004228180039 | DG13: 0.004787279843 | DH13: 0.005867123288 | DI13: 0.0128 | DJ13: 0.0041 | DK13: 0.0131 | DL13: 0.0681 | DM13: 0.0052 | DN13: 0.0058 | DO13: 0.0046 | DP13: 0.0059 | DQ13: 0.0046 | DR13: 0.0042 | DS13: 0.0048 | DT13: 0.0053 | DU13: 0.0000 | DV13: 3.5804 | DW13: 3.3713 | DX13: 0.2091 | DY13: 0.0793 | DZ13: 0.1240 | EA13: 0.9416 | EB13: 0.0584 | EC13: 0.0222 | ED13: 0.0346 | EF13: 0.06589181487 | EG13: 0.05057998419 | EH13: 0.04164015543 | EI13: 0.02526896693 | EJ13: 0.02913018572 | EK13: 0.0330794689 | EL13: 0.0251193781 | EM13: 0.02999066621 | EN13: 0.02078561024 | EO13: 0.02548593968 | EP13: 0.01409323314 | EQ13: 0.01610682297 | ER13: 0.01693128495 | ES13: 0.01273762738 | ET13: 0.0146395426 | EU13: 0.009514401545 | EV13: 0.01144716515 | EW13: 0.007424983266 | EX13: 0.009996773844 | EY13: 0.01109077147 | EZ13: 0.01028457725 | FA13: 0.009320349666 | FB13: 0.009371016853 | FC13: 0.01049586287 | FD13: 0.006882982236 | FE13: 0.008764906321 | FF13: 0.005946328628 | FG13: 0.008788688878 | FH13: 0.007620241507 | FI13: 0.007685040358 | FJ13: 0.00946425137 | FK13: 0.00797525649 | FL13: 0.005858781244 | FM13: 0.006765792824 | FN13: 0.007312963975 | FO13: 0.00619587314 | FP13: 0.007608350228 | FQ13: 0.004167634628 | FR13: 0.003296124546 | FS13: 0.005317124889 | FT13: 0.004724456672 | FU13: 0.006185532898 | FV13: 0.001650474996 | FW13: 0.005570116148 | FX13: 0.006684621923 | FY13: 0.004446648831 | FZ13: 0.0004902998188 | GA13: 0.003004529715 | GB13: 0.0002257619552 | GC13: 0.004737554312 | GD13: 0.00528558715 | GE13: 0.002734304719 | GF13: 0.0027093158 | GG13: 0.002443399237 | GH13: 0.00205788054 | GI13: 0.0006097296165
A14: DCD26 | B14: DLY | C14: 6.34 | D14: 5.953333333 | E14: 2 | M14: 96.3814 | N14: 78.25 | O14: 0.0725 | P14: 0.363 | R14: 32.09090909 | S14: 0.03159119384 | T14: 0.9637551459 | U14: 0.0002684804009 | V14: 0.0009844281367 | W14: 8.95E-05 | X14: 0 | Y14: 0 | Z14: 0 | AA14: 0 | AB14: 0 | AC14: 0 | AD14: 0 | AE14: 0.0009844281367 | AG14: 0.01986754967 | AH14: 0.9629497047 | AI14: 0 | AJ14: 0.007517451226 | AK14: 0.001073921604 | AL14: 0.001073921604 | AM14: 0.000178986934 | AN14: 8.95E-05 | AO14: 0.000178986934 | AP14: 8.95E-05 | AQ14: 0 | AR14: 0 | AS14: 0.0004474673349 | AT14: 0.001879362807 | AU14: 0.0002684804009 | AV14: 8.95E-05 | AW14: 0 | AX14: 0 | AY14: 0 | AZ14: 0 | BA14: 0 | BB14: 0 | BC14: 0 | BD14: 0 | BE14: 0 | BF14: 0 | BG14: 0 | BH14: 0 | BI14: 0 | BJ14: 0 | BK14: 0 | BL14: 0 | BM14: 0 | BN14: 0 | BO14: 0 | BP14: 0 | BQ14: 0 | BR14: 0 | BS14: 0 | BT14: 0 | BU14: 0 | BV14: 0 | BW14: 0 | BX14: 0 | BY14: 0 | BZ14: 0 | CA14: 0 | CB14: 0 | CC14: 0 | CD14: 0 | CE14: 0 | CG14: 6.34 | CH14: 5.953333333 | CI14: 2 | CQ14: 0.01620872093 | CR14: 0.005376937984 | CS14: 0.6232310078 | CT14: 0.2339160853 | CU14: 0.4880852713 | CV14: 0.007515116279 | CW14: 0.01768856589 | CX14: 0.01000775194 | CY14: 0.02742228682 | CZ14: 0.004382751938 | DA14: 0.02234709302 | DB14: 0.4863841085 | DC14: 0.01100484496 | DD14: 0.005448837209 | DE14: 0.00451124031 | DF14: 0.004413372093 | DG14: 0.006447093023 | DH14: 0.02023255814 | DI14: 0.0135 | DJ14: 0.0041 | DK14: 0.0149 | DL14: 0.0504 | DM14: 0.0055 | DN14: 0.0055 | DO14: 0.0045 | DP14: 0.0062 | DQ14: 0.0047 | DR14: 0.0043 | DS14: 0.0049 | DT14: 0.0053 | DU14: 0.0000 | DV14: 2.1185 | DW14: 1.9096 | DX14: 0.2088 | DY14: 0.0947 | DZ14: 0.1087 | EA14: 0.9014 | EB14: 0.0986 | EC14: 0.0447 | ED14: 0.0513 | EF14: 0.06920032081 | EG14: 0.04724846954 | EH14: 0.05598657044 | EI14: 0.02719523314 | EJ14: 0.03670518225 | EK14: 0.01428742332 | EL14: 0.0248427836 | EM14: 0.01989011384 | EN14: 0.03627371005 | EO14: 0.01397626944 | EP14: 0.01183372529 | EQ14: 0.01078529587 | ER14: 0.009130061498 | ES14: 0.01200809768 | ET14: 0.00628769551 | EU14: 0.007803678914 | EV14: 0.006714365953 | EW14: 0.009110442889 | EX14: 0.007266430859 | EY14: 0.006854851655 | EZ14: 0.005576486645 | FA14: 0.008257102005 | FB14: 0.005332008597 | FC14: 0.007862671934 | FD14: 0.00821978549 | FE14: 0.01028577591 | FF14: 0.007531899446 | FG14: 0.004622308855 | FH14: 0.005237070994 | FI14: 0.003962684583 | FJ14: 0.00996899711 | FK14: 0.004215119829 | FL14: 0.009541915089 | FM14: 0.006800660393 | FN14: 0.004298396021 | FO14: 0.005970779523 | FP14: 0.003458088478 | FQ14: 0.004882289719 | FR14: 0.009645495856 | FS14: 0.008243794277 | FT14: 0.003423515825 | FU14: 0.003819043441 | FV14: 0.006314859738 | FW14: 0.004829607581 | FX14: 0.003578269606 | FY14: 0.004844424433 | FZ14: 0.004969544511 | GA14: 0.006046098517 | GB14: 0.008691318066 | GC14: 0.00290506322 | GD14: 0.002045137068 | GE14: 0.004113734151 | GF14: 0.006597751845 | GG14: 0.005749898683 | GH14: 0.003312938212 | GI14: 0.001339004346
A15: DCD27 | B15: DLY | C15: 6.35 | D15: 5.796666667 | E15: 2 | M15: 102.8578 | N15: 82 | O15: 0.5875 | P15: 1.7521 | R15: 167.0967742 | S15: 0.4685662596 | T15: 0.5207598372 | U15: 0 | V15: 0.002804161013 | W15: 0.0004522840344 | X15: 0.0003618272275 | Y15: 0 | Z15: 0 | AA15: 0 | AB15: 0 | AC15: 0 | AD15: 0 | AE15: 0 | AG15: 0.03138851199 | AH15: 0.4948891904 | AI15: 0 | AJ15: 0.4113975577 | AK15: 0.004794210764 | AL15: 0.005336951606 | AM15: 0.004251469923 | AN15: 0.0184531886 | AO15: 0.003165988241 | AP15: 0.0004522840344 | AQ15: 0 | AR15: 9.05E-05 | AS15: 0.006060606061 | AT15: 0.0008141112619 | AU15: 0.0003618272275 | AV15: 0.0008141112619 | AW15: 0 | AX15: 0 | AY15: 9.05E-05 | AZ15: 0 | BA15: 0 | BB15: 0 | BC15: 0 | BD15: 0 | BE15: 0 | BF15: 0 | BG15: 0 | BH15: 9.05E-05 | BI15: 0 | BJ15: 0 | BK15: 0 | BL15: 0 | BM15: 0 | BN15: 0 | BO15: 0 | BP15: 0 | BQ15: 0 | BR15: 0 | BS15: 0 | BT15: 0 | BU15: 0 | BV15: 0 | BW15: 0 | BX15: 0 | BY15: 0 | BZ15: 9.05E-05 | CA15: 0 | CB15: 0 | CC15: 0 | CD15: 0 | CE15: 0 | CG15: 6.35 | CH15: 5.796666667 | CI15: 2 | CQ15: 0.008586666667 | CR15: 0.007889142857 | CS15: 0.634148 | CT15: 1.630381143 | CU15: 0.5048072381 | CV15: 0.005509142857 | CW15: 0.03692819048 | CX15: 0.04214895238 | CY15: 0.03228171429 | CZ15: 0.003949333333 | DA15: 0.0115647619 | DB15: 0.05414780952 | DC15: 0.005730095238 | DD15: 0.005567047619 | DE15: 0.00491047619 | DF15: 0.004150857143 | DG15: 0.004743428571 | DH15: 0.005422857143 | DI15: 0.0684 | DJ15: 0.0047 | DK15: 0.0311 | DL15: 0.1200 | DM15: 0.0148 | DN15: 0.0071 | DO15: 0.0072 | DP15: 0.0083 | DQ15: 0.0054 | DR15: 0.0043 | DS15: 0.0057 | DT15: 0.0062 | DU15: 0.0000 | DV15: 3.2862 | DW15: 2.9497 | DX15: 0.3365 | DY15: 0.0688 | DZ15: 0.2606 | EA15: 0.8976 | EB15: 0.1024 | EC15: 0.0209 | ED15: 0.0793 | EF15: 0.07155691112 | EG15: 0.05315980379 | EH15: 0.04628310625 | EI15: 0.03415560359 | EJ15: 0.03662684044 | EK15: 0.02220474601 | EL15: 0.02514819945 | EM15: 0.02288949494 | EN15: 0.02413378612 | EO15: 0.01825006923 | EP15: 0.01183053556 | EQ15: 0.01315577246 | ER15: 0.01127109299 | ES15: 0.01397200833 | ET15: 0.009746881148 | EU15: 0.009101408834 | EV15: 0.008776629097 | EW15: 0.007084743985 | EX15: 0.007232878635 | EY15: 0.008221971499 | EZ15: 0.007536624448 | FA15: 0.007255706922 | FB15: 0.008162159392 | FC15: 0.009604927082 | FD15: 0.008838734001 | FE15: 0.009171089938 | FF15: 0.007930786228 | FG15: 0.00645512188 | FH15: 0.003591118859 | FI15: 0.006585512272 | FJ15: 0.01197468273 | FK15: 0.005358466912 | FL15: 0.006922354117 | FM15: 0.005851019607 | FN15: 0.00531619969 | FO15: 0.005852215849 | FP15: 0.004669929882 | FQ15: 0.00553760417 | FR15: 0.006586708514 | FS15: 0.006078804045 | FT15: 0.005151118277 | FU15: 0.004597058799 | FV15: 0.006966914136 | FW15: 0.004614803058 | FX15: 0.004376950248 | FY15: 0.005382591128 | FZ15: 0.006110105714 | GA15: 0.004963707011 | GB15: 0.003816411126 | GC15: 0.004255132925 | GD15: 0.002988113141 | GE15: 0.004155147021 | GF15: 0.004733530089 | GG15: 0.003988171558 | GH15: 0.002263389787 | GI15: 0.001142112169
A16: DCD29 | B16: DLY | C16: 6.263333333 | D16: 5.94 | E16: 2 | M16: 150.0053 | N16: 152.4286 | O16: 0.9105 | P16: 4.5737 | R16: 14.97636364 | S16: 0.7444193403 | T16: 0.1501129688 | U16: 0.01906913692 | V16: 0.04970628107 | W16: 0.0004518752824 | X16: 0.001717126073 | Y16: 0 | Z16: 0 | AA16: 0 | AB16: 0 | AC16: 0 | AD16: 0 | AE16: 9.04E-05 | AG16: 0.2700406688 | AH16: 0.1271577045 | AI16: 0.01879801175 | AJ16: 0.20804338 | AK16: 0.054405784 | AL16: 0.04789877994 | AM16: 0.01048350655 | AN16: 0.01192950746 | AO16: 0.0180750113 | AP16: 0.002440126525 | AQ16: 9.04E-05 | AR16: 0.0007230004519 | AS16: 0.0003615002259 | AT16: 0.00307275192 | AU16: 0.001717126073 | AV16: 0.001897876186 | AW16: 0.01780388613 | AX16: 0.003524627203 | AY16: 0 | AZ16: 0.003705377316 | BA16: 0 | BB16: 0 | BC16: 0 | BD16: 0 | BE16: 0 | BF16: 0 | BG16: 0 | BH16: 0.001626751017 | BI16: 0 | BJ16: 0 | BK16: 0 | BL16: 0 | BM16: 0 | BN16: 0 | BO16: 0 | BP16: 0 | BQ16: 0 | BR16: 0 | BS16: 9.04E-05 | BT16: 0 | BU16: 0 | BV16: 0 | BW16: 0 | BX16: 0 | BY16: 0 | BZ16: 0.0004518752824 | CA16: 0 | CB16: 0 | CC16: 0 | CD16: 0 | CE16: 0 | CG16: 6.263333333 | CH16: 5.94 | CI16: 2 | CQ16: 0.0122238 | CR16: 0.0052188 | CS16: 0.4589496 | CT16: 0.1370424 | CU16: 0.3108002 | CV16: 0.0060038 | CW16: 0.0111564 | CX16: 0.0074144 | CY16: 0.0166252 | CZ16: 0.0041958 | DA16: 0.0136482 | DB16: 0.307567 | DC16: 0.008417 | DD16: 0.0047464 | DE16: 0.0048104 | DF16: 0.0044734 | DG16: 0.0059716 | DH16: 0.014452 | DI16: 0.0235 | DJ16: 0.0042 | DK16: 0.0149 | DL16: 0.0750 | DM16: 0.0069 | DN16: 0.0060 | DO16: 0.0051 | DP16: 0.0061 | DQ16: 0.0047 | DR16: 0.0043 | DS16: 0.0050 | DT16: 0.0056 | DU16: 0.0000 | DV16: 1.4951 | DW16: 1.2791 | DX16: 0.2160 | DY16: 0.0653 | DZ16: 0.1447 | EA16: 0.8555 | EB16: 0.1445 | EC16: 0.0437 | ED16: 0.0968 | EF16: 0.07432803262 | EG16: 0.05501453457 | EH16: 0.04108263998 | EI16: 0.0366120034 | EJ16: 0.03141969087 | EK16: 0.02647901265 | EL16: 0.02560202634 | EM16: 0.02424746237 | EN16: 0.02126573631 | EO16: 0.02014636443 | EP16: 0.01209968445 | EQ16: 0.01282999256 | ER16: 0.01237180301 | ES16: 0.01301757076 | ET16: 0.01172809053 | EU16: 0.0100358447 | EV16: 0.009570735718 | EW16: 0.008143209447 | EX16: 0.008709438013 | EY16: 0.008344557995 | EZ16: 0.008604207876 | FA16: 0.007093990996 | FB16: 0.008172942441 | FC16: 0.007804499945 | FD16: 0.007971182837 | FE16: 0.00721840371 | FF16: 0.007363985767 | FG16: 0.007140029181 | FH16: 0.006917853834 | FI16: 0.007635145194 | FJ16: 0.007284994655 | FK16: 0.006625182517 | FL16: 0.005666738761 | FM16: 0.005586103429 | FN16: 0.006062584939 | FO16: 0.006094373209 | FP16: 0.005893161679 | FQ16: 0.005664477957 | FR16: 0.005416474641 | FS16: 0.005611725871 | FT16: 0.005607889355 | FU16: 0.005528144643 | FV16: 0.006460075337 | FW16: 0.004794685111 | FX16: 0.004820924136 | FY16: 0.005308915192 | FZ16: 0.006120132669 | GA16: 0.004695072729 | GB16: 0.004523594193 | GC16: 0.004301281828 | GD16: 0.004110620715 | GE16: 0.004391988013 | GF16: 0.003373598704 | GG16: 0.003625575554 | GH16: 0.001836115161 | GI16: 0.001023321972
A17: DCD30 | B17: DLY | C17: 6.273333333 | D17: 5.816666667 | E17: 2 | M17: 210.7486 | N17: 211.5 | O17: 0.9757 | P17: 6.2359 | R17: 2.474814203 | S17: 0.5673987126 | T17: 0.1675501704 | U17: 0.01060204468 | V17: 0.2292692162 | W17: 0.0004733055661 | X17: 0.007572889057 | Y17: 0.0001893222264 | Z17: 0 | AA17: 0 | AB17: 0 | AC17: 0 | AD17: 0 | AE17: 0.0007572889057 | AG17: 0.1265619084 | AH17: 0.06124574025 | AI17: 0.008424839076 | AJ17: 0.06408557365 | AK17: 0.03606588413 | AL17: 0.0379591064 | AM17: 0.005679666793 | AN17: 0.02063612268 | AO17: 0.001041272245 | AP17: 0.00823551685 | AQ17: 0 | AR17: 0.00293449451 | AS17: 0.00766755017 | AT17: 0.001514577811 | AU17: 0.001041272245 | AV17: 0.00558500568 | AW17: 0.01296857251 | AX17: 0.0558500568 | AY17: 0 | AZ17: 0.01230594472 | BA17: 0 | BB17: 0 | BC17: 0 | BD17: 0 | BE17: 0 | BF17: 0 | BG17: 0 | BH17: 0 | BI17: 0 | BJ17: 0 | BK17: 0 | BL17: 0 | BM17: 0 | BN17: 0 | BO17: 0.002177205604 | BP17: 0 | BQ17: 0 | BR17: 0 | BS17: 0.002082544491 | BT17: 0 | BU17: 0 | BV17: 0 | BW17: 0 | BX17: 0 | BY17: 0 | BZ17: 0 | CA17: 0 | CB17: 0 | CC17: 0.001041272245 | CD17: 0 | CE17: 0 | CG17: 6.273333333 | CH17: 5.816666667 | CI17: 2 | CQ17: 0.02185018939 | CR17: 0.01663503788 | CS17: 1.912938258 | CT17: 4.552890341 | CU17: 1.720054545 | CV17: 0.006495833333 | CW17: 0.1636668561 | CX17: 0.1598649621 | CY17: 0.1225429924 | CZ17: 0.004310416667 | DA17: 0.02148200758 | DB17: 0.05944412879 | DC17: 0.007043560606 | DD17: 0.007645833333 | DE17: 0.006379924242 | DF17: 0.004114015152 | DG17: 0.005297727273 | DH17: 0.008404166667 | DI17: 0.0224 | DJ17: 0.0037 | DK17: 0.0117 | DL17: 0.0490 | DM17: 0.0084 | DN17: 0.0054 | DO17: 0.0044 | DP17: 0.0054 | DQ17: 0.0047 | DR17: 0.0039 | DS17: 0.0045 | DT17: 0.0054 | DU17: 0.0000 | DV17: 8.9301 | DW17: 8.6336 | DX17: 0.2966 | DY17: 0.1714 | DZ17: 0.1197 | EA17: 0.9668 | EB17: 0.0332 | EC17: 0.0192 | ED17: 0.0134 | EF17: 0.07763882141 | EG17: 0.0566283376 | EH17: 0.04108973321 | EI17: 0.03877892225 | EJ17: 0.02737467474 | EK17: 0.02476187391 | EL17: 0.02661754068 | EM17: 0.02173798033 | EN17: 0.02051355553 | EO17: 0.01811620726 | EP17: 0.01126232199 | EQ17: 0.01100206221 | ER17: 0.0111311394 | ES17: 0.01218939958 | ET17: 0.01068997722 | EU17: 0.009873514074 | EV17: 0.009084529092 | EW17: 0.009498537017 | EX17: 0.008851423574 | EY17: 0.007595633725 | EZ17: 0.007947343418 | FA17: 0.006708234811 | FB17: 0.007397834138 | FC17: 0.005770198339 | FD17: 0.007563836794 | FE17: 0.006410077846 | FF17: 0.00810087563 | FG17: 0.006547738585 | FH17: 0.007477515413 | FI17: 0.007536844492 | FJ17: 0.003940984031 | FK17: 0.006025167622 | FL17: 0.005803452855 | FM17: 0.005150131183 | FN17: 0.005951694577 | FO17: 0.006134972306 | FP17: 0.005637234261 | FQ17: 0.006439607424 | FR17: 0.006512648593 | FS17: 0.005996663751 | FT17: 0.005933825673 | FU17: 0.005623090295 | FV17: 0.007997980976 | FW17: 0.005011714659 | FX17: 0.004304678306 | FY17: 0.005470205897 | FZ17: 0.007593366372 | GA17: 0.005990023645 | GB17: 0.004456644965 | GC17: 0.003516017232 | GD17: 0.003835012255 | GE17: 0.004808462626 | GF17: 0.003438765264 | GG17: 0.003896608687 | GH17: 0.002211587255 | GI17: 0.00129028601
A18: DCD31 | B18: DLY | C18: 6.356666667 | D18: 6.006666667 | E18: 2 | M18: 197.2605 | N18: 181.9375 | O18: 0.8536 | P18: 3.6936 | R18: 39.36090226 | S18: 0.6825293351 | T18: 0.2106910039 | U18: 0.070273794 | V18: 0.01734028683 | W18: 0.000260756193 | X18: 0.0006518904824 | Y18: 0 | Z18: 0 | AA18: 0 | AB18: 0 | AC18: 0 | AD18: 0 | AE18: 0 | AG18: 0.2398956975 | AH18: 0.1044328553 | AI18: 0 | AJ18: 0.3915254237 | AK18: 0.005345501956 | AL18: 0.001955671447 | AM18: 0.003259452412 | AN18: 0.0001303780965 | AO18: 0.001303780965 | AP18: 0.0001303780965 | AQ18: 0 | AR18: 0.0001303780965 | AS18: 0.01342894394 | AT18: 0.0007822685789 | AU18: 0.000260756193 | AV18: 0.001173402868 | AW18: 0.001434159061 | AX18: 0.0009126466754 | AY18: 0.003520208605 | AZ18: 0.000260756193 | BA18: 0 | BB18: 0 | BC18: 0 | BD18: 0 | BE18: 0 | BF18: 0 | BG18: 0 | BH18: 0 | BI18: 0 | BJ18: 0 | BK18: 0 | BL18: 0 | BM18: 0 | BN18: 0 | BO18: 0.0001303780965 | BP18: 0 | BQ18: 0 | BR18: 0 | BS18: 0.000260756193 | BT18: 0 | BU18: 0 | BV18: 0 | BW18: 0 | BX18: 0 | BY18: 0 | BZ18: 0 | CA18: 0 | CB18: 0 | CC18: 0.000260756193 | CD18: 0 | CE18: 0 | CG18: 6.356666667 | CH18: 6.006666667 | CI18: 2 | CQ18: 0.03283253235 | CR18: 0.01998909427 | CS18: 1.829029205 | CT18: 4.029586876 | CU18: 2.07519963 | CV18: 0.008075231054 | CW18: 0.2029558226 | CX18: 0.1251402957 | CY18: 0.137787061 | CZ18: 0.004373012939 | DA18: 0.02567560074 | DB18: 0.08340332717 | DC18: 0.007660813309 | DD18: 0.007178373383 | DE18: 0.006318114603 | DF18: 0.004151386322 | DG18: 0.005239001848 | DH18: 0.008400924214 | DI18: 0.0121 | DJ18: 0.0037 | DK18: 0.0092 | DL18: 0.0638 | DM18: 0.0059 | DN18: 0.0059 | DO18: 0.0040 | DP18: 0.0047 | DQ18: 0.0044 | DR18: 0.0039 | DS18: 0.0045 | DT18: 0.0056 | DU18: 0.0000 | DV18: 8.7406 | DW18: 8.4238 | DX18: 0.3168 | DY18: 0.1923 | DZ18: 0.1186 | EA18: 0.9638 | EB18: 0.0362 | EC18: 0.0220 | ED18: 0.0136 | EF18: 0.07240955716 | EG18: 0.0540229708 | EH18: 0.04303228632 | EI18: 0.03420047843 | EJ18: 0.03369326347 | EK18: 0.02464481969 | EL18: 0.02552324699 | EM18: 0.02448997916 | EN18: 0.02222406102 | EO18: 0.01975682379 | EP18: 0.01228284144 | EQ18: 0.01281100697 | ER18: 0.01209543071 | ES18: 0.0134505274 | ET18: 0.01107299028 | EU18: 0.00930874136 | EV18: 0.009265431786 | EW18: 0.008416669784 | EX18: 0.008206900042 | EY18: 0.008282691796 | EZ18: 0.00809422473 | FA18: 0.007234195197 | FB18: 0.008406546612 | FC18: 0.008172481256 | FD18: 0.007599333631 | FE18: 0.006798370609 | FF18: 0.007908662575 | FG18: 0.006938246446 | FH18: 0.005067924287 | FI18: 0.007033316241 | FJ18: 0.008213590139 | FK18: 0.006103568858 | FL18: 0.006048375561 | FM18: 0.005717919996 | FN18: 0.005621353732 | FO18: 0.006154536832 | FP18: 0.005379718004 | FQ18: 0.006124255342 | FR18: 0.005751106397 | FS18: 0.005818447501 | FT18: 0.005864661985 | FU18: 0.005179367214 | FV18: 0.006270821275 | FW18: 0.005005688783 | FX18: 0.004712820998 | FY18: 0.005016868287 | FZ18: 0.005764926728 | GA18: 0.004850408118 | GB18: 0.004737732805 | GC18: 0.004300675832 | GD18: 0.003559131432 | GE18: 0.004146539525 | GF18: 0.004075061124 | GG18: 0.003429466795 | GH18: 0.002197784786 | GI18: 0.001324110976
A19: DCD33 | B19: DLY | C19: 6.16 | D19: 5.653333333 | E19: 2 | M19: 187.1715 | N19: 126 | O19: 0.6564 | P19: 2.6126 | R19: 11.2605042 | S19: 0.1298323806 | T19: 0.8292801085 | U19: 0.002131576398 | V19: 0.01152989051 | W19: 9.69E-05 | X19: 0 | Y19: 0.002712915415 | Z19: 0 | AA19: 0 | AB19: 0 | AC19: 0 | AD19: 0 | AE19: 0.008041856409 | AG19: 0.00310047476 | AH19: 0.5617672706 | AI19: 0 | AJ19: 0.06646642767 | AK19: 0.0109485515 | AL19: 0.03400833253 | AM19: 0.002809805251 | AN19: 0.1488227885 | AO19: 0.001744017053 | AP19: 0 | AQ19: 0 | AR19: 0 | AS19: 0.09960275167 | AT19: 0.01521170429 | AU19: 0.01036721248 | AV19: 9.69E-05 | AW19: 0.0001937796725 | AX19: 0 | AY19: 0.00232535607 | AZ19: 0 | BA19: 0 | BB19: 0 | BC19: 0 | BD19: 0 | BE19: 0 | BF19: 0 | BG19: 0 | BH19: 0 | BI19: 0 | BJ19: 0 | BK19: 0 | BL19: 0 | BM19: 0 | BN19: 0 | BO19: 0 | BP19: 0 | BQ19: 0 | BR19: 0 | BS19: 0 | BT19: 0 | BU19: 0 | BV19: 0 | BW19: 0 | BX19: 0 | BY19: 0 | BZ19: 0 | CA19: 0.0001937796725 | CB19: 0 | CC19: 0.0001937796725 | CD19: 0 | CE19: 0 | CG19: 6.16 | CH19: 5.653333333 | CI19: 2 | CQ19: 0.03022946593 | CR19: 0.02264990792 | CS19: 1.478593738 | CT19: 3.749283425 | CU19: 2.309524678 | CV19: 0.007730939227 | CW19: 0.2376232044 | CX19: 0.09682209945 | CY19: 0.1329607735 | CZ19: 0.004270718232 | DA19: 0.02347292818 | DB19: 0.06971399632 | DC19: 0.007715837937 | DD19: 0.006210865562 | DE19: 0.00581694291 | DF19: 0.004066298343 | DG19: 0.00494640884 | DH19: 0.009313443831 | DI19: 0.0309 | DJ19: 0.0041 | DK19: 0.0139 | DL19: 0.0676 | DM19: 0.0107 | DN19: 0.0067 | DO19: 0.0048 | DP19: 0.0059 | DQ19: 0.0051 | DR19: 0.0043 | DS19: 0.0050 | DT19: 0.0065 | DU19: 0.0000 | DV19: 8.3665 | DW19: 8.0219 | DX19: 0.3446 | DY19: 0.1871 | DZ19: 0.1508 | EA19: 0.9588 | EB19: 0.0412 | EC19: 0.0224 | ED19: 0.0180 | EF19: 0.07288876828 | EG19: 0.05102714148 | EH19: 0.05122704024 | EI19: 0.03281111855 | EJ19: 0.04182993389 | EK19: 0.01744850121 | EL19: 0.02500437589 | EM19: 0.01966535108 | EN19: 0.02443202895 | EO19: 0.01496474671 | EP19: 0.01212613462 | EQ19: 0.01163173328 | ER19: 0.01000705861 | ES19: 0.01331234977 | ET19: 0.007728175481 | EU19: 0.008600059771 | EV19: 0.0076236886 | EW19: 0.008048349145 | EX19: 0.00684044101 | EY19: 0.007396191879 | EZ19: 0.006526545262 | FA19: 0.006833355047 | FB19: 0.006004608114 | FC19: 0.006220419211 | FD19: 0.008096769895 | FE19: 0.009179554832 | FF19: 0.007973200638 | FG19: 0.005228695119 | FH19: 0.00586021607 | FI19: 0.004676300759 | FJ19: 0.009912206156 | FK19: 0.004727207812 | FL19: 0.008371506371 | FM19: 0.006215943865 | FN19: 0.004890433601 | FO19: 0.006521261868 | FP19: 0.003869557607 | FQ19: 0.005537866891 | FR19: 0.00727063358 | FS19: 0.006916086778 | FT19: 0.004525506485 | FU19: 0.004423443748 | FV19: 0.007589626249 | FW19: 0.004368496453 | FX19: 0.003825177099 | FY19: 0.004867559614 | FZ19: 0.006578384679 | GA19: 0.006150367625 | GB19: 0.003042799716 | GC19: 0.003583757082 | GD19: 0.002525337913 | GE19: 0.004282905474 | GF19: 0.005297814341 | GG19: 0.00502189687 | GH19: 0.00261099105 | GI19: 0.001329923452
A20: DCD34 | B20: DLY | C20: 6.08 | D20: 6.05 | E20: 2 | M20: 128.423 | N20: 115.5357 | O20: 0.5162 | P20: 1.8042 | R20: 32.01904762 | S20: 0.3046945804 | T20: 0.007522204096 | U20: 0.00018125793 | V20: 0.009516041327 | W20: 9.06E-05 | X20: 0.00018125793 | Y20: 0 | Z20: 0 | AA20: 0 | AB20: 0 | AC20: 0 | AD20: 0 | AE20: 9.06E-05 | AG20: 0.2340039877 | AH20: 0.002718868951 | AI20: 0.00018125793 | AJ20: 0.05247417074 | AK20: 0.00145006344 | AL20: 0.003172013776 | AM20: 0.00217509516 | AN20: 0.003262642741 | AO20: 0.0005437737901 | AP20: 0.00018125793 | AQ20: 0 | AR20: 0 | AS20: 0.0005437737901 | AT20: 9.06E-05 | AU20: 0.0003625158601 | AV20: 0.0018125793 | AW20: 0.0009969186152 | AX20: 0.00018125793 | AY20: 0 | AZ20: 0.00018125793 | BA20: 0 | BB20: 0 | BC20: 0 | BD20: 0 | BE20: 0 | BF20: 0 | BG20: 0 | BH20: 0 | BI20: 0 | BJ20: 0 | BK20: 0 | BL20: 0 | BM20: 0 | BN20: 0 | BO20: 9.06E-05 | BP20: 0 | BQ20: 0 | BR20: 0 | BS20: 9.06E-05 | BT20: 0 | BU20: 0 | BV20: 0 | BW20: 0 | BX20: 0 | BY20: 0 | BZ20: 0 | CA20: 0 | CB20: 0 | CC20: 9.06E-05 | CD20: 0 | CE20: 0 | CG20: 6.08 | CH20: 6.05 | CI20: 2 | CQ20: 0.004308349901 | CR20: 0.004889463221 | CS20: 0.1858968191 | CT20: 0.5029379722 | CU20: 0.1709755467 | CV20: 0.004592842942 | CW20: 0.01110815109 | CX20: 0.01432385686 | CY20: 0.01209284294 | CZ20: 0.003907753479 | DA20: 0.008401789264 | DB20: 0.03550775348 | DC20: 0.005365208748 | DD20: 0.005109741551 | DE20: 0.00472584493 | DF20: 0.004292644135 | DG20: 0.004816302187 | DH20: 0.005632803181 | DI20: 0.0077 | DJ20: 0.0038 | DK20: 0.0062 | DL20: 0.0265 | DM20: 0.0051 | DN20: 0.0051 | DO20: 0.0041 | DP20: 0.0049 | DQ20: 0.0046 | DR20: 0.0042 | DS20: 0.0046 | DT20: 0.0050 | DU20: 0.0000 | DV20: 1.0706 | DW20: 0.9554 | DX20: 0.1153 | DY20: 0.0410 | DZ20: 0.0692 | EA20: 0.8923 | EB20: 0.1077 | EC20: 0.0383 | ED20: 0.0647 | EF20: 0.07836817752 | EG20: 0.05782718117 | EH20: 0.03823435468 | EI20: 0.03996627248 | EJ20: 0.02001813872 | EK20: 0.0277568931 | EL20: 0.02682113438 | EM20: 0.02159660973 | EN20: 0.0233368358 | EO20: 0.01717152643 | EP20: 0.01286865693 | EQ20: 0.009875931707 | ER20: 0.009163009313 | ES20: 0.008876527442 | ET20: 0.01291948105 | EU20: 0.008252739579 | EV20: 0.008469319053 | EW20: 0.0150236304 | EX20: 0.007896509168 | EY20: 0.005409358285 | EZ20: 0.008215249739 | FA20: 0.006545541489 | FB20: 0.00742262938 | FC20: 0.002837175726 | FD20: 0.003143043588 | FE20: 0.004871063669 | FF20: 0.006207671355 | FG20: 0.007164252068 | FH20: 0.006766069961 | FI20: 0.004755824721 | FJ20: 0.001418869934 | FK20: 0.006626367738 | FL20: 0.006933363886 | FM20: 0.005493877104 | FN20: 0.007158251642 | FO20: 0.008140731629 | FP20: 0.005781435975 | FQ20: 0.005152724686 | FR20: 0.005911650345 | FS20: 0.005359970164 | FT20: 0.005628502043 | FU20: 0.005092412713 | FV20: 0.008502859895 | FW20: 0.004675665186 | FX20: 0.004731156304 | FY20: 0.00610940797 | FZ20: 0.007799630497 | GA20: 0.008113242499 | GB20: 0.01210967999 | GC20: 0.00265644495 | GD20: 0.004491395697 | GE20: 0.005067898152 | GF20: 0.003022009357 | GG20: 0.004095367589 | GH20: 0.0004488010841 | GI20: 0.000548654325
A21: DCD35 | B21: DLY | C21: 6.343333333 | D21: 5.593333333 | E21: 2 | M21: 182.7464 | N21: 183.5556 | O21: 0.8903 | P21: 4.3196 | R21: 16.45656566 | S21: 0.7429770157 | T21: 0.08673841664 | U21: 0.002553812477 | V21: 0.04514775629 | W21: 0 | X21: 0.002553812477 | Y21: 0.0002736227654 | Z21: 0 | AA21: 0 | AB21: 0 | AC21: 0 | AD21: 0 | AE21: 0.002736227654 | AG21: 0.4497446188 | AH21: 0.03785114922 | AI21: 0 | AJ21: 0.1013316308 | AK21: 0.009394381613 | AL21: 0.01568770522 | AM21: 0.006384531193 | AN21: 0.03119299526 | AO21: 0.002736227654 | AP21: 0.0002736227654 | AQ21: 0.0001824151769 | AR21: 0 | AS21: 0.008755928493 | AT21: 0.08409339657 | AU21: 0 | AV21: 0.003283473185 | AW21: 0.009485589201 | AX21: 0.003192265597 | AY21: 0.0006384531193 | AZ21: 0.0006384531193 | BA21: 0 | BB21: 0 | BC21: 0 | BD21: 0 | BE21: 0 | BF21: 0 | BG21: 0 | BH21: 0.0005472455308 | BI21: 0 | BJ21: 0 | BK21: 0 | BL21: 0 | BM21: 0 | BN21: 0 | BO21: 0.0003648303539 | BP21: 0 | BQ21: 0 | BR21: 0 | BS21: 0.001276906239 | BT21: 0 | BU21: 0 | BV21: 0 | BW21: 0 | BX21: 0 | BY21: 0 | BZ21: 0 | CA21: 0 | CB21: 0 | CC21: 0.002006566946 | CD21: 0 | CE21: 0 | CG21: 6.343333333 | CH21: 5.593333333 | CI21: 2 | CQ21: 0.003790804598 | CR21: 0.004705555556 | CS21: 0.142597318 | CT21: 0.3644816092 | CU21: 0.1487111111 | CV21: 0.004251149425 | CW21: 0.01000344828 | CX21: 0.01003659004 | CY21: 0.009575095785 | CZ21: 0.00375440613 | DA21: 0.006605555556 | DB21: 0.03023773946 | DC21: 0.005074904215 | DD21: 0.00508467433 | DE21: 0.004612643678 | DF21: 0.004127969349 | DG21: 0.00464137931 | DH21: 0.005598084291 | DI21: 0.0100 | DJ21: 0.0035 | DK21: 0.0053 | DL21: 0.0190 | DM21: 0.0057 | DN21: 0.0047 | DO21: 0.0039 | DP21: 0.0047 | DQ21: 0.0043 | DR21: 0.0039 | DS21: 0.0044 | DT21: 0.0049 | DU21: 0.0000 | DV21: 0.8422 | DW21: 0.7387 | DX21: 0.1035 | DY21: 0.0358 | DZ21: 0.0630 | EA21: 0.8771 | EB21: 0.1229 | EC21: 0.0425 | ED21: 0.0748 | EF21: 0.07502457529 | EG21: 0.05544463322 | EH21: 0.04241016794 | EI21: 0.03474087484 | EJ21: 0.02908072247 | EK21: 0.02724091866 | EL21: 0.02562380538 | EM21: 0.02526363655 | EN21: 0.02069531393 | EO21: 0.02010823233 | EP21: 0.01307387274 | EQ21: 0.0116048573 | ER21: 0.01240317824 | ES21: 0.01155323097 | ET21: 0.01214479069 | EU21: 0.01009054888 | EV21: 0.009556692941 | EW21: 0.009140867468 | EX21: 0.00881857074 | EY21: 0.00843652309 | EZ21: 0.008514570333 | FA21: 0.00811358663 | FB21: 0.008085374471 | FC21: 0.006692295163 | FD21: 0.006358867107 | FE21: 0.006208530205 | FF21: 0.00711163916 | FG21: 0.007272403685 | FH21: 0.008058505748 | FI21: 0.006659093099 | FJ21: 0.005277464985 | FK21: 0.007500723856 | FL21: 0.006308072426 | FM21: 0.005602768451 | FN21: 0.006216974661 | FO21: 0.006085189973 | FP21: 0.006076233732 | FQ21: 0.005845994366 | FR21: 0.005186559139 | FS21: 0.005247269658 | FT21: 0.005980593873 | FU21: 0.005346747906 | FV21: 0.005753361245 | FW21: 0.004846094036 | FX21: 0.005013255876 | FY21: 0.005248037336 | FZ21: 0.004975127879 | GA21: 0.005180737582 | GB21: 0.004659612305 | GC21: 0.004029604727 | GD21: 0.004271743098 | GE21: 0.004032355572 | GF21: 0.003272418527 | GG21: 0.003488839692 | GH21: 0.001728426559 | GI21: 0.0009682336207
A22: DCD36 | B22: DLY | C22: 6.333333333 | D22: 5.546666667 | E22: 3 | M22: 138.2475 | N22: 105.1 | O22: 0.7424 | P22: 2.7582 | R22: 374.2592593 | S22: 0.9533018868 | T22: 0.04235849057 | U22: 0.001132075472 | V22: 0.002547169811 | W22: 0 | X22: 0.0002830188679 | Y22: 0.0001886792453 | Z22: 0 | AA22: 0 | AB22: 0 | AC22: 0 | AD22: 0 | AE22: 0 | AG22: 0.6879245283 | AH22: 0.03273584906 | AI22: 0 | AJ22: 0.07103773585 | AK22: 0.0241509434 | AL22: 0.07698113208 | AM22: 0.002358490566 | AN22: 0.001603773585 | AO22: 0.002830188679 | AP22: 0.002264150943 | AQ22: 0 | AR22: 0 | AS22: 0.003018867925 | AT22: 0 | AU22: 0 | AV22: 0.0008490566038 | AW22: 0.0001886792453 | AX22: 0.001320754717 | AY22: 9.43E-05 | AZ22: 0 | BA22: 0 | BB22: 0 | BC22: 0 | BD22: 0 | BE22: 0 | BF22: 0 | BG22: 0 | BH22: 0 | BI22: 0 | BJ22: 0 | BK22: 0 | BL22: 0 | BM22: 0 | BN22: 0 | BO22: 0 | BP22: 0 | BQ22: 0 | BR22: 0 | BS22: 0 | BT22: 0 | BU22: 0 | BV22: 0 | BW22: 0 | BX22: 0 | BY22: 0 | BZ22: 0 | CA22: 0 | CB22: 0 | CC22: 0 | CD22: 0 | CE22: 0 | CG22: 6.333333333 | CH22: 5.546666667 | CI22: 3 | CQ22: 0.005503825137 | CR22: 0.005290892532 | CS22: 0.3384191257 | CT22: 0.8936081967 | CU22: 0.3962817851 | CV22: 0.004727868852 | CW22: 0.02741457195 | CX22: 0.0196287796 | CY22: 0.02049981785 | CZ22: 0.003624225865 | DA22: 0.007409471767 | DB22: 0.03118160291 | DC22: 0.005070856102 | DD22: 0.004708378871 | DE22: 0.004428233151 | DF22: 0.003944808743 | DG22: 0.004472131148 | DH22: 0.005125865209 | DI22: 0.0135 | DJ22: 0.0039 | DK22: 0.0089 | DL22: 0.0508 | DM22: 0.0067 | DN22: 0.0060 | DO22: 0.0043 | DP22: 0.0052 | DQ22: 0.0046 | DR22: 0.0042 | DS22: 0.0047 | DT22: 0.0060 | DU22: 0.0000 | DV22: 1.9002 | DW22: 1.7426 | DX22: 0.1577 | DY22: 0.0480 | DZ22: 0.1037 | EA22: 0.9170 | EB22: 0.0830 | EC22: 0.0253 | ED22: 0.0546 | EF22: 0.07343733206 | EG22: 0.05408680242 | EH22: 0.04332504307 | EI22: 0.03209477172 | EJ22: 0.02858811897 | EK22: 0.02729739973 | EL22: 0.02461092628 | EM22: 0.02813982665 | EN22: 0.0222658612 | EO22: 0.02203515409 | EP22: 0.01421425438 | EQ22: 0.01305403855 | ER22: 0.01490154449 | ES22: 0.01043442723 | ET22: 0.01205206108 | EU22: 0.0112847273 | EV22: 0.009539810875 | EW22: 0.007087026804 | EX22: 0.009468117505 | EY22: 0.009895534052 | EZ22: 0.008907274945 | FA22: 0.009781313749 | FB22: 0.008184734609 | FC22: 0.008884609819 | FD22: 0.007700118443 | FE22: 0.006224618788 | FF22: 0.006768760729 | FG22: 0.007388174745 | FH22: 0.01077828104 | FI22: 0.007311411545 | FJ22: 0.007418116569 | FK22: 0.008628016743 | FL22: 0.004978812283 | FM22: 0.005675287725 | FN22: 0.005901402172 | FO22: 0.00530346038 | FP22: 0.006560181932 | FQ22: 0.005784736422 | FR22: 0.003962758575 | FS22: 0.005071142846 | FT22: 0.00599814647 | FU22: 0.005444282382 | FV22: 0.004176645783 | FW22: 0.004992709584 | FX22: 0.005173911296 | FY22: 0.004956743608 | FZ22: 0.002791329468 | GA22: 0.003133036054 | GB22: 0.003111504185 | GC22: 0.004969388363 | GD22: 0.004598694274 | GE22: 0.004165671091 | GF22: 0.003228766386 | GG22: 0.003169002029 | GH22: 0.001993934574 | GI22: 0.0007880306189
A23: DCD37 | B23: DLY | C23: 6.26 | D23: 5.516666667 | E23: 2 | M23: 184.9869 | N23: 162.129 | O23: 0.6822 | P23: 2.6273 | R23: 111.0344828 | S23: 0.9506002755 | T23: 0.03798464869 | U23: 0.0005904349537 | V23: 0.008561306829 | W23: 0.0002952174769 | X23: 0.000787246605 | Y23: 9.84E-05 | Z23: 0 | AA23: 0 | AB23: 0 | AC23: 0 | AD23: 0 | AE23: 9.84E-05 | AG23: 0.7838024011 | AH23: 0.03168667585 | AI23: 0.0001968116512 | AJ23: 0.05520566818 | AK23: 0.01623696123 | AL23: 0.04074001181 | AM23: 0.005609132061 | AN23: 0.00157449321 | AO23: 0.008462901004 | AP23: 0.000787246605 | AQ23: 0.0001968116512 | AR23: 0.0004920291281 | AS23: 0.002460145641 | AT23: 0.0005904349537 | AU23: 9.84E-05 | AV23: 0.001082464082 | AW23: 0.0006888407794 | AX23: 0.0006888407794 | AY23: 9.84E-05 | AZ23: 9.84E-05 | BA23: 0 | BB23: 0 | BC23: 0 | BD23: 0 | BE23: 0 | BF23: 0 | BG23: 0 | BH23: 9.84E-05 | BI23: 0 | BJ23: 0 | BK23: 0 | BL23: 0 | BM23: 0 | BN23: 0 | BO23: 0 | BP23: 0 | BQ23: 0 | BR23: 0 | BS23: 0 | BT23: 0 | BU23: 0 | BV23: 0 | BW23: 0 | BX23: 0 | BY23: 0 | BZ23: 0 | CA23: 0 | CB23: 0 | CC23: 0 | CD23: 0 | CE23: 0 | CG23: 6.26 | CH23: 5.516666667 | CI23: 2 | CQ23: 0.01355318761 | CR23: 0.0105147541 | CS23: 0.9476939891 | CT23: 2.31977796 | CU23: 1.068441348 | CV23: 0.005116939891 | CW23: 0.09253078324 | CX23: 0.06654972678 | CY23: 0.06391675774 | CZ23: 0.003817668488 | DA23: 0.01166939891 | DB23: 0.03288779599 | DC23: 0.005303096539 | DD23: 0.005299453552 | DE23: 0.004971766849 | DF23: 0.004024590164 | DG23: 0.004750273224 | DH23: 0.005453005464 | DI23: 0.0639 | DJ23: 0.0040 | DK23: 0.0139 | DL23: 0.0507 | DM23: 0.0191 | DN23: 0.0062 | DO23: 0.0047 | DP23: 0.0057 | DQ23: 0.0052 | DR23: 0.0041 | DS23: 0.0048 | DT23: 0.0072 | DU23: 0.0000 | DV23: 4.8559 | DW23: 4.5781 | DX23: 0.2778 | DY23: 0.0971 | DZ23: 0.1745 | EA23: 0.9428 | EB23: 0.0572 | EC23: 0.0200 | ED23: 0.0359 | EF23: 0.07337081571 | EG23: 0.05471640766 | EH23: 0.0440428259 | EI23: 0.03030696003 | EJ23: 0.02664247871 | EK23: 0.02831534302 | EL23: 0.02474425545 | EM23: 0.02944376935 | EN23: 0.02135355947 | EO23: 0.02286567687 | EP23: 0.014790021 | EQ23: 0.01263987608 | ER23: 0.01514799778 | ES23: 0.009526228668 | ET23: 0.01256410379 | EU23: 0.01141113793 | EV23: 0.009837671727 | EW23: 0.007063270127 | EX23: 0.00959443026 | EY23: 0.01025412566 | EZ23: 0.008963777645 | FA23: 0.01072357451 | FB23: 0.008546866861 | FC23: 0.00876210978 | FD23: 0.007080238944 | FE23: 0.005729716896 | FF23: 0.006833016332 | FG23: 0.007648890112 | FH23: 0.01102496681 | FI23: 0.007203654457 | FJ23: 0.005761174472 | FK23: 0.009326910331 | FL23: 0.0050020157 | FM23: 0.005586199861 | FN23: 0.00594267555 | FO23: 0.005208317357 | FP23: 0.006843523946 | FQ23: 0.005912849591 | FR23: 0.003904720614 | FS23: 0.004996990319 | FT23: 0.006257838696 | FU23: 0.005423886599 | FV23: 0.003375228255 | FW23: 0.00530079741 | FX23: 0.005438701682 | FY23: 0.004831348558 | FZ23: 0.001814162344 | GA23: 0.003282943996 | GB23: 0.001822842547 | GC23: 0.005045547242 | GD23: 0.004637904043 | GE23: 0.003885271739 | GF23: 0.003222313107 | GG23: 0.002968107173 | GH23: 0.00203815073 | GI23: 0.0007179767583
A24: DCD39 | B24: DLY | C24: 6.393333333 | D24: 5.66 | E24: 2 | M24: 189.2028 | N24: 194.25 | O24: 0.7853 | P24: 2.9132 | R24: 56.63758389 | S24: 0.8389501939 | T24: 0.142459489 | U24: 0.001292374988 | V24: 0.01481260563 | W24: 0 | X24: 0.0008947211452 | Y24: 0.0003976538423 | Z24: 0 | AA24: 0 | AB24: 0 | AC24: 0 | AD24: 0 | AE24: 0.0001988269212 | AG24: 0.5167511681 | AH24: 0.1248633065 | AI24: 0 | AJ24: 0.2650362859 | AK24: 0.007356596083 | AL24: 0.005666567253 | AM24: 0.001988269212 | AN24: 0.002783576896 | AO24: 0.001093548066 | AP24: 0.001292374988 | AQ24: 0 | AR24: 0.0001988269212 | AS24: 0.005467740332 | AT24: 0.0004970673029 | AU24: 0.0004970673029 | AV24: 0.0009941346058 | AW24: 0.0006958942241 | AX24: 0.005368326871 | AY24: 0.01859031713 | AZ24: 0 | BA24: 0 | BB24: 0 | BC24: 0 | BD24: 0 | BE24: 0 | BF24: 0 | BG24: 0 | BH24: 0 | BI24: 0 | BJ24: 0 | BK24: 0 | BL24: 0 | BM24: 0 | BN24: 0 | BO24: 9.94E-05 | BP24: 0 | BQ24: 0 | BR24: 0 | BS24: 0.0002982403817 | BT24: 0 | BU24: 0 | BV24: 0 | BW24: 0 | BX24: 0 | BY24: 0 | BZ24: 0 | CA24: 0 | CB24: 0 | CC24: 9.94E-05 | CD24: 0 | CE24: 0 | CG24: 6.393333333 | CH24: 5.66 | CI24: 2 | CQ24: 0.00414 | CR24: 0.004745321101 | CS24: 0.2266717431 | CT24: 0.6432352294 | CU24: 0.1539453211 | CV24: 0.004103853211 | CW24: 0.0123933945 | CX24: 0.01377522936 | CY24: 0.01156917431 | CZ24: 0.003581651376 | DA24: 0.005993577982 | DB24: 0.01662110092 | DC24: 0.004614311927 | DD24: 0.004561651376 | DE24: 0.004417981651 | DF24: 0.003949357798 | DG24: 0.004433211009 | DH24: 0.004743119266 | DI24: 0.0148 | DJ24: 0.0039 | DK24: 0.0066 | DL24: 0.0236 | DM24: 0.0071 | DN24: 0.0051 | DO24: 0.0043 | DP24: 0.0054 | DQ24: 0.0047 | DR24: 0.0042 | DS24: 0.0047 | DT24: 0.0053 | DU24: 0.0000 | DV24: 1.2173 | DW24: 1.1006 | DX24: 0.1167 | DY24: 0.0364 | DZ24: 0.0751 | EA24: 0.9042 | EB24: 0.0958 | EC24: 0.0299 | ED24: 0.0617 | EF24: 0.07271271652 | EG24: 0.05508170196 | EH24: 0.04401370021 | EI24: 0.03173573506 | EJ24: 0.02869635805 | EK24: 0.02740565954 | EL24: 0.02505029046 | EM24: 0.02774196724 | EN24: 0.02068641707 | EO24: 0.02190146914 | EP24: 0.0140120612 | EQ24: 0.01300883438 | ER24: 0.01437988825 | ES24: 0.0108393915 | ET24: 0.01214026735 | EU24: 0.01075554243 | EV24: 0.009758467579 | EW24: 0.007044233576 | EX24: 0.008850482368 | EY24: 0.009845354663 | EZ24: 0.00863653052 | FA24: 0.009652592934 | FB24: 0.008840988587 | FC24: 0.009272689795 | FD24: 0.00757899927 | FE24: 0.006742179441 | FF24: 0.007326920398 | FG24: 0.007490972933 | FH24: 0.008114600417 | FI24: 0.007249527096 | FJ24: 0.007732570671 | FK24: 0.008216905401 | FL24: 0.005389429579 | FM24: 0.005476316662 | FN24: 0.005850751383 | FO24: 0.005420113479 | FP24: 0.006332807606 | FQ24: 0.005865941433 | FR24: 0.004492381203 | FS24: 0.005194009591 | FT24: 0.006125995081 | FU24: 0.005232288516 | FV24: 0.004456988387 | FW24: 0.005165452298 | FX24: 0.005237605033 | FY24: 0.004997754151 | FZ24: 0.003058364575 | GA24: 0.003942501409 | GB24: 0.0015329798 | GC24: 0.004867955178 | GD24: 0.004159795068 | GE24: 0.003885462773 | GF24: 0.003511255903 | GG24: 0.003099909361 | GH24: 0.002030074171 | GI24: 0.0008374274314
A25: DCD41 | B25: DLY | C25: 6.256666667 | D25: 5.98 | E25: 2 | M25: 152.9588 | N25: 144.6071 | O25: 0.5922 | P25: 2.6067 | R25: 26.76666667 | S25: 0.2256251756 | T25: 0.7482438887 | U25: 0.002247822422 | V25: 0.008429334083 | W25: 0.0005619556055 | X25: 0.0005619556055 | Y25: 0 | Z25: 0 | AA25: 0 | AB25: 0 | AC25: 0 | AD25: 0 | AE25: 0.005244918985 | AG25: 0.0615341388 | AH25: 0.6308888264 | AI25: 0.0003746370703 | AJ25: 0.02903437295 | AK25: 0.02069869814 | AL25: 0.02978364709 | AM25: 0.04570572258 | AN25: 0.08401236302 | AO25: 0.007399082139 | AP25: 0 | AQ25: 0 | AR25: 0 | AS25: 0.01685866817 | AT25: 0.002154163154 | AU25: 0.0006556148731 | AV25: 0.0005619556055 | AW25: 0.0006556148731 | AX25: 0.0006556148731 | AY25: 0.008991289688 | AZ25: 0 | BA25: 0 | BB25: 0 | BC25: 0 | BD25: 0 | BE25: 0 | BF25: 0 | BG25: 0 | BH25: 0 | BI25: 0 | BJ25: 0 | BK25: 0 | BL25: 0 | BM25: 0 | BN25: 0 | BO25: 0 | BP25: 0 | BQ25: 0 | BR25: 0 | BS25: 0 | BT25: 0 | BU25: 0 | BV25: 0 | BW25: 0 | BX25: 0 | BY25: 0 | BZ25: 0 | CA25: 0 | CB25: 0 | CC25: 0.0003746370703 | CD25: 0 | CE25: 0 | CG25: 6.256666667 | CH25: 5.98 | CI25: 2 | CQ25: 0.003851192661 | CR25: 0.004597431193 | CS25: 0.2257684404 | CT25: 0.6020233028 | CU25: 0.1664444037 | CV25: 0.004270825688 | CW25: 0.01075614679 | CX25: 0.01280201835 | CY25: 0.01057688073 | CZ25: 0.003617798165 | DA25: 0.00688293578 | DB25: 0.02762 | DC25: 0.004919082569 | DD25: 0.004725137615 | DE25: 0.004386605505 | DF25: 0.003953944954 | DG25: 0.00445412844 | DH25: 0.005071192661 | DI25: 0.0210 | DJ25: 0.0038 | DK25: 0.0090 | DL25: 0.0470 | DM25: 0.0083 | DN25: 0.0055 | DO25: 0.0043 | DP25: 0.0052 | DQ25: 0.0047 | DR25: 0.0041 | DS25: 0.0047 | DT25: 0.0054 | DU25: 0.0000 | DV25: 1.2298 | DW25: 1.0788 | DX25: 0.1510 | DY25: 0.0369 | DZ25: 0.1085 | EA25: 0.8772 | EB25: 0.1228 | EC25: 0.0300 | ED25: 0.0882 | EF25: 0.07402635435 | EG25: 0.05150629661 | EH25: 0.04897231521 | EI25: 0.03271327808 | EJ25: 0.0366443424 | EK25: 0.01972685265 | EL25: 0.0254047073 | EM25: 0.02144019195 | EN25: 0.02571353983 | EO25: 0.01633650728 | EP25: 0.01226692249 | EQ25: 0.01179502708 | ER25: 0.01023758881 | ES25: 0.01231251372 | ET25: 0.008649669057 | EU25: 0.008811334503 | EV25: 0.008221356067 | EW25: 0.008088512661 | EX25: 0.007487442106 | EY25: 0.007528666358 | EZ25: 0.007093453545 | FA25: 0.00735110512 | FB25: 0.006462338196 | FC25: 0.006637453927 | FD25: 0.00762412845 | FE25: 0.008732030222 | FF25: 0.007578799241 | FG25: 0.005766940962 | FH25: 0.006487841335 | FI25: 0.005278625723 | FJ25: 0.008631502438 | FK25: 0.005294172157 | FL25: 0.007524823419 | FM25: 0.006348360126 | FN25: 0.005218361457 | FO25: 0.006454215621 | FP25: 0.00440592927 | FQ25: 0.00549077341 | FR25: 0.007310754263 | FS25: 0.006711605177 | FT25: 0.004713975746 | FU25: 0.004732055026 | FV25: 0.007045067453 | FW25: 0.004513618895 | FX25: 0.00415832174 | FY25: 0.00489765075 | FZ25: 0.006090097175 | GA25: 0.005809038609 | GB25: 0.004943766015 | GC25: 0.003485283422 | GD25: 0.002994435337 | GE25: 0.004398942109 | GF25: 0.004974858883 | GG25: 0.004728998143 | GH25: 0.002495988714 | GI25: 0.001194891931
A26: DCD42 | B26: DLY | C26: 6.353333333 | D26: 5.673333333 | E26: 3 | M26: 196.1408 | N26: 189.2759 | O26: 0.6741 | P26: 2.4497 | R26: 49.21182266 | S26: 0.9325119014 | T26: 0.04275179688 | U26: 0.002426957902 | V26: 0.01894894054 | W26: 0.000280033604 | X26: 0.001213478951 | Y26: 0.0001866890694 | Z26: 0 | AA26: 0 | AB26: 0 | AC26: 0 | AD26: 0 | AE26: 0 | AG26: 0.6542518436 | AH26: 0.03136376365 | AI26: 0.0001866890694 | AJ26: 0.2474563614 | AK26: 0.006160739289 | AL26: 0.001866890694 | AM26: 0.00280033604 | AN26: 0.004480537665 | AO26: 0.003827125922 | AP26: 0.0009334453468 | AQ26: 0 | AR26: 9.33E-05 | AS26: 0.002053579763 | AT26: 0 | AU26: 0.0005600672081 | AV26: 0.001773546159 | AW26: 0.0001866890694 | AX26: 0.001680201624 | AY26: 0.000280033604 | AZ26: 0.0008401008121 | BA26: 0 | BB26: 0 | BC26: 0 | BD26: 0 | BE26: 0 | BF26: 0 | BG26: 0 | BH26: 0 | BI26: 0 | BJ26: 0 | BK26: 0 | BL26: 0 | BM26: 0 | BN26: 0 | BO26: 0 | BP26: 0 | BQ26: 0 | BR26: 0 | BS26: 0.0005600672081 | BT26: 0 | BU26: 0 | BV26: 0 | BW26: 0 | BX26: 0 | BY26: 0 | BZ26: 9.33E-05 | CA26: 0 | CB26: 0 | CC26: 0 | CD26: 0 | CE26: 0 | CG26: 6.353333333 | CH26: 5.673333333 | CI26: 3 | CQ26: 0.00423424408 | CR26: 0.004561020036 | CS26: 0.2480471767 | CT26: 0.6513759563 | CU26: 0.212532969 | CV26: 0.004124225865 | CW26: 0.01561074681 | CX26: 0.01483642987 | CY26: 0.01283242259 | CZ26: 0.003547723133 | DA26: 0.005910746812 | DB26: 0.01805519126 | DC26: 0.004675045537 | DD26: 0.004369034608 | DE26: 0.004350819672 | DF26: 0.003922040073 | DG26: 0.004413114754 | DH26: 0.00473424408 | DI26: 0.0138 | DJ26: 0.0041 | DK26: 0.0112 | DL26: 0.2513 | DM26: 0.0053 | DN26: 0.0080 | DO26: 0.0046 | DP26: 0.0053 | DQ26: 0.0047 | DR26: 0.0044 | DS26: 0.0057 | DT26: 0.0157 | DU26: 0.0000 | DV26: 1.5564 | DW26: 1.1960 | DX26: 0.3604 | DY26: 0.0376 | DZ26: 0.3148 | EA26: 0.7684 | EB26: 0.2316 | EC26: 0.0241 | ED26: 0.2023 | EF26: 0.07327533947 | EG26: 0.05567843166 | EH26: 0.04394068492 | EI26: 0.03043928528 | EJ26: 0.02670068849 | EK26: 0.02882176731 | EL26: 0.02498450372 | EM26: 0.02958910425 | EN26: 0.01982340702 | EO26: 0.02313697762 | EP26: 0.01464764537 | EQ26: 0.0126302503 | ER26: 0.01489206116 | ES26: 0.009919550543 | ET26: 0.01280732311 | EU26: 0.01120897248 | EV26: 0.01009758815 | EW26: 0.006832772067 | EX26: 0.009270433659 | EY26: 0.01033441419 | EZ26: 0.008917381481 | FA26: 0.01077944389 | FB26: 0.009100307404 | FC26: 0.009098249166 | FD26: 0.006979871781 | FE26: 0.005750267394 | FF26: 0.007165692102 | FG26: 0.007819954581 | FH26: 0.009717071356 | FI26: 0.007338905713 | FJ26: 0.005833497403 | FK26: 0.00928040325 | FL26: 0.005061722384 | FM26: 0.005386859705 | FN26: 0.00595396866 | FO26: 0.005188625635 | FP26: 0.00678195931 | FQ26: 0.006006582375 | FR26: 0.004082901462 | FS26: 0.004884006376 | FT26: 0.006427620734 | FU26: 0.00533450327 | FV26: 0.003549753439 | FW26: 0.005412201764 | FX26: 0.005523925508 | FY26: 0.004928258498 | FZ26: 0.001980604063 | GA26: 0.003600373236 | GB26: 0.0005372644998 | GC26: 0.005076901891 | GD26: 0.00444791715 | GE26: 0.003752682865 | GF26: 0.003282504068 | GG26: 0.002757396038 | GH26: 0.002051741922 | GI26: 0.0007124077097
A27: DCD43 | B27: DLY | C27: 6.23 | D27: 5.806666667 | E27: 2 | M27: 122.0852 | N27: 115.3333 | O27: 0.9127 | P27: 4.5958 | R27: 1.332907076 | S27: 0.2991485698 | T27: 0.2090309002 | U27: 0.009375298957 | V27: 0.2244331771 | W27: 0.01109729264 | X27: 0 | Y27: 0 | Z27: 0 | AA27: 0 | AB27: 0 | AC27: 0 | AD27: 0 | AE27: 0 | AG27: 0.03597053477 | AH27: 0.1531617717 | AI27: 0.001052329475 | AJ27: 0.008992633694 | AK27: 0.001052329475 | AL27: 0.009566631589 | AM27: 0.005165981058 | AN27: 0.0006696642112 | AO27: 0.01291495265 | AP27: 0.001243662107 | AQ27: 0 | AR27: 0 | AS27: 0.006887974744 | AT27: 0.01119295896 | AU27: 0.1390988233 | AV27: 0.0002869989477 | AW27: 0 | AX27: 0.0006696642112 | AY27: 0.002678656845 | AZ27: 0 | BA27: 0 | BB27: 0 | BC27: 0 | BD27: 0 | BE27: 0 | BF27: 0 | BG27: 0 | BH27: 0 | BI27: 0 | BJ27: 0 | BK27: 0 | BL27: 0 | BM27: 0 | BN27: 0 | BO27: 0 | BP27: 0 | BQ27: 0 | BR27: 0 | BS27: 0 | BT27: 0 | BU27: 0 | BV27: 0 | BW27: 0 | BX27: 0 | BY27: 0 | BZ27: 0 | CA27: 0 | CB27: 0 | CC27: 0 | CD27: 0 | CE27: 0 | CG27: 6.23 | CH27: 5.806666667 | CI27: 2 | CQ27: 0.005471507353 | CR27: 0.005049080882 | CS27: 0.3313893382 | CT27: 0.7174516544 | CU27: 0.2775077206 | CV27: 0.004485661765 | CW27: 0.01837095588 | CX27: 0.01942297794 | CY27: 0.01711691176 | CZ27: 0.003670955882 | DA27: 0.007659007353 | DB27: 0.03910992647 | DC27: 0.005126654412 | DD27: 0.004720220588 | DE27: 0.004514705882 | DF27: 0.003979779412 | DG27: 0.004553860294 | DH27: 0.005227757353 | DI27: 0.0589 | DJ27: 0.0042 | DK27: 0.0173 | DL27: 0.0739 | DM27: 0.0166 | DN27: 0.0071 | DO27: 0.0050 | DP27: 0.0062 | DQ27: 0.0055 | DR27: 0.0043 | DS27: 0.0052 | DT27: 0.0088 | DU27: 0.0000 | DV27: 1.6879 | DW27: 1.4407 | DX27: 0.2472 | DY27: 0.0458 | DZ27: 0.1944 | EA27: 0.8535 | EB27: 0.1465 | EC27: 0.0271 | ED27: 0.1151 | EF27: 0.0757301002 | EG27: 0.05636083895 | EH27: 0.04104065518 | EI27: 0.03813589502 | EJ27: 0.02464770667 | EK27: 0.02195131396 | EL27: 0.02554702843 | EM27: 0.0200853114 | EN27: 0.02144815245 | EO27: 0.01628319521 | EP27: 0.01059148769 | EQ27: 0.01344533542 | ER27: 0.01099190702 | ES27: 0.01131494209 | ET27: 0.009744847509 | EU27: 0.009364806253 | EV27: 0.008353699941 | EW27: 0.01026150704 | EX27: 0.009396782138 | EY27: 0.007166071018 | EZ27: 0.007152507476 | FA27: 0.006152867926 | FB27: 0.006592732917 | FC27: 0.008094092449 | FD27: 0.008473347412 | FE27: 0.007569963138 | FF27: 0.007827604899 | FG27: 0.006011662942 | FH27: 0.00651318635 | FI27: 0.007097401494 | FJ27: 0.003029584049 | FK27: 0.005753234888 | FL27: 0.005826163495 | FM27: 0.004960652298 | FN27: 0.005485764474 | FO27: 0.006165055456 | FP27: 0.004920158247 | FQ27: 0.005556661825 | FR27: 0.007719358666 | FS27: 0.005776954705 | FT27: 0.005295219651 | FU27: 0.0061148638 | FV27: 0.007825835742 | FW27: 0.00494007765 | FX27: 0.004036169182 | FY27: 0.005341152223 | FZ27: 0.007468793535 | GA27: 0.006293810812 | GB27: 0.003767126182 | GC27: 0.003012940863 | GD27: 0.003469514565 | GE27: 0.004742259624 | GF27: 0.00366942937 | GG27: 0.003872096198 | GH27: 0.002124168521 | GI27: 0.001203158195
A28: DCD45 | B28: DLY | C28: 6.23 | D28: 5.563333333 | E28: 2 | M28: 90.9201 | N28: 64.4286 | O28: 0.5069 | P28: 1.4214 | R28: 394.6153846 | S28: 0.9937046005 | T28: 0.002808716707 | U28: 0.0008716707022 | V28: 0.002518159806 | W28: 0 | X28: 0 | Y28: 0 | Z28: 0 | AA28: 0 | AB28: 0 | AC28: 0 | AD28: 0 | AE28: 0 | AG28: 0.7117675545 | AH28: 0.001937046005 | AI28: 0.0008716707022 | AJ28: 0.2677966102 | AK28: 0.0009685230024 | AL28: 0.0009685230024 | AM28: 0.002711864407 | AN28: 0 | AO28: 0.0002905569007 | AP28: 0 | AQ28: 0 | AR28: 0.005326876513 | AS28: 0.0004842615012 | AT28: 9.69E-05 | AU28: 0 | AV28: 0.0007748184019 | AW28: 0 | AX28: 0 | AY28: 0 | AZ28: 0 | BA28: 0 | BB28: 0 | BC28: 0 | BD28: 0 | BE28: 0 | BF28: 0 | BG28: 0 | BH28: 0 | BI28: 0 | BJ28: 0 | BK28: 0 | BL28: 0 | BM28: 0 | BN28: 0 | BO28: 0 | BP28: 0 | BQ28: 0 | BR28: 0 | BS28: 0 | BT28: 0 | BU28: 0 | BV28: 0 | BW28: 0 | BX28: 0 | BY28: 0 | BZ28: 0 | CA28: 0 | CB28: 0 | CC28: 9.69E-05 | CD28: 0 | CE28: 0 | CG28: 6.23 | CH28: 5.563333333 | CI28: 2 | CQ28: 0.005579198473 | CR28: 0.006041030534 | CS28: 0.151244084 | CT28: 0.3920698473 | CU28: 0.1302625954 | CV28: 0.004563931298 | CW28: 0.007848854962 | CX28: 0.0164898855 | CY28: 0.01229103053 | CZ28: 0.00379351145 | DA28: 0.007921564885 | DB28: 0.05914236641 | DC28: 0.00540629771 | DD28: 0.005051526718 | DE28: 0.004970038168 | DF28: 0.004125954198 | DG28: 0.004675954198 | DH28: 0.006609160305 | DI28: 0.0274 | DJ28: 0.0044 | DK28: 0.0223 | DL28: 0.4864 | DM28: 0.0067 | DN28: 0.0110 | DO28: 0.0049 | DP28: 0.0054 | DQ28: 0.0045 | DR28: 0.0044 | DS28: 0.0064 | DT28: 0.0202 | DU28: 0.0000 | DV28: 1.4323 | DW28: 0.7973 | DX28: 0.6350 | DY28: 0.0422 | DZ28: 0.5817 | EA28: 0.5567 | EB28: 0.4433 | EC28: 0.0295 | ED28: 0.4062 | EF28: 0.07384045681 | EG28: 0.05626127776 | EH28: 0.04434808305 | EI28: 0.02993692765 | EJ28: 0.02556674311 | EK28: 0.02918947871 | EL28: 0.02489126252 | EM28: 0.03058039493 | EN28: 0.01969045604 | EO28: 0.02364391363 | EP28: 0.0152766226 | EQ28: 0.01202511813 | ER28: 0.01524996537 | ES28: 0.008917427239 | ET28: 0.01297880658 | EU28: 0.01155950933 | EV28: 0.01007637018 | EW28: 0.006582611239 | EX28: 0.009413756483 | EY28: 0.01067748142 | EZ28: 0.008952210918 | FA28: 0.01166693857 | FB28: 0.009247533591 | FC28: 0.009134563588 | FD28: 0.006600834193 | FE28: 0.004900681822 | FF28: 0.00712314346 | FG28: 0.007889985071 | FH28: 0.01095661275 | FI28: 0.007239807305 | FJ28: 0.004848106136 | FK28: 0.009911686393 | FL28: 0.004832407308 | FM28: 0.005282809783 | FN28: 0.005873024179 | FO28: 0.00495467348 | FP28: 0.006981792437 | FQ28: 0.006161328552 | FR28: 0.003862465947 | FS28: 0.004743447278 | FT28: 0.006662275099 | FU28: 0.00525011928 | FV28: 0.003124251612 | FW28: 0.005496744802 | FX28: 0.005625844582 | FY28: 0.004943407261 | FZ28: 0.001390300586 | GA28: 0.003368414572 | GB28: 0.0001193726625 | GC28: 0.005259969526 | GD28: 0.004507287643 | GE28: 0.003736813753 | GF28: 0.003225524449 | GG28: 0.002648669447 | GH28: 0.002012035769 | GI28: 0.0006286919182
A29: DCD46 | B29: DLY | C29: 6.36 | D29: 5.646666667 | E29: 2 | M29: 265.1525 | N29: 272.25 | O29: 0.9643 | P29: 6.0341 | R29: 2.26523702 | S29: 0.4496471379 | T29: 0.1627646466 | U29: 0.003584630895 | V29: 0.1984989358 | W29: 0.006273104066 | X29: 0.005376946343 | Y29: 0 | Z29: 0 | AA29: 0 | AB29: 0 | AC29: 0 | AD29: 0 | AE29: 0 | AG29: 0.1609723311 | AH29: 0.04480788619 | AI29: 0.0004480788619 | AJ29: 0.06351517867 | AK29: 0.009297636384 | AL29: 0.006161084351 | AM29: 0.006945222359 | AN29: 0.004928867481 | AO29: 0.002576453456 | AP29: 0.0004480788619 | AQ29: 0.002016354878 | AR29: 0.001904335163 | AS29: 0.0687801053 | AT29: 0.09006385124 | AU29: 0.004368768903 | AV29: 0.05477764086 | AW29: 0.01333034614 | AX29: 0.003584630895 | AY29: 0 | AZ29: 0.005376946343 | BA29: 0 | BB29: 0 | BC29: 0 | BD29: 0 | BE29: 0 | BF29: 0 | BG29: 0 | BH29: 0 | BI29: 0 | BJ29: 0 | BK29: 0 | BL29: 0 | BM29: 0 | BN29: 0 | BO29: 0.002352414025 | BP29: 0 | BQ29: 0 | BR29: 0 | BS29: 0.001456256301 | BT29: 0 | BU29: 0 | BV29: 0 | BW29: 0 | BX29: 0 | BY29: 0 | BZ29: 0.0006721182928 | CA29: 0 | CB29: 0 | CC29: 0.01568276017 | CD29: 0 | CE29: 0 | CG29: 6.36 | CH29: 5.646666667 | CI29: 2 | EF29: 0.07465218682 | EG29: 0.05446980675 | EH29: 0.04469232019 | EI29: 0.0357518576 | EJ29: 0.0325739853 | EK29: 0.02226711329 | EL29: 0.0259277574 | EM29: 0.02122624848 | EN29: 0.0226529033 | EO29: 0.01700029118 | EP29: 0.01161713712 | EQ29: 0.01078698679 | ER29: 0.01090649563 | ES29: 0.01257072408 | ET29: 0.01004353668 | EU29: 0.009566598799 | EV29: 0.008297171176 | EW29: 0.01005682186 | EX29: 0.00835008084 | EY29: 0.007629677632 | EZ29: 0.007259541025 | FA29: 0.006603830856 | FB29: 0.006952826702 | FC29: 0.005838084758 | FD29: 0.0074675407 | FE29: 0.006898877327 | FF29: 0.007854197137 | FG29: 0.006080452611 | FH29: 0.007193750514 | FI29: 0.006316235637 | FJ29: 0.004955891188 | FK29: 0.005946734408 | FL29: 0.006803570617 | FM29: 0.005215760819 | FN29: 0.005461883179 | FO29: 0.006358748206 | FP29: 0.005058591389 | FQ29: 0.00575271305 | FR29: 0.006704336115 | FS29: 0.006206026422 | FT29: 0.005326720935 | FU29: 0.005093421659 | FV29: 0.007273403819 | FW29: 0.004880396721 | FX29: 0.004136195715 | FY29: 0.005309219157 | FZ29: 0.006675455293 | GA29: 0.006413159673 | GB29: 0.00493804284 | GC29: 0.00344369138 | GD29: 0.003446810509 | GE29: 0.004504426188 | GF29: 0.004058217498 | GG29: 0.004326173758 | GH29: 0.002010682785 | GI29: 0.001272546752
A30: DCD50 | B30: DLY | C30: 6.326666667 | D30: 5.863333333 | E30: 2 | M30: 90.8711 | N30: 88 | O30: 0.6947 | P30: 2.5305 | R30: 134.4714286 | S30: 0.9449854432 | T30: 0.04266639896 | U30: 0.0006023491617 | V30: 0.007027406887 | W30: 0.00230900512 | X30: 0.000100391527 | Y30: 0.0005019576348 | Z30: 0 | AA30: 0 | AB30: 0 | AC30: 0 | AD30: 0 | AE30: 0 | AG30: 0.8863567915 | AH30: 0.03242646321 | AI30: 0 | AJ30: 0.0130508985 | AK30: 0 | AL30: 0.002610179701 | AM30: 0.004818793294 | AN30: 0.0005019576348 | AO30: 0.001706655958 | AP30: 0.002911354282 | AQ30: 0 | AR30: 0 | AS30: 0.00130508985 | AT30: 0.0002007830539 | AU30: 0.0002007830539 | AV30: 0.0004015661078 | AW30: 0.000100391527 | AX30: 0.000100391527 | AY30: 0.0002007830539 | AZ30: 0 | BA30: 0 | BB30: 0 | BC30: 0 | BD30: 0 | BE30: 0 | BF30: 0 | BG30: 0 | BH30: 0 | BI30: 0 | BJ30: 0 | BK30: 0 | BL30: 0 | BM30: 0 | BN30: 0 | BO30: 0 | BP30: 0 | BQ30: 0.000100391527 | BR30: 0 | BS30: 0 | BT30: 0 | BU30: 0 | BV30: 0 | BW30: 0 | BX30: 0 | BY30: 0 | BZ30: 0 | CA30: 0.0004015661078 | CB30: 0 | CC30: 0 | CD30: 0 | CE30: 0 | CG30: 6.326666667 | CH30: 5.863333333 | CI30: 2 | EF30: 0.06681772517 | EG30: 0.05230691961 | EH30: 0.04111747595 | EI30: 0.02889569656 | EJ30: 0.02786756968 | EK30: 0.03039638301 | EL30: 0.02522383155 | EM30: 0.02724723295 | EN30: 0.02223859254 | EO30: 0.02200722308 | EP30: 0.01334787878 | EQ30: 0.01724924267 | ER30: 0.01504310732 | ES30: 0.01281300495 | ET30: 0.01359269317 | EU30: 0.01038999726 | EV30: 0.01099384936 | EW30: 0.007762626851 | EX30: 0.00902867029 | EY30: 0.009077539636 | EZ30: 0.009649825409 | FA30: 0.006323202453 | FB30: 0.008911757977 | FC30: 0.009374146175 | FD30: 0.008998039264 | FE30: 0.01146605819 | FF30: 0.007211969857 | FG30: 0.00822150768 | FH30: 0.00199499171 | FI30: 0.007683944865 | FJ30: 0.011343651 | FK30: 0.007231143476 | FL30: 0.005760971139 | FM30: 0.006579006594 | FN30: 0.006951138486 | FO30: 0.006831303365 | FP30: 0.006860297619 | FQ30: 0.005372120786 | FR30: 0.003161893507 | FS30: 0.005774416055 | FT30: 0.005989183974 | FU30: 0.00634377902 | FV30: 0.004095789064 | FW30: 0.005019396337 | FX30: 0.005477575692 | FY30: 0.004438342141 | FZ30: 0.001505947505 | GA30: 0.004193878495 | GB30: 0.007350043298 | GC30: 0.004758448055 | GD30: 0.004671348381 | GE30: 0.003699222498 | GF30: 0.003227832052 | GG30: 0.003205267975 | GH30: 0.00161993701 | GI30: 0.001209808616
A31: NXZ1 | B31: NX | C31: 6.543333333 | D31: 6.26 | E31: 4 | F31: 8.82 | G31: 5.62 | H31: 45.09333333 | I31: 12.45666667 | J31: 8.173333333 | K31: 48.81333333 | M31: 63.3391 | N31: 76 | O31: 0.8006 | P31: 2.8572 | R31: 1115.5 | S31: 0.6564338956 | T31: 0.3416045508 | U31: 9.81E-05 | V31: 0.0005884660651 | W31: 0.0006865437426 | X31: 0 | Y31: 0 | Z31: 0 | AA31: 0 | AB31: 0 | AC31: 0 | AD31: 0 | AE31: 0 | AG31: 0.003432718713 | AH31: 0.3304236956 | AI31: 9.81E-05 | AJ31: 0.01216163201 | AK31: 0.1460376618 | AL31: 0.2548058062 | AM31: 0.03766182817 | AN31: 0.002648097293 | AO31: 0.07757944292 | AP31: 0 | AQ31: 0 | AR31: 0 | AS31: 9.81E-05 | AT31: 9.81E-05 | AU31: 0 | AV31: 0 | AW31: 0 | AX31: 0 | AY31: 0 | AZ31: 0 | BA31: 0 | BB31: 0 | BC31: 0 | BD31: 0 | BE31: 0 | BF31: 0 | BG31: 0 | BH31: 0.003334641036 | BI31: 0 | BJ31: 0 | BK31: 0 | BL31: 0 | BM31: 0 | BN31: 0 | BO31: 0 | BP31: 0 | BQ31: 0 | BR31: 0 | BS31: 0 | BT31: 0 | BU31: 0 | BV31: 0 | BW31: 0 | BX31: 0 | BY31: 0 | BZ31: 0 | CA31: 0 | CB31: 0 | CC31: 0 | CD31: 0 | CE31: 0 | CG31: 6.543333333 | CH31: 6.26 | CI31: 4 | CJ31: 8.82 | CK31: 5.62 | CL31: 45.09333333 | CM31: 12.45666667 | CN31: 8.173333333 | CO31: 48.81333333 | CQ31: 0.02084163498 | CR31: 0.02606901141 | CS31: 0.4547501901 | CT31: 6.711607605 | CU31: 1.170951711 | CV31: 0.007089923954 | CW31: 0.05511520913 | CX31: 0.3344222433 | CY31: 0.08974258555 | CZ31: 0.004540494297 | DA31: 0.02554657795 | DB31: 0.1082406844 | DC31: 0.005354562738 | DD31: 0.01006425856 | DE31: 0.005416730038 | DF31: 0.004433460076 | DG31: 0.005877946768 | DH31: 0.005505323194 | DI31: 0.0468 | DJ31: 0.0039 | DK31: 0.0122 | DL31: 0.0448 | DM31: 0.0151 | DN31: 0.0056 | DO31: 0.0045 | DP31: 0.0055 | DQ31: 0.0049 | DR31: 0.0041 | DS31: 0.0048 | DT31: 0.0055 | DU31: 0.0000 | DV31: 9.2031 | DW31: 8.9097 | DX31: 0.2935 | DY31: 0.1387 | DZ31: 0.1491 | EA31: 0.9681 | EB31: 0.0319 | EC31: 0.0151 | ED31: 0.0162 | EF31: 0.07414253354 | EG31: 0.0514412189 | EH31: 0.04118943152 | EI31: 0.03835698757 | EJ31: 0.03673519918 | EK31: 0.0226267232 | EL31: 0.02440216182 | EM31: 0.0222918063 | EN31: 0.0264444239 | EO31: 0.01839802505 | EP31: 0.01155734058 | EQ31: 0.01355662119 | ER31: 0.01229628314 | ES31: 0.01383231168 | ET31: 0.009910101752 | EU31: 0.01025341188 | EV31: 0.008345982967 | EW31: 0.007810576199 | EX31: 0.008827239872 | EY31: 0.007762721258 | EZ31: 0.008429576817 | FA31: 0.005833293962 | FB31: 0.006644526593 | FC31: 0.008070021729 | FD31: 0.009771410416 | FE31: 0.007924967784 | FF31: 0.006670992338 | FG31: 0.00624909722 | FH31: 0.008909479976 | FI31: 0.007559456211 | FJ31: 0.01075734404 | FK31: 0.005511034591 | FL31: 0.005442128891 | FM31: 0.006332014198 | FN31: 0.005654260978 | FO31: 0.005849674295 | FP31: 0.005225597127 | FQ31: 0.005468120825 | FR31: 0.005233787294 | FS31: 0.005681403597 | FT31: 0.005033162053 | FU31: 0.005397929066 | FV31: 0.00735781566 | FW31: 0.004155866589 | FX31: 0.004113900446 | FY31: 0.00533497985 | FZ31: 0.00729649094 | GA31: 0.003471886136 | GB31: 0.009185102777 | GC31: 0.004440897929 | GD31: 0.004197494296 | GE31: 0.004961075048 | GF31: 0.003577139932 | GG31: 0.00459136686 | GH31: 0.001832228293 | GI31: 0.00116848635
A32: NXZ2 | B32: NX | C32: 6.55 | D32: 6.303333333 | E32: 5 | F32: 12.06 | G32: 6.693333333 | H32: 44.96 | I32: 15.32666667 | J32: 8.713333333 | K32: 47.48333333 | M32: 74.5309 | N32: 90.25 | O32: 0.2447 | P32: 1.0721 | R32: 2.007751938 | S32: 0.07223875046 | T32: 0.8712346597 | U32: 0 | V32: 0.03597991819 | W32: 0.001115656378 | X32: 0 | Y32: 0 | Z32: 0 | AA32: 0 | AB32: 0 | AC32: 0 | AD32: 0 | AE32: 0 | AG32: 0.002417255485 | AH32: 0.867980662 | AI32: 0 | AJ32: 0.0007437709186 | AK32: 0.002882112309 | AL32: 0.002975083674 | AM32: 0.02947192265 | AN32: 0 | AO32: 0.007623651915 | AP32: 9.30E-05 | AQ32: 0 | AR32: 0.0003718854593 | AS32: 0.002045370026 | AT32: 0.01924507252 | AU32: 0.03542209 | AV32: 9.30E-05 | AW32: 0.004183711417 | AX32: 0.0005578281889 | AY32: 9.30E-05 | AZ32: 0.00232428412 | BA32: 0 | BB32: 0 | BC32: 0 | BD32: 0 | BE32: 0 | BF32: 0 | BG32: 0 | BH32: 0 | BI32: 0 | BJ32: 0 | BK32: 0 | BL32: 0 | BM32: 0 | BN32: 0 | BO32: 0.01106359241 | BP32: 0 | BQ32: 0 | BR32: 0 | BS32: 0 | BT32: 0 | BU32: 0 | BV32: 0 | BW32: 0 | BX32: 0 | BY32: 0 | BZ32: 0 | CA32: 0 | CB32: 0 | CC32: 0 | CD32: 0 | CE32: 0 | CG32: 6.55 | CH32: 6.303333333 | CI32: 5 | CJ32: 12.06 | CK32: 6.693333333 | CL32: 44.96 | CM32: 15.32666667 | CN32: 8.713333333 | CO32: 47.48333333 | CQ32: 0.01800724907 | CR32: 0.01532992565 | CS32: 0.3670518587 | CT32: 3.24014777 | CU32: 0.9058213755 | CV32: 0.007927881041 | CW32: 0.03239869888 | CX32: 0.08688550186 | CY32: 0.04415055762 | CZ32: 0.004313568773 | DA32: 0.02610873606 | DB32: 0.129144052 | DC32: 0.006310037175 | DD32: 0.006970446097 | DE32: 0.004757620818 | DF32: 0.004142193309 | DG32: 0.004977509294 | DH32: 0.006316914498 | DI32: 0.0166 | DJ32: 0.0042 | DK32: 0.0136 | DL32: 0.3076 | DM32: 0.0056 | DN32: 0.0084 | DO32: 0.0047 | DP32: 0.0047 | DQ32: 0.0048 | DR32: 0.0045 | DS32: 0.0060 | DT32: 0.0145 | DU32: 0.0000 | DV32: 5.3060 | DW32: 4.8235 | DX32: 0.4826 | DY32: 0.0956 | DZ32: 0.3786 | EA32: 0.9091 | EB32: 0.0909 | EC32: 0.0180 | ED32: 0.0714 | EF32: 0.07091956418 | EG32: 0.04964557863 | EH32: 0.05209486304 | EI32: 0.03053951498 | EJ32: 0.03420295011 | EK32: 0.01620516858 | EL32: 0.02511196082 | EM32: 0.01978514873 | EN32: 0.03192641751 | EO32: 0.01445285247 | EP32: 0.01147684792 | EQ32: 0.01104264359 | ER32: 0.009317033066 | ES32: 0.01191045615 | ET32: 0.00713230094 | EU32: 0.008123030761 | EV32: 0.007127651305 | EW32: 0.009711536673 | EX32: 0.007883276528 | EY32: 0.006708230425 | EZ32: 0.005983841209 | FA32: 0.00753813058 | FB32: 0.0055926758 | FC32: 0.007606444441 | FD32: 0.008263235125 | FE32: 0.009455329888 | FF32: 0.007473512582 | FG32: 0.004961875381 | FH32: 0.005496821796 | FI32: 0.004672644269 | FJ32: 0.007687753435 | FK32: 0.004571425301 | FL32: 0.008791624363 | FM32: 0.006359984721 | FN32: 0.004624955709 | FO32: 0.00618007963 | FP32: 0.003774549474 | FQ32: 0.005080143008 | FR32: 0.009158110942 | FS32: 0.00761228629 | FT32: 0.003988074999 | FU32: 0.004282909517 | FV32: 0.006810164721 | FW32: 0.004820359581 | FX32: 0.003584987451 | FY32: 0.005016598003 | FZ32: 0.005895617374 | GA32: 0.006292386188 | GB32: 0.007635415241 | GC32: 0.002848079987 | GD32: 0.002421625045 | GE32: 0.004220556726 | GF32: 0.005871176987 | GG32: 0.005445437373 | GH32: 0.002890999691 | GI32: 0.001293790616
A33: NXZ5 | B33: NX | C33: 6.346666667 | D33: 5.873333333 | E33: 4 | F33: 10.39333333 | G33: 8.203333333 | H33: 50.89 | I33: 11.05666667 | J33: 7.933333333 | K33: 52.98 | M33: 99.3641 | N33: 68.6 | O33: 0.7755 | P33: 2.4888 | R33: 1479.428571 | S33: 0.9937625948 | T33: 0.00153536129 | U33: 9.60E-05 | V33: 0.0006717205642 | W33: 0.003070722579 | X33: 0 | Y33: 0.0001919201612 | Z33: 0 | AA33: 0 | AB33: 0 | AC33: 0 | AD33: 0 | AE33: 0 | AG33: 0.5991747433 | AH33: 0.0001919201612 | AI33: 9.60E-05 | AJ33: 0.0001919201612 | AK33: 0.09317723827 | AL33: 0.02504558104 | AM33: 0.1087227713 | AN33: 0 | AO33: 0.1304097495 | AP33: 0 | AQ33: 9.60E-05 | AR33: 0 | AS33: 0.000479800403 | AT33: 0 | AU33: 0 | AV33: 0 | AW33: 0 | AX33: 9.60E-05 | AY33: 0 | AZ33: 0 | BA33: 0 | BB33: 0 | BC33: 0 | BD33: 0 | BE33: 0 | BF33: 0 | BG33: 0 | BH33: 0 | BI33: 0 | BJ33: 0 | BK33: 0 | BL33: 0 | BM33: 0 | BN33: 0 | BO33: 0 | BP33: 0 | BQ33: 0 | BR33: 0 | BS33: 0 | BT33: 0 | BU33: 0 | BV33: 0 | BW33: 0 | BX33: 0 | BY33: 9.60E-05 | BZ33: 0 | CA33: 0 | CB33: 0 | CC33: 0 | CD33: 0 | CE33: 0 | CG33: 6.346666667 | CH33: 5.873333333 | CI33: 4 | CJ33: 10.39333333 | CK33: 8.203333333 | CL33: 50.89 | CM33: 11.05666667 | CN33: 7.933333333 | CO33: 52.98 | CQ33: 0.0120316 | CR33: 0.0149034 | CS33: 0.852862 | CT33: 3.0012444 | CU33: 0.5429086 | CV33: 0.0073122 | CW33: 0.0206774 | CX33: 0.080222 | CY33: 0.0276752 | CZ33: 0.004434 | DA33: 0.0220118 | DB33: 0.0879672 | DC33: 0.0064884 | DD33: 0.0071138 | DE33: 0.004904 | DF33: 0.0043454 | DG33: 0.004903 | DH33: 0.0059606 | DI33: 0.1225 | DJ33: 0.0043 | DK33: 0.0215 | DL33: 0.0594 | DM33: 0.0344 | DN33: 0.0070 | DO33: 0.0060 | DP33: 0.0076 | DQ33: 0.0064 | DR33: 0.0041 | DS33: 0.0053 | DT33: 0.0084 | DU33: 0.0000 | DV33: 4.9950 | DW33: 4.6418 | DX33: 0.3532 | DY33: 0.0771 | DZ33: 0.2690 | EA33: 0.9293 | EB33: 0.0707 | EC33: 0.0154 | ED33: 0.0539 | EF33: 0.07120373125 | EG33: 0.05279448285 | EH33: 0.04153935176 | EI33: 0.0302375047 | EJ33: 0.03109863872 | EK33: 0.02991925762 | EL33: 0.02501434347 | EM33: 0.02871770178 | EN33: 0.02052785718 | EO33: 0.02391822724 | EP33: 0.01371661583 | EQ33: 0.01392696917 | ER33: 0.01470334832 | ES33: 0.01149624861 | ET33: 0.01327662675 | EU33: 0.01040188533 | EV33: 0.0104595572 | EW33: 0.007345889441 | EX33: 0.009536719543 | EY33: 0.009798521812 | EZ33: 0.009711575762 | FA33: 0.009144761141 | FB33: 0.008611515408 | FC33: 0.008513613455 | FD33: 0.007736971371 | FE33: 0.006427083554 | FF33: 0.006296226243 | FG33: 0.008105352669 | FH33: 0.009014955597 | FI33: 0.007896489325 | FJ33: 0.006163791283 | FK33: 0.008195979902 | FL33: 0.004980904299 | FM33: 0.006463018918 | FN33: 0.006308409208 | FO33: 0.005616083757 | FP33: 0.006998631126 | FQ33: 0.005712758649 | FR33: 0.004036943657 | FS33: 0.005014736128 | FT33: 0.005897781947 | FU33: 0.005813552961 | FV33: 0.003160208439 | FW33: 0.005420542792 | FX33: 0.005790589387 | FY33: 0.004519353998 | FZ33: 0.003094210077 | GA33: 0.003252676264 | GB33: 0.002736346446 | GC33: 0.005275837219 | GD33: 0.004937694215 | GE33: 0.003364251185 | GF33: 0.002950468623 | GG33: 0.003505187927 | GH33: 0.001976006747 | GI33: 0.0008260751203
A34: NXZ11 | B34: NX | C34: 6.49 | D34: 5.93 | E34: 2 | F34: 11.65 | G34: 7.333333333 | H34: 1669.513333 | I34: 12.24 | J34: 8.936666667 | K34: 49.99666667 | M34: 75.2756 | N34: 44.1429 | O34: 0.5023 | P34: 1.523 | R34: 1031.8 | S34: 0.9921153846 | T34: 0.004711538462 | U34: 0.001923076923 | V34: 0.0009615384615 | W34: 9.62E-05 | X34: 0 | Y34: 0 | Z34: 0 | AA34: 0 | AB34: 0 | AC34: 0 | AD34: 0 | AE34: 0 | AG34: 0.89625 | AH34: 0.004519230769 | AI34: 0.001923076923 | AJ34: 0.0003846153846 | AK34: 0.03596153846 | AL34: 0.0325 | AM34: 0.006826923077 | AN34: 0 | AO34: 0.005769230769 | AP34: 9.62E-05 | AQ34: 0 | AR34: 0.0003846153846 | AS34: 0 | AT34: 9.62E-05 | AU34: 0 | AV34: 0.0009615384615 | AW34: 9.62E-05 | AX34: 0 | AY34: 0 | AZ34: 0 | BA34: 0 | BB34: 0 | BC34: 0 | BD34: 0 | BE34: 0 | BF34: 0 | BG34: 0 | BH34: 0 | BI34: 0 | BJ34: 0 | BK34: 0 | BL34: 0 | BM34: 0 | BN34: 0 | BO34: 0 | BP34: 0 | BQ34: 0 | BR34: 0 | BS34: 0 | BT34: 0 | BU34: 0 | BV34: 0 | BW34: 0 | BX34: 0 | BY34: 0 | BZ34: 0 | CA34: 0 | CB34: 0 | CC34: 0 | CD34: 0 | CE34: 0 | CG34: 6.49 | CH34: 5.93 | CI34: 2 | CJ34: 11.65 | CK34: 7.333333333 | CL34: 1669.513333 | CM34: 12.24 | CN34: 8.936666667 | CO34: 49.99666667 | CQ34: 0.01129962193 | CR34: 0.009438752363 | CS34: 0.9125863894 | CT34: 1.792178828 | CU34: 0.6226627599 | CV34: 0.007567296786 | CW34: 0.0222 | CX34: 0.06886408318 | CY34: 0.03174763705 | CZ34: 0.004249905482 | DA34: 0.02275860113 | DB34: 0.1011232514 | DC34: 0.006029489603 | DD34: 0.006533648393 | DE34: 0.004493383743 | DF34: 0.004130623819 | DG34: 0.004797920605 | DH34: 0.005901323251 | DI34: 0.0186 | DJ34: 0.0039 | DK34: 0.0073 | DL34: 0.0302 | DM34: 0.0078 | DN34: 0.0054 | DO34: 0.0044 | DP34: 0.0054 | DQ34: 0.0048 | DR34: 0.0043 | DS34: 0.0048 | DT34: 0.0058 | DU34: 0.0000 | DV34: 3.7412 | DW34: 3.5668 | DX34: 0.1744 | DY34: 0.0794 | DZ34: 0.0896 | EA34: 0.9534 | EB34: 0.0466 | EC34: 0.0212 | ED34: 0.0239 | EF34: 0.0683725628 | EG34: 0.05135930058 | EH34: 0.04177217496 | EI34: 0.0280848864 | EJ34: 0.02970215518 | EK34: 0.03094320372 | EL34: 0.02499200077 | EM34: 0.02890667256 | EN34: 0.02163175281 | EO34: 0.02416190224 | EP34: 0.01393586265 | EQ34: 0.01513944858 | ER34: 0.01612668511 | ES34: 0.01219573017 | ET34: 0.0136610989 | EU34: 0.01005204911 | EV34: 0.01072922277 | EW34: 0.00731238236 | EX34: 0.009853804732 | EY34: 0.01054464256 | EZ34: 0.00987020174 | FA34: 0.009157615101 | FB34: 0.008848577047 | FC34: 0.009844809151 | FD34: 0.007292113836 | FE34: 0.007957217473 | FF34: 0.006117222666 | FG34: 0.008254299375 | FH34: 0.008811114439 | FI34: 0.007644194036 | FJ34: 0.008982713682 | FK34: 0.00794173141 | FL34: 0.005481838606 | FM34: 0.006491165543 | FN34: 0.006825482317 | FO34: 0.005970560539 | FP34: 0.007214797389 | FQ34: 0.004672008599 | FR34: 0.003552115726 | FS34: 0.005287010267 | FT34: 0.005065195187 | FU34: 0.005979442251 | FV34: 0.002689678653 | FW34: 0.005299649628 | FX34: 0.006124851829 | FY34: 0.004622589839 | FZ34: 0.001630363615 | GA34: 0.00301112833 | GB34: 0.001869828253 | GC34: 0.004796466445 | GD34: 0.005100380433 | GE34: 0.003278604524 | GF34: 0.00282244887 | GG34: 0.002898512769 | GH34: 0.001993375153 | GI34: 0.0006855998971
A35: NXZ14 | B35: NX | C35: 6.686666667 | D35: 5.733333333 | E35: 5 | F35: 11.72333333 | G35: 6.996666667 | H35: 44.08666667 | I35: 13.37666667 | J35: 8.48 | K35: 51.60333333 | M35: 194.6504 | N35: 193.2222 | O35: 0.7946 | P35: 3.648 | R35: 24.68531469 | S35: 0.8608706255 | T35: 0.05596878429 | U35: 0.001097427143 | V35: 0.03487379588 | W35: 0.02133886111 | X35: 0.0008535544446 | Y35: 0.003658090477 | Z35: 0 | AA35: 0 | AB35: 0 | AC35: 0 | AD35: 0 | AE35: 0 | AG35: 0.6956468723 | AH35: 0.04499451286 | AI35: 0.0002438726985 | AJ35: 0.01902207048 | AK35: 0.008047799049 | AL35: 0.02097305207 | AM35: 0.02133886111 | AN35: 0.001097427143 | AO35: 0.01390074381 | AP35: 0.001097427143 | AQ35: 0.0006096817461 | AR35: 0.0002438726985 | AS35: 0.0002438726985 | AT35: 0 | AU35: 0.001950981588 | AV35: 0.003536154128 | AW35: 0.004877453969 | AX35: 0.001463236191 | AY35: 0 | AZ35: 0.002316790635 | BA35: 0 | BB35: 0 | BC35: 0 | BD35: 0 | BE35: 0 | BF35: 0 | BG35: 0 | BH35: 0 | BI35: 0 | BJ35: 0 | BK35: 0 | BL35: 0 | BM35: 0 | BN35: 0 | BO35: 0.0007316180954 | BP35: 0 | BQ35: 0 | BR35: 0 | BS35: 0 | BT35: 0.002926472381 | BU35: 0 | BV35: 0 | BW35: 0 | BX35: 0 | BY35: 0 | BZ35: 0 | CA35: 0 | CB35: 0 | CC35: 0.0004877453969 | CD35: 0 | CE35: 0 | CG35: 6.686666667 | CH35: 5.733333333 | CI35: 5 | CJ35: 11.72333333 | CK35: 6.996666667 | CL35: 44.08666667 | CM35: 13.37666667 | CN35: 8.48 | CO35: 51.60333333 | CQ35: 0.005422692308 | CR35: 0.005564807692 | CS35: 0.3174888462 | CT35: 0.7007361538 | CU35: 0.3459205769 | CV35: 0.005295961538 | CW35: 0.009787884615 | CX35: 0.01929307692 | CY35: 0.01387673077 | CZ35: 0.004174423077 | DA35: 0.02021173077 | DB35: 0.09561846154 | DC35: 0.005904807692 | DD35: 0.005788461538 | DE35: 0.004740192308 | DF35: 0.004174615385 | DG35: 0.004739038462 | DH35: 0.006060576923 | DI35: 0.1330 | DJ35: 0.0043 | DK35: 0.0235 | DL35: 0.0697 | DM35: 0.0371 | DN35: 0.0077 | DO35: 0.0051 | DP35: 0.0062 | DQ35: 0.0058 | DR35: 0.0041 | DS35: 0.0049 | DT35: 0.0093 | DU35: 0.0000 | DV35: 1.8854 | DW35: 1.5271 | DX35: 0.3584 | DY35: 0.0576 | DZ35: 0.2931 | EA35: 0.8099 | EB35: 0.1901 | EC35: 0.0305 | ED35: 0.1554 | EF35: 0.07262602785 | EG35: 0.0536786046 | EH35: 0.04205379409 | EI35: 0.03158886965 | EJ35: 0.02886137068 | EK35: 0.02811457372 | EL35: 0.02517909386 | EM35: 0.02705456061 | EN35: 0.02181845968 | EO35: 0.02171083053 | EP35: 0.01335520771 | EQ35: 0.01313554465 | ER35: 0.013946019 | ES35: 0.01179257411 | ET35: 0.01255268107 | EU35: 0.01025598599 | EV35: 0.00988234812 | EW35: 0.008521758565 | EX35: 0.009448192793 | EY35: 0.00932993478 | EZ35: 0.008943752946 | FA35: 0.00860631065 | FB35: 0.008241195021 | FC35: 0.008013201233 | FD35: 0.007146805688 | FE35: 0.006718012668 | FF35: 0.006781785815 | FG35: 0.007509048653 | FH35: 0.008825877956 | FI35: 0.007357467735 | FJ35: 0.006227170099 | FK35: 0.007777834274 | FL35: 0.005489182648 | FM35: 0.005765820217 | FN35: 0.00628874087 | FO35: 0.00585803274 | FP35: 0.006600616455 | FQ35: 0.005394001705 | FR35: 0.004624606457 | FS35: 0.005401949409 | FT35: 0.005495598264 | FU35: 0.005715931614 | FV35: 0.004335616431 | FW35: 0.005255156265 | FX35: 0.005285510751 | FY35: 0.00485374931 | FZ35: 0.003363028064 | GA35: 0.004025177179 | GB35: 0.002938352529 | GC35: 0.004471589207 | GD35: 0.004529138248 | GE35: 0.003914292338 | GF35: 0.003364751662 | GG35: 0.003281923176 | GH35: 0.001992096918 | GI35: 0.0009092939977
A36: NXZ19 | B36: NX | C36: 6.85 | D36: 6.68 | E36: 3 | F36: 17.55333333 | G36: 7.34 | H36: 40.7 | I36: 17.62666667 | J36: 7.82 | K36: 41.58 | M36: 19.9731 | N36: 10.5 | O36: 0.0043 | P36: 0.0275 | S36: 0.001757910598 | T36: 0.0001255650427 | U36: 0.9978653943 | V36: 0 | W36: 0 | X36: 0 | Y36: 0 | Z36: 0 | AA36: 0 | AB36: 0 | AC36: 0 | AD36: 0 | AE36: 0 | AG36: 0.00138121547 | AH36: 0 | AI36: 0.9978653943 | AJ36: 0 | AK36: 0 | AL36: 0 | AM36: 0 | AN36: 0 | AO36: 0 | AP36: 0 | AQ36: 0 | AR36: 0 | AS36: 0.0001255650427 | AT36: 0 | AU36: 0 | AV36: 0 | AW36: 0 | AX36: 0 | AY36: 0 | AZ36: 0.0001255650427 | BA36: 0 | BB36: 0 | BC36: 0 | BD36: 0 | BE36: 0 | BF36: 0 | BG36: 0 | BH36: 0 | BI36: 0 | BJ36: 0 | BK36: 0 | BL36: 0 | BM36: 0 | BN36: 0 | BO36: 0 | BP36: 0 | BQ36: 0 | BR36: 0 | BS36: 0 | BT36: 0 | BU36: 0 | BV36: 0 | BW36: 0 | BX36: 0 | BY36: 0 | BZ36: 0 | CA36: 0 | CB36: 0 | CC36: 0 | CD36: 0 | CE36: 0 | CG36: 6.85 | CH36: 6.68 | CI36: 3 | CJ36: 17.55333333 | CK36: 7.34 | CL36: 40.7 | CM36: 17.62666667 | CN36: 7.82 | CO36: 41.58 | CQ36: 0.02037559199 | CR36: 0.02148943534 | CS36: 1.692620401 | CT36: 4.595046812 | CU36: 1.094229508 | CV36: 0.008676867031 | CW36: 0.05423260474 | CX36: 0.1189021858 | CY36: 0.05509326047 | CZ36: 0.004347358834 | DA36: 0.02798816029 | DB36: 0.1121663024 | DC36: 0.006647176685 | DD36: 0.00760291439 | DE36: 0.004589435337 | DF36: 0.004036794171 | DG36: 0.00494007286 | DH36: 0.006025136612 | DI36: 0.0121 | DJ36: 0.0039 | DK36: 0.0084 | DL36: 0.0355 | DM36: 0.0065 | DN36: 0.0054 | DO36: 0.0043 | DP36: 0.0051 | DQ36: 0.0047 | DR36: 0.0043 | DS36: 0.0048 | DT36: 0.0056 | DU36: 0.0000 | DV36: 7.9396 | DW36: 7.7357 | DX36: 0.2040 | DY36: 0.1095 | DZ36: 0.0891 | EA36: 0.9743 | EB36: 0.0257 | EC36: 0.0138 | ED36: 0.0112 | EF36: 0.07507116259 | EG36: 0.05712990804 | EH36: 0.0365618367 | EI36: 0.03189328393 | EJ36: 0.03454745731 | EK36: 0.03718745196 | EL36: 0.02524946836 | EM36: 0.02989199901 | EN36: 0.01000050293 | EO36: 0.02855269359 | EP36: 0.01262531801 | EQ36: 0.01594097048 | ER36: 0.01395144555 | ES36: 0.01196517339 | ET36: 0.01726467929 | EU36: 0.007977616302 | EV36: 0.01328170944 | EW36: 0.008641764327 | EX36: 0.00930115831 | EY36: 0.009963304633 | EZ36: 0.01195299637 | FA36: 0.007307212958 | FB36: 0.009298656182 | FC36: 0.007971778004 | FD36: 0.009961136123 | FE36: 0.006648402804 | FF36: 0.006645150039 | FG36: 0.01062369947 | FH36: 0.001339639028 | FI36: 0.009959551442 | FJ36: 0.002012044074 | FK36: 0.007309381468 | FL36: 0.004656876176 | FM36: 0.007969359281 | FN36: 0.006643982379 | FO36: 0.004656292346 | FP36: 0.007968775451 | FQ36: 0.007963103962 | FR36: 0.004651538304 | FS36: 0.003328746934 | FT36: 0.007963187367 | FU36: 0.007304961043 | FV36: 0.002000617692 | FW36: 0.005977832652 | FX36: 0.007302709128 | FY36: 0.003988641342 | FZ36: 0.005974663291 | GA36: 0.002664348696 | GB36: 9.42E-06 | GC36: 0.00597583095 | GD36: 0.005313434414 | GE36: 0.001997531735 | GF36: 0.002660845717 | GG36: 0.001996530884 | GH36: 0.001992277267 | GI36: 0.001327795625
A37: NXZ21 | B37: NX | C37: 6.216666667 | D37: 5.933333333 | E37: 4 | F37: 11.87 | G37: 5.89 | H37: 43.98 | I37: 11.33666667 | J37: 7.51 | K37: 48.03666667 | M37: 118.696 | N37: 122.5455 | O37: 0.736 | P37: 2.8279 | R37: 9.846376812 | S37: 0.3023856151 | T37: 0.002848495638 | U37: 0.4541570233 | V37: 0.0307103436 | W37: 0.0004450774435 | X37: 0.002670464661 | Y37: 0.003204557593 | Z37: 0 | AA37: 0 | AB37: 0 | AC37: 0 | AD37: 0 | AE37: 0 | AG37: 0.2293929144 | AH37: 0.0008011393983 | AI37: 0.4534448994 | AJ37: 0.001424247819 | AK37: 0.003293573082 | AL37: 8.90E-05 | AM37: 0 | AN37: 0 | AO37: 0 | AP37: 0.0003560619548 | AQ37: 0 | AR37: 0.0002670464661 | AS37: 0 | AT37: 0 | AU37: 0.0003560619548 | AV37: 0 | AW37: 0.002403418195 | AX37: 0 | AY37: 0.0001780309774 | AZ37: 0.0008901548869 | BA37: 0 | BB37: 0 | BC37: 0 | BD37: 0 | BE37: 0 | BF37: 0 | BG37: 0 | BH37: 0 | BI37: 0 | BJ37: 0 | BK37: 0 | BL37: 0 | BM37: 0 | BN37: 0 | BO37: 0.0003560619548 | BP37: 0 | BQ37: 0 | BR37: 0 | BS37: 0 | BT37: 0 | BU37: 0 | BV37: 0 | BW37: 0 | BX37: 0 | BY37: 0.003204557593 | BZ37: 0.001068185864 | CA37: 0 | CB37: 0 | CC37: 0 | CD37: 0 | CE37: 0 | CG37: 6.216666667 | CH37: 5.933333333 | CI37: 4 | CJ37: 11.87 | CK37: 5.89 | CL37: 43.98 | CM37: 11.33666667 | CN37: 7.51 | CO37: 48.03666667 | CQ37: 0.01603436929 | CR37: 0.01522065814 | CS37: 1.042271298 | CT37: 2.917740951 | CU37: 0.7493859232 | CV37: 0.007175319927 | CW37: 0.02846380256 | CX37: 0.08196892139 | CY37: 0.03757696527 | CZ37: 0.00435630713 | DA37: 0.02794131627 | DB37: 0.09132230347 | DC37: 0.005617550274 | DD37: 0.00654095064 | DE37: 0.004718464351 | DF37: 0.004121389397 | DG37: 0.004919926874 | DH37: 0.004931444241 | DI37: 0.0096 | DJ37: 0.0038 | DK37: 0.0066 | DL37: 0.0302 | DM37: 0.0057 | DN37: 0.0051 | DO37: 0.0041 | DP37: 0.0051 | DQ37: 0.0046 | DR37: 0.0041 | DS37: 0.0046 | DT37: 0.0056 | DU37: 0.0000 | DV37: 5.1394 | DW37: 4.9683 | DX37: 0.1711 | DY37: 0.0883 | DZ37: 0.0777 | EA37: 0.9667 | EB37: 0.0333 | EC37: 0.0172 | ED37: 0.0151 | EF37: 0.07554436382 | EG37: 0.05678199223 | EH37: 0.0381888343 | EI37: 0.03529263901 | EJ37: 0.02848680582 | EK37: 0.03202273572 | EL37: 0.0260029434 | EM37: 0.02592028733 | EN37: 0.01749900999 | EO37: 0.02307386404 | EP37: 0.01252353789 | EQ37: 0.01331548676 | ER37: 0.01205914786 | ES37: 0.01154832998 | ET37: 0.01483629165 | EU37: 0.008419270849 | EV37: 0.01107987124 | EW37: 0.01112066979 | EX37: 0.009096069712 | EY37: 0.008079227213 | EZ37: 0.01017923772 | FA37: 0.006775958843 | FB37: 0.008394078303 | FC37: 0.006141184713 | FD37: 0.00715401424 | FE37: 0.006254439699 | FF37: 0.006546829292 | FG37: 0.008778264629 | FH37: 0.003972786477 | FI37: 0.007819220073 | FJ37: 0.002993900004 | FK37: 0.007103684884 | FL37: 0.005896059011 | FM37: 0.006577929825 | FN37: 0.00682600952 | FO37: 0.006200320313 | FP37: 0.006934471234 | FQ37: 0.006175517917 | FR37: 0.005351019392 | FS37: 0.004638661139 | FT37: 0.006319204607 | FU37: 0.006340662859 | FV37: 0.00497641961 | FW37: 0.005330118497 | FX37: 0.005887754388 | FY37: 0.00493355884 | FZ37: 0.00623944679 | GA37: 0.005092015496 | GB37: 0.004863944924 | GC37: 0.004335235872 | GD37: 0.004878547683 | GE37: 0.003575613727 | GF37: 0.00288504814 | GG37: 0.003052032361 | GH37: 0.001418139692 | GI37: 0.000983233859
A38: NXZ25 | B38: NX | C38: 6.283333333 | D38: 6.236666667 | E38: 2 | F38: 17.14 | G38: 6.506666667 | H38: 44.17333333 | I38: 16.60333333 | J38: 6.916666667 | K38: 41.66666667 | M38: 30.156 | N38: 30.3333 | O38: 0.2229 | P38: 0.8134 | R38: 119.4 | S38: 0.1019467213 | T38: 0.004781420765 | U38: 0.8796106557 | V38: 0.0008538251366 | W38: 0 | X38: 8.54E-05 | Y38: 0 | Z38: 0 | AA38: 0 | AB38: 0 | AC38: 0 | AD38: 0 | AE38: 0 | AG38: 0.09904371585 | AH38: 0 | AI38: 0.8791837432 | AJ38: 0.000256147541 | AK38: 0 | AL38: 0 | AM38: 0 | AN38: 0 | AO38: 0 | AP38: 0.003073770492 | AQ38: 8.54E-05 | AR38: 0.000256147541 | AS38: 0 | AT38: 0 | AU38: 0 | AV38: 0 | AW38: 0 | AX38: 0 | AY38: 0 | AZ38: 0 | BA38: 0 | BB38: 0 | BC38: 0 | BD38: 0 | BE38: 0 | BF38: 0 | BG38: 0 | BH38: 0 | BI38: 0 | BJ38: 0 | BK38: 0 | BL38: 0 | BM38: 0 | BN38: 0 | BO38: 0.0001707650273 | BP38: 0 | BQ38: 0 | BR38: 0 | BS38: 0 | BT38: 0 | BU38: 0 | BV38: 0 | BW38: 0 | BX38: 0 | BY38: 0 | BZ38: 0 | CA38: 0 | CB38: 0 | CC38: 0 | CD38: 0 | CE38: 0 | CG38: 6.283333333 | CH38: 6.236666667 | CI38: 2 | CJ38: 17.14 | CK38: 6.506666667 | CL38: 44.17333333 | CM38: 16.60333333 | CN38: 6.916666667 | CO38: 41.66666667 | CQ38: 0.008519512195 | CR38: 0.00972739212 | CS38: 0.53770394 | CT38: 1.587530769 | CU38: 0.421695122 | CV38: 0.0062369606 | CW38: 0.01586885553 | CX38: 0.03564146341 | CY38: 0.01921782364 | CZ38: 0.003937148218 | DA38: 0.01385891182 | DB38: 0.06309512195 | DC38: 0.005463414634 | DD38: 0.005530393996 | DE38: 0.004560787992 | DF38: 0.004117073171 | DG38: 0.004815009381 | DH38: 0.005472795497 | DI38: 0.0205 | DJ38: 0.0036 | DK38: 0.0074 | DL38: 0.0312 | DM38: 0.0080 | DN38: 0.0051 | DO38: 0.0040 | DP38: 0.0047 | DQ38: 0.0044 | DR38: 0.0039 | DS38: 0.0045 | DT38: 0.0051 | DU38: 0.0000 | DV38: 2.8555 | DW38: 2.7046 | DX38: 0.1509 | DY38: 0.0550 | DZ38: 0.0909 | EA38: 0.9472 | EB38: 0.0528 | EC38: 0.0192 | ED38: 0.0318 | EF38: 0.07445298442 | EG38: 0.05653052341 | EH38: 0.03709911909 | EI38: 0.03169107455 | EJ38: 0.03395234131 | EK38: 0.03656888944 | EL38: 0.02532293397 | EM38: 0.02982770916 | EN38: 0.0114073845 | EO38: 0.02795082452 | EP38: 0.0126644458 | EQ38: 0.01578475793 | ER38: 0.01393622934 | ES38: 0.01222684595 | ET38: 0.01694225796 | EU38: 0.008133892381 | EV38: 0.01305868094 | EW38: 0.008880086354 | EX38: 0.00930473981 | EY38: 0.009836745293 | EZ38: 0.01172451408 | FA38: 0.007232628005 | FB38: 0.00919286227 | FC38: 0.007989305126 | FD38: 0.009650168157 | FE38: 0.006817369283 | FF38: 0.006627526904 | FG38: 0.01037373457 | FH38: 0.001591433652 | FI38: 0.009668843056 | FJ38: 0.002973261612 | FK38: 0.007406316023 | FL38: 0.004884689086 | FM38: 0.007831084049 | FN38: 0.006699476822 | FO38: 0.004908118637 | FP38: 0.007867001723 | FQ38: 0.007466407952 | FR38: 0.004584229437 | FS38: 0.003570228247 | FT38: 0.007482734168 | FU38: 0.00718055597 | FV38: 0.002207648036 | FW38: 0.005891071376 | FX38: 0.007097721909 | FY38: 0.004075195226 | FZ38: 0.005595996514 | GA38: 0.002902686533 | GB38: 0.000329159417 | GC38: 0.00579110911 | GD38: 0.005284137157 | GE38: 0.002149618365 | GF38: 0.002773451649 | GG38: 0.002069190272 | GH38: 0.001967795881 | GI38: 0.001268461011
A39: NXZ32 | B39: NX | C39: 6.01 | D39: 5.72 | E39: 2 | F39: 10.98666667 | G39: 8.54 | H39: 48.61 | I39: 9.586666667 | J39: 8.403333333 | K39: 57.13 | M39: 140.9879 | N39: 106.0769 | O39: 0.5534 | P39: 2.0681 | R39: 6.868852459 | S39: 0.04355962158 | T39: 0.8997816821 | U39: 0.002287140035 | V39: 0.006341615553 | W39: 0.03960910698 | X39: 0.0004158436428 | Y39: 0.0001039609107 | Z39: 0 | AA39: 0 | AB39: 0 | AC39: 0 | AD39: 0 | AE39: 0 | AG39: 0.03441106144 | AH39: 0.6474685518 | AI39: 0.001767335482 | AJ39: 0 | AK39: 0 | AL39: 0.0003118827321 | AM39: 0.0009356481963 | AN39: 0 | AO39: 0.0001039609107 | AP39: 0.2151990851 | AQ39: 0.0004158436428 | AR39: 0.003846553696 | AS39: 0.003222788232 | AT39: 0.0006237654642 | AU39: 0.0007277263749 | AV39: 0 | AW39: 0.0002079218214 | AX39: 0 | AY39: 0.0001039609107 | AZ39: 0 | BA39: 0 | BB39: 0 | BC39: 0 | BD39: 0 | BE39: 0 | BF39: 0 | BG39: 0 | BH39: 0 | BI39: 0 | BJ39: 0 | BK39: 0 | BL39: 0 | BM39: 0 | BN39: 0 | BO39: 0 | BP39: 0 | BQ39: 0.0009356481963 | BR39: 0 | BS39: 0 | BT39: 0 | BU39: 0 | BV39: 0 | BW39: 0 | BX39: 0 | BY39: 0.0001039609107 | BZ39: 0 | CA39: 0 | CB39: 0 | CC39: 0 | CD39: 0 | CE39: 0 | CG39: 6.01 | CH39: 5.72 | CI39: 2 | CJ39: 10.98666667 | CK39: 8.54 | CL39: 48.61 | CM39: 9.586666667 | CN39: 8.403333333 | CO39: 57.13 | CQ39: 0.006020765027 | CR39: 0.005831876138 | CS39: 0.3426176685 | CT39: 0.8104391621 | CU39: 0.3136952641 | CV39: 0.005615482696 | CW39: 0.008818214936 | CX39: 0.02314918033 | CY39: 0.01125737705 | CZ39: 0.003793442623 | DA39: 0.01376265938 | DB39: 0.06876174863 | DC39: 0.005375956284 | DD39: 0.005516575592 | DE39: 0.004432604736 | DF39: 0.003954098361 | DG39: 0.004522040073 | DH39: 0.004982695811 | DI39: 0.0107 | DJ39: 0.0037 | DK39: 0.0068 | DL39: 0.0285 | DM39: 0.0060 | DN39: 0.0051 | DO39: 0.0040 | DP39: 0.0048 | DQ39: 0.0045 | DR39: 0.0041 | DS39: 0.0045 | DT39: 0.0051 | DU39: 0.0000 | DV39: 1.7302 | DW39: 1.6040 | DX39: 0.1262 | DY39: 0.0458 | DZ39: 0.0753 | EA39: 0.9271 | EB39: 0.0729 | EC39: 0.0265 | ED39: 0.0435 | EF39: 0.07159746819 | EG39: 0.05171395853 | EH39: 0.05429263739 | EI39: 0.03103680727 | EJ39: 0.02710288384 | EK39: 0.01648933665 | EL39: 0.02620739234 | EM39: 0.01842348092 | EN39: 0.0265255285 | EO39: 0.01309639912 | EP39: 0.0115006992 | EQ39: 0.007551486707 | ER39: 0.008348448662 | ES39: 0.01073686356 | ET39: 0.007210185299 | EU39: 0.008558557515 | EV39: 0.00661985741 | EW39: 0.01090427113 | EX39: 0.007804605716 | EY39: 0.005827451289 | EZ39: 0.00520608196 | FA39: 0.008824571848 | FB39: 0.005647457266 | FC39: 0.003488223943 | FD39: 0.004591739425 | FE39: 0.005173650605 | FF39: 0.008202970867 | FG39: 0.004240554175 | FH39: 0.006138946738 | FI39: 0.004212369782 | FJ39: 0.003896627371 | FK39: 0.00457760862 | FL39: 0.008629365975 | FM39: 0.005825984157 | FN39: 0.004773741104 | FO39: 0.005958412192 | FP39: 0.004255688807 | FQ39: 0.007450717853 | FR39: 0.009009816662 | FS39: 0.007799972665 | FT39: 0.004116465631 | FU39: 0.00422765885 | FV39: 0.007314120072 | FW39: 0.005557653298 | FX39: 0.003288925541 | FY39: 0.00475490003 | FZ39: 0.006149525537 | GA39: 0.006964015867 | GB39: 0.003283134228 | GC39: 0.002606786029 | GD39: 0.002386407247 | GE39: 0.004807639592 | GF39: 0.006492834601 | GG39: 0.005385381026 | GH39: 0.005272411804 | GI39: 0.002233979876
A40: NXZ35 | B40: NX | C40: 5.97 | D40: 5.646666667 | E40: 4 | F40: 8.32 | G40: 6.79 | H40: 48.74333333 | I40: 9.396666667 | J40: 6.69 | K40: 53.90333333 | M40: 100.0817 | N40: 64.125 | O40: 0.0616 | P40: 0.3352 | R40: 2.142857143 | S40: 0.006866245537 | T40: 0.9847111599 | U40: 0.002288748512 | V40: 0.003204247917 | W40: 0 | X40: 0 | Y40: 9.15E-05 | Z40: 0 | AA40: 0 | AB40: 0 | AC40: 0 | AD40: 0 | AE40: 0 | AG40: 0.005401446489 | AH40: 0.9686899204 | AI40: 0 | AJ40: 0 | AK40: 9.15E-05 | AL40: 0 | AM40: 0 | AN40: 0 | AO40: 0 | AP40: 0.0110775428 | AQ40: 0 | AR40: 0.0002746498215 | AS40: 0.001281699167 | AT40: 0.001098599286 | AU40: 0.000183099881 | AV40: 0 | AW40: 9.15E-05 | AX40: 0 | AY40: 0.000183099881 | AZ40: 0 | BA40: 0 | BB40: 0 | BC40: 0 | BD40: 0 | BE40: 0 | BF40: 0 | BG40: 0 | BH40: 0 | BI40: 0 | BJ40: 0 | BK40: 0 | BL40: 0 | BM40: 0 | BN40: 0 | BO40: 0 | BP40: 0 | BQ40: 0 | BR40: 0 | BS40: 0 | BT40: 0 | BU40: 0 | BV40: 0 | BW40: 0 | BX40: 0 | BY40: 9.15E-05 | BZ40: 0 | CA40: 0 | CB40: 0 | CC40: 0 | CD40: 0 | CE40: 0 | CG40: 5.97 | CH40: 5.646666667 | CI40: 4 | CJ40: 8.32 | CK40: 6.79 | CL40: 48.74333333 | CM40: 9.396666667 | CN40: 6.69 | CO40: 53.90333333 | CQ40: 0.005662698413 | CR40: 0.005615277778 | CS40: 0.2249267857 | CT40: 0.4981900794 | CU40: 0.2551400794 | CV40: 0.005644246032 | CW40: 0.00886765873 | CX40: 0.01358988095 | CY40: 0.01044166667 | CZ40: 0.004136111111 | DA40: 0.01412797619 | DB40: 0.06573313492 | DC40: 0.005856746032 | DD40: 0.005823412698 | DE40: 0.00487718254 | DF40: 0.004322619048 | DG40: 0.004912103175 | DH40: 0.005450992063 | DI40: 0.0470 | DJ40: 0.0037 | DK40: 0.0109 | DL40: 0.0355 | DM40: 0.0136 | DN40: 0.0053 | DO40: 0.0043 | DP40: 0.0054 | DQ40: 0.0048 | DR40: 0.0040 | DS40: 0.0046 | DT40: 0.0054 | DU40: 0.0000 | DV40: 1.2877 | DW40: 1.1033 | DX40: 0.1844 | DY40: 0.0470 | DZ40: 0.1322 | EA40: 0.8568 | EB40: 0.1432 | EC40: 0.0365 | ED40: 0.1026 | EF40: 0.06933302298 | EG40: 0.04735677195 | EH40: 0.05638288623 | EI40: 0.0273016612 | EJ40: 0.03617414998 | EK40: 0.01383149802 | EL40: 0.02498002663 | EM40: 0.01936968361 | EN40: 0.03615415949 | EO40: 0.01352315165 | EP40: 0.01173578331 | EQ40: 0.0103401463 | ER40: 0.008812106566 | ES40: 0.01189899329 | ET40: 0.006093400744 | EU40: 0.007711260735 | EV40: 0.006569475489 | EW40: 0.009411958006 | EX40: 0.007226012275 | EY40: 0.006597818162 | EZ40: 0.005403729047 | FA40: 0.008261409808 | FB40: 0.005180136853 | FC40: 0.007364987215 | FD40: 0.007881179849 | FE40: 0.009948962651 | FF40: 0.007632120326 | FG40: 0.004473076173 | FH40: 0.005135500567 | FI40: 0.00382667155 | FJ40: 0.00941360106 | FK40: 0.004040405423 | FL40: 0.009735365699 | FM40: 0.006781977073 | FN40: 0.004277142045 | FO40: 0.005995775983 | FP40: 0.00338660706 | FQ40: 0.005104693314 | FR40: 0.009871739138 | FS40: 0.008360677623 | FT40: 0.003417688155 | FU40: 0.003778612236 | FV40: 0.006517445463 | FW40: 0.004893697863 | FX40: 0.00348779177 | FY40: 0.004824278854 | FZ40: 0.005198484283 | GA40: 0.006292894821 | GB40: 0.008592895848 | GC40: 0.002784154118 | GD40: 0.001956192087 | GE40: 0.004190334053 | GF40: 0.006749252924 | GG40: 0.005814355495 | GH40: 0.003555430805 | GI40: 0.001444517849
A41: NXZ41 | B41: NX | C41: 5.79 | D41: 5.62 | E41: 5 | F41: 10.58 | G41: 6.68 | H41: 49.56333333 | I41: 11.38666667 | J41: 7.373333333 | K41: 57.98 | M41: 114.502 | N41: 65.6667 | O41: 0.0453 | P41: 0.2284 | R41: 6.4 | S41: 0.002960495883 | T41: 0.988250532 | U41: 0 | V41: 0.0004625774817 | W41: 0 | X41: 0 | Y41: 0 | Z41: 0 | AA41: 0 | AB41: 0 | AC41: 0 | AD41: 0 | AE41: 0 | AG41: 0.0006476084744 | AH41: 0.005365898788 | AI41: 0 | AJ41: 9.25E-05 | AK41: 9.25E-05 | AL41: 0.0001850309927 | AM41: 9.25E-05 | AN41: 0 | AO41: 0.0004625774817 | AP41: 0.0001850309927 | AQ41: 0.0001850309927 | AR41: 0 | AS41: 0 | AT41: 0 | AU41: 9.25E-05 | AV41: 0 | AW41: 0 | AX41: 9.25E-05 | AY41: 9.25E-05 | AZ41: 0 | BA41: 0 | BB41: 0 | BC41: 0 | BD41: 0 | BE41: 0 | BF41: 0 | BG41: 0 | BH41: 0 | BI41: 0 | BJ41: 0 | BK41: 0 | BL41: 0 | BM41: 0 | BN41: 0 | BO41: 0 | BP41: 0 | BQ41: 0.0005550929781 | BR41: 0 | BS41: 0 | BT41: 9.25E-05 | BU41: 0 | BV41: 0 | BW41: 0 | BX41: 0 | BY41: 0 | BZ41: 0 | CA41: 0 | CB41: 0 | CC41: 0 | CD41: 0 | CE41: 0 | CG41: 5.79 | CH41: 5.62 | CI41: 5 | CJ41: 10.58 | CK41: 6.68 | CL41: 49.56333333 | CM41: 11.38666667 | CN41: 7.373333333 | CO41: 57.98 | CQ41: 0.03118228571 | CR41: 0.02937409524 | CS41: 2.809875429 | CT41: 6.081845524 | CU41: 1.202477524 | CV41: 0.009014857143 | CW41: 0.05851980952 | CX41: 0.2040420952 | CY41: 0.06840819048 | CZ41: 0.004728380952 | DA41: 0.03109885714 | DB41: 0.1200188571 | DC41: 0.007148571429 | DD41: 0.008287809524 | DE41: 0.005401142857 | DF41: 0.004266095238 | DG41: 0.005732380952 | DH41: 0.006214095238 | DI41: 0.0106 | DJ41: 0.0036 | DK41: 0.0069 | DL41: 0.0276 | DM41: 0.0058 | DN41: 0.0049 | DO41: 0.0040 | DP41: 0.0047 | DQ41: 0.0044 | DR41: 0.0040 | DS41: 0.0045 | DT41: 0.0051 | DU41: 0.0000 | DV41: 10.7736 | DW41: 10.5638 | DX41: 0.2098 | DY41: 0.1266 | DZ41: 0.0783 | EA41: 0.9805 | EB41: 0.0195 | EC41: 0.0118 | ED41: 0.0073 | EF41: 0.07938240235 | EG41: 0.05559425896 | EH41: 0.0370157962 | EI41: 0.03455800736 | EJ41: 0.0210687028 | EK41: 0.02221515111 | EL41: 0.02308591271 | EM41: 0.02103387531 | EN41: 0.03440544215 | EO41: 0.01468970207 | EP41: 0.01034157491 | EQ41: 0.008357818707 | ER41: 0.007181146964 | ES41: 0.01033154994 | ET41: 0.009919263707 | EU41: 0.008733383842 | EV41: 0.009115743679 | EW41: 0.01782439926 | EX41: 0.007542454362 | EY41: 0.004782579718 | EZ41: 0.006745134965 | FA41: 0.004785624339 | FB41: 0.006351859047 | FC41: 0.002393629019 | FD41: 0.00672835242 | FE41: 0.002023670443 | FF41: 0.006363220682 | FG41: 0.005950043339 | FH41: 0.008706799103 | FI41: 0.006732696574 | FJ41: 0.0008218620122 | FK41: 0.004767282355 | FL41: 0.0106970901 | FM41: 0.004776119181 | FN41: 0.00634699508 | FO41: 0.004410281982 | FP41: 0.005155211621 | FQ41: 0.007133695433 | FR41: 0.007546761387 | FS41: 0.003603717334 | FT41: 0.00633838103 | FU41: 0.006737449153 | FV41: 0.009116300622 | FW41: 0.005159332998 | FX41: 0.003969628792 | FY41: 0.005161857805 | FZ41: 0.007934170839 | GA41: 0.008341296069 | GB41: 0.01341426579 | GC41: 0.002386351633 | GD41: 0.002781038472 | GE41: 0.003583964427 | GF41: 0.003192322209 | GG41: 0.004767468002 | GH41: 0.001992741549 | GI41: 0.0011917092
A42: NXZ42 | B42: NX | C42: 6.2 | D42: 6.26 | E42: 5 | F42: 8.173333333 | G42: 6.386666667 | H42: 46.73333333 | I42: 8.05 | J42: 5.953333333 | K42: 48.20666667 | M42: 74.3176 | N42: 38.6667 | O42: 0.038 | P42: 0.1985 | R42: 42.5 | S42: 0.01512859304 | T42: 0.9815787132 | U42: 0.0004449586188 | V42: 0.0003559668951 | W42: 0 | X42: 0 | Y42: 0 | Z42: 0 | AA42: 0 | AB42: 0 | AC42: 0 | AD42: 0 | AE42: 0 | AG42: 0.01103497375 | AH42: 0.9807777877 | AI42: 0 | AJ42: 0.0001779834475 | AK42: 0.0001779834475 | AL42: 0.001067900685 | AM42: 0.001512859304 | AN42: 0 | AO42: 0 | AP42: 0.0005339503426 | AQ42: 0.0001779834475 | AR42: 0 | AS42: 0 | AT42: 0.001690842752 | AU42: 0 | AV42: 0 | AW42: 0 | AX42: 0 | AY42: 0 | AZ42: 0 | BA42: 0 | BB42: 0 | BC42: 0 | BD42: 0 | BE42: 0 | BF42: 0 | BG42: 0 | BH42: 0.0001779834475 | BI42: 0 | BJ42: 0 | BK42: 0 | BL42: 0 | BM42: 0 | BN42: 0 | BO42: 0 | BP42: 0 | BQ42: 0.0004449586188 | BR42: 0 | BS42: 0 | BT42: 0 | BU42: 0 | BV42: 0 | BW42: 0 | BX42: 0 | BY42: 0 | BZ42: 0 | CA42: 0 | CB42: 0 | CC42: 0 | CD42: 0 | CE42: 0 | CG42: 6.2 | CH42: 6.26 | CI42: 5 | CJ42: 8.173333333 | CK42: 6.386666667 | CL42: 46.73333333 | CM42: 8.05 | CN42: 5.953333333 | CO42: 48.20666667 | CQ42: 0.006486338798 | CR42: 0.006242622951 | CS42: 0.2921948998 | CT42: 0.7439489982 | CU42: 0.3592056466 | CV42: 0.00568852459 | CW42: 0.01029016393 | CX42: 0.01810182149 | CY42: 0.01445446266 | CZ42: 0.004001092896 | DA42: 0.0168867031 | DB42: 0.08900546448 | DC42: 0.005971948998 | DD42: 0.005429690346 | DE42: 0.00476848816 | DF42: 0.00397431694 | DG42: 0.004546265938 | DH42: 0.00534863388 | DI42: 0.0128 | DJ42: 0.0035 | DK42: 0.0059 | DL42: 0.0181 | DM42: 0.0064 | DN42: 0.0047 | DO42: 0.0039 | DP42: 0.0044 | DQ42: 0.0044 | DR42: 0.0039 | DS42: 0.0044 | DT42: 0.0047 | DU42: 0.0000 | DV42: 1.6737 | DW42: 1.5499 | DX42: 0.1238 | DY42: 0.0527 | DZ42: 0.0665 | EA42: 0.9260 | EB42: 0.0740 | EC42: 0.0315 | ED42: 0.0397 | EF42: 0.06906277531 | EG42: 0.04690440425 | EH42: 0.05668518116 | EI42: 0.02685002278 | EJ42: 0.03687517122 | EK42: 0.01362269176 | EL42: 0.0248440635 | EM42: 0.01953028552 | EN42: 0.0370971479 | EO42: 0.01358311343 | EP42: 0.01177589088 | EQ42: 0.01059065374 | ER42: 0.008867658378 | ES42: 0.01192589416 | ET42: 0.005989144833 | EU42: 0.007660448925 | EV42: 0.006542959741 | EW42: 0.009222454856 | EX42: 0.007201143124 | EY42: 0.006718879074 | EZ42: 0.005399836194 | FA42: 0.008288772501 | FB42: 0.005161098587 | FC42: 0.007753972094 | FD42: 0.008163276804 | FE42: 0.01038755071 | FF42: 0.007545939383 | FG42: 0.004471928613 | FH42: 0.005175042554 | FI42: 0.00377571623 | FJ42: 0.009891342698 | FK42: 0.004037693781 | FL42: 0.009766269545 | FM42: 0.006855642623 | FN42: 0.004214176507 | FO42: 0.005982524971 | FP42: 0.003328382521 | FQ42: 0.004857289138 | FR42: 0.00993909022 | FS42: 0.00838990147 | FT42: 0.003304720033 | FU42: 0.003736560446 | FV42: 0.006371125003 | FW42: 0.004836021068 | FX42: 0.003509372388 | FY42: 0.00483052799 | FZ42: 0.005017292631 | GA42: 0.006167599434 | GB42: 0.009033718342 | GC42: 0.002797525861 | GD42: 0.001932295705 | GE42: 0.004120935034 | GF42: 0.006764936418 | GG42: 0.005887734169 | GH42: 0.003397961505 | GI42: 0.001364395983
A43: NXZ45 | B43: NX | C43: 5.873333333 | D43: 5.623333333 | E43: 3 | F43: 9.266666667 | G43: 6.306666667 | H43: 50.96666667 | I43: 9.343333333 | J43: 7.046666667 | K43: 54.65666667 | M43: 63.3862 | N43: 60.1667 | O43: 0.7482 | P43: 2.4958 | R43: 369 | S43: 0.6604804522 | T43: 0.3367875648 | U43: 0.0005652378709 | V43: 0.001789919925 | W43: 9.42E-05 | X43: 0 | Y43: 0 | Z43: 0 | AA43: 0 | AB43: 0 | AC43: 0 | AD43: 0 | AE43: 0 | AG43: 0.620536976 | AH43: 0.3035327367 | AI43: 0 | AJ43: 0.0007536504946 | AK43: 0.00725388601 | AL43: 0.00310880829 | AM43: 0.008384361752 | AN43: 0 | AO43: 0.002260951484 | AP43: 0.03212435233 | AQ43: 0.004992934527 | AR43: 0 | AS43: 9.42E-05 | AT43: 0.0001884126236 | AU43: 0 | AV43: 0 | AW43: 0 | AX43: 0 | AY43: 0 | AZ43: 0 | BA43: 0 | BB43: 0 | BC43: 0 | BD43: 0 | BE43: 0 | BF43: 0 | BG43: 0 | BH43: 0 | BI43: 0 | BJ43: 0 | BK43: 0 | BL43: 0 | BM43: 0 | BN43: 0 | BO43: 0 | BP43: 0 | BQ43: 0.004804521903 | BR43: 0 | BS43: 0 | BT43: 0 | BU43: 0 | BV43: 0 | BW43: 0 | BX43: 0 | BY43: 0 | BZ43: 0 | CA43: 0 | CB43: 0 | CC43: 0 | CD43: 0 | CE43: 0 | CG43: 5.873333333 | CH43: 5.623333333 | CI43: 3 | CJ43: 9.266666667 | CK43: 6.306666667 | CL43: 50.96666667 | CM43: 9.343333333 | CN43: 7.046666667 | CO43: 54.65666667 | CQ43: 0.008710384615 | CR43: 0.008548846154 | CS43: 0.8296792308 | CT43: 2.825333846 | CU43: 0.7255882692 | CV43: 0.0065525 | CW43: 0.05259192308 | CX43: 0.056495 | CY43: 0.04327442308 | CZ43: 0.004119615385 | DA43: 0.01570423077 | DB43: 0.09063346154 | DC43: 0.007041153846 | DD43: 0.005849038462 | DE43: 0.005322884615 | DF43: 0.004185384615 | DG43: 0.004972307692 | DH43: 0.006243269231 | DI43: 0.0101 | DJ43: 0.0037 | DK43: 0.0067 | DL43: 0.0261 | DM43: 0.0058 | DN43: 0.0049 | DO43: 0.0041 | DP43: 0.0047 | DQ43: 0.0045 | DR43: 0.0041 | DS43: 0.0046 | DT43: 0.0048 | DU43: 0.0000 | DV43: 4.7848 | DW43: 4.6231 | DX43: 0.1618 | DY43: 0.0836 | DZ43: 0.0733 | EA43: 0.9662 | EB43: 0.0338 | EC43: 0.0175 | ED43: 0.0153 | EF43: 0.06912642248 | EG43: 0.0511419208 | EH43: 0.04694879017 | EI43: 0.02787348694 | EJ43: 0.02918366872 | EK43: 0.02644822713 | EL43: 0.02539778422 | EM43: 0.02687021383 | EN43: 0.02463137668 | EO43: 0.02106904042 | EP43: 0.01339449413 | EQ43: 0.01295207396 | ER43: 0.01361763573 | ES43: 0.0117774037 | ET43: 0.0117061407 | EU43: 0.009570894121 | EV43: 0.009727652368 | EW43: 0.008474704637 | EX43: 0.009082625727 | EY43: 0.009205429854 | EZ43: 0.008471654866 | FA43: 0.009087200384 | FB43: 0.007867291843 | FC43: 0.00836796264 | FD43: 0.006860562319 | FE43: 0.00770575562 | FF43: 0.006883028968 | FG43: 0.007170927384 | FH43: 0.006669951609 | FI43: 0.006393235688 | FJ43: 0.008394495651 | FK43: 0.007388376081 | FL43: 0.006728710537 | FM43: 0.00649957105 | FN43: 0.006090596711 | FO43: 0.005936786576 | FP43: 0.006225803241 | FQ43: 0.005089356776 | FR43: 0.005355195179 | FS43: 0.006197440368 | FT43: 0.004529520414 | FU43: 0.005360481449 | FV43: 0.003763316191 | FW43: 0.005390674186 | FX43: 0.005209111131 | FY43: 0.004596513725 | FZ43: 0.002351577032 | GA43: 0.004385774525 | GB43: 0.002359608096 | GC43: 0.004193638929 | GD43: 0.004176153573 | GE43: 0.003585107885 | GF43: 0.004270899804 | GG43: 0.003577280139 | GH43: 0.002848486444 | GI43: 0.001065895088
A45: A1 | B45: DLY | C45: 6.42 | D45: 5.596666667 | E45: 4 | F45: 8.74 | G45: 5.86 | H45: 44.06 | I45: 13.27333333 | J45: 8.313333333 | K45: 47.45333333 | M45: 1986.254478 | N45: 1980.173077 | O45: 0.7785263485 | P45: 2.340831225 | R45: 4432.902309 | S45: 0.8468437838 | T45: 0.007896945087 | U45: 2.87E-05 | V45: 0.000191035968 | W45: 2.00E-05 | X45: 1.83E-05 | Y45: 0.007739162272 | Z45: 0.0002843483858 | AA45: 0.02483348823 | AB45: 0.0002814641838 | AC45: 0.0002417639915 | AD45: 6.79E-06 | AE45: 0.0003525512803 | AG45: 0.7796330549 | AH45: 0.0005673395001 | AI45: 2.54E-05 | AJ45: 0.0009992911649 | AK45: 0.001895429693 | AL45: 0.01897397737 | AM45: 0.004001745451 | AN45: 6.28E-06 | AO45: 0.0003461042405 | AP45: 0.001114828904 | AQ45: 0.000819452687 | AR45: 0.005301163283 | AS45: 0.00117319158 | AT45: 0.0005043960328 | AU45: 3.00E-05 | AV45: 1.78E-05 | AW45: 2.71E-06 | AX45: 6.79E-07 | AY45: 0.002222701792 | AZ45: 2.83E-05 | BA45: 0.006567327963 | BB45: 0.0003949660156 | BC45: 0.0004482389232 | BD45: 0.004968462099 | BE45: 0.0004848852546 | BF45: 0.0002270036636 | BG45: 0.0008946115981 | BH45: 0.0006212910435 | BI45: 6.26E-05 | BJ45: 0.01516241959 | BK45: 9.33E-05 | BL45: 2.88E-06 | BM45: 0.0002806158891 | BN45: 7.92E-05 | BO45: 7.48E-05 | BP45: 6.68E-05 | BQ45: 0.0004646958405 | BR45: 2.12E-05 | BS45: 4.33E-05 | BT45: 2.60E-05 | BU45: 0.0004629992511 | BV45: 0.0006195944541 | BW45: 0.0001922235806 | BX45: 0.0001606670175 | BY45: 5.09E-07 | BZ45: 4.41E-05 | CA45: 4.41E-06 | CB45: 0.0001701679182 | CC45: 1.65E-05 | CD45: 0.000402431009 | CE45: 2.02E-05 | CG45: 6.42 | CH45: 5.596666667 | CI45: 4 | CJ45: 8.74 | CK45: 5.86 | CL45: 44.06 | CM45: 13.27333333 | CN45: 8.313333333 | CO45: 47.45333333 | CQ45: 0.0011105 | CR45: 0.001961 | CS45: 0.0097565 | CT45: 0.007604 | CU45: 0.113028 | CV45: 0.00452 | CW45: 0.0054925 | CX45: 2.3090625 | CY45: 0.1990745 | CZ45: 0.0140795 | DA45: 0.0131755 | DB45: 1.183558 | DC45: 3.9489515 | DD45: 0.915165 | DE45: 0.0124265 | DF45: 0.022527 | DG45: 0.0242135 | DH45: 0.063117 | DI45: 0.0283155 | DJ45: 0.0088025 | DK45: 0.0192365 | DL45: 0.1188565 | DM45: 0.0123595 | DN45: 0.012007 | DO45: 0.0082335 | DP45: 0.009209 | DQ45: 0 | DR45: 0.009101 | DS45: 0.0095875 | DT45: 0.010726 | DU45: 0.010235 | DV45: 9.1055 | DW45: 3.7056 | DX45: 5.3999 | DY45: 4.2483 | DZ45: 1.1396 | EA45: 0.4070 | EB45: 0.5930 | EC45: 0.4666 | ED45: 0.1252 | EF45: 0.04346051307 | EG45: 0.03414233503 | EH45: 0.02759282126 | EI45: 0.01839662799 | EJ45: 0.02180253124 | EK45: 0.02101192058 | EL45: 0.01826073118 | EM45: 0.0221840942 | EN45: 0.01028879684 | EO45: 0.01777754252 | EP45: 0.008513655339 | EQ45: 0.01150864463 | ER45: 0.0126740319 | ES45: 0.01109111398 | ET45: 0.0101286388 | EU45: 0.005774342071 | EV45: 0.009460521891 | EW45: 0.005854081774 | EX45: 0.007477717843 | EY45: 0.006255664488 | EZ45: 0.008619861837 | FA45: 0.003953222994 | FB45: 0.006543575711 | FC45: 0.006944310131 | FD45: 0.007004199737 | FE45: 0.006356441899 | FF45: 0.006343038843 | FG45: 0.007650430645 | FH45: 0.0008684841211 | FI45: 0.003518556786 | FJ45: 0.009772355026 | FK45: 0.004902464771 | FL45: 0.004046535412 | FM45: 0.004613026617 | FN45: 0.005029539318 | FO45: 0.007072232973 | FP45: 0.004166144965 | FQ45: 0.002151445036 | FR45: 0.002389306872 | FS45: 0.003582857525 | FT45: 0.002149069811 | FU45: 0.004382629775 | FV45: 0.001400364902 | FW45: 0.003144628479 | FX45: 0.004629992511 | FY45: 0.002873513491 | FZ45: 0.0004068421415 | GA45: 0.002153480943 | GB45: 5.56E-05 | GC45: 0.004187352333 | GD45: 0.004169877462 | GE45: 0.002036076956 | GF45: 0.0008849410384 | GG45: 0.001985179274 | GH45: 0.001229518348 | GI45: 0.0005858323247
A46: A2 | B46: DLY | C46: 6.683333333 | D46: 5.683333333 | E46: 3 | F46: 11.98666667 | G46: 8.343333333 | H46: 42.05666667 | I46: 12.21666667 | J46: 8.126666667 | K46: 49.72 | M46: 3351.038294 | N46: 3346.751479 | O46: 0.8984907625 | P46: 3.65189671 | R46: 450.994995 | S46: 0.7358172621 | T46: 0.01386141072 | U46: 0.0002443230015 | V46: 0.001631541969 | W46: 5.85E-05 | X46: 0.0001881417766 | Y46: 0.001851367343 | Z46: 4.80E-05 | AA46: 5.62E-05 | AB46: 0.00192518686 | AC46: 0.0002795995847 | AD46: 0.0002665341835 | AE46: 0.0003981681001 | AG46: 0.2233419271 | AH46: 0.001060583939 | AI46: 0.0001300007415 | AJ46: 0.004810680704 | AK46: 0.0169347197 | AL46: 0.2476667643 | AM46: 0.02194530104 | AN46: 0.003680196869 | AO46: 0.01858749295 | AP46: 0.0005059576596 | AQ46: 0.009526963885 | AR46: 0.01217826041 | AS46: 0.0004076405159 | AT46: 0.002141419249 | AU46: 0.0006284457954 | AV46: 0.000180955806 | AW46: 1.86E-05 | AX46: 6.53E-07 | AY46: 0.001348349399 | AZ46: 0.0005830435264 | BA46: 0.03048550051 | BB46: 0.004628418358 | BC46: 0.004561784812 | BD46: 0.0001156288002 | BE46: 0.0001319605516 | BF46: 4.61E-05 | BG46: 0.0002217851846 | BH46: 0.004800555018 | BI46: 0.000646084087 | BJ46: 1.21E-05 | BK46: 0.001558049087 | BL46: 0 | BM46: 0.001921920509 | BN46: 0.0003687709475 | BO46: 0.0007437479606 | BP46: 0.0008358590387 | BQ46: 0.0001205283256 | BR46: 0.000340027065 | BS46: 0.0004896259082 | BT46: 0.000419399377 | BU46: 0.000964226605 | BV46: 0.001233047234 | BW46: 6.37E-05 | BX46: 9.93E-05 | BY46: 0 | BZ46: 0.000215252484 | CA46: 4.41E-05 | CB46: 9.18E-05 | CC46: 0.0003485195757 | CD46: 0.0002257048049 | CE46: 0.0003978414651 | CG46: 6.683333333 | CH46: 5.683333333 | CI46: 3 | CJ46: 11.98666667 | CK46: 8.343333333 | CL46: 42.05666667 | CM46: 12.21666667 | CN46: 8.126666667 | CO46: 49.72 | CQ46: 0.000964035964 | CR46: 0.001154345654 | CS46: 0.001869130869 | CT46: 0.001966533467 | CU46: 0.01313936064 | CV46: 0.003952547453 | CW46: 0.004728271728 | CX46: 0.4533096903 | CY46: 0.03743006993 | CZ46: 0.009637862138 | DA46: 0.009566933067 | DB46: 0.2162232767 | DC46: 0.4546183816 | DD46: 0.5095824176 | DE46: 0.01090809191 | DF46: 0.01242007992 | DG46: 0.007940559441 | DH46: 0.01356143856 | DI46: 0.01467582418 | DJ46: 0.008551948052 | DK46: 0.01449350649 | DL46: 0.08444255744 | DM46: 0.01087462537 | DN46: 0.01177172827 | DO46: 0.007797702298 | DP46: 0.008772727273 | DQ46: 0 | DR46: 0.009055944056 | DS46: 0.00942957043 | DT46: 0.01013686314 | DU46: 0.01001748252 | DV46: 1.9630 | DW46: 0.7458 | DX46: 1.2172 | DY46: 0.5379 | DZ46: 0.6675 | EA46: 0.3799 | EB46: 0.6201 | EC46: 0.2740 | ED46: 0.3401 | EF46: 0.03249561247 | EG46: 0.02408247404 | EH46: 0.01955465927 | EI46: 0.01638303314 | EJ46: 0.0158754423 | EK46: 0.01238273394 | EL46: 0.0125810014 | EM46: 0.01541423364 | EN46: 0.006891999108 | EO46: 0.01382090797 | EP46: 0.005433900339 | EQ46: 0.008633290446 | ER46: 0.007570093427 | ES46: 0.00765926479 | ET46: 0.006586595356 | EU46: 0.004858042783 | EV46: 0.00799831195 | EW46: 0.003775900933 | EX46: 0.005242818847 | EY46: 0.003894796083 | EZ46: 0.008069845021 | FA46: 0.002222424736 | FB46: 0.004923043154 | FC46: 0.005271889365 | FD46: 0.006559484648 | FE46: 0.004338693088 | FF46: 0.003786026619 | FG46: 0.007057603067 | FH46: 0.002767251964 | FI46: 0.002730015571 | FJ46: 0.005206562359 | FK46: 0.002706497849 | FL46: 0.002444863191 | FM46: 0.003615523134 | FN46: 0.003094213628 | FO46: 0.004044721562 | FP46: 0.002690819367 | FQ46: 0.001446339908 | FR46: 0.002436697315 | FS46: 0.002687553017 | FT46: 0.001353248924 | FU46: 0.00317946537 | FV46: 0.002343279697 | FW46: 0.002457601957 | FX46: 0.003208535888 | FY46: 0.002278932596 | FZ46: 0.001890236912 | GA46: 0.0017017685 | GB46: 0.001355208734 | GC46: 0.002745040782 | GD46: 0.003353888476 | GE46: 0.002305390033 | GF46: 0.001617823298 | GG46: 0.002311922734 | GH46: 0.0007519138363 | GI46: 0.0003223887734
A47: A3 | B47: DLY | C47: 7.14 | D47: 5.59 | E47: 5 | F47: 11.09666667 | G47: 8.436666667 | H47: 44.26333333 | I47: 15.30333333 | J47: 10.29333333 | K47: 44.76 | M47: 2035.92455 | N47: 2030.788462 | O47: 0.8930162238 | P47: 3.488420255 | R47: 379.7703207 | S47: 0.3310043248 | T47: 0.02418680772 | U47: 8.45E-05 | V47: 0.000871590819 | W47: 0.0001124423652 | X47: 0.0001358407764 | Y47: 0.005927597516 | Z47: 0.0001312910853 | AA47: 6.24E-05 | AB47: 0.003195183047 | AC47: 0.000246333274 | AD47: 0.0002515329209 | AE47: 0.0008085450998 | AG47: 0.002248197347 | AH47: 0.005083304844 | AI47: 2.79E-05 | AJ47: 0.001236866017 | AK47: 0.005393333793 | AL47: 0.07883379719 | AM47: 0.0250986958 | AN47: 2.60E-06 | AO47: 0.0130972607 | AP47: 0.0003353772279 | AQ47: 0.007408846939 | AR47: 0.04124489947 | AS47: 0.0005862601929 | AT47: 0.004237712259 | AU47: 0.0001988864956 | AV47: 0.0001923869369 | AW47: 6.50E-06 | AX47: 0 | AY47: 0.0005693613404 | AZ47: 0.0003080790814 | BA47: 0.0643917778 | BB47: 0.003045043242 | BC47: 0.002879304495 | BD47: 9.23E-05 | BE47: 0.0001423403351 | BF47: 6.63E-05 | BG47: 0.0001442902027 | BH47: 0.0005043657536 | BI47: 0.0002716815528 | BJ47: 0 | BK47: 0.0007987957618 | BL47: 1.30E-06 | BM47: 0.003195183047 | BN47: 0.0005732610756 | BO47: 0.0003223781105 | BP47: 0.0002788310674 | BQ47: 3.90E-06 | BR47: 0.0004042725499 | BS47: 0.000250882965 | BT47: 0.0004562690193 | BU47: 0.005399833351 | BV47: 0.005531774393 | BW47: 0.0001195918797 | BX47: 0.0001592391877 | BY47: 0 | BZ47: 0.0001247915267 | CA47: 1.62E-05 | CB47: 0.0002547827003 | CC47: 6.43E-05 | CD47: 0.001056828241 | CE47: 0.0004010227706 | CG47: 7.14 | CH47: 5.59 | CI47: 5 | CJ47: 11.09666667 | CK47: 8.436666667 | CL47: 44.26333333 | CM47: 15.30333333 | CN47: 10.29333333 | CO47: 44.76 | CQ47: 0.001033763654 | CR47: 0.001557100298 | CS47: 0.006395233366 | CT47: 0.005609731877 | CU47: 0.07514399206 | CV47: 0.00452979146 | CW47: 0.005292949355 | CX47: 1.587984111 | CY47: 0.1627596822 | CZ47: 0.01186842105 | DA47: 0.01175968222 | DB47: 0.7329935452 | DC47: 2.090133565 | DD47: 0.759336147 | DE47: 0.0123877855 | DF47: 0.01802681231 | DG47: 0.01455759682 | DH47: 0.04041906653 | DI47: 0.02225322741 | DJ47: 0.00868917577 | DK47: 0.0193123138 | DL47: 0.1154041708 | DM47: 0.01159831182 | DN47: 0.01227110228 | DO47: 0.00814448858 | DP47: 0.008946375372 | DQ47: 0 | DR47: 0.009020854022 | DS47: 0.009492552135 | DT47: 0.01007646475 | DU47: 0.009982621648 | DV47: 5.7870 | DW47: 2.4778 | DX47: 3.3092 | DY47: 2.3285 | DZ47: 0.9684 | EA47: 0.4282 | EB47: 0.5718 | EC47: 0.4024 | ED47: 0.1673 | EF47: 0.008326584625 | EG47: 0.006080337145 | EH47: 0.004840221349 | EI47: 0.004357954095 | EJ47: 0.00377039399 | EK47: 0.002984597346 | EL47: 0.003120438122 | EM47: 0.005131401578 | EN47: 0.001597591524 | EO47: 0.004956563449 | EP47: 0.001205018179 | EQ47: 0.002149404055 | ER47: 0.001629439361 | ES47: 0.001970666192 | ET47: 0.001532595937 | EU47: 0.001453301321 | EV47: 0.003160735386 | EW47: 0.001089326035 | EX47: 0.001308361162 | EY47: 0.0008312935552 | EZ47: 0.00313018746 | FA47: 0.0005336137676 | FB47: 0.001470850129 | FC47: 0.001301211648 | FD47: 0.0017113338 | FE47: 0.0007526488951 | FF47: 0.0008631413927 | FG47: 0.003060642182 | FH47: 0.001070477315 | FI47: 0.001070477315 | FJ47: 0.0007935961148 | FK47: 0.0007480992041 | FL47: 0.0005680614286 | FM47: 0.0009346365382 | FN47: 0.0007260007046 | FO47: 0.0007818969092 | FP47: 0.0005518125319 | FQ47: 0.0004575689311 | FR47: 0.0005830104136 | FS47: 0.0007078019402 | FT47: 0.0004114220644 | FU47: 0.0007883964679 | FV47: 0.0006720543675 | FW47: 0.00064020653 | FX47: 0.001196568753 | FY47: 0.0004543191517 | FZ47: 0.0007052021168 | GA47: 0.000384123918 | GB47: 0.0008949892302 | GC47: 0.000684403529 | GD47: 0.001150421886 | GE47: 0.0006532056473 | GF47: 0.000521914562 | GG47: 0.0005830104136 | GH47: 0.0002157853482 | GI47: 0.000162488967
A48: A4 | B48: DLY | C48: 6.706666667 | D48: 5.59 | E48: 4 | F48: 7.1 | G48: 7.86 | H48: 45.49333333 | I48: 8.993333333 | J48: 7.17 | K48: 53.24 | M48: 7646.328965 | N48: 7635.583333 | O48: 0.9829169177 | P48: 5.51440322 | R48: 56.40435835 | S48: 0.5696402459 | T48: 0.06117820873 | U48: 0.0014234026 | V48: 0.01009922394 | W48: 0.0003602303503 | X48: 0.0001919768635 | Y48: 0.06556174127 | Z48: 0.0006481956456 | AA48: 3.70E-05 | AB48: 0.00170662322 | AC48: 0.0001573042361 | AD48: 0.001937834899 | AE48: 0.0003525658748 | AG48: 0.03969103404 | AH48: 0.005139395824 | AI48: 8.83E-05 | AJ48: 0.07060350628 | AK48: 0.01072971829 | AL48: 0.1598597912 | AM48: 0.02278977055 | AN48: 0.01085563468 | AO48: 0.02096891015 | AP48: 0.0024916845 | AQ48: 0.02079043736 | AR48: 0.01263014325 | AS48: 0.00217470369 | AT48: 0.0003178932474 | AU48: 0.001056785187 | AV48: 0.00618523176 | AW48: 9.95E-05 | AX48: 0.0200212525 | AY48: 0.004421854924 | AZ48: 0.003150646909 | BA48: 0.01313326132 | BB48: 0.005555284866 | BC48: 0.005229544655 | BD48: 0.03403465109 | BE48: 0.003977132855 | BF48: 0.0006328666945 | BG48: 0.000816996595 | BH48: 0.001903527246 | BI48: 0.002834031074 | BJ48: 0 | BK48: 0.002169411553 | BL48: 0.01401905571 | BM48: 0.001693666607 | BN48: 0.00291651543 | BO48: 0.003903772875 | BP48: 0.001368291371 | BQ48: 0.003802492305 | BR48: 0.001317924818 | BS48: 0.002820344511 | BT48: 0.002168681603 | BU48: 0.0002948998207 | BV48: 0.0002857754451 | BW48: 0.000128106234 | BX48: 0.0001438001601 | BY48: 0.01105746587 | BZ48: 0.001162810432 | CA48: 0.002787496759 | CB48: 5.57E-05 | CC48: 0.000568266115 | CD48: 0.0005817701909 | CE48: 0.0007012995118 | CG48: 6.706666667 | CH48: 5.59 | CI48: 4 | CJ48: 7.1 | CK48: 7.86 | CL48: 45.49333333 | CM48: 8.993333333 | CN48: 7.17 | CO48: 53.24 | CQ48: 0.001073 | CR48: 0.0013565 | CS48: 0.004385 | CT48: 0.003896 | CU48: 0.045062 | CV48: 0.00414 | CW48: 0.0060705 | CX48: 1.039805 | CY48: 0.087578 | CZ48: 0.0158465 | DA48: 0.0130985 | DB48: 0.528692 | DC48: 1.355367 | DD48: 0.6263815 | DE48: 0.012508 | DF48: 0.018062 | DG48: 0.009902 | DH48: 0.024358 | DI48: 0.0214525 | DJ48: 0.008693 | DK48: 0.016337 | DL48: 0.084423 | DM48: 0.0116525 | DN48: 0.011822 | DO48: 0.0078085 | DP48: 0.0088755 | DQ48: 0 | DR48: 0.0090385 | DS48: 0.0094265 | DT48: 0.0102025 | DU48: 0.0100565 | DV48: 4.0074 | DW48: 1.6911 | DX48: 2.3163 | DY48: 1.5035 | DZ48: 0.8010 | EA48: 0.4220 | EB48: 0.5780 | EC48: 0.3752 | ED48: 0.1999 | EF48: 0.03771213945 | EG48: 0.02877335361 | EH48: 0.02283174268 | EI48: 0.01977069714 | EJ48: 0.01609959584 | EK48: 0.01187756475 | EL48: 0.01444279172 | EM48: 0.01969843209 | EN48: 0.006255489452 | EO48: 0.01882468187 | EP48: 0.006035592 | EQ48: 0.006684700083 | ER48: 0.006763352201 | ES48: 0.00768418419 | ET48: 0.006349835497 | EU48: 0.00511403006 | EV48: 0.01078282216 | EW48: 0.004207979558 | EX48: 0.005101620909 | EY48: 0.003609055541 | EZ48: 0.01046784871 | FA48: 0.003146632184 | FB48: 0.00469065903 | FC48: 0.004110531227 | FD48: 0.005629192308 | FE48: 0.003255029766 | FF48: 0.004529340069 | FG48: 0.01110783242 | FH48: 0.002775452583 | FI48: 0.003378391325 | FJ48: 0.003162873572 | FK48: 0.002970531734 | FL48: 0.002691873302 | FM48: 0.002776912483 | FN48: 0.002991517798 | FO48: 0.003855048709 | FP48: 0.002414309795 | FQ48: 0.00281012521 | FR48: 0.003275468368 | FS48: 0.003393355301 | FT48: 0.002455369485 | FU48: 0.003333499397 | FV48: 0.003730774712 | FW48: 0.002465406298 | FX48: 0.004089910138 | FY48: 0.002381279555 | FZ48: 0.003104660056 | GA48: 0.002819067098 | GB48: 0.00120332266 | GC48: 0.002084372372 | GD48: 0.003892823624 | GE48: 0.002759758657 | GF48: 0.001911921672 | GG48: 0.002347519365 | GH48: 0.001302413379 | GI48: 0.0006193626186
A49: A5 | B49: DLY | C49: 6.816666667 | D49: 5.876666667 | E49: 5 | F49: 7.61 | G49: 7.913333333 | H49: 46.61333333 | I49: 14.72 | J49: 9.583333333 | K49: 50.86 | M49: 6567.664992 | N49: 6554.034483 | O49: 0.9452297805 | P49: 4.253837331 | R49: 84.45898056 | S49: 0.5108246908 | T49: 0.0706381697 | U49: 0.000842873361 | V49: 0.006048198634 | W49: 0.0003600624066 | X49: 8.04E-05 | Y49: 0.01348361323 | Z49: 0.01383659399 | AA49: 0.005782400817 | AB49: 0.0004533827769 | AC49: 0.004022690226 | AD49: 0.0002129215193 | AE49: 0.0001060673348 | AG49: 0.2158537933 | AH49: 0.005178572384 | AI49: 0.0006312108011 | AJ49: 0.03434661735 | AK49: 0.008566117561 | AL49: 0.1220465204 | AM49: 0.01556357163 | AN49: 0.00143238113 | AO49: 0.004182420708 | AP49: 0.01871994038 | AQ49: 0.004845892346 | AR49: 0.005390549684 | AS49: 0.01957666229 | AT49: 0.0002480150144 | AU49: 0.0007399534248 | AV49: 0.0005097212129 | AW49: 8.81E-06 | AX49: 3.02E-05 | AY49: 0.001965235723 | AZ49: 0.0003076582189 | BA49: 0.008153336227 | BB49: 0.002523741615 | BC49: 0.002162262879 | BD49: 0.01014516747 | BE49: 0.01046919216 | BF49: 0.01257574608 | BG49: 0.007340835263 | BH49: 0.002978540721 | BI49: 0.0002155968082 | BJ49: 0.002431680204 | BK49: 0.0005038985253 | BL49: 0.000154852014 | BM49: 0.0004280462177 | BN49: 0.0005501652856 | BO49: 0.0003172577849 | BP49: 0.000384926856 | BQ49: 0.0008627019725 | BR49: 0.000131403894 | BS49: 0.0003690324928 | BT49: 0.0002228358251 | BU49: 0.0001979713757 | BV49: 0.000443783211 | BW49: 0.001729810303 | BX49: 0.002075394676 | BY49: 0.0005926551675 | BZ49: 0.0001753101053 | CA49: 3.68E-05 | CB49: 0.001378560613 | CC49: 0.0001683858283 | CD49: 0.000216068918 | CE49: 0.0001957681966 | CG49: 6.816666667 | CH49: 5.876666667 | CI49: 5 | CJ49: 7.61 | CK49: 7.913333333 | CL49: 46.61333333 | CM49: 14.72 | CN49: 9.583333333 | CO49: 50.86 | CQ49: 0.0009501972387 | CR49: 0.001268737673 | CS49: 0.003285996055 | CT49: 0.003081360947 | CU49: 0.02904635108 | CV49: 0.004010848126 | CW49: 0.004457100592 | CX49: 0.6497830375 | CY49: 0.06008382643 | CZ49: 0.009682938856 | DA49: 0.01017011834 | DB49: 0.2986272189 | DC49: 0.9435601578 | DD49: 0.1780281065 | DE49: 0.009925542406 | DF49: 0.01087968442 | DG49: 0.009448717949 | DH49: 0.02097978304 | DI49: 0.01339891519 | DJ49: 0.00825 | DK49: 0.01130029586 | DL49: 0.03239349112 | DM49: 0.0101617357 | DN49: 0.0108377712 | DO49: 0.007716962525 | DP49: 0.008755424063 | DQ49: 0 | DR49: 0.008915680473 | DS49: 0.009227317554 | DT49: 0.009019230769 | DU49: 0.009842209073 | DV49: 2.3871 | DW49: 1.0437 | DX49: 1.3433 | DY49: 1.0574 | DZ49: 0.2751 | EA49: 0.4372 | EB49: 0.5628 | EC49: 0.4430 | ED49: 0.1152 | EF49: 0.03059208549 | EG49: 0.02349328518 | EH49: 0.01831109329 | EI49: 0.01538165199 | EJ49: 0.01401678256 | EK49: 0.01317359446 | EL49: 0.01249957904 | EM49: 0.01393290438 | EN49: 0.005254267322 | EO49: 0.01190283225 | EP49: 0.005487174823 | EQ49: 0.007716319923 | ER49: 0.007402209537 | ES49: 0.007117369958 | ET49: 0.006410778959 | EU49: 0.00422648429 | EV49: 0.005964949939 | EW49: 0.004064550629 | EX49: 0.004889169077 | EY49: 0.003539564532 | EZ49: 0.005543198519 | FA49: 0.002445371388 | FB49: 0.004001445285 | FC49: 0.004529264041 | FD49: 0.00542328263 | FE49: 0.004244896572 | FF49: 0.003721798915 | FG49: 0.00781813827 | FH49: 0.001929512748 | FI49: 0.002281077178 | FJ49: 0.005132777734 | FK49: 0.002479363294 | FL49: 0.002244567354 | FM49: 0.002604157651 | FN49: 0.0026290221 | FO49: 0.004020487047 | FP49: 0.002170603485 | FQ49: 0.001897094542 | FR49: 0.002341507233 | FS49: 0.002711011835 | FT49: 0.001644987909 | FU49: 0.003048255602 | FV49: 0.00222977458 | FW49: 0.002060759272 | FX49: 0.002498090316 | FY49: 0.002001273437 | FZ49: 0.001705890073 | GA49: 0.001981444826 | GB49: 0.000378002579 | GC49: 0.002338674574 | GD49: 0.002636890597 | GE49: 0.002123707245 | GF49: 0.001209545305 | GG49: 0.002083735282 | GH49: 0.000957753412 | GI49: 0.0004584186147
A50: A6 | B50: DLY | C50: 6.32 | D50: 5.96 | E50: 3 | F50: 7.67 | G50: 7.523333333 | H50: 46.59 | I50: 12.58666667 | J50: 9.353333333 | K50: 51.36333333 | M50: 7776.438775 | N50: 7746.405172 | O50: 0.9695364138 | P50: 5.175721095 | R50: 154.4528626 | S50: 0.5960943813 | T50: 0.07137117822 | U50: 0.001737185959 | V50: 0.003859393546 | W50: 0.0004763707271 | X50: 0.000213618527 | Y50: 0.03056241537 | Z50: 0.002641640873 | AA50: 0.0011148261 | AB50: 0.00185253714 | AC50: 0.0004777826143 | AD50: 0.002883214765 | AE50: 0.0003576310171 | AG50: 0.04730485566 | AH50: 0.02060042196 | AI50: 0.0003816330988 | AJ50: 0.02424520865 | AK50: 0.01381559822 | AL50: 0.2143148698 | AM50: 0.03493178255 | AN50: 0.002310553334 | AO50: 0.0120178423 | AP50: 0.003609207142 | AQ50: 0.01877456948 | AR50: 0.006531107616 | AS50: 0.006495245682 | AT50: 5.90E-05 | AU50: 0.0008095760964 | AV50: 0.0005160447563 | AW50: 4.73E-05 | AX50: 0.00303329837 | AY50: 0.004352000976 | AZ50: 0.003734865099 | BA50: 0.01411562424 | BB50: 0.008268152386 | BC50: 0.008031520098 | BD50: 0.02412392755 | BE50: 0.006819979728 | BF50: 0.002581635668 | BG50: 0.003018332366 | BH50: 0.0066163856 | BI50: 0.001613363455 | BJ50: 0.0006507387911 | BK50: 0.00175031651 | BL50: 0.005166518677 | BM50: 0.001849148611 | BN50: 0.004658945244 | BO50: 0.002463178336 | BP50: 0.001246131606 | BQ50: 0.002819256277 | BR50: 0.001040137269 | BS50: 0.001267733479 | BT50: 0.00140948695 | BU50: 3.54E-05 | BV50: 5.28E-05 | BW50: 0.0003844568731 | BX50: 0.0003449240327 | BY50: 0.0008015283396 | BZ50: 0.0009053020457 | CA50: 0.003207807623 | CB50: 0.0002050060153 | CC50: 0.000770043256 | CD50: 0.0009132086138 | CE50: 0.0008129646256 | CG50: 6.32 | CH50: 5.96 | CI50: 3 | CJ50: 7.67 | CK50: 7.523333333 | CL50: 46.59 | CM50: 12.58666667 | CN50: 9.353333333 | CO50: 51.36333333 | CQ50: 0.001076923077 | CR50: 0.002080630213 | CS50: 0.01187303058 | CT50: 0.009010194625 | CU50: 0.1388809082 | CV50: 0.004591751622 | CW50: 0.005646431881 | CX50: 2.741302595 | CY50: 0.2602367933 | CZ50: 0.0148897127 | DA50: 0.01488832252 | DB50: 1.413595459 | DC50: 4.851367933 | DD50: 0.9800968489 | DE50: 0.01395875811 | DF50: 0.02583317887 | DG50: 0.02055885079 | DH50: 0.07597034291 | DI50: 0.03250092678 | DJ50: 0.008521316033 | DK50: 0.0181978684 | DL50: 0.1256700649 | DM50: 0.0122265987 | DN50: 0.0114884152 | DO50: 0.00772381835 | DP50: 0.008867006487 | DQ50: 0 | DR50: 0.008406858202 | DS50: 0.008933271548 | DT50: 0.009579703429 | DU50: 0.009338739574 | DV50: 10.8473 | DW50: 4.3925 | DX50: 6.4548 | DY50: 5.2253 | DZ50: 1.2181 | EA50: 0.4049 | EB50: 0.5951 | EC50: 0.4817 | ED50: 0.1123 | EF50: 0.0321598245 | EG50: 0.02418280324 | EH50: 0.02011219138 | EI50: 0.01685595602 | EJ50: 0.01462969235 | EK50: 0.01009626388 | EL50: 0.01279889828 | EM50: 0.01851704127 | EN50: 0.005834200114 | EO50: 0.01810462903 | EP50: 0.005169766018 | EQ50: 0.006848782226 | ER50: 0.006220492441 | ES50: 0.006812496726 | ET50: 0.005570741971 | EU50: 0.004834584007 | EV50: 0.01034433245 | EW50: 0.003668365214 | EX50: 0.004618988837 | EY50: 0.003563603187 | EZ50: 0.01020003758 | FA50: 0.002421104099 | FB50: 0.004207141353 | FC50: 0.00429213696 | FD50: 0.005663361768 | FE50: 0.003180840578 | FF50: 0.00367429514 | FG50: 0.01121758466 | FH50: 0.002906793281 | FI50: 0.003035275012 | FJ50: 0.0032443755 | FK50: 0.002690915734 | FL50: 0.002433811083 | FM50: 0.002844387869 | FN50: 0.002508358725 | FO50: 0.003663000043 | FP50: 0.002015468918 | FQ50: 0.001726879183 | FR50: 0.002805137406 | FS50: 0.002758827507 | FT50: 0.001504648144 | FU50: 0.002949573462 | FV50: 0.002911734886 | FW50: 0.002264525813 | FX50: 0.003983780805 | FY50: 0.002054437004 | FZ50: 0.002453153937 | GA50: 0.002139856177 | GB50: 0.001431230012 | GC50: 0.002113736264 | GD50: 0.003730770626 | GE50: 0.00238241839 | GF50: 0.00173055009 | GG50: 0.002419551023 | GH50: 0.0009411639795 | GI50: 0.0003772562486
A51: A7 | B51: DLY | C51: 6.143333333 | D51: 4.163333333 | E51: 2 | F51: 9.44 | G51: 7.023333333 | H51: 44.33333333 | I51: 10.94666667 | J51: 7.733333333 | K51: 50.50666667 | M51: 3008.017362 | N51: 2994.30566 | O51: 0.9298241759 | P51: 4.002585052 | R51: 390.2715334 | S51: 0.5639595209 | T51: 0.01525417201 | U51: 0.0002628874869 | V51: 0.001445043957 | W51: 0.0001490253907 | X51: 0.0002305149302 | Y51: 0.004178850562 | Z51: 0.0001456765055 | AA51: 0.01008572588 | AB51: 0.002814737997 | AC51: 0.0001908864555 | AD51: 0.0003242837153 | AE51: 0.0004320061887 | AG51: 0.01273915924 | AH51: 0.002539013117 | AI51: 8.99E-05 | AJ51: 0.0006117296936 | AK51: 0.01285748652 | AL51: 0.2189718811 | AM51: 0.0535358367 | AN51: 2.96E-05 | AO51: 0.02920786028 | AP51: 0.0005341471869 | AQ51: 0.01264371601 | AR51: 0.02545487628 | AS51: 0.0007601969368 | AT51: 0.002428499906 | AU51: 0.0003443770264 | AV51: 0.0001579557512 | AW51: 1.62E-05 | AX51: 0 | AY51: 0.0009940607521 | AZ51: 0.0006736840695 | BA51: 0.04955401222 | BB51: 0.005949852677 | BC51: 0.004773277682 | BD51: 1.40E-05 | BE51: 0.0001406531777 | BF51: 8.76E-05 | BG51: 0.0001836305376 | BH51: 0.002375475891 | BI51: 0.0004141454678 | BJ51: 0.00627469454 | BK51: 0.001704582559 | BL51: 0 | BM51: 0.002799668014 | BN51: 0.0005319145967 | BO51: 0.0006708933319 | BP51: 0.0005838223171 | BQ51: 1.06E-05 | BR51: 0.0003739588455 | BS51: 0.0004610298603 | BT51: 0.0004749835486 | BU51: 0.003691587768 | BV51: 0.001255273796 | BW51: 0.000145118358 | BX51: 0.0001607464888 | BY51: 0 | BZ51: 0.0002427941758 | CA51: 1.84E-05 | CB51: 0.0003505166493 | CC51: 0.0002550734215 | CD51: 0.002272776745 | CE51: 0.0004621461554 | CG51: 6.143333333 | CH51: 4.163333333 | CI51: 2 | CJ51: 9.44 | CK51: 7.023333333 | CL51: 44.33333333 | CM51: 10.94666667 | CN51: 7.733333333 | CO51: 50.50666667 | CQ51: 0.0009483101392 | CR51: 0.001159045726 | CS51: 0.0020472167 | CT51: 0.00215805169 | CU51: 0.01585984095 | CV51: 0.003923459245 | CW51: 0.004502982107 | CX51: 0.4795740557 | CY51: 0.03642097416 | CZ51: 0.009201789264 | DA51: 0.009336481113 | DB51: 0.2397460239 | DC51: 0.5122847913 | DD51: 0.433083002 | DE51: 0.01101043738 | DF51: 0.01167147117 | DG51: 0.007960735586 | DH51: 0.01435039761 | DI51: 0.01590506958 | DJ51: 0.008681908549 | DK51: 0.0180084493 | DL51: 0.1101461233 | DM51: 0.01080715706 | DN51: 0.01186232604 | DO51: 0.00779473161 | DP51: 0.008786282306 | DQ51: 0 | DR51: 0.009023359841 | DS51: 0.009365805169 | DT51: 0.01050596421 | DU51: 0.009958747515 | DV51: 2.0261 | DW51: 0.7980 | DX51: 1.2281 | DY51: 0.5951 | DZ51: 0.6211 | EA51: 0.3939 | EB51: 0.6061 | EC51: 0.2937 | ED51: 0.3066 | EF51: 0.02171863671 | EG51: 0.01587594836 | EH51: 0.01208612663 | EI51: 0.01145039659 | EJ51: 0.009586741987 | EK51: 0.00692102938 | EL51: 0.00786597315 | EM51: 0.01171440037 | EN51: 0.004080058449 | EO51: 0.01086545798 | EP51: 0.003112230631 | EQ51: 0.005568637914 | ER51: 0.004070011794 | ES51: 0.005149469118 | ET51: 0.003656424473 | EU51: 0.003737355865 | EV51: 0.006586140862 | EW51: 0.003059764763 | EX51: 0.003405258085 | EY51: 0.0023168704 | EZ51: 0.006345021129 | FA51: 0.001413229548 | FB51: 0.003694378506 | FC51: 0.003336047791 | FD51: 0.004442296197 | FE51: 0.002069611044 | FF51: 0.002415104365 | FG51: 0.006173111689 | FH51: 0.002722085507 | FI51: 0.001964679308 | FJ51: 0.002120402469 | FK51: 0.001894910867 | FL51: 0.001438904334 | FM51: 0.00259482787 | FN51: 0.001936213784 | FO51: 0.002165054271 | FP51: 0.001476858366 | FQ51: 0.0009270830484 | FR51: 0.001525975349 | FS51: 0.001644860773 | FT51: 0.0008394538861 | FU51: 0.002114820994 | FV51: 0.001710164034 | FW51: 0.001716861804 | FX51: 0.002288404876 | FY51: 0.001296576714 | FZ51: 0.001817886507 | GA51: 0.0009979677848 | GB51: 0.002613804886 | GC51: 0.001738071411 | GD51: 0.002564129756 | GE51: 0.001659372609 | GF51: 0.001357414795 | GG51: 0.00159574379 | GH51: 0.0004565646801 | GI51: 0.0002020494061
A52: A8 | B52: DLY | C52: 6.303333333 | D52: 4.106666667 | E52: 3 | F52: 11.1 | G52: 8.096666667 | H52: 45.65 | I52: 12.35333333 | J52: 8.323333333 | K52: 49.82666667 | M52: 5231.941109 | N52: 5208.174497 | O52: 0.9485716195 | P52: 4.324371922 | R52: 120.6408927 | S52: 0.5288221502 | T52: 0.09569156849 | U52: 0.001281600701 | V52: 0.004383440294 | W52: 0.0002101016326 | X52: 0.0001149685377 | Y52: 0.007231078095 | Z52: 0.01671858225 | AA52: 0.0002821254736 | AB52: 0.0004621850762 | AC52: 0.001988166136 | AD52: 0.0002160715231 | AE52: 0.0001852591847 | AG52: 0.08846203101 | AH52: 0.005184368516 | AI52: 0.0008130605799 | AJ52: 0.01808934615 | AK52: 0.01343148347 | AL52: 0.2183974695 | AM52: 0.02379386546 | AN52: 0.002641772865 | AO52: 0.0101426515 | AP52: 0.02174619299 | AQ52: 0.007017510074 | AR52: 0.004805184176 | AS52: 0.03266300449 | AT52: 0.00011882008 | AU52: 0.0003699406381 | AV52: 0.0001401961398 | AW52: 2.91E-05 | AX52: 3.60E-05 | AY52: 0.001496324184 | AZ52: 0.000694433077 | BA52: 0.0094963627 | BB52: 0.003954763636 | BC52: 0.00320217227 | BD52: 0.005177435739 | BE52: 0.0149324295 | BF52: 0.01637502467 | BG52: 0.01430867223 | BH52: 0.003194854339 | BI52: 0.001587028006 | BJ52: 6.47E-05 | BK52: 0.0008361698338 | BL52: 0.0002195379112 | BM52: 0.0004575632255 | BN52: 0.0006884631865 | BO52: 0.0005532740517 | BP52: 0.001309909537 | BQ52: 0.001196481616 | BR52: 0.0002588236427 | BS52: 0.0005288167581 | BT52: 0.0002507354039 | BU52: 6.32E-05 | BV52: 4.93E-05 | BW52: 0.001606863448 | BX52: 0.001541002075 | BY52: 8.65E-05 | BZ52: 0.0002775036229 | CA52: 0.0001336485179 | CB52: 0.001630165279 | CC52: 0.0004693104295 | CD52: 7.74E-05 | CE52: 0.0002183824485 | CG52: 6.303333333 | CH52: 4.106666667 | CI52: 3 | CJ52: 11.1 | CK52: 8.096666667 | CL52: 45.65 | CM52: 12.35333333 | CN52: 8.323333333 | CO52: 49.82666667 | CQ52: 0.0009637610186 | CR52: 0.001308521058 | CS52: 0.003987267385 | CT52: 0.003511753183 | CU52: 0.04044368266 | CV52: 0.004213026445 | CW52: 0.005087659158 | CX52: 1.068587659 | CY52: 0.09676003918 | CZ52: 0.01223555338 | DA52: 0.01104064643 | DB52: 0.5455979432 | DC52: 1.307404016 | DD52: 0.5905768854 | DE52: 0.01126493634 | DF52: 0.0136532811 | DG52: 0.01076542605 | DH52: 0.02183937316 | DI52: 0.01778550441 | DJ52: 0.008604799216 | DK52: 0.01953183154 | DL52: 0.1242835455 | DM52: 0.0109294809 | DN52: 0.0120122429 | DO52: 0.00785553379 | DP52: 0.008805582762 | DQ52: 0 | DR52: 0.00886532811 | DS52: 0.009347698335 | DT52: 0.01028893242 | DU52: 0.009887365328 | DV52: 3.9974 | DW52: 1.7272 | DX52: 2.2703 | DY52: 1.4600 | DZ52: 0.7983 | EA52: 0.4321 | EB52: 0.5679 | EC52: 0.3652 | ED52: 0.1997 | EF52: 0.02911053445 | EG52: 0.0216972784 | EH52: 0.01724643612 | EI52: 0.01576840676 | EJ52: 0.01303727812 | EK52: 0.009992633925 | EL52: 0.01143850291 | EM52: 0.01299298538 | EN52: 0.004683860593 | EO52: 0.01146007154 | EP52: 0.004716598703 | EQ52: 0.006690899287 | ER52: 0.006116826907 | ES52: 0.006443437694 | ET52: 0.005338430208 | EU52: 0.004371500513 | EV52: 0.006032670708 | EW52: 0.003484105166 | EX52: 0.004542508991 | EY52: 0.003310593186 | EZ52: 0.00560726786 | FA52: 0.002050561122 | FB52: 0.003697673187 | FC52: 0.004246325388 | FD52: 0.005475737691 | FE52: 0.003102224747 | FF52: 0.00334699026 | FG52: 0.00831547983 | FH52: 0.002883842299 | FI52: 0.002236783192 | FJ52: 0.003217963593 | FK52: 0.002287238396 | FL52: 0.001883211609 | FM52: 0.002655253263 | FN52: 0.002255463172 | FO52: 0.003572112908 | FP52: 0.001875508524 | FQ52: 0.001439321358 | FR52: 0.002283386854 | FS52: 0.002387956227 | FT52: 0.001292962751 | FU52: 0.002653134915 | FV52: 0.002464216765 | FW52: 0.001939636703 | FX52: 0.002135680206 | FY52: 0.001776909041 | FZ52: 0.002169381202 | GA52: 0.001710469936 | GB52: 0.00100332677 | GC52: 0.002049405659 | GD52: 0.002359262237 | GE52: 0.002218680943 | GF52: 0.001502486652 | GG52: 0.002325561242 | GH52: 0.0006953959626 | GI52: 0.0002869399015
A53: B1 | B53: NX | C53: 6.34 | D53: 5.97 | E53: 2.5 | F53: 12.32333333 | G53: 8.436666667 | H53: 50.11 | I53: 15.29 | J53: 8.533333333 | K53: 54.12666667 | M53: 5375.928795 | N53: 5350.100559 | O53: 0.8809107981 | P53: 3.431584606 | R53: 524.5662266 | S53: 0.8129033599 | T53: 0.01674423255 | U53: 0.0008764730671 | V53: 0.001549667742 | W53: 0.0001141790968 | X53: 0.0001202840486 | Y53: 0.001244585155 | Z53: 0.002632719175 | AA53: 0.01488172729 | AB53: 0.0005167759123 | AC53: 0.0009617773923 | AD53: 0.0001828185539 | AE53: 0.0001687936648 | AG53: 0.4849372691 | AH53: 0.00113403603 | AI53: 0.0007710389011 | AJ53: 0.001167530765 | AK53: 0.01079767959 | AL53: 0.163963988 | AM53: 0.01937612673 | AN53: 2.80E-06 | AO53: 0.008372363775 | AP53: 0.003935218872 | AQ53: 0.006849755818 | AR53: 0.003175069885 | AS53: 0.005114299546 | AT53: 7.08E-05 | AU53: 0.0002773628061 | AV53: 6.07E-05 | AW53: 2.00E-05 | AX53: 8.25E-07 | AY53: 0.002529264994 | AZ53: 0.0005463106787 | BA53: 0.008869339844 | BB53: 0.003265819167 | BC53: 0.003017166134 | BD53: 0.0002526130018 | BE53: 0.002542629888 | BF53: 0.00241211592 | BG53: 0.00244115569 | BH53: 0.001836765471 | BI53: 0.004270826218 | BJ53: 0.008808620324 | BK53: 0.00103157184 | BL53: 1.17E-05 | BM53: 0.0005116609528 | BN53: 0.0007723588906 | BO53: 0.0005667705168 | BP53: 0.001026621879 | BQ53: 0.0004430214957 | BR53: 0.0004586963717 | BS53: 0.0004095267606 | BT53: 0.0003707520674 | BU53: 6.25E-05 | BV53: 0.0002974926468 | BW53: 0.0005562106004 | BX53: 0.0003532622057 | BY53: 6.60E-07 | BZ53: 0.0001537787836 | CA53: 3.20E-05 | CB53: 0.0002290181885 | CC53: 0.0004552313991 | CD53: 1.07E-05 | CE53: 0.0002100433386 | CG53: 6.34 | CH53: 5.97 | CI53: 2.5 | CJ53: 12.32333333 | CK53: 8.436666667 | CL53: 50.11 | CM53: 15.29 | CN53: 8.533333333 | CO53: 54.12666667 | CQ53: 0.001028864971 | CR53: 0.001617906067 | CS53: 0.008389432485 | CT53: 0.007498043053 | CU53: 0.1145587084 | CV53: 0.005029843444 | CW53: 0.00623630137 | CX53: 2.232368885 | CY53: 0.2610748532 | CZ53: 0.0171648728 | DA53: 0.01605332681 | DB53: 1.102213307 | DC53: 3.479359589 | DD53: 0.7968644814 | DE53: 0.01213307241 | DF53: 0.02221379648 | DG53: 0.02050391389 | DH53: 0.06575733855 | DI53: 0.0327553816 | DJ53: 0.008917808219 | DK53: 0.02463356164 | DL53: 0.1327343444 | DM53: 0.01299315068 | DN53: 0.01187181996 | DO53: 0.008506360078 | DP53: 0.009340998043 | DQ53: 0 | DR53: 0.00893590998 | DS53: 0.009692759295 | DT53: 0.009612035225 | DU53: 0.01029158513 | DV53: 8.4504 | DW53: 3.5476 | DX53: 4.9027 | DY53: 3.8469 | DZ53: 1.0439 | EA53: 0.4198 | EB53: 0.5802 | EC53: 0.4552 | ED53: 0.1235 | EF53: 0.04101719055 | EG53: 0.03157662523 | EH53: 0.02553189804 | EI53: 0.01928801743 | EJ53: 0.02024830984 | EK53: 0.01818021619 | EL53: 0.01702291535 | EM53: 0.02021415511 | EN53: 0.008256204693 | EO53: 0.01708841983 | EP53: 0.007480215831 | EQ53: 0.0112133113 | ER53: 0.01098445811 | ES53: 0.01030746847 | ET53: 0.008840300073 | EU53: 0.005857948664 | EV53: 0.008904979562 | EW53: 0.005517391357 | EX53: 0.00693803012 | EY53: 0.005595930736 | EZ53: 0.008202085122 | FA53: 0.003357228444 | FB53: 0.005895733365 | FC53: 0.006731616753 | FD53: 0.007832158048 | FE53: 0.006076076938 | FF53: 0.005221713696 | FG53: 0.008250924735 | FH53: 0.002247117225 | FI53: 0.003292713955 | FJ53: 0.008463278055 | FK53: 0.003739860418 | FL53: 0.003446492738 | FM53: 0.00434771561 | FN53: 0.004287161089 | FO53: 0.006031197293 | FP53: 0.003511502224 | FQ53: 0.00183940545 | FR53: 0.002697068666 | FS53: 0.003225724485 | FT53: 0.001709881475 | FU53: 0.004244921423 | FV53: 0.002124853192 | FW53: 0.002900512057 | FX53: 0.003861959452 | FY53: 0.002642619097 | FZ53: 0.001384669047 | GA53: 0.002097628408 | GB53: 0.0007913337405 | GC53: 0.003713295628 | GD53: 0.004023658173 | GE53: 0.00256506971 | GF53: 0.001524092944 | GG53: 0.002629089204 | GH53: 0.001090476374 | GI53: 0.0004327915766
A54: B2 | B54: NX | C54: 6.25 | D54: 5.803333333 | E54: 3.5 | F54: 9.54 | G54: 7.683333333 | H54: 181.6366667 | I54: 13.84666667 | J54: 9.916666667 | K54: 52.20666667 | M54: 5550.604419 | N54: 5521.614173 | O54: 0.9447910518 | P54: 4.354854765 | R54: 270.0411957 | S54: 0.6980443364 | T54: 0.09077893116 | U54: 0.0004171900481 | V54: 0.002584954991 | W54: 0.0002545346286 | X54: 0.0003308300848 | Y54: 0.0009295059204 | Z54: 0.001861771464 | AA54: 0.0002003161554 | AB54: 0.0004689735599 | AC54: 0.0004430006386 | AD54: 0.0004240079399 | AE54: 0.0004621556681 | AG54: 0.004864403495 | AH54: 0.01654296522 | AI54: 0.0001277543066 | AJ54: 0.009451870716 | AK54: 0.007737657911 | AL54: 0.487412386 | AM54: 0.03300119378 | AN54: 0.02701492242 | AO54: 0.0261904445 | AP54: 0.002478141352 | AQ54: 0.01524123487 | AR54: 0.001238421353 | AS54: 0.003736042396 | AT54: 7.92E-05 | AU54: 0.0004632919834 | AV54: 0.0004029049414 | AW54: 2.45E-05 | AX54: 3.41E-06 | AY54: 0.001414225564 | AZ54: 0.001091025025 | BA54: 0.01052374071 | BB54: 0.00484622245 | BC54: 0.003380213374 | BD54: 2.53E-05 | BE54: 0.001741646703 | BF54: 0.001772976539 | BG54: 0.001610645781 | BH54: 0.0008623009865 | BI54: 0.0004473835691 | BJ54: 3.25E-06 | BK54: 0.002672775931 | BL54: 8.12E-07 | BM54: 0.0004645906294 | BN54: 0.001170404765 | BO54: 0.001451561638 | BP54: 0.001522824841 | BQ54: 2.27E-06 | BR54: 0.0007035415052 | BS54: 0.0006217268032 | BT54: 0.0004804990437 | BU54: 2.84E-05 | BV54: 0.0001181767918 | BW54: 0.0002800205576 | BX54: 0.0003472254914 | BY54: 6.49E-07 | BZ54: 0.0004240079399 | CA54: 4.87E-05 | CB54: 0.0002146012621 | CC54: 0.0004899142277 | CD54: 0.0003256355006 | CE54: 0.000421248317 | CG54: 6.25 | CH54: 5.803333333 | CI54: 3.5 | CJ54: 9.54 | CK54: 7.683333333 | CL54: 181.6366667 | CM54: 13.84666667 | CN54: 9.916666667 | CO54: 52.20666667 | CQ54: 0.0009754856614 | CR54: 0.001651248844 | CS54: 0.007393617021 | CT54: 0.006778445883 | CU54: 0.1130518039 | CV54: 0.004698427382 | CW54: 0.005197502313 | CX54: 2.487929695 | CY54: 0.271166975 | CZ54: 0.01331036078 | DA54: 0.01287372803 | DB54: 1.252511101 | DC54: 3.810620722 | DD54: 0.8492923219 | DE54: 0.01103700278 | DF54: 0.01724976873 | DG54: 0.02124468085 | DH54: 0.07624653099 | DI54: 0.02965494912 | DJ54: 0.008801572618 | DK54: 0.02759343201 | DL54: 0.1206609621 | DM54: 0.01248658649 | DN54: 0.01119102683 | DO54: 0.007952821462 | DP54: 0.008877428307 | DQ54: 0 | DR54: 0.008441720629 | DS54: 0.009072155412 | DT54: 0.009202590194 | DU54: 0.00967946346 | DV54: 9.2268 | DW54: 3.9443 | DX54: 5.2825 | DY54: 4.1942 | DZ54: 1.0772 | EA54: 0.4275 | EB54: 0.5725 | EC54: 0.4546 | ED54: 0.1167 | EF54: 0.04004342672 | EG54: 0.02759135894 | EH54: 0.02331345647 | EI54: 0.02079067416 | EJ54: 0.01856998939 | EK54: 0.01126689092 | EL54: 0.01382230171 | EM54: 0.01757327854 | EN54: 0.008063618073 | EO54: 0.01557531157 | EP54: 0.006131395061 | EQ54: 0.007969790895 | ER54: 0.00616337422 | ES54: 0.008979163549 | ET54: 0.005768585817 | EU54: 0.006709130229 | EV54: 0.009254151853 | EW54: 0.004387475727 | EX54: 0.0060133806 | EY54: 0.003956487565 | EZ54: 0.009132079123 | FA54: 0.003004904662 | FB54: 0.005180948473 | FC54: 0.004930309782 | FD54: 0.007736683927 | FE54: 0.003605528466 | FF54: 0.00415031049 | FG54: 0.008798164753 | FH54: 0.005016020423 | FI54: 0.003116101231 | FJ54: 0.003425178994 | FK54: 0.002881046293 | FL54: 0.002765791455 | FM54: 0.004360528822 | FN54: 0.003207655778 | FO54: 0.003680200615 | FP54: 0.002651835263 | FQ54: 0.002621966403 | FR54: 0.003105874393 | FS54: 0.003035747506 | FT54: 0.002324901116 | FU54: 0.003486540021 | FV54: 0.003695946698 | FW54: 0.002643718725 | FX54: 0.003078278164 | FY54: 0.002723747789 | FZ54: 0.003191422702 | GA54: 0.001828655989 | GB54: 0.002108676547 | GC54: 0.003125354084 | GD54: 0.003659584609 | GE54: 0.003107010708 | GF54: 0.003180059549 | GG54: 0.002469537822 | GH54: 0.0009382717813 | GI54: 0.0004826093436
A55: B3 | B55: NX | C55: 6.63 | D55: 5.87 | E55: 4 | F55: 9.42 | G55: 7.616666667 | H55: 45.81666667 | I55: 10.82 | J55: 8.29 | K55: 52.77 | M55: 2637.003615 | N55: 2632.384615 | O55: 0.9280136658 | P55: 3.75047457 | R55: 430.413594 | S55: 0.367265609 | T55: 0.01741634601 | U55: 0.006470336489 | V55: 0.0008532853381 | W55: 0.0001031068911 | X55: 0.0001937044903 | Y55: 0.002573123445 | Z55: 6.79E-05 | AA55: 0.009206838868 | AB55: 0.001890419361 | AC55: 0.0001963579765 | AD55: 0.0001508696422 | AE55: 0.0004139438424 | AG55: 0.01222385264 | AH55: 0.002825583701 | AI55: 0.00606056241 | AJ55: 0.0002570090889 | AK55: 0.006302029652 | AL55: 0.1169812122 | AM55: 0.03756616183 | AN55: 5.31E-06 | AO55: 0.03239603357 | AP55: 0.0003999182726 | AQ55: 0.003896075835 | AR55: 0.03058938856 | AS55: 0.0004761112326 | AT55: 0.003468106423 | AU55: 0.0002642114086 | AV55: 7.85E-05 | AW55: 2.27E-05 | AX55: 0 | AY55: 0.000918485284 | AZ55: 0.0002611788529 | BA55: 0.04747769082 | BB55: 0.002151977283 | BC55: 0.001763431094 | BD55: 2.46E-05 | BE55: 0.0001887765875 | BF55: 1.90E-06 | BG55: 6.07E-06 | BH55: 0.0005394158312 | BI55: 0.0002107626157 | BJ55: 0.005640932526 | BK55: 0.0009453992151 | BL55: 0 | BM55: 0.001886249597 | BN55: 6.63E-05 | BO55: 0.0004579158989 | BP55: 0.0002225137687 | BQ55: 0 | BR55: 7.73E-05 | BS55: 0.0002092463379 | BT55: 0.000140634767 | BU55: 0.002149323797 | BV55: 0.003777806166 | BW55: 6.82E-05 | BX55: 2.27E-05 | BY55: 3.79E-07 | BZ55: 6.22E-05 | CA55: 1.55E-05 | CB55: 0.0001027278217 | CC55: 8.07E-05 | CD55: 0.001181938554 | CE55: 0.000112204558 | CG55: 6.63 | CH55: 5.87 | CI55: 4 | CJ55: 9.42 | CK55: 7.616666667 | CL55: 45.81666667 | CM55: 10.82 | CN55: 8.29 | CO55: 52.77 | CQ55: 0.0010825 | CR55: 0.00187 | CS55: 0.011115 | CT55: 0.013276 | CU55: 0.2365405 | CV55: 0.00638 | CW55: 0.0066885 | CX55: 3.732025 | CY55: 0.427526 | CZ55: 0.0170625 | DA55: 0.0152155 | DB55: 1.8934565 | DC55: 4.4634695 | DD55: 1.028978 | DE55: 0.012594 | DF55: 0.0265415 | DG55: 0.032207 | DH55: 0.133813 | DI55: 0.041191 | DJ55: 0.009685 | DK55: 0.027112 | DL55: 0.1194255 | DM55: 0.0143435 | DN55: 0.011899 | DO55: 0.0091595 | DP55: 0.0106395 | DQ55: 0 | DR55: 0.0091785 | DS55: 0.0098075 | DT55: 0.009498 | DU55: 0.0102835 | DV55: 12.3421 | DW55: 5.9832 | DX55: 6.3589 | DY55: 5.0673 | DZ55: 1.2797 | EA55: 0.4848 | EB55: 0.5152 | EC55: 0.4106 | ED55: 0.1037 | EF55: 0.01482616444 | EG55: 0.01073600504 | EH55: 0.008097681649 | EI55: 0.007790635392 | EJ55: 0.006689059563 | EK55: 0.005292567699 | EL55: 0.005544269816 | EM55: 0.00714128942 | EN55: 0.002256221383 | EO55: 0.006371399361 | EP55: 0.002093221518 | EQ55: 0.0036781109 | ER55: 0.003124290429 | ES55: 0.003422239019 | ET55: 0.003076906748 | EU55: 0.002322558537 | EV55: 0.003529515674 | EW55: 0.001728177635 | EX55: 0.002263044633 | EY55: 0.001869570541 | EZ55: 0.003479857576 | FA55: 0.0009040806448 | FB55: 0.002009826238 | FC55: 0.002233477215 | FD55: 0.00300602076 | FE55: 0.001520826644 | FF55: 0.001502252241 | FG55: 0.003151962499 | FH55: 0.001714531135 | FI55: 0.001112189774 | FJ55: 0.001560628937 | FK55: 0.001062531676 | FL55: 0.000998089869 | FM55: 0.001553426617 | FN55: 0.00128163382 | FO55: 0.0015102127 | FP55: 0.001083380496 | FQ55: 0.0006667831673 | FR55: 0.000898394603 | FS55: 0.001052296801 | FT55: 0.000576943707 | FU55: 0.00143401974 | FV55: 0.001161468803 | FW55: 0.001089066538 | FX55: 0.001317645418 | FY55: 0.0009541178125 | FZ55: 0.001155782761 | GA55: 0.0006421436529 | GB55: 0.0006482087642 | GC55: 0.00107390376 | GD55: 0.001598156813 | GE55: 0.001059120051 | GF55: 0.0007520737942 | GG55: 0.0008881597277 | GH55: 0.0003244834515 | GI55: 0.0001368440724
A56: B4 | B56: NX | C56: 6.376666667 | D56: 5.8 | E56: 1.5 | F56: 13.71333333 | G56: 6.99 | H56: 42.56 | I56: 14.18333333 | J56: 8.173333333 | K56: 52.17 | M56: 3796.958667 | N56: 3782.38255 | O56: 0.968967649 | P56: 4.857971415 | R56: 151.8095056 | S56: 0.4974293624 | T56: 0.01969726718 | U56: 0.0007363816492 | V56: 0.003276668089 | W56: 0.0002670901036 | X56: 0.000315233304 | Y56: 0.003129308032 | Z56: 0.0004801760953 | AA56: 0.00350063863 | AB56: 0.003185405326 | AC56: 0.0002754628341 | AD56: 0.0007095889115 | AE56: 0.001078826327 | AG56: 0.005789743154 | AH56: 0.003152751677 | AI56: 0.0004424988079 | AJ56: 0.001914424833 | AK56: 0.008502507842 | AL56: 0.2017773632 | AM56: 0.0339313277 | AN56: 0.0004131942511 | AO56: 0.02316525216 | AP56: 0.00109180406 | AQ56: 0.02416746801 | AR56: 0.01541963916 | AS56: 0.001785484783 | AT56: 0.001808509792 | AU56: 0.0008757876123 | AV56: 0.0002072250803 | AW56: 8.08E-05 | AX56: 0 | AY56: 0.001827348436 | AZ56: 0.00104240495 | BA56: 0.0385514004 | BB56: 0.01088454967 | BC56: 0.00912334581 | BD56: 4.61E-06 | BE56: 0.0005756252232 | BF56: 0.000427427893 | BG56: 0.0006183261488 | BH56: 0.0008146666795 | BI56: 0.001185578642 | BJ56: 1.67E-06 | BK56: 0.004159991158 | BL56: 4.19E-06 | BM56: 0.003089956198 | BN56: 0.002355667732 | BO56: 0.002353155912 | BP56: 0.001191439553 | BQ56: 2.64E-05 | BR56: 0.0009791908342 | BS56: 0.001092641333 | BT56: 0.0009720740133 | BU56: 0.002053830796 | BV56: 0.00199438441 | BW56: 0.0001888050732 | BX56: 0.0002453210042 | BY56: 2.93E-06 | BZ56: 0.0008661589722 | CA56: 0.0001481973302 | CB56: 5.02E-05 | CC56: 0.0004508715385 | CD56: 0.001350521433 | CE56: 0.001167577271 | CG56: 6.376666667 | CH56: 5.8 | CI56: 1.5 | CJ56: 13.71333333 | CK56: 6.99 | CL56: 42.56 | CM56: 14.18333333 | CN56: 8.173333333 | CO56: 52.17 | CQ56: 0.001001949318 | CR56: 0.001381091618 | CS56: 0.005969785575 | CT56: 0.006557017544 | CU56: 0.1095609162 | CV56: 0.004844054581 | CW56: 0.005642300195 | CX56: 2.229634503 | CY56: 0.2005555556 | CZ56: 0.01310136452 | DA56: 0.01201705653 | DB56: 1.152078947 | DC56: 2.57699269 | DD56: 0.862001462 | DE56: 0.01147319688 | DF56: 0.02080263158 | DG56: 0.01690545809 | DH56: 0.05978118908 | DI56: 0.03211744639 | DJ56: 0.008997076023 | DK56: 0.02225146199 | DL56: 0.1394590643 | DM56: 0.01336939571 | DN56: 0.01175584795 | DO56: 0.00814619883 | DP56: 0.009084795322 | DQ56: 0 | DR56: 0.008901072125 | DS56: 0.009381091618 | DT56: 0.009650584795 | DU56: 0.009968323587 | DV56: 7.5734 | DW56: 3.5773 | DX56: 3.9961 | DY56: 2.8732 | DZ56: 1.1111 | EA56: 0.4723 | EB56: 0.5277 | EC56: 0.3794 | ED56: 0.1467 | EF56: 0.01266291764 | EG56: 0.009199537658 | EH56: 0.008502089206 | EI56: 0.006742978524 | EJ56: 0.005417575282 | EK56: 0.003466310435 | EL56: 0.005820722257 | EM56: 0.01230205295 | EN56: 0.002822028821 | EO56: 0.01399794952 | EP56: 0.00210155536 | EQ56: 0.003326067199 | ER56: 0.002577963727 | ES56: 0.00294510796 | ET56: 0.002268172698 | EU56: 0.002782676988 | EV56: 0.009820375626 | EW56: 0.001900609828 | EX56: 0.001939543025 | EY56: 0.001323310059 | EZ56: 0.009218794938 | FA56: 0.0009130462631 | FB56: 0.002389158654 | FC56: 0.001952520757 | FD56: 0.002716951053 | FE56: 0.001136179531 | FF56: 0.001290237773 | FG56: 0.01047093679 | FH56: 0.001389873266 | FI56: 0.002641177842 | FJ56: 0.001352195979 | FK56: 0.001035706765 | FL56: 0.0009762603785 | FM56: 0.001550211056 | FN56: 0.001171345 | FO56: 0.001215720471 | FP56: 0.0008042007664 | FQ56: 0.0005999061417 | FR56: 0.0008586235147 | FS56: 0.001145808172 | FT56: 0.0005044570138 | FU56: 0.001350102796 | FV56: 0.001167158634 | FW56: 0.0009716553767 | FX56: 0.00272699833 | FY56: 0.0007795012113 | FZ56: 0.0009921685665 | GA56: 0.0006706557146 | GB56: 0.002325107265 | GC56: 0.0009854703821 | GD56: 0.002477072324 | GE56: 0.001029427217 | GF56: 0.0009314662702 | GG56: 0.001024403579 | GH56: 0.0003441192243 | GI56: 0.0001276841404
A57: B5 | B57: NX | C57: 6.04 | D57: 5.603333333 | E57: 2.5 | F57: 10.19333333 | G57: 6.893333333 | H57: 45.28666667 | I57: 10.86666667 | J57: 8.46 | K57: 53.90333333 | M57: 6693.052652 | N57: 6679.199095 | O57: 0.9410331096 | P57: 4.634167266 | R57: 184.6003401 | S57: 0.6238401958 | T57: 0.02721919174 | U57: 0.000528521299 | V57: 0.003379409785 | W57: 0.0003595508098 | X57: 0.0002717321337 | Y57: 0.004044716718 | Z57: 0.004667493664 | AA57: 0.009251076813 | AB57: 0.001254289781 | AC57: 0.002556626954 | AD57: 0.0005190957343 | AE57: 0.0004223112772 | AG57: 0.00751585334 | AH57: 0.001766028977 | AI57: 0.000118854072 | AJ57: 0.003209059945 | AK57: 0.01645519684 | AL57: 0.3089877127 | AM57: 0.03271912369 | AN57: 5.72E-05 | AO57: 0.04615492134 | AP57: 0.006413292161 | AQ57: 0.01739591418 | AR57: 0.009657525555 | AS57: 0.00813150364 | AT57: 0.0003538035142 | AU57: 0.0006140410568 | AV57: 0.0001855227004 | AW57: 4.87E-05 | AX57: 7.36E-06 | AY57: 0.00139038574 | AZ57: 0.001180494507 | BA57: 0.01550597351 | BB57: 0.006281564147 | BC57: 0.005310501091 | BD57: 0.001878216187 | BE57: 0.004621975083 | BF57: 0.003832296674 | BG57: 0.003211128971 | BH57: 0.002458693037 | BI57: 0.00501899826 | BJ57: 0.004941064932 | BK57: 0.003276878032 | BL57: 0.0001611541673 | BM57: 0.001220725575 | BN57: 0.001121872092 | BO57: 0.001421191244 | BP57: 0.002061210077 | BQ57: 7.84E-05 | BR57: 0.0008476111481 | BS57: 0.0008561171455 | BT57: 0.0009289928531 | BU57: 0.0004616227788 | BV57: 0.0001029915363 | BW57: 0.0009471543071 | BX57: 0.000519555518 | BY57: 2.39E-05 | BZ57: 0.0005418550247 | CA57: 0.0001078192646 | CB57: 0.0003413893558 | CC57: 0.0007643903085 | CD57: 0.0001846031332 | CE57: 0.0005756491225 | CG57: 6.04 | CH57: 5.603333333 | CI57: 2.5 | CJ57: 10.19333333 | CK57: 6.893333333 | CL57: 45.28666667 | CM57: 10.86666667 | CN57: 8.46 | CO57: 53.90333333 | CQ57: 0.0009730769231 | CR57: 0.001601442308 | CS57: 0.008029807692 | CT57: 0.007623076923 | CU57: 0.1253557692 | CV57: 0.005783173077 | CW57: 0.006130769231 | CX57: 2.361584135 | CY57: 0.3464192308 | CZ57: 0.01481826923 | DA57: 0.01445721154 | DB57: 0.9671336538 | DC57: 3.183583654 | DD57: 0.8183091346 | DE57: 0.01273846154 | DF57: 0.02040865385 | DG57: 0.01828798077 | DH57: 0.07092355769 | DI57: 0.03004711538 | DJ57: 0.008633173077 | DK57: 0.02718413462 | DL57: 0.1472254808 | DM57: 0.01264471154 | DN57: 0.01183894231 | DO57: 0.008308173077 | DP57: 0.00931875 | DQ57: 0 | DR57: 0.008777884615 | DS57: 0.009421153846 | DT57: 0.009514903846 | DU57: 0.01000721154 | DV57: 8.2771 | DW57: 3.5467 | DX57: 4.7304 | DY57: 3.6405 | DZ57: 1.0781 | EA57: 0.4285 | EB57: 0.5715 | EC57: 0.4398 | ED57: 0.1302 | EF57: 0.03020939467 | EG57: 0.02221329731 | EH57: 0.01746787032 | EI57: 0.01612783089 | EJ57: 0.01283486043 | EK57: 0.009220960985 | EL57: 0.01178793307 | EM57: 0.01553585945 | EN57: 0.00462404411 | EO57: 0.01464066069 | EP57: 0.004555306455 | EQ57: 0.006715599907 | ER57: 0.005766146682 | ES57: 0.006280414688 | ET57: 0.0049307198 | EU57: 0.005017618909 | EV57: 0.008774511066 | EW57: 0.003463090408 | EX57: 0.004743817749 | EY57: 0.003191128383 | EZ57: 0.008336337253 | FA57: 0.002086728069 | FB57: 0.003943794208 | FC57: 0.004424268116 | FD57: 0.005917415501 | FE57: 0.002774334509 | FF57: 0.003183771844 | FG57: 0.00925567465 | FH57: 0.003488378509 | FI57: 0.002888360853 | FJ57: 0.002474095789 | FK57: 0.002328114482 | FL57: 0.001878446078 | FM57: 0.003005835574 | FN57: 0.002323056862 | FO57: 0.003379869569 | FP57: 0.002006495823 | FQ57: 0.001735913149 | FR57: 0.002435933747 | FS57: 0.002495245837 | FT57: 0.001453146208 | FU57: 0.002849739027 | FV57: 0.002806519364 | FW57: 0.002084429151 | FX57: 0.002757782298 | FY57: 0.001878216187 | FZ57: 0.002323746538 | GA57: 0.001627634101 | GB57: 0.001808788856 | GC57: 0.002205582141 | GD57: 0.003068825933 | GE57: 0.002427197858 | GF57: 0.001796374698 | GG57: 0.002271331202 | GH57: 0.000903244969 | GI57: 0.0004098971188
A58: B6 | B58: NX | C58: 6.413333333 | D58: 6.213333333 | E58: 3.5 | F58: 11.05333333 | G58: 8.71 | H58: 48.85 | I58: 12.85666667 | J58: 8.776666667 | K58: 59.46 | M58: 6950.202687 | N58: 6939.930233 | O58: 0.9543637595 | P58: 4.771474977 | R58: 127.4914175 | S58: 0.5023506863 | T58: 0.07343464295 | U58: 0.0005173459205 | V58: 0.003940270617 | W58: 0.0003895350345 | X58: 0.0002108710108 | Y58: 0.003619556828 | Z58: 0.009440376476 | AA58: 0.001175724543 | AB58: 0.001605264046 | AC58: 0.003024236097 | AD58: 0.0005010729164 | AE58: 0.000459542854 | AG58: 0.01453094507 | AH58: 0.002618597569 | AI58: 0.0001054355054 | AJ58: 0.00975210621 | AK58: 0.01316740294 | AL58: 0.2318913248 | AM58: 0.02813365086 | AN58: 0.01139906983 | AO58: 0.03160115681 | AP58: 0.01245732362 | AQ58: 0.01425905029 | AR58: 0.007240808762 | AS58: 0.01725480863 | AT58: 0.0002466377177 | AU58: 0.0004820877451 | AV58: 0.0002373146424 | AW58: 7.37E-05 | AX58: 9.19E-05 | AY58: 0.001572379017 | AZ58: 0.0009326465448 | BA58: 0.01261649394 | BB58: 0.005977616822 | BC58: 0.004646112167 | BD58: 0.001687307108 | BE58: 0.008566041529 | BF58: 0.008513832308 | BG58: 0.007420659358 | BH58: 0.001475588545 | BI58: 0.003281891994 | BJ58: 9.66E-06 | BK58: 0.002808788304 | BL58: 7.51E-05 | BM58: 0.001534578184 | BN58: 0.001930046085 | BO58: 0.001193353631 | BP58: 0.001396596671 | BQ58: 1.08E-05 | BR58: 0.0006797369401 | BS58: 0.0007351668602 | BT58: 0.0006826186179 | BU58: 0.000296643303 | BV58: 0.0002981688972 | BW58: 0.001395410097 | BX58: 0.001064356171 | BY58: 3.97E-05 | BZ58: 0.000385297273 | CA58: 4.39E-05 | CB58: 0.0008061917424 | CC58: 0.000554468711 | CD58: 0.0002129051364 | CE58: 0.0005553162633 | CG58: 6.413333333 | CH58: 6.213333333 | CI58: 3.5 | CJ58: 11.05333333 | CK58: 8.71 | CL58: 48.85 | CM58: 12.85666667 | CN58: 8.776666667 | CO58: 59.46 | CQ58: 0.000900273224 | CR58: 0.001294626594 | CS58: 0.004586976321 | CT58: 0.004527777778 | CU58: 0.06358970856 | CV58: 0.00425 | CW58: 0.005075591985 | CX58: 1.512701275 | CY58: 0.1681429872 | CZ58: 0.0109795082 | DA58: 0.01056375228 | DB58: 0.6412354281 | DC58: 1.830213115 | DD58: 0.6140664845 | DE58: 0.009994535519 | DF58: 0.01360200364 | DG58: 0.01269990893 | DH58: 0.04160564663 | DI58: 0.02053415301 | DJ58: 0.008306010929 | DK58: 0.01847905282 | DL58: 0.1220897086 | DM58: 0.01101229508 | DN58: 0.01119990893 | DO58: 0.00754007286 | DP58: 0.008562386157 | DQ58: 0 | DR58: 0.008295537341 | DS58: 0.008698542805 | DT58: 0.009059198543 | DU58: 0.009297358834 | DV58: 5.1931 | DW58: 2.2904 | DX58: 2.9027 | DY58: 2.0726 | DZ58: 0.8188 | EA58: 0.4411 | EB58: 0.5589 | EC58: 0.3991 | ED58: 0.1577 | EF58: 0.023759942 | EG58: 0.01761400129 | EH58: 0.01400512362 | EI58: 0.01271192833 | EJ58: 0.0106579701 | EK58: 0.006960438463 | EL58: 0.009356638309 | EM58: 0.01336250947 | EN58: 0.003762115124 | EO58: 0.01298551821 | EP58: 0.003626506757 | EQ58: 0.005307033447 | ER58: 0.004467617654 | ES58: 0.004870204994 | ET58: 0.003950102223 | EU58: 0.003756012748 | EV58: 0.007885626547 | EW58: 0.002858624379 | EX58: 0.003604978929 | EY58: 0.002444340817 | EZ58: 0.007550165349 | FA58: 0.001617638309 | FB58: 0.003126789925 | FC58: 0.003527343139 | FD58: 0.0048281664 | FE58: 0.002184311773 | FF58: 0.002570795619 | FG58: 0.009447495915 | FH58: 0.002496380528 | FI58: 0.002677756719 | FJ58: 0.002038871799 | FK58: 0.001809185128 | FL58: 0.001545087833 | FM58: 0.00241586306 | FN58: 0.001814948483 | FO58: 0.002571812682 | FP58: 0.001460841135 | FQ58: 0.001424396386 | FR58: 0.001852749316 | FS58: 0.001930385106 | FT58: 0.001223526492 | FU58: 0.002195160443 | FV58: 0.002210924915 | FW58: 0.001660185434 | FX58: 0.002472649064 | FY58: 0.001420836666 | FZ58: 0.001926316855 | GA58: 0.001382188282 | GB58: 0.001322181579 | GC58: 0.001668152426 | GD58: 0.002533164297 | GE58: 0.001885973366 | GF58: 0.001444568131 | GG58: 0.002197533589 | GH58: 0.0007672043369 | GI58: 0.0003368172818
A59: B7 | B59: NX | C59: 6.9 | D59: 5.936666667 | E59: 5 | F59: 15.00666667 | G59: 8.983333333 | H59: 49.17 | I59: 12.77666667 | J59: 8.74 | K59: 50.21 | M59: 6118.013681 | N59: 6090.488696 | O59: 0.9481233126 | P59: 4.672939573 | R59: 235.6061974 | S59: 0.617318091 | T59: 0.01754652591 | U59: 0.01617016381 | V59: 0.00262012671 | W59: 0.0005099904061 | X59: 0.0002554031954 | Y59: 0.002438366129 | Z59: 0.001230096859 | AA59: 0.0004624593002 | AB59: 0.002543016161 | AC59: 0.0008484200395 | AD59: 0.0006837951364 | AE59: 0.000430839895 | AG59: 0.005357143221 | AH59: 0.001437764953 | AI59: 0.0149321111 | AJ59: 0.002621146691 | AK59: 0.0185467191 | AL59: 0.2965047502 | AM59: 0.02634610438 | AN59: 0.002615842791 | AO59: 0.02152995898 | AP59: 0.002130331924 | AQ59: 0.02281125887 | AR59: 0.01952712466 | AS59: 0.00270090919 | AT59: 0.000545077746 | AU59: 0.0004953026824 | AV59: 0.0002535672299 | AW59: 4.79E-05 | AX59: 2.49E-05 | AY59: 0.001734579369 | AZ59: 0.001142786502 | BA59: 0.02388325871 | BB59: 0.007407100658 | BC59: 0.00533490764 | BD59: 0.0006825711595 | BE59: 0.001663588705 | BF59: 0.0009965212534 | BG59: 0.001319243182 | BH59: 0.004916715507 | BI59: 0.004810637502 | BJ59: 4.16E-05 | BK59: 0.002984871849 | BL59: 0.0001185217704 | BM59: 0.002527308456 | BN59: 0.002277209161 | BO59: 0.001255188387 | BP59: 0.001476116231 | BQ59: 5.73E-05 | BR59: 0.002589935278 | BS59: 0.0007821212867 | BT59: 0.001918379911 | BU59: 0.0007839572522 | BV59: 0.0004241080217 | BW59: 0.000414520202 | BX59: 0.0002715188922 | BY59: 7.96E-06 | BZ59: 0.0006032166523 | CA59: 5.20E-05 | CB59: 0.0002384715139 | CC59: 0.0006450358656 | CD59: 0.0002851866351 | CE59: 0.0007553977895 | CG59: 6.9 | CH59: 5.936666667 | CI59: 5 | CJ59: 15.00666667 | CK59: 8.983333333 | CL59: 49.17 | CM59: 12.77666667 | CN59: 8.74 | CO59: 50.21 | CQ59: 0.0009596100279 | CR59: 0.001332869081 | CS59: 0.005218662953 | CT59: 0.004629990715 | CU59: 0.06304781801 | CV59: 0.004208449396 | CW59: 0.004974930362 | CX59: 1.51544104 | CY59: 0.1201750232 | CZ59: 0.01116620241 | DA59: 0.01031383473 | DB59: 0.7403574745 | DC59: 1.891218199 | DD59: 0.7652288765 | DE59: 0.01110492108 | DF59: 0.01552878366 | DG59: 0.01581290622 | DH59: 0.04669452182 | DI59: 0.02625951718 | DJ59: 0.008635561746 | DK59: 0.02456220984 | DL59: 0.1406225627 | DM59: 0.01167038069 | DN59: 0.01125394615 | DO59: 0.00784911792 | DP59: 0.008701021356 | DQ59: 0 | DR59: 0.008454038997 | DS59: 0.009040854225 | DT59: 0.008714020427 | DU59: 0.009402042711 | DV59: 5.5026 | DW59: 2.3969 | DX59: 3.1057 | DY59: 2.0907 | DZ59: 1.0037 | EA59: 0.4356 | EB59: 0.5644 | EC59: 0.3800 | ED59: 0.1824 | EF59: 0.02588650102 | EG59: 0.01848898819 | EH59: 0.01533745147 | EI59: 0.01397822504 | EJ59: 0.01166184862 | EK59: 0.007235947877 | EL59: 0.009926453264 | EM59: 0.01413979 | EN59: 0.004184369284 | EO59: 0.01398393693 | EP59: 0.003689882586 | EQ59: 0.005602754601 | ER59: 0.004912431587 | ES59: 0.00579736694 | ET59: 0.005424869947 | EU59: 0.004429368675 | EV59: 0.008996842751 | EW59: 0.002945296593 | EX59: 0.003682334728 | EY59: 0.003049946624 | EZ59: 0.009001534663 | FA59: 0.001533847145 | FB59: 0.003282298253 | FC59: 0.003693350521 | FD59: 0.005192926311 | FE59: 0.002534448322 | FF59: 0.002822286907 | FG59: 0.009743060714 | FH59: 0.003122569258 | FI59: 0.002659293973 | FJ59: 0.002313724474 | FK59: 0.002001814342 | FL59: 0.001753347016 | FM59: 0.002855130289 | FN59: 0.002071377033 | FO59: 0.002735180546 | FP59: 0.001769462713 | FQ59: 0.001223772978 | FR59: 0.001999978376 | FS59: 0.001919399892 | FT59: 0.001096683369 | FU59: 0.002637058392 | FV59: 0.00224273381 | FW59: 0.00216562326 | FX59: 0.002818818972 | FY59: 0.001642169108 | FZ59: 0.002021805966 | GA59: 0.001270692096 | GB59: 0.001007945039 | GC59: 0.001893084387 | GD59: 0.003156432621 | GE59: 0.002113604239 | GF59: 0.00163829318 | GG59: 0.00196468704 | GH59: 0.0006048486216 | GI59: 0.0003057902475
A60: B8 | B60: NX | C60: 6.536666667 | D60: 6.373333333 | E60: 3.5 | F60: 11.97333333 | G60: 7.413333333 | H60: 44.34333333 | I60: 14.63 | J60: 7.676666667 | K60: 50.96666667 | M60: 5590.416137 | N60: 5574.03504 | O60: 0.9647715887 | P60: 4.748100874 | R60: 198.4435058 | S60: 0.703436308 | T60: 0.01189390787 | U60: 0.0005608954799 | V60: 0.003544768599 | W60: 0.0002069295571 | X60: 0.0004771585535 | Y60: 0.001126758404 | Z60: 0.001061613914 | AA60: 7.07E-05 | AB60: 0.001406070728 | AC60: 0.0001591001601 | AD60: 0.0006703211921 | AE60: 0.0007097768964 | AG60: 0.002266574092 | AH60: 0.0004939059387 | AI60: 0.000186775924 | AJ60: 0.007321445907 | AK60: 0.02098489954 | AL60: 0.2676506087 | AM60: 0.07054027065 | AN60: 0.001256195823 | AO60: 0.05863983414 | AP60: 0.001791970225 | AQ60: 0.02259591284 | AR60: 0.003215781828 | AS60: 0.002031401064 | AT60: 0.0001873436319 | AU60: 0.0008541166492 | AV60: 0.0005557861081 | AW60: 5.66E-05 | AX60: 1.28E-06 | AY60: 0.001959727932 | AZ60: 0.001590008113 | BA60: 0.02501037486 | BB60: 0.01288072626 | BC60: 0.0107783617 | BD60: 5.52E-05 | BE60: 0.001167491452 | BF60: 0.001045718091 | BG60: 0.0008251635425 | BH60: 0.003287171105 | BI60: 0.01987801091 | BJ60: 1.29E-05 | BK60: 0.004083665395 | BL60: 1.56E-06 | BM60: 0.001370872834 | BN60: 0.001755636914 | BO60: 0.002567743173 | BP60: 0.002951655692 | BQ60: 3.92E-05 | BR60: 0.0009140098407 | BS60: 0.001336952282 | BT60: 0.0008727090854 | BU60: 5.56E-05 | BV60: 2.11E-05 | BW60: 0.0001429204828 | BX60: 0.0001182251859 | BY60: 4.26E-07 | BZ60: 0.0008393562419 | CA60: 0.0002077811191 | CB60: 0.0001156705 | CC60: 0.001077509738 | CD60: 7.04E-05 | CE60: 0.0007046675247 | CG60: 6.536666667 | CH60: 6.373333333 | CI60: 3.5 | CJ60: 11.97333333 | CK60: 7.413333333 | CL60: 44.34333333 | CM60: 14.63 | CN60: 7.676666667 | CO60: 50.96666667 | CQ60: 0.0009578373016 | CR60: 0.001233630952 | CS60: 0.003976190476 | CT60: 0.004204365079 | CU60: 0.05372371032 | CV60: 0.005231150794 | CW60: 0.004492559524 | CX60: 1.156416667 | CY60: 0.1159895833 | CZ60: 0.00894890873 | DA60: 0.009984126984 | DB60: 0.5648998016 | DC60: 1.345054563 | DD60: 0.6038030754 | DE60: 0.01087202381 | DF60: 0.0154280754 | DG60: 0.01235069444 | DH60: 0.03121974206 | DI60: 0.02315823413 | DJ60: 0.008526289683 | DK60: 0.02551240079 | DL60: 0.1435337302 | DM60: 0.01237698413 | DN60: 0.01233978175 | DO60: 0.008128968254 | DP60: 0.008908234127 | DQ60: 0 | DR60: 0.009043154762 | DS60: 0.009548611111 | DT60: 0.009650793651 | DU60: 0.00998015873 | DV60: 4.2295 | DW60: 1.8465 | DX60: 2.3830 | DY60: 1.5264 | DZ60: 0.8443 | EA60: 0.4366 | EB60: 0.5634 | EC60: 0.3609 | ED60: 0.1996 | EF60: 0.02720087609 | EG60: 0.02021295862 | EH60: 0.01802586364 | EI60: 0.01443823309 | EJ60: 0.01273340604 | EK60: 0.007242534498 | EL60: 0.01220032825 | EM60: 0.01643088808 | EN60: 0.005180902985 | EO60: 0.01676782277 | EP60: 0.004349210801 | EQ60: 0.006812921488 | ER60: 0.00582936742 | ES60: 0.006451433434 | ET60: 0.004553585672 | EU60: 0.00544460334 | EV60: 0.01008334521 | EW60: 0.003491545977 | EX60: 0.004281369698 | EY60: 0.003305053907 | EZ60: 0.009473768769 | FA60: 0.001944967524 | FB60: 0.004542373439 | FC60: 0.004409103992 | FD60: 0.005850514542 | FE60: 0.002660563427 | FF60: 0.002909645302 | FG60: 0.01001394291 | FH60: 0.003603810229 | FI60: 0.003061649112 | FJ60: 0.002667659777 | FK60: 0.002326893065 | FL60: 0.00189983474 | FM60: 0.0026977483 | FN60: 0.002368477674 | FO60: 0.004047615939 | FP60: 0.001843489724 | FQ60: 0.001285290857 | FR60: 0.002942998145 | FS60: 0.002291837097 | FT60: 0.001204108616 | FU60: 0.00249521848 | FV60: 0.002252949101 | FW60: 0.001930349044 | FX60: 0.00300885227 | FY60: 0.001500736033 | FZ60: 0.002085617175 | GA60: 0.001499174836 | GB60: 0.003234800045 | GC60: 0.001939716225 | GD60: 0.003202866471 | GE60: 0.002024162787 | GF60: 0.001772952008 | GG60: 0.002490534889 | GH60: 0.0005975126443 | GI60: 0.0002199868405
A61: C1 | B61: DLY | C61: 6.22 | D61: 5.513333333 | E61: 1.5 | F61: 9.856666667 | G61: 7.05 | H61: 42.52333333 | I61: 13.13666667 | J61: 9.4 | K61: 48.85333333 | M61: 7055.827582 | N61: 7028.450161 | O61: 0.9055680753 | P61: 3.926605972 | R61: 25.62939244 | S61: 0.7739460832 | T61: 0.03530734956 | U61: 0.0004341343294 | V61: 0.03019759774 | W61: 0.0001193836427 | X61: 0.0001660817748 | Y61: 0.008081151328 | Z61: 0.003555521902 | AA61: 7.45E-05 | AB61: 0.0005483732627 | AC61: 0.0004751600895 | AD61: 0.001794316362 | AE61: 0.0001315198804 | AG61: 0.4279511801 | AH61: 0.00551921793 | AI61: 4.43E-05 | AJ61: 0.07632967984 | AK61: 0.007983269932 | AL61: 0.1248119708 | AM61: 0.01216341233 | AN61: 0.001298049773 | AO61: 0.002267629633 | AP61: 0.004552276382 | AQ61: 0.004277232299 | AR61: 0.003831093648 | AS61: 0.006440516671 | AT61: 8.27E-05 | AU61: 0.001730469199 | AV61: 0.02406695087 | AW61: 0.004104290912 | AX61: 9.89E-06 | AY61: 0.003285754445 | AZ61: 0.001221274877 | BA61: 0.006555942845 | BB61: 0.001769252393 | BC61: 0.001574017265 | BD61: 0.004926389101 | BE61: 0.00495026583 | BF61: 0.003496687533 | BG61: 0.002517873578 | BH61: 0.003374269831 | BI61: 0.0003804446691 | BJ61: 3.69E-06 | BK61: 0.0004839984365 | BL61: 3.26E-05 | BM61: 0.0005467902751 | BN61: 0.0001892989252 | BO61: 0.0008910900624 | BP61: 0.0008637835275 | BQ61: 0.0008623324556 | BR61: 0.000180856325 | BS61: 0.0005675010286 | BT61: 0.0001654221966 | BU61: 2.88E-05 | BV61: 0.0002006436691 | BW61: 0.0004019469164 | BX61: 0.0007575914475 | BY61: 4.64E-05 | BZ61: 0.000304725099 | CA61: 0.0009702394387 | CB61: 0.000410917179 | CC61: 0.0003962745444 | CD61: 0.0001666094373 | CE61: 0.0001340262773 | CG61: 6.22 | CH61: 5.513333333 | CI61: 1.5 | CJ61: 9.856666667 | CK61: 7.05 | CL61: 42.52333333 | CM61: 13.13666667 | CN61: 9.4 | CO61: 48.85333333 | CQ61: 0.0009556074766 | CR61: 0.001456542056 | CS61: 0.005796261682 | CT61: 0.004907476636 | CU61: 0.06942757009 | CV61: 0.004214485981 | CW61: 0.005843925234 | CX61: 1.609668692 | CY61: 0.1443897196 | CZ61: 0.01455794393 | DA61: 0.01376495327 | DB61: 0.7389214953 | DC61: 2.37807243 | DD61: 0.8036911215 | DE61: 0.01138738318 | DF61: 0.01927149533 | DG61: 0.01428130841 | DH61: 0.03824953271 | DI61: 0.02567102804 | DJ61: 0.007945794393 | DK61: 0.01679626168 | DL61: 0.1089462617 | DM61: 0.01095420561 | DN61: 0.0105135514 | DO61: 0.007603271028 | DP61: 0.008529439252 | DQ61: 0 | DR61: 0.008486915888 | DS61: 0.008914953271 | DT61: 0.009735046729 | DU61: 0.009477570093 | DV61: 6.1124 | DW61: 2.4988 | DX61: 3.6137 | DY61: 2.5967 | DZ61: 1.0065 | EA61: 0.4088 | EB61: 0.5912 | EC61: 0.4248 | ED61: 0.1647 | EF61: 0.04634723649 | EG61: 0.03585519516 | EH61: 0.0281080542 | EI61: 0.02356791406 | EJ61: 0.02097181451 | EK61: 0.02032292154 | EL61: 0.01853731161 | EM61: 0.02098091669 | EN61: 0.009270238792 | EO61: 0.01735838165 | EP61: 0.008113338741 | EQ61: 0.01137521646 | ER61: 0.01152757901 | ES61: 0.0105449395 | ET61: 0.009711232734 | EU61: 0.00625623054 | EV61: 0.009400571432 | EW61: 0.005438617482 | EX61: 0.007305619355 | EY61: 0.005644142029 | EZ61: 0.008839006607 | FA61: 0.003594832759 | FB61: 0.006465844472 | FC61: 0.006677569054 | FD61: 0.007854784112 | FE61: 0.006549083233 | FF61: 0.005990420551 | FG61: 0.008465025803 | FH61: 0.002089279705 | FI61: 0.003451836219 | FJ61: 0.008170458208 | FK61: 0.003878055611 | FL61: 0.003766586906 | FM61: 0.004041630989 | FN61: 0.004421547996 | FO61: 0.006336039494 | FP61: 0.003654458623 | FQ61: 0.002470515868 | FR61: 0.00331002692 | FS61: 0.003847846932 | FT61: 0.002440307189 | FU61: 0.004312321856 | FV61: 0.003267813919 | FW61: 0.003200405034 | FX61: 0.003986754088 | FY61: 0.003100281073 | FZ61: 0.002549401413 | GA61: 0.002722210885 | GB61: 0.0005230454622 | GC61: 0.003390495453 | GD61: 0.00400931166 | GE61: 0.003083263957 | GF61: 0.001610162147 | GG61: 0.002357596091 | GH61: 0.001033427024 | GI61: 0.0005357093624
A62: C2 | B62: DLY | C62: 6.633333333 | D62: 6.366666667 | E62: 3 | F62: 7.26 | G62: 7.45 | H62: 44.69333333 | I62: 11.01333333 | J62: 8.793333333 | K62: 47.39666667 | M62: 6096.101484 | N62: 6068.434211 | O62: 0.9582705819 | P62: 4.741067823 | R62: 227.8513979 | S62: 0.7111382859 | T62: 0.02857150916 | U62: 0.002106386163 | V62: 0.003121061764 | W62: 0.000324357732 | X62: 0.0002370984509 | Y62: 0.00206760426 | Z62: 0.0005931868306 | AA62: 0.01422661218 | AB62: 0.00156150043 | AC62: 0.0002222908153 | AD62: 0.001850249324 | AE62: 0.0003872901833 | AG62: 0.03558733164 | AH62: 0.01110396388 | AI62: 0.0008777049716 | AJ62: 0.0216187954 | AK62: 0.02751417346 | AL62: 0.2990379091 | AM62: 0.03782522371 | AN62: 3.31E-05 | AO62: 0.01749768939 | AP62: 0.00112855337 | AQ62: 0.01433202844 | AR62: 0.003214314612 | AS62: 0.001387863274 | AT62: 0.0001311533438 | AU62: 0.0008036667936 | AV62: 0.0004170817359 | AW62: 5.13E-05 | AX62: 1.41E-06 | AY62: 0.002661848779 | AZ62: 0.001367238353 | BA62: 0.01834119578 | BB62: 0.00982927325 | BC62: 0.007506942401 | BD62: 0.0003920497804 | BE62: 0.001635009763 | BF62: 0.0004810718754 | BG62: 0.0005829625108 | BH62: 0.007682166089 | BI62: 0.001768102202 | BJ62: 0.008704421789 | BK62: 0.002239831165 | BL62: 9.03E-05 | BM62: 0.00155004214 | BN62: 0.0006582346584 | BO62: 0.001399321563 | BP62: 0.001804416166 | BQ62: 0.0004777225292 | BR62: 0.0005834913549 | BS62: 0.001045877404 | BT62: 0.0006321450147 | BU62: 9.34E-05 | BV62: 5.87E-05 | BW62: 0.0001172271151 | BX62: 0.0001665859004 | BY62: 2.64E-06 | BZ62: 0.0004835398146 | CA62: 0.001849544198 | CB62: 3.38E-05 | CC62: 0.0005589882436 | CD62: 0.0002825790459 | CE62: 0.0005344851323 | CG62: 6.633333333 | CH62: 6.366666667 | CI62: 3 | CJ62: 7.26 | CK62: 7.45 | CL62: 44.69333333 | CM62: 11.01333333 | CN62: 8.793333333 | CO62: 47.39666667 | CQ62: 0.0009296296296 | CR62: 0.001507407407 | CS62: 0.006627314815 | CT62: 0.00469537037 | CU62: 0.05932592593 | CV62: 0.004233333333 | CW62: 0.005293055556 | CX62: 1.27337963 | CY62: 0.1949842593 | CZ62: 0.01235185185 | DA62: 0.01228888889 | DB62: 0.5451361111 | DC62: 2.161898148 | DD62: 0.6689652778 | DE62: 0.01258194444 | DF62: 0.01555138889 | DG62: 0.01054953704 | DH62: 0.03361712963 | DI62: 0.02477453704 | DJ62: 0.007819907407 | DK62: 0.01844953704 | DL62: 0.1348231481 | DM62: 0.01016805556 | DN62: 0.01133518519 | DO62: 0.007414814815 | DP62: 0.008451388889 | DQ62: 0 | DR62: 0.008401388889 | DS62: 0.00878287037 | DT62: 0.01026898148 | DU62: 0.009446296296 | DV62: 5.2841 | DW62: 1.9522 | DX62: 3.3318 | DY62: 2.4249 | DZ62: 0.8956 | EA62: 0.3695 | EB62: 0.6305 | EC62: 0.4589 | ED62: 0.1695 | EF62: 0.03334485626 | EG62: 0.02414860943 | EH62: 0.01899572853 | EI62: 0.01800485091 | EJ62: 0.01531920415 | EK62: 0.00957560435 | EL62: 0.01238376667 | EM62: 0.01723485386 | EN62: 0.006133005356 | EO62: 0.0164667959 | EP62: 0.004756071527 | EQ62: 0.007627871425 | ER62: 0.006309815576 | ES62: 0.007267552293 | ET62: 0.006102684959 | EU62: 0.005163281506 | EV62: 0.009877574347 | EW62: 0.003755145874 | EX62: 0.005067208156 | EY62: 0.003710722967 | EZ62: 0.009956372122 | FA62: 0.001960072621 | FB62: 0.004389582546 | FC62: 0.004908378636 | FD62: 0.006831432168 | FE62: 0.003552422291 | FF62: 0.003704376837 | FG62: 0.009278746512 | FH62: 0.003853510882 | FI62: 0.002862280704 | FJ62: 0.003240580537 | FK62: 0.00277978102 | FL62: 0.002140937313 | FM62: 0.003381781919 | FN62: 0.002687762141 | FO62: 0.003762020847 | FP62: 0.0021495751 | FQ62: 0.001458199543 | FR62: 0.002813450763 | FS62: 0.002446080375 | FT62: 0.001403552317 | FU62: 0.003182583964 | FV62: 0.002855934574 | FW62: 0.002490679563 | FX62: 0.00384557822 | FY62: 0.002049094716 | FZ62: 0.002795470062 | GA62: 0.001743070247 | GB62: 0.001307302685 | GC62: 0.002344013458 | GD62: 0.003546781287 | GE62: 0.002602265674 | GF62: 0.001904367706 | GG62: 0.003093914432 | GH62: 0.0007105902271 | GI62: 0.0003844696813
A63: C3 | B63: DLY | C63: 6.166666667 | D63: 5.886666667 | E63: 2.5 | F63: 9.993333333 | G63: 8.006666667 | H63: 42.39 | I63: 14.5 | J63: 9.333333333 | K63: 44.02 | M63: 8645.595775 | N63: 8613.826685 | O63: 0.9762016001 | P63: 5.110661882 | R63: 5.354564842 | S63: 0.4809057399 | T63: 0.1005617318 | U63: 0.0003824394843 | V63: 0.08981229178 | W63: 0.0001475441366 | X63: 0.0002094840863 | Y63: 0.04011389963 | Z63: 0.01202413244 | AA63: 0.0001318209186 | AB63: 0.0007524909786 | AC63: 0.001374113961 | AD63: 0.00155183397 | AE63: 0.0001424618843 | AG63: 0.1067458799 | AH63: 0.0168397253 | AI63: 2.51E-05 | AJ63: 0.140687543 | AK63: 0.004319437979 | AL63: 0.09094341055 | AM63: 0.006225759046 | AN63: 0.002191086015 | AO63: 0.001106025153 | AP63: 0.01596303678 | AQ63: 0.003382238894 | AR63: 0.005213755561 | AS63: 0.01891503125 | AT63: 0.0001087919629 | AU63: 0.00595433501 | AV63: 0.07020893298 | AW63: 0.009266216474 | AX63: 0.0001262622051 | AY63: 0.003402250262 | AZ63: 0.002129463706 | BA63: 0.004527333862 | BB63: 0.00108807845 | BC63: 0.001103642847 | BD63: 0.02020068226 | BE63: 0.01277535286 | BF63: 0.0118103602 | BG63: 0.007318125646 | BH63: 0.002654047434 | BI63: 0.0006325815888 | BJ63: 4.76E-07 | BK63: 0.000447714662 | BL63: 0.00062479939 | BM63: 0.0007493145709 | BN63: 0.0001594556654 | BO63: 0.001592333168 | BP63: 0.001089984294 | BQ63: 0.001033603058 | BR63: 0.0001731142184 | BS63: 0.001038844131 | BT63: 0.0001518322869 | BU63: 0.0001445265493 | BV63: 0.0001184800063 | BW63: 0.001173364996 | BX63: 0.001155100652 | BY63: 0.003397803292 | BZ63: 0.0005077487671 | CA63: 0.001933955814 | CB63: 0.001522452199 | CC63: 0.0005938294152 | CD63: 0.0004817022242 | CE63: 0.0001022803272 | CG63: 6.166666667 | CH63: 5.886666667 | CI63: 2.5 | CJ63: 9.993333333 | CK63: 8.006666667 | CL63: 42.39 | CM63: 14.5 | CN63: 9.333333333 | CO63: 44.02 | CQ63: 0.0009916584887 | CR63: 0.001547595682 | CS63: 0.006700686948 | CT63: 0.005074582924 | CU63: 0.06577723258 | CV63: 0.004783611384 | CW63: 0.00556329735 | CX63: 1.292667812 | CY63: 0.2107227674 | CZ63: 0.01225417076 | DA63: 0.01314671246 | DB63: 0.5401506379 | DC63: 1.995348871 | DD63: 0.530264475 | DE63: 0.0118155054 | DF63: 0.01594896958 | DG63: 0.0118454367 | DH63: 0.03308194308 | DI63: 0.02081010795 | DJ63: 0.008199705594 | DK63: 0.01789499509 | DL63: 0.08871736997 | DM63: 0.01100981354 | DN63: 0.01183120707 | DO63: 0.007885181551 | DP63: 0.008842983317 | DQ63: 0 | DR63: 0.008897939156 | DS63: 0.009362119725 | DT63: 0.01000785083 | DU63: 0.009898429833 | DV63: 4.9710 | DW63: 1.9769 | DX63: 2.9941 | DY63: 2.2758 | DZ63: 0.7065 | EA63: 0.3977 | EB63: 0.6023 | EC63: 0.4578 | ED63: 0.1421 | EF63: 0.04674195071 | EG63: 0.0362039006 | EH63: 0.02672311778 | EI63: 0.02547320136 | EJ63: 0.01764891515 | EK63: 0.01423713567 | EL63: 0.01746341295 | EM63: 0.01738892619 | EN63: 0.00690185742 | EO63: 0.01443883756 | EP63: 0.007425964687 | EQ63: 0.008804684439 | ER63: 0.00885884219 | ES63: 0.008876312432 | ET63: 0.008393339645 | EU63: 0.006018498445 | EV63: 0.007297796637 | EW63: 0.005130057218 | EX63: 0.00684372916 | EY63: 0.004415206671 | EZ63: 0.006387597017 | FA63: 0.003425596859 | FB63: 0.005769309263 | FC63: 0.005489308926 | FD63: 0.007313202214 | FE63: 0.005125927888 | FF63: 0.005699428294 | FG63: 0.008346328811 | FH63: 0.002429951873 | FI63: 0.003282182052 | FJ63: 0.004879597473 | FK63: 0.003503736488 | FL63: 0.003270429344 | FM63: 0.002847490662 | FN63: 0.003564882336 | FO63: 0.005056046919 | FP63: 0.002947388683 | FQ63: 0.003107161989 | FR63: 0.003806289319 | FS63: 0.004117736092 | FT63: 0.003030928205 | FU63: 0.004117894912 | FV63: 0.00475444701 | FW63: 0.002758551247 | FX63: 0.002951200372 | FY63: 0.003162113842 | FZ63: 0.003924610505 | GA63: 0.003820106692 | GB63: 0.0005744533283 | GC63: 0.002405652354 | GD63: 0.003198960171 | GE63: 0.003495795469 | GF63: 0.001838981224 | GG63: 0.002285584144 | GH63: 0.0008751003149 | GI63: 0.0005558713434
A64: C4 | B64: DLY | C64: 6.103333333 | D64: 5.433333333 | E64: 2.5 | F64: 6.976666667 | G64: 5.836666667 | H64: 39.28 | I64: 12.35666667 | J64: 8.273333333 | K64: 43.89666667 | M64: 4154.138299 | N64: 4139.88 | O64: 0.950848081 | P64: 4.288309372 | R64: 211.8732049 | S64: 0.6372994807 | T64: 0.06062155516 | U64: 0.0007368979493 | V64: 0.003007928638 | W64: 0.0001681546612 | X64: 9.02E-05 | Y64: 0.001720971252 | Z64: 0.01040210562 | AA64: 0.0001767252351 | AB64: 0.0006470783342 | AC64: 0.001423572335 | AD64: 0.0001350722457 | AE64: 0.0003666491541 | AG64: 0.0861412962 | AH64: 0.002896168353 | AI64: 0.000119816624 | AJ64: 0.2473431649 | AK64: 0.00873135793 | AL64: 0.1206704246 | AM64: 0.0248726627 | AN64: 0.0001047324138 | AO64: 0.01347157098 | AP64: 0.01386701726 | AQ64: 0.006414731788 | AR64: 0.004443499777 | AS64: 0.0225298106 | AT64: 0.0002876284622 | AU64: 0.0004016170959 | AV64: 0.0001124459304 | AW64: 9.08E-06 | AX64: 3.43E-07 | AY64: 0.005608926424 | AZ64: 0.0008538005782 | BA64: 0.008981790101 | BB64: 0.003429429465 | BC64: 0.002516149104 | BD64: 0.0002744297783 | BE64: 0.009213538421 | BF64: 0.01020052572 | BG64: 0.009080865937 | BH64: 0.001834959885 | BI64: 0.0004729242713 | BJ64: 1.17E-05 | BK64: 0.0009641895708 | BL64: 7.46E-05 | BM64: 0.0006393648176 | BN64: 0.000843001655 | BO64: 0.000954590528 | BP64: 0.0007854073979 | BQ64: 0.001437970899 | BR64: 0.0001894096846 | BS64: 0.001191995427 | BT64: 0.0001990087274 | BU64: 0.0004441271428 | BV64: 0.0002838574096 | BW64: 0.001261074253 | BX64: 0.001035153923 | BY64: 4.29E-06 | BZ64: 0.0005625724749 | CA64: 2.38E-05 | CB64: 0.0009847589483 | CC64: 0.0004718958024 | CD64: 0.0001397003556 | CE64: 0.0002476895875 | CG64: 6.103333333 | CH64: 5.433333333 | CI64: 2.5 | CJ64: 6.976666667 | CK64: 5.836666667 | CL64: 39.28 | CM64: 12.35666667 | CN64: 8.273333333 | CO64: 43.89666667 | CQ64: 0.0009131054131 | CR64: 0.001135327635 | CS64: 0.002221747388 | CT64: 0.00224691358 | CU64: 0.01880294397 | CV64: 0.003790598291 | CW64: 0.004705603039 | CX64: 0.569142925 | CY64: 0.051168566 | CZ64: 0.009868471035 | DA64: 0.009448243115 | DB64: 0.2790161443 | DC64: 0.6981149098 | DD64: 0.4268670465 | DE64: 0.01168233618 | DF64: 0.01184947768 | DG64: 0.008239791073 | DH64: 0.01575403609 | DI64: 0.01456267806 | DJ64: 0.007858499525 | DK64: 0.01395109212 | DL64: 0.08058024691 | DM64: 0.009588319088 | DN64: 0.01118376068 | DO64: 0.007465337132 | DP64: 0.008371320038 | DQ64: 0 | DR64: 0.008595441595 | DS64: 0.008975308642 | DT64: 0.009076923077 | DU64: 0.00941642925 | DV64: 2.3146 | DW64: 0.9292 | DX64: 1.3854 | DY64: 0.7961 | DZ64: 0.5782 | EA64: 0.4014 | EB64: 0.5986 | EC64: 0.3439 | ED64: 0.2498 | EF64: 0.04067200156 | EG64: 0.03086709354 | EH64: 0.02125005249 | EI64: 0.02342457852 | EJ64: 0.02000080563 | EK64: 0.01431302993 | EL64: 0.01371188987 | EM64: 0.01715777484 | EN64: 0.006301257389 | EO64: 0.01486480348 | EP64: 0.005875299863 | EQ64: 0.008800265345 | ER64: 0.008076908903 | ES64: 0.009078808999 | ET64: 0.006988960244 | EU64: 0.005868443404 | EV64: 0.007650094319 | EW64: 0.00333258198 | EX64: 0.005741598909 | EY64: 0.003702145129 | EZ64: 0.006993588354 | FA64: 0.002645050536 | FB64: 0.006122475216 | FC64: 0.005847359792 | FD64: 0.007333668728 | FE64: 0.004358822506 | FF64: 0.004905625125 | FG64: 0.008672392381 | FH64: 0.00161298202 | FI64: 0.003011014045 | FJ64: 0.00578342331 | FK64: 0.003188424926 | FL64: 0.002492837143 | FM64: 0.003019070384 | FN64: 0.003268988321 | FO64: 0.003981203017 | FP64: 0.002572543481 | FQ64: 0.00265584946 | FR64: 0.002283200904 | FS64: 0.002965932826 | FT64: 0.003031069188 | FU64: 0.003151228635 | FV64: 0.004048224906 | FW64: 0.002598598026 | FX64: 0.003030383542 | FY64: 0.00296301883 | FZ64: 0.003861900628 | GA64: 0.002045453182 | GB64: 0.000764666609 | GC64: 0.002621052929 | GD64: 0.002827603762 | GE64: 0.003306184612 | GF64: 0.001575100083 | GG64: 0.002213436432 | GH64: 0.0003872185316 | GI64: 0.0005761139818
A65: C5 | B65: DLY | C65: 6.39 | D65: 5.41 | E65: 3 | F65: 7.446666667 | G65: 6.4 | H65: 42.54333333 | I65: 11.02666667 | J65: 7.256666667 | K65: 48.24666667 | M65: 5652.636256 | N65: 5608.919811 | O65: 0.9569494036 | P65: 4.617472005 | R65: 41.98418165 | S65: 0.5518308939 | T65: 0.04772237801 | U65: 0.0008400548109 | V65: 0.01314378111 | W65: 0.0001924617347 | X65: 0.0003442625395 | Y65: 0.004569475298 | Z65: 0.005659730364 | AA65: 0.0001526140234 | AB65: 0.001503099041 | AC65: 0.000833820135 | AD65: 0.000716716657 | AE65: 0.0002515556194 | AG65: 0.09060718967 | AH65: 0.005420644096 | AI65: 0.000171589124 | AJ65: 0.06433318108 | AK65: 0.01234303187 | AL65: 0.1868011911 | AM65: 0.01466314453 | AN65: 0.0001358075057 | AO65: 0.001736221705 | AP65: 0.007649676271 | AQ65: 0.007299450129 | AR65: 0.01147614084 | AS65: 0.01261762868 | AT65: 0.001336931374 | AU65: 0.001271060667 | AV65: 0.008510061547 | AW65: 0.000985349867 | AX65: 1.11E-05 | AY65: 0.003294077464 | AZ65: 0.0009864341584 | BA65: 0.0229381859 | BB65: 0.003078574536 | BC65: 0.003033576441 | BD65: 0.001210882491 | BE65: 0.005921044606 | BF65: 0.005562686278 | BG65: 0.005066894006 | BH65: 0.003973386066 | BI65: 0.0006606045738 | BJ65: 5.42E-07 | BK65: 0.0007514139838 | BL65: 2.55E-05 | BM65: 0.001500930458 | BN65: 0.0003374857178 | BO65: 0.001018149684 | BP65: 0.0009528211231 | BQ65: 0.0003258295846 | BR65: 0.0002949272779 | BS65: 0.0006627731567 | BT65: 0.0002851686548 | BU65: 0.001965278277 | BV65: 0.001833265791 | BW65: 0.0007245777701 | BX65: 0.000936827824 | BY65: 3.36E-05 | BZ65: 0.0003727251904 | CA65: 0.0007633411899 | CB65: 0.0007240356244 | CC65: 0.0003580872556 | CD65: 0.0005974445961 | CE65: 0.0001949013905 | CG65: 6.39 | CH65: 5.41 | CI65: 3 | CJ65: 7.446666667 | CK65: 6.4 | CL65: 42.54333333 | CM65: 11.02666667 | CN65: 7.256666667 | CO65: 48.24666667 | CQ65: 0.0009595 | CR65: 0.001107 | CS65: 0.00152 | CT65: 0.0018175 | CU65: 0.01074 | CV65: 0.0040825 | CW65: 0.004563 | CX65: 0.3206445 | CY65: 0.024633 | CZ65: 0.009141 | DA65: 0.0092295 | DB65: 0.1476855 | DC65: 0.3552275 | DD65: 0.304413 | DE65: 0.0114475 | DF65: 0.010691 | DG65: 0.0074305 | DH65: 0.013154 | DI65: 0.0128175 | DJ65: 0.0081625 | DK65: 0.011167 | DL65: 0.057215 | DM65: 0.0101325 | DN65: 0.011515 | DO65: 0.0077605 | DP65: 0.0087955 | DQ65: 0 | DR65: 0.0090415 | DS65: 0.0093635 | DT65: 0.009555 | DU65: 0.009941 | DV65: 1.4040 | DW65: 0.5399 | DX65: 0.8640 | DY65: 0.4251 | DZ65: 0.4274 | EA65: 0.3846 | EB65: 0.6154 | EC65: 0.3028 | ED65: 0.3045 | EF65: 0.03043335064 | EG65: 0.02281403453 | EH65: 0.01764115103 | EI65: 0.01654330592 | EJ65: 0.01390630909 | EK65: 0.01036148922 | EL65: 0.011558547 | EM65: 0.01383854087 | EN65: 0.004660826854 | EO65: 0.01244766599 | EP65: 0.004777117113 | EQ65: 0.006875492167 | ER65: 0.006220851196 | ES65: 0.006610382904 | ET65: 0.005599281115 | EU65: 0.004451558601 | EV65: 0.006994764228 | EW65: 0.003224682811 | EX65: 0.004675464788 | EY65: 0.003417686691 | EZ65: 0.006680319703 | FA65: 0.002013258174 | FB65: 0.003980162888 | FC65: 0.00445806435 | FD65: 0.005963603046 | FE65: 0.003264801595 | FF65: 0.003570571788 | FG65: 0.006953832225 | FH65: 0.002412548505 | FI65: 0.002259392336 | FJ65: 0.003653520084 | FK65: 0.002466492005 | FL65: 0.00203087791 | FM65: 0.002603654875 | FN65: 0.002454564799 | FO65: 0.003436661792 | FP65: 0.002088616431 | FQ65: 0.001531832764 | FR65: 0.002205177763 | FS65: 0.002479503503 | FT65: 0.001516652684 | FU65: 0.002633201818 | FV65: 0.002821868532 | FW65: 0.00204036546 | FX65: 0.002701783253 | FY65: 0.002046600136 | FZ65: 0.002333666301 | GA65: 0.001840042613 | GB65: 0.000365406223 | GC65: 0.002089971795 | GD65: 0.002654074428 | GE65: 0.002405500611 | GF65: 0.001436415116 | GG65: 0.00192299091 | GH65: 0.0005752166211 | GI65: 0.0003429071752
A66: C6 | B66: DLY | C66: 6.27 | D66: 5.43 | E66: 1.5 | F66: 6.573333333 | G66: 6.16 | H66: 41.72333333 | I66: 10.35 | J66: 7.896666667 | K66: 47.84666667 | M66: 4971.831963 | N66: 4924.54717 | O66: 0.9784148156 | P66: 5.237577365 | R66: 64.97094595 | S66: 0.4838342308 | T66: 0.04489068887 | U66: 0.002561140879 | V66: 0.007446932222 | W66: 0.0003466289773 | X66: 0.0004081276668 | Y66: 0.01178650339 | Z66: 6.04E-05 | AA66: 6.82E-05 | AB66: 0.003024617366 | AC66: 8.33E-05 | AD66: 0.0004780125413 | AE66: 0.0003550151622 | AG66: 0.00962454491 | AH66: 0.009214180927 | AI66: 0.0004377588536 | AJ66: 0.02121089802 | AK66: 0.007363070372 | AL66: 0.1690313845 | AM66: 0.01943190865 | AN66: 0.00604532118 | AO66: 0.01016126075 | AP66: 0.0003499834513 | AQ66: 0.01992166185 | AR66: 0.02026884991 | AS66: 0.0005976554463 | AT66: 0.001631951588 | AU66: 0.001451928152 | AV66: 0.002530950613 | AW66: 0.0004030959558 | AX66: 0.001667173565 | AY66: 0.005206143607 | AZ66: 0.001432919466 | BA66: 0.03460698983 | BB66: 0.005930709986 | BC66: 0.007164597329 | BD66: 0.006847599538 | BE66: 0.004387092879 | BF66: 8.95E-06 | BG66: 7.83E-05 | BH66: 0.003243217254 | BI66: 0.001847197002 | BJ66: 1.12E-06 | BK66: 0.002072505837 | BL66: 0.01365829986 | BM66: 0.003020144734 | BN66: 0.00124115537 | BO66: 0.001683945935 | BP66: 0.001284763532 | BQ66: 0.001341789589 | BR66: 0.0009381345547 | BS66: 0.001138843914 | BT66: 0.0009375754757 | BU66: 0.002709296813 | BV66: 0.00193720872 | BW66: 4.70E-05 | BX66: 0.0002717123919 | BY66: 6.04E-05 | BZ66: 0.0004511767495 | CA66: 0.001360239196 | CB66: 0.0005210616239 | CC66: 0.0004701854353 | CD66: 0.00188130082 | CE66: 0.00063455466 | CG66: 6.27 | CH66: 5.43 | CI66: 1.5 | CJ66: 6.573333333 | CK66: 6.16 | CL66: 41.72333333 | CM66: 10.35 | CN66: 7.896666667 | CO66: 47.84666667 | CQ66: 0.000885359116 | CR66: 0.001025322284 | CS66: 0.001344843462 | CT66: 0.001636279926 | CU66: 0.008803406998 | CV66: 0.003506445672 | CW66: 0.003815377532 | CX66: 0.1731192449 | CY66: 0.01720027624 | CZ66: 0.007349907919 | DA66: 0.008389963168 | DB66: 0.06951979742 | DC66: 0.2572472376 | DD66: 0.08531813996 | DE66: 0.00882412523 | DF66: 0.008857734807 | DG66: 0.006655156538 | DH66: 0.01172744015 | DI66: 0.01070626151 | DJ66: 0.007464088398 | DK66: 0.008818139963 | DL66: 0.01617357274 | DM66: 0.009362799263 | DN66: 0.009930478821 | DO66: 0.007060773481 | DP66: 0.008050644567 | DQ66: 0 | DR66: 0.008313535912 | DS66: 0.008571362799 | DT66: 0.008472836096 | DU66: 0.009108195212 | DV66: 0.7873 | DW66: 0.3056 | DX66: 0.4817 | DY66: 0.3152 | DZ66: 0.1565 | EA66: 0.3881 | EB66: 0.6119 | EC66: 0.4004 | ED66: 0.1988 | EF66: 0.01858993568 | EG66: 0.01378185632 | EH66: 0.01126096913 | EI66: 0.009887312038 | EJ66: 0.008389539408 | EK66: 0.005845170899 | EL66: 0.007245104704 | EM66: 0.01446505085 | EN66: 0.00337348266 | EO66: 0.01630721614 | EP66: 0.002958646045 | EQ66: 0.003514929646 | ER66: 0.003336583446 | ES66: 0.003713961768 | ET66: 0.003185073038 | EU66: 0.002932928411 | EV66: 0.01059063341 | EW66: 0.002206684796 | EX66: 0.002511382848 | EY66: 0.001871796477 | EZ66: 0.0106627546 | FA66: 0.001386515909 | FB66: 0.002282719539 | FC66: 0.002149099659 | FD66: 0.00350151175 | FE66: 0.001631392509 | FF66: 0.002122822946 | FG66: 0.01091266292 | FH66: 0.001587225269 | FI66: 0.002420812051 | FJ66: 0.001623565403 | FK66: 0.001402170121 | FL66: 0.001278613663 | FM66: 0.001678355145 | FN66: 0.00142509236 | FO66: 0.001779548443 | FP66: 0.001136048519 | FQ66: 0.001214319579 | FR66: 0.001502245261 | FS66: 0.001536908159 | FT66: 0.001065045487 | FU66: 0.001787934628 | FV66: 0.001807502393 | FW66: 0.001225501158 | FX66: 0.003994060345 | FY66: 0.001302094981 | FZ66: 0.001500568024 | GA66: 0.001236682738 | GB66: 0.0006893444016 | GC66: 0.001228855632 | GD66: 0.002963118677 | GE66: 0.001424533281 | GF66: 0.001036532458 | GG66: 0.001138843914 | GH66: 0.0005260933349 | GI66: 0.0002750668658
A67: C7 | B67: DLY | C67: 6.313333333 | D67: 5.406666667 | E67: 2 | F67: 10.44 | G67: 7.036666667 | H67: 43.46333333 | I67: 15.26333333 | J67: 10.16666667 | K67: 52.53666667 | M67: 4499.124809 | N67: 4473.469083 | O67: 0.9422395467 | P67: 4.125797748 | R67: 141.3163256 | S67: 0.5147173573 | T67: 0.09887495186 | U67: 0.0004098338423 | V67: 0.003642306402 | W67: 0.0001018459847 | X67: 7.77E-05 | Y67: 0.004954404673 | Z67: 0.01613418891 | AA67: 0.000367660505 | AB67: 0.0005916516741 | AC67: 0.002271585443 | AD67: 0.0001125205639 | AE67: 0.0002043919418 | AG67: 0.04036093377 | AH67: 0.00680583168 | AI67: 2.52E-05 | AJ67: 0.1548156964 | AK67: 0.006875653927 | AL67: 0.184959133 | AM67: 0.01314968157 | AN67: 0.003610632651 | AO67: 0.00294128404 | AP67: 0.02218405039 | AQ67: 0.004166060753 | AR67: 0.005936465955 | AS67: 0.02964295633 | AT67: 0.0003620607258 | AU67: 0.0002505901205 | AV67: 8.70E-05 | AW67: 1.57E-05 | AX67: 1.40E-06 | AY67: 0.003642656388 | AZ67: 0.0006357499356 | BA67: 0.008498539945 | BB67: 0.001466442186 | BC67: 0.001040158992 | BD67: 0.003538185507 | BE67: 0.01467317151 | BF67: 0.0157616286 | BG67: 0.01363003764 | BH67: 0.001614836335 | BI67: 0.0002229412105 | BJ67: 0.0001128705501 | BK67: 0.000437132766 | BL67: 0.0002064918591 | BM67: 0.0005888517845 | BN67: 0.0003102627679 | BO67: 0.000490855648 | BP67: 0.0006756483626 | BQ67: 0.001261875251 | BR67: 0.0001349196808 | BS67: 0.000608800998 | BT67: 0.0001466442186 | BU67: 0.0001461192392 | BV67: 0.0004241832766 | BW67: 0.001918449365 | BX67: 0.001791054388 | BY67: 2.29E-05 | BZ67: 0.0003975843252 | CA67: 3.88E-05 | CB67: 0.001965697502 | CC67: 0.0003561109603 | CD67: 0.0004073839389 | CE67: 9.97E-05 | CG67: 6.313333333 | CH67: 5.406666667 | CI67: 2 | CJ67: 10.44 | CK67: 7.036666667 | CL67: 43.46333333 | CM67: 15.26333333 | CN67: 10.16666667 | CO67: 52.53666667 | CQ67: 0.000985380117 | CR67: 0.001397660819 | CS67: 0.005072124756 | CT67: 0.00406871345 | CU67: 0.04797173489 | CV67: 0.00545662768 | CW67: 0.004948830409 | CX67: 1.008617446 | CY67: 0.1086189084 | CZ67: 0.01056432749 | DA67: 0.01103606238 | DB67: 0.4622319688 | DC67: 1.378022904 | DD67: 0.4398840156 | DE67: 0.0105545809 | DF67: 0.0130711501 | DG67: 0.009945906433 | DH67: 0.02305214425 | DI67: 0.01735721248 | DJ67: 0.008023391813 | DK67: 0.0132997076 | DL67: 0.07730945419 | DM67: 0.01091179337 | DN67: 0.01132797271 | DO67: 0.007716374269 | DP67: 0.008600389864 | DQ67: 0 | DR67: 0.008834307992 | DS67: 0.009162768031 | DT67: 0.009515107212 | DU67: 0.009771442495 | DV67: 3.7373 | DW67: 1.5895 | DX67: 2.1478 | DY67: 1.5446 | DZ67: 0.5919 | EA67: 0.4253 | EB67: 0.5747 | EC67: 0.4133 | ED67: 0.1584 | EF67: 0.03586693595 | EG67: 0.0269855111 | EH67: 0.01901300041 | EI67: 0.02064201119 | EJ67: 0.01664341883 | EK67: 0.01191300533 | EL67: 0.01244830923 | EM67: 0.01372610885 | EN67: 0.005063425374 | EO67: 0.01152294571 | EP67: 0.005371763218 | EQ67: 0.007053446918 | ER67: 0.006771533032 | ES67: 0.007650523378 | ET67: 0.005988438906 | EU67: 0.004989753279 | EV67: 0.005780722095 | EW67: 0.003329768724 | EX67: 0.005221269151 | EY67: 0.003262921359 | EZ67: 0.005205694765 | FA67: 0.002313408794 | FB67: 0.004690340083 | FC67: 0.004813885213 | FD67: 0.006610539379 | FE67: 0.003489537425 | FF67: 0.004144711595 | FG67: 0.007661197957 | FH67: 0.002278235181 | FI67: 0.002461277964 | FJ67: 0.004173935443 | FK67: 0.002656395272 | FL67: 0.002175864217 | FM67: 0.002767515891 | FN67: 0.002740741946 | FO67: 0.003478687853 | FP67: 0.002096417349 | FQ67: 0.002445703578 | FR67: 0.002309733939 | FS67: 0.002847487738 | FT67: 0.002533375122 | FU67: 0.00280811429 | FV67: 0.003761301711 | FW67: 0.002200713237 | FX67: 0.002188113734 | FY67: 0.002563648928 | FZ67: 0.003319444131 | GA67: 0.002013645612 | GB67: 0.0004553320485 | GC67: 0.002304659139 | GD67: 0.002309908932 | GE67: 0.003040155142 | GF67: 0.001659809562 | GG67: 0.00186227658 | GH67: 0.0005666276607 | GI67: 0.0004747562827
A68: C8 | B68: DLY | C68: 6.226666667 | D68: 5.5 | E68: 1.5 | F68: 7.613333333 | G68: 6.906666667 | H68: 44.81666667 | I68: 13.48 | J68: 8.806666667 | K68: 44.93 | M68: 6639.081 | N68: 6606.493289 | O68: 0.9762687227 | P68: 4.978404357 | R68: 179.5777416 | S68: 0.631098139 | T68: 0.008242422465 | U68: 0.001922788774 | V68: 0.003514345003 | W68: 0.0003043960001 | X68: 0.0002539532343 | Y68: 0.007379304501 | Z68: 2.17E-05 | AA68: 8.88E-05 | AB68: 0.004352241585 | AC68: 2.63E-05 | AD68: 0.0004698880295 | AE68: 0.0004323665634 | AG68: 0.005068007036 | AH68: 0.000429881698 | AI68: 8.67E-05 | AJ68: 0.01119419396 | AK68: 0.01368092292 | AL68: 0.2231867503 | AM68: 0.05828264001 | AN68: 0.001059795053 | AO68: 0.02984546871 | AP68: 0.000334338627 | AQ68: 0.02288623069 | AR68: 0.01205818163 | AS68: 6.03E-05 | AT68: 0.000295947458 | AU68: 0.001007985612 | AV68: 0.0003424144393 | AW68: 6.52E-05 | AX68: 2.99E-05 | AY68: 0.003485023593 | AZ68: 0.001901543176 | BA68: 0.02835169193 | BB68: 0.01455037729 | BC68: 0.02878194636 | BD68: 0.005197841248 | BE68: 0.002566493132 | BF68: 1.37E-06 | BG68: 4.75E-05 | BH68: 0.002551708183 | BI68: 0.002222339287 | BJ68: 8.70E-07 | BK68: 0.003041972108 | BL68: 0.007818380201 | BM68: 0.004345283962 | BN68: 0.002676821152 | BO68: 0.001853212546 | BP68: 0.001559128737 | BQ68: 0.00348340843 | BR68: 0.0008877181308 | BS68: 0.001122413659 | BT68: 0.0009714580916 | BU68: 0.0001391524572 | BV68: 0.0001020037208 | BW68: 1.62E-05 | BX68: 1.98E-05 | BY68: 0.000184004276 | BZ68: 0.001293869365 | CA68: 0.0006669378483 | CB68: 8.39E-05 | CC68: 0.000534743014 | CD68: 0.0001285917796 | CE68: 0.0008894575365 | CG68: 6.226666667 | CH68: 5.5 | CI68: 1.5 | CJ68: 7.613333333 | CK68: 6.906666667 | CL68: 44.81666667 | CM68: 13.48 | CN68: 8.806666667 | CO68: 44.93 | CQ68: 0.0009483546618 | CR68: 0.001585466179 | CS68: 0.007769195612 | CT68: 0.006753199269 | CU68: 0.1001700183 | CV68: 0.004462065814 | CW68: 0.005193784278 | CX68: 2.026216636 | CY68: 0.2136978976 | CZ68: 0.01366681901 | DA68: 0.01329890311 | DB68: 0.9730415905 | DC68: 2.818312614 | DD68: 0.720345064 | DE68: 0.01157175503 | DF68: 0.01944744059 | DG68: 0.01478839122 | DH68: 0.05136380256 | DI68: 0.02389533821 | DJ68: 0.00772440585 | DK68: 0.0155452468 | DL68: 0.07811517367 | DM68: 0.01110374771 | DN68: 0.01070749543 | DO68: 0.00743190128 | DP68: 0.008415447898 | DQ68: 0 | DR68: 0.008304844607 | DS68: 0.008709780622 | DT68: 0.009003656307 | DU68: 0.009281992687 | DV68: 7.2009 | DW68: 3.1823 | DX68: 4.0186 | DY68: 3.1188 | DZ68: 0.8890 | EA68: 0.4419 | EB68: 0.5581 | EC68: 0.4331 | ED68: 0.1235 | EF68: 0.01852380116 | EG68: 0.01393624283 | EH68: 0.01197319924 | EI68: 0.009690104993 | EJ68: 0.00853824568 | EK68: 0.005314257188 | EL68: 0.007942871953 | EM68: 0.01483141556 | EN68: 0.003815759165 | EO68: 0.01744611507 | EP68: 0.002993641478 | EQ68: 0.004369387155 | ER68: 0.00364740954 | ES68: 0.004325653526 | ET68: 0.003249582605 | EU68: 0.003274555501 | EV68: 0.01227448916 | EW68: 0.002151023653 | EX68: 0.002638305739 | EY68: 0.002086665641 | EZ68: 0.01246122678 | FA68: 0.001351642484 | FB68: 0.002672596881 | FC68: 0.002530959558 | FD68: 0.003620572995 | FE68: 0.001825382054 | FF68: 0.002003919627 | FG68: 0.0131840741 | FH68: 0.001961552673 | FI68: 0.00331220121 | FJ68: 0.00169281449 | FK68: 0.001568695468 | FL68: 0.001333130237 | FM68: 0.001937573723 | FN68: 0.001615410936 | FO68: 0.001948631373 | FP68: 0.001287532959 | FQ68: 0.0009523246288 | FR68: 0.001436252147 | FS68: 0.001503591997 | FT68: 0.0009007636737 | FU68: 0.001829979055 | FV68: 0.001527322461 | FW68: 0.001277096524 | FX68: 0.003535839088 | FY68: 0.001150741123 | FZ68: 0.001565589386 | GA68: 0.001159313909 | GB68: 0.001220068866 | GC68: 0.001205532404 | GD68: 0.002882816485 | GE68: 0.00131002099 | GF68: 0.001041655537 | GG68: 0.001435133958 | GH68: 0.0004223028589 | GI68: 0.0001972983053
A69: D1 | B69: NX | C69: 6.536666667 | D69: 6.246666667 | E69: 3.5 | F69: 13.45333333 | G69: 9.136666667 | H69: 48.60333333 | I69: 17.18333333 | J69: 12.97333333 | K69: 47.35 | M69: 4959.755275 | N69: 4945.56135 | O69: 0.9269949363 | P69: 4.21024523 | R69: =S69/V69 -> 292.2524978 | S69: 0.7601588983 | T69: 0.008611616297 | U69: 0.0004900802464 | V69: 0.002601034735 | W69: 0.000323565256 | X69: 0.0002865084518 | Y69: 0.001692581565 | Z69: 0.000754130029 | AA69: 0.01263476605 | AB69: 0.0007743428313 | AC69: 0.0002276346546 | AD69: 0.0003474676968 | AE69: 0.0003497135637 | AG69: 0.01256097328 | AH69: 0.0007467507519 | AI69: 0.0001140579559 | AJ69: 0.001442006984 | AK69: 0.02697783474 | AL69: 0.4154154381 | AM69: 0.03827534746 | AN69: 7.70E-06 | AO69: 0.02377250138 | AP69: 0.001631301481 | AQ69: 0.01816601545 | AR69: 0.002570715532 | AS69: 0.002041653452 | AT69: 0.0001941070698 | AU69: 0.0006843477353 | AV69: 0.000170204629 | AW69: 5.90E-05 | AX69: 1.28E-06 | AY69: 0.001166888286 | AZ69: 0.001055717873 | BA69: 0.01847642634 | BB69: 0.008337620533 | BC69: 0.004920213171 | BD69: 0.0006893207263 | BE69: 0.001125179328 | BF69: 0.0007050417948 | BG69: 0.0009241742388 | BH69: 0.002568630084 | BI69: 0.001625205557 | BJ69: 0.007697869298 | BK69: 0.00203860549 | BL69: 4.11E-05 | BM69: 0.0007406548274 | BN69: 0.001755626258 | BO69: 0.001321211427 | BP69: 0.001696271203 | BQ69: 0.0002436765612 | BR69: 0.001987271389 | BS69: 0.0007879784519 | BT69: 0.001607719879 | BU69: 9.42E-05 | BV69: 5.07E-05 | BW69: 0.0002006842515 | BX69: 0.000155606494 | BY69: 3.53E-06 | BZ69: 0.0009010738934 | CA69: 6.71E-05 | CB69: 8.84E-05 | CC69: 0.000545103986 | CD69: 2.25E-05 | CE69: 0.000510934725 | CG69: 6.536666667 | CH69: 6.246666667 | CI69: 3.5 | CJ69: 13.45333333 | CK69: 9.136666667 | CL69: 48.60333333 | CM69: 17.18333333 | CN69: 12.97333333 | CO69: 47.35 | CQ69: 0.0009680751174 | CR69: 0.001493896714 | CS69: 0.005391549296 | CT69: 0.005327230047 | CU69: 0.07813568075 | CV69: 0.004055868545 | CW69: 0.004999530516 | CX69: 1.883558685 | CY69: 0.1114539906 | CZ69: 0.01215633803 | DA69: 0.01119295775 | DB69: 1.038867606 | DC69: 2.599473709 | DD69: 0.5827403756 | DE69: 0.01027370892 | DF69: 0.01505070423 | DG69: 0.01926525822 | DH69: 0.07060938967 | DI69: 0.02603521127 | DJ69: 0.008025352113 | DK69: 0.02173661972 | DL69: 0.09046150235 | DM69: 0.01169812207 | DN69: 0.01088356808 | DO69: 0.007939906103 | DP69: 0.008811267606 | DQ69: 0 | DR69: 0.008547887324 | DS69: 0.009082159624 | DT69: 0.008748356808 | DU69: 0.009715023474 | DV69: =SUM(CQ69:DU69) -> 6.6767 | DW69: =CQ69+CR69+CS69+CT69+CU69+CW69+CX69+CZ69+DB69+DG69+DJ69+DO69+DR69+DS69 -> 3.0838 | DX69: =CV69+CY69+DA69+DC69+DD69+DE69+DF69+DH69+DI69+DK69+DL69+DM69+DN69+DP69+DQ69+DT69+DU69 -> 3.5929 | DY69: =CV69+CY69+DA69+DC69+DH69+DP69+DU69 -> 2.8153 | DZ69: =DD69+DE69+DF69+DI69+DK69+DL69+DM69+DQ69+DT69 -> 0.7667 | EA69: =DW69/DV69 -> 0.4619 | EB69: =DX69/DV69 -> 0.5381 | EC69: =DY69/DV69 -> 0.4217 | ED69: =DZ69/DV69 -> 0.1148 | EF69: 0.03573238442 | EG69: 0.02553630901 | EH69: 0.01990495812 | EI69: 0.01915804695 | EJ69: 0.01579165285 | EK69: 0.008042128613 | EL69: 0.01289464494 | EM69: 0.01690849039 | EN69: 0.005807491025 | EO69: 0.01573967707 | EP69: 0.005021918859 | EQ69: 0.008276180031 | ER69: 0.006238376636 | ES69: 0.007597607382 | ET69: 0.005876150385 | EU69: 0.00589941115 | EV69: 0.009063195968 | EW69: 0.003754126981 | EX69: 0.005422164429 | EY69: 0.003825673884 | EZ69: 0.009214471147 | FA69: 0.002068924693 | FB69: 0.004515636287 | FC69: 0.005386711815 | FD69: 0.007571459074 | FE69: 0.003453501651 | FF69: 0.003792467138 | FG69: 0.009266607344 | FH69: 0.004673328229 | FI69: 0.003199397851 | FJ69: 0.002899574617 | FK69: 0.0027925751 | FL69: 0.001915082809 | FM69: 0.003964436376 | FN69: 0.002558363264 | FO69: 0.00359803923 | FP69: 0.002423611248 | FQ69: 0.001677502172 | FR69: 0.002701938328 | FS69: 0.002530129508 | FT69: 0.001554460749 | FU69: 0.003247844409 | FV69: 0.003150790874 | FW69: 0.002748139019 | FX69: 0.003222819035 | FY69: 0.002217472748 | FZ69: 0.002990211389 | GA69: 0.001671245829 | GB69: 0.001027644536 | GC69: 0.002774608164 | GD69: 0.003599964259 | GE69: 0.002747176504 | GF69: 0.002419440352 | GG69: 0.003189933126 | GH69: 0.0008402750674 | GI69: 0.0003623866699
A70: D2 | B70: NX | C70: 6.833333333 | D70: 6.073333333 | E70: 4 | F70: 10.96333333 | G70: 8.073333333 | H70: 45.92333333 | I70: 16.11666667 | J70: 9.21 | K70: 50.98 | M70: 5148.77058 | N70: 5136.392405 | O70: 0.8939013735 | P70: 3.958530879 | R70: 243.5140485 | S70: 0.7245228762 | T70: 0.02401440384 | U70: 0.0002838252636 | V70: 0.002975281635 | W70: 0.0003079561565 | X70: 0.0002174653083 | Y70: 0.002618632784 | Z70: 0.003470539483 | AA70: 0.004524686047 | AB70: 0.0007872703795 | AC70: 0.0006641740986 | AD70: 0.0004232960789 | AE70: 0.0003171488776 | AG70: 0.006835506311 | AH70: 0.001286837316 | AI70: 0.0001133290147 | AJ70: 0.002699787275 | AK70: 0.02468575976 | AL70: 0.3669076404 | AM70: 0.05324625145 | AN70: 2.13E-05 | AO70: 0.02921820216 | AP70: 0.005096071117 | AQ70: 0.01812201326 | AR70: 0.0063241612 | AS70: 0.008160119965 | AT70: 0.0001835671492 | AU70: 0.0006567050128 | AV70: 0.0002204816699 | AW70: 6.66E-05 | AX70: 2.15E-06 | AY70: 0.001090630175 | AZ70: 0.0009363648246 | BA70: 0.01798785699 | BB70: 0.007362507774 | BC70: 0.005844128796 | BD70: 0.001680831597 | BE70: 0.003466804941 | BF70: 0.003349023202 | BG70: 0.003753790202 | BH70: 0.003161434237 | BI70: 0.002752070876 | BJ70: 0.002762987232 | BK70: 0.00199697502 | BL70: 5.17E-06 | BM70: 0.0007762103869 | BN70: 0.001142913777 | BO70: 0.001059748378 | BP70: 0.001575115304 | BQ70: 2.69E-05 | BR70: 0.002163736726 | BS70: 0.0006828468134 | BT70: 0.001848598756 | BU70: 0.0001604417102 | BV70: 0.0001476580825 | BW70: 0.000573970523 | BX70: 0.0004225778975 | BY70: 3.45E-06 | BZ70: 0.0003441524958 | CA70: 4.14E-05 | CB70: 0.0003175797864 | CC70: 0.0006114595887 | CD70: 6.58E-05 | CE70: 0.0005452432696 | CG70: 6.833333333 | CH70: 6.073333333 | CI70: 4 | CJ70: 10.96333333 | CK70: 8.073333333 | CL70: 45.92333333 | CM70: 16.11666667 | CN70: 9.21 | CO70: 50.98 | CQ70: 0.0009357351509 | CR70: 0.001134371957 | CS70: 0.002426971762 | CT70: 0.002778481013 | CU70: 0.03068305745 | CV70: 0.004291626095 | CW70: 0.004663096397 | CX70: 0.7461324245 | CY70: 0.07496202532 | CZ70: 0.009214216164 | DA70: 0.009360272639 | DB70: 0.2856333982 | DC70: 0.7724289192 | DD70: 0.4456397274 | DE70: 0.01010613437 | DF70: 0.011218111 | DG70: 0.008702531646 | DH70: 0.0204902629 | DI70: 0.01595326193 | DJ70: 0.008197176241 | DK70: 0.01635199611 | DL70: 0.09208519961 | DM70: 0.01040895813 | DN70: 0.01116358325 | DO70: 0.007753651412 | DP70: 0.008663096397 | DQ70: 0 | DR70: 0.008848101266 | DS70: 0.009247322298 | DT70: 0.008980038948 | DU70: 0.00982375852 | DV70: 2.6483 | DW70: 1.1264 | DX70: 1.5219 | DY70: 0.9000 | DZ70: 0.6107 | EA70: 0.4253 | EB70: 0.5747 | EC70: 0.3399 | ED70: 0.2306 | EF70: 0.03506333641 | EG70: 0.02538641747 | EH70: 0.01962890134 | EI70: 0.01906153809 | EJ70: 0.01571581852 | EK70: 0.009466922722 | EL70: 0.01257966426 | EM70: 0.01589206022 | EN70: 0.005105120202 | EO70: 0.01458971019 | EP70: 0.004924282142 | EQ70: 0.008115161813 | ER70: 0.006593479201 | ES70: 0.007635703954 | ET70: 0.006008448685 | EU70: 0.005604399866 | EV70: 0.008150352699 | EW70: 0.003720753861 | EX70: 0.005520229014 | EY70: 0.003663730263 | EZ70: 0.008257936263 | FA70: 0.001992953205 | FB70: 0.004826465844 | FC70: 0.005371421841 | FD70: 0.007161991546 | FE70: 0.003426299513 | FF70: 0.003700788419 | FG70: 0.008631103285 | FH70: 0.004487053345 | FI70: 0.002805359931 | FJ70: 0.002892834418 | FK70: 0.002915385311 | FL70: 0.002136733108 | FM70: 0.003602828485 | FN70: 0.002658707302 | FO70: 0.00373770294 | FP70: 0.002314267534 | FQ70: 0.001598528016 | FR70: 0.002805072658 | FS70: 0.00273382907 | FT70: 0.00143176631 | FU70: 0.003127966987 | FV70: 0.0031351488 | FW70: 0.002566636455 | FX70: 0.002935638025 | FY70: 0.002218462144 | FZ70: 0.002992517987 | GA70: 0.001790713341 | GB70: 0.001341131825 | GC70: 0.002549400103 | GD70: 0.003490074016 | GE70: 0.002653823669 | GF70: 0.002180111261 | GG70: 0.003293723239 | GH70: 0.0008809212256 | GI70: 0.0004063469994
A71: D3 | B71: NX | C71: 6.56 | D71: 5.843333333 | E71: 3.5 | F71: 11.58 | G71: 8.386666667 | H71: 48.00333333 | I71: 16.37 | J71: 10.02 | K71: 54.98333333 | M71: 5364.70612 | N71: 5346.279255 | O71: 0.9506950607 | P71: 4.586946369 | R71: 208.6788396 | S71: 0.7010252739 | T71: 0.009006762761 | U71: 0.0003581901394 | V71: 0.003359350067 | W71: 0.0004276510347 | X71: 0.0002975414472 | Y71: 0.003494643304 | Z71: 0.0003549071617 | AA71: 3.20E-05 | AB71: 0.001488225601 | AC71: 7.33E-05 | AD71: 0.0006946089533 | AE71: 0.0005147363363 | AG71: 0.002672516587 | AH71: 0.001467318217 | AI71: 0.0001266538216 | AJ71: 0.004162297283 | AK71: 0.01738647679 | AL71: 0.3529157766 | AM71: 0.04004334222 | AN71: 2.42E-05 | AO71: 0.04051073456 | AP71: 0.001038630452 | AQ71: 0.02936087855 | AR71: 0.007187647572 | AS71: 0.0008682611916 | AT71: 0.0002838911717 | AU71: 0.0008278287302 | AV71: 0.000392920587 | AW71: 0.0001961147169 | AX71: 1.35E-05 | AY71: 0.001683994741 | AZ71: 0.001369001676 | BA71: 0.01858441806 | BB71: 0.009468625879 | BC71: 0.008605548336 | BD71: 0.001998815018 | BE71: 0.001150770057 | BF71: 0.0003523153373 | BG71: 0.0003372827554 | BH71: 0.002321929133 | BI71: 0.002946386038 | BJ71: 3.46E-06 | BK71: 0.003897412824 | BL71: 7.36E-05 | BM71: 0.001478031091 | BN71: 0.004001085802 | BO71: 0.001754837943 | BP71: 0.002083999648 | BQ71: 0.0001321830471 | BR71: 0.002026288357 | BS71: 0.001156299282 | BT71: 0.001996914347 | BU71: 4.41E-05 | BV71: 0.0001159409472 | BW71: 6.58E-05 | BX71: 3.52E-05 | BY71: 8.29E-06 | BZ71: 0.001198459627 | CA71: 7.24E-05 | CB71: 1.81E-05 | CC71: 0.0007402250637 | CD71: 0.0002643660942 | CE71: 0.000927873154 | CG71: 6.56 | CH71: 5.843333333 | CI71: 3.5 | CJ71: 11.58 | CK71: 8.386666667 | CL71: 48.00333333 | CM71: 16.37 | CN71: 10.02 | CO71: 54.98333333 | CQ71: 0.001078793774 | CR71: 0.001825389105 | CS71: 0.008887159533 | CT71: 0.006704280156 | CU71: 0.1007018482 | CV71: 0.004714494163 | CW71: 0.004989785992 | CX71: 2.304160506 | CY71: 0.3002592412 | CZ71: 0.01197470817 | DA71: 0.01278258755 | DB71: 1.097932879 | DC71: 3.518838035 | DD71: 0.6572363813 | DE71: 0.01029280156 | DF71: 0.01592850195 | DG71: 0.01892412451 | DH71: 0.0631848249 | DI71: 0.02604036965 | DJ71: 0.008360894942 | DK71: 0.02115856031 | DL71: 0.1207689689 | DM71: 0.01194066148 | DN71: 0.01181809339 | DO71: 0.008165856031 | DP71: 0.009102140078 | DQ71: 0 | DR71: 0.008857976654 | DS71: 0.009271400778 | DT71: 0.009239785992 | DU71: 0.009938229572 | DV71: 8.3951 | DW71: 3.5918 | DX71: 4.8032 | DY71: 3.9188 | DZ71: 0.8726 | EA71: 0.4279 | EB71: 0.5721 | EC71: 0.4668 | ED71: 0.1039 | EF71: 0.02782392665 | EG71: 0.02024646868 | EH71: 0.01751416734 | EI71: 0.01504830556 | EJ71: 0.01221803326 | EK71: 0.00823284398 | EL71: 0.01152394267 | EM71: 0.01642681059 | EN71: 0.004618285598 | EO71: 0.01666836863 | EP71: 0.004327482894 | EQ71: 0.006344095107 | ER71: 0.005297343605 | ES71: 0.006058476052 | ET71: 0.004686191399 | EU71: 0.00497319276 | EV71: 0.01088289809 | EW71: 0.003175330531 | EX71: 0.004323681552 | EY71: 0.002899387621 | EZ71: 0.0105077747 | FA71: 0.001917258942 | FB71: 0.003816375112 | FC71: 0.004067609296 | FD71: 0.005716528013 | FE71: 0.00256262323 | FF71: 0.003060426314 | FG71: 0.01196576234 | FH71: 0.003172220342 | FI71: 0.003451273441 | FJ71: 0.002412470201 | FK71: 0.002250913143 | FL71: 0.001741014879 | FM71: 0.002817831545 | FN71: 0.002165555724 | FO71: 0.003251875747 | FP71: 0.001779201093 | FQ71: 0.00149738338 | FR71: 0.002484350132 | FS71: 0.002438042868 | FT71: 0.001321484894 | FU71: 0.002726426536 | FV71: 0.00256573342 | FW71: 0.002031817583 | FX71: 0.003084271099 | FY71: 0.001768833795 | FZ71: 0.002190610027 | GA71: 0.001458333225 | GB71: 0.002029398546 | GC71: 0.001944041128 | GD71: 0.003311487709 | GE71: 0.002205469821 | GF71: 0.001852290542 | GG71: 0.002304304727 | GH71: 0.0006978919309 | GI71: 0.0003689030138
A72: D4 | B72: NX | C72: 6.583333333 | D72: 5.99 | E72: 4 | F72: 9.82 | G72: 9.526666667 | H72: 49.96666667 | I72: 15.39333333 | J72: 9.59 | K72: 48.51666667 | M72: 5531.455391 | N72: 5515.867374 | O72: 0.9370678121 | P72: 4.499989395 | R72: 162.216388 | S72: 0.6429604305 | T72: 0.04303370393 | U72: 0.0008218327191 | V72: 0.003963597257 | W72: 0.0004407566136 | X72: 0.0002027108476 | Y72: 0.007905892123 | Z72: 0.006294011205 | AA72: 0.0001164868841 | AB72: 0.0009506614646 | AC72: 0.0009533665301 | AD72: 0.0005660349606 | AE72: 0.0003575758488 | AG72: 0.02704778109 | AH72: 0.004075012143 | AI72: 0.0003048270711 | AJ72: 0.006223172301 | AK72: 0.01357570946 | AL72: 0.3313008711 | AM72: 0.03884034517 | AN72: 6.44E-05 | AO72: 0.02753131156 | AP72: 0.008946497016 | AQ72: 0.01983776708 | AR72: 0.004893801664 | AS72: 0.01239359582 | AT72: 0.0002035561806 | AU72: 0.0007601234119 | AV72: 0.0001793796575 | AW72: 9.55E-05 | AX72: 7.88E-05 | AY72: 0.001531067086 | AZ72: 0.001610359319 | BA72: 0.0124615606 | BB72: 0.006382602101 | BC72: 0.004731328666 | BD72: 0.006015220389 | BE72: 0.006645500656 | BF72: 0.006164675259 | BG72: 0.005962809745 | BH72: 0.001595143325 | BI72: 0.001497930033 | BJ72: 5.73E-05 | BK72: 0.00203285674 | BL72: 0.0003497987854 | BM72: 0.0009193841445 | BN72: 0.00331894633 | BO72: 0.001524811622 | BP72: 0.002046551134 | BQ72: 0.003306435402 | BR72: 0.001735637666 | BS72: 0.000970104123 | BT72: 0.001430472462 | BU72: 0.0002645892214 | BV72: 0.0002001748487 | BW72: 0.0008341745805 | BX72: 0.0007761847384 | BY72: 1.47E-05 | BZ72: 0.0007648572765 | CA72: 8.08E-05 | CB72: 0.0006050893441 | CC72: 0.000714137298 | CD72: 0.000175829259 | CE72: 0.0005244445782 | CG72: 6.583333333 | CH72: 5.99 | CI72: 4 | CJ72: 9.82 | CK72: 9.526666667 | CL72: 49.96666667 | CM72: 15.39333333 | CN72: 9.59 | CO72: 48.51666667 | CQ72: 0.001071629213 | CR72: 0.002180243446 | CS72: 0.01231132959 | CT72: 0.01091245318 | CU72: 0.181579588 | CV72: 0.005252808989 | CW72: 0.005824906367 | CX72: 3.252879213 | CY72: 0.4213988764 | CZ72: 0.0150159176 | DA72: 0.01579213483 | DB72: 1.401655899 | DC72: 5.281561798 | DD72: 0.9274405431 | DE72: 0.01158426966 | DF72: 0.02519850187 | DG72: 0.02102808989 | DH72: 0.1378820225 | DI72: 0.03812874532 | DJ72: 0.008058052434 | DK72: 0.0232261236 | DL72: 0.1243459738 | DM72: 0.0134082397 | DN72: 0.01135440075 | DO72: 0.008006086142 | DP72: 0.00956741573 | DQ72: 0 | DR72: 0.008553370787 | DS72: 0.008960674157 | DT72: 0.008971910112 | DU72: 0.009507490637 | DV72: 12.0027 | DW72: 4.9380 | DX72: 7.0646 | DY72: 5.8810 | DZ72: 1.1723 | EA72: 0.4114 | EB72: 0.5886 | EC72: 0.4900 | ED72: 0.0977 | EF72: 0.03307720308 | EG72: 0.02423130069 | EH72: 0.01985095427 | EI72: 0.01795859187 | EJ72: 0.01480719054 | EK72: 0.01007856694 | EL72: 0.01320021255 | EM72: 0.01685103661 | EN72: 0.004905805392 | EO72: 0.0165560154 | EP72: 0.005019756277 | EQ72: 0.007268172926 | ER72: 0.006338813852 | ES72: 0.007312468374 | ET72: 0.005432447836 | EU72: 0.005352479336 | EV72: 0.008996371662 | EW72: 0.003784555733 | EX72: 0.005239373784 | EY72: 0.003562064093 | EZ72: 0.008663141403 | FA72: 0.002156444421 | FB72: 0.004202488356 | FC72: 0.004685680685 | FD72: 0.00631362293 | FE72: 0.003083098429 | FF72: 0.00369681017 | FG72: 0.0106511955 | FH72: 0.003671450181 | FI72: 0.003534337172 | FJ72: 0.00296339928 | FK72: 0.002574038911 | FL72: 0.001988054093 | FM72: 0.003139228539 | FN72: 0.002464314691 | FO72: 0.003703403767 | FP72: 0.002193300939 | FQ72: 0.001805800303 | FR72: 0.002590269304 | FS72: 0.002796023351 | FT72: 0.00159936999 | FU72: 0.002984194471 | FV72: 0.003194513316 | FW72: 0.002285442233 | FX72: 0.003182509587 | FY72: 0.002180959078 | FZ72: 0.002465498157 | GA72: 0.001815944299 | GB72: 0.001664122496 | GC72: 0.002364227267 | GD72: 0.003434249748 | GE72: 0.002531603196 | GF72: 0.001969118634 | GG72: 0.002499987743 | GH72: 0.0008015447277 | GI72: 0.0004483646104
A73: D5 | B73: NX | C73: 6.45 | D73: 5.603333333 | E73: 4 | F73: 11.56666667 | G73: 8.5 | H73: 49.56666667 | I73: 14.50333333 | J73: 9.556666667 | K73: 53.75666667 | M73: 5872.782475 | N73: 5851.188259 | O73: 0.9208791201 | P73: 4.304600162 | R73: 143.2462555 | S73: 0.5838683277 | T73: 0.06358630601 | U73: 0.0003671969745 | V73: 0.004075976196 | W73: 0.0003027355007 | X73: 0.0001752490206 | Y73: 0.02311545355 | Z73: 0.01075231747 | AA73: 0.0004819348066 | AB73: 0.0005099459206 | AC73: 0.001538636125 | AD73: 0.0002695171925 | AE73: 0.0002643099983 | AG73: 0.01499330786 | AH73: 0.004487524101 | AI73: 9.46E-05 | AJ73: 0.003661375798 | AK73: 0.01230226578 | AL73: 0.3277354199 | AM73: 0.02301723509 | AN73: 0.002045349993 | AO73: 0.02262561817 | AP73: 0.01457942569 | AQ73: 0.01348627402 | AR73: 0.01614840719 | AS73: 0.02024503261 | AT73: 0.0001463401145 | AU73: 0.0007071010688 | AV73: 0.0001599865547 | AW73: 0.0001748899038 | AX73: 3.68E-05 | AY73: 0.001567365472 | AZ73: 0.0007828747232 | BA73: 0.01073831191 | BB73: 0.003799456225 | BC73: 0.002688887381 | BD73: 0.0186652776 | BE73: 0.01421994973 | BF73: 0.01056755185 | BG73: 0.008121966136 | BH73: 0.001528580853 | BI73: 0.00172807026 | BJ73: 0.0001976938234 | BK73: 0.001819465498 | BL73: 0.001068552174 | BM73: 0.0004979155063 | BN73: 0.001345072145 | BO73: 0.0008187864077 | BP73: 0.001016480231 | BQ73: 0.0007794631131 | BR73: 0.0009742840018 | BS73: 0.0006385097513 | BT73: 0.0008805545051 | BU73: 4.94E-05 | BV73: 9.62E-05 | BW73: 0.001219560807 | BX73: 0.001117751182 | BY73: 8.44E-05 | BZ73: 0.0005336476324 | CA73: 6.55E-05 | CB73: 0.0009701541581 | CC73: 0.000397542348 | CD73: 0.0001458014393 | CE73: 0.0003411610032 | CG73: 6.45 | CH73: 5.603333333 | CI73: 4 | CJ73: 11.56666667 | CK73: 8.5 | CL73: 49.56666667 | CM73: 14.50333333 | CN73: 9.556666667 | CO73: 53.75666667 | CQ73: 0.001054537122 | CR73: 0.002166361137 | CS73: 0.01076076994 | CT73: 0.00911411549 | CU73: 0.1396938588 | CV73: 0.004554537122 | CW73: 0.005345096242 | CX73: 2.453132447 | CY73: 0.2292488543 | CZ73: 0.01406186984 | DA73: 0.01487213566 | DB73: 1.12650275 | DC73: 3.947461503 | DD73: 0.9364129239 | DE73: 0.01101466544 | DF73: 0.02451558203 | DG73: 0.01908065995 | DH73: 0.113395967 | DI73: 0.03998487626 | DJ73: 0.007792850596 | DK73: 0.01950274977 | DL73: 0.09854537122 | DM73: 0.01335701192 | DN73: 0.01095142071 | DO73: 0.007727772686 | DP73: 0.008977543538 | DQ73: 0 | DR73: 0.008349220898 | DS73: 0.008814848763 | DT73: 0.008553162236 | DU73: 0.009259853346 | DV73: 9.3042 | DW73: 3.8136 | DX73: 5.4906 | DY73: 4.3278 | DZ73: 1.1519 | EA73: 0.4099 | EB73: 0.5901 | EC73: 0.4651 | ED73: 0.1238 | EF73: 0.03401572716 | EG73: 0.02510172882 | EH73: 0.02025526744 | EI73: 0.01861553992 | EJ73: 0.01439861036 | EK73: 0.01067708249 | EL73: 0.01318892527 | EM73: 0.01554904118 | EN73: 0.004744831321 | EO73: 0.0138482638 | EP73: 0.005201268832 | EQ73: 0.007035996795 | ER73: 0.006211105401 | ES73: 0.006964173426 | ET73: 0.005627720086 | EU73: 0.005283147472 | EV73: 0.007764106199 | EW73: 0.003823876171 | EX73: 0.005187263275 | EY73: 0.003512880983 | EZ73: 0.007452392778 | FA73: 0.002358320324 | FB73: 0.004188918444 | FC73: 0.004577303313 | FD73: 0.006719255738 | FE73: 0.002963970884 | FF73: 0.003738047245 | FG73: 0.009460753736 | FH73: 0.003651140968 | FI73: 0.003017658853 | FJ73: 0.002836484404 | FK73: 0.002569660588 | FL73: 0.002089521365 | FM73: 0.003077092691 | FN73: 0.002513099685 | FO73: 0.003780961708 | FP73: 0.002224728858 | FQ73: 0.001994894077 | FR73: 0.002863418168 | FS73: 0.002904716605 | FT73: 0.001712089561 | FU73: 0.003002216828 | FV73: 0.003307825264 | FW73: 0.002338389339 | FX73: 0.002604854039 | FY73: 0.002098858403 | FZ73: 0.002639688373 | GA73: 0.001969396781 | GB73: 0.001424077851 | GC73: 0.002368375596 | GD73: 0.002965946027 | GE73: 0.002831456768 | GF73: 0.002214314469 | GG73: 0.002557091498 | GH73: 0.0009597397696 | GI73: 0.0003765340125
A74: D6 | B74: NX | C74: 6.566666667 | D74: 5.873333333 | E74: 3 | F74: 9.443333333 | G74: 7.073333333 | H74: 47.13 | I74: 14.37666667 | J74: 11.22666667 | K74: 44.34 | M74: 5455.662702 | N74: 5442.632948 | O74: 0.9213742734 | P74: 4.320584267 | R74: 217.2311326 | S74: 0.6931787016 | T74: 0.02911793277 | U74: 0.0004511507202 | V74: 0.003190973105 | W74: 0.0003078705184 | X74: 0.0002664630598 | Y74: 0.005958689217 | Z74: 0.004124806585 | AA74: 0.002765463823 | AB74: 0.0009669247963 | AC74: 0.0007241973926 | AD74: 0.0003879133881 | AE74: 0.000373360139 | AG74: 0.01250678502 | AH74: 0.002244665411 | AI74: 0.0001458789963 | AJ74: 0.003590840947 | AK74: 0.01824682899 | AL74: 0.3676653141 | AM74: 0.03918098472 | AN74: 0.0003303934038 | AO74: 0.03002647132 | AP74: 0.005961981023 | AQ74: 0.02004779356 | AR74: 0.008889263115 | AS74: 0.008936907681 | AT74: 0.0002643840242 | AU74: 0.0004712480641 | AV74: 0.0003026729294 | AW74: 0.0001077633441 | AX74: 1.72E-05 | AY74: 0.001473689718 | AZ74: 0.001098770302 | BA74: 0.01563625332 | BB74: 0.006899799321 | BC74: 0.005506845485 | BD74: 0.004579422364 | BE74: 0.00548553537 | BF74: 0.004045976486 | BG74: 0.003804981612 | BH74: 0.00236438321 | BI74: 0.002266148779 | BJ74: 0.001680207252 | BK74: 0.002318297921 | BL74: 0.0001928305498 | BM74: 0.0009416298634 | BN74: 0.002052527873 | BO74: 0.001280859168 | BP74: 0.001667386533 | BQ74: 0.0009896209346 | BR74: 0.001750894462 | BS74: 0.0008371583257 | BT74: 0.001672064363 | BU74: 0.0002044384984 | BV74: 0.0002082500636 | BW74: 0.0006434615111 | BX74: 0.000496542997 | BY74: 1.07E-05 | BZ74: 0.0006313338035 | CA74: 6.08E-05 | CB74: 0.0003380165342 | CC74: 0.0006112364596 | CD74: 0.0001294199647 | CE74: 0.0006204188668 | CG74: 6.566666667 | CH74: 5.873333333 | CI74: 3 | CJ74: 9.443333333 | CK74: 7.073333333 | CL74: 47.13 | CM74: 14.37666667 | CN74: 11.22666667 | CO74: 44.34 | CQ74: 0.001000496524 | CR74: 0.001407646475 | CS74: 0.004855014896 | CT74: 0.005345580933 | CU74: 0.07718222443 | CV74: 0.004623138034 | CW74: 0.004992552135 | CX74: 1.614389772 | CY74: 0.1419652433 | CZ74: 0.01056405164 | DA74: 0.01087835154 | DB74: 0.7331762661 | DC74: 2.043256703 | DD74: 0.6872075472 | DE74: 0.01144836147 | DF74: 0.01596772592 | DG74: 0.0157040715 | DH74: 0.04892353525 | DI74: 0.0229448858 | DJ74: 0.00847020854 | DK74: 0.01928450844 | DL74: 0.1127934459 | DM74: 0.01171300894 | DN74: 0.01177060576 | DO74: 0.008219463754 | DP74: 0.009185203575 | DQ74: 0 | DR74: 0.009033763654 | DS74: 0.009480139027 | DT74: 0.009449851043 | DU74: 0.01000794439 | DV74: 5.6752 | DW74: 2.5038 | DX74: 3.1714 | DY74: 2.2688 | DZ74: 0.8908 | EA74: 0.4412 | EB74: 0.5588 | EC74: 0.3998 | ED74: 0.1570 | EF74: 0.03405720155 | EG74: 0.0247193865 | EH74: 0.0199242642 | EI74: 0.01881839052 | EJ74: 0.01495970049 | EK74: 0.009939522588 | EL74: 0.01323184868 | EM74: 0.01644846322 | EN74: 0.005165363891 | EO74: 0.01555066636 | EP74: 0.005018965136 | EQ74: 0.007625209484 | ER74: 0.006436867399 | ES74: 0.007212347669 | ET74: 0.005666757971 | EU74: 0.005841223706 | EV74: 0.009088677278 | EW74: 0.003685263813 | EX74: 0.005356288658 | EY74: 0.003640044789 | EZ74: 0.00882758506 | FA74: 0.002146084474 | FB74: 0.004517917562 | FC74: 0.0049701078 | FD74: 0.007005310377 | FE74: 0.003126176496 | FF74: 0.003575941192 | FG74: 0.009855841406 | FH74: 0.003949474584 | FI74: 0.00361319058 | FJ74: 0.002899734871 | FK74: 0.00261508025 | FL74: 0.002051315103 | FM74: 0.003318487287 | FN74: 0.00248184872 | FO74: 0.003715929588 | FP74: 0.002178309526 | FQ74: 0.001776709153 | FR74: 0.002659779515 | FS74: 0.002795609839 | FT74: 0.001575562461 | FU74: 0.003196690453 | FV74: 0.003074547112 | FW74: 0.002475611613 | FX74: 0.002944260883 | FY74: 0.002170686395 | FZ74: 0.002739649132 | GA74: 0.001708100979 | GB74: 0.001548708252 | GC74: 0.002425888012 | GD74: 0.003488794951 | GE74: 0.002710022875 | GF74: 0.002156306399 | GG74: 0.002637083376 | GH74: 0.0008387176023 | GI74: 0.0004793909535
A76: A1 | B76: DLY | C76: 6.643333333 | D76: 5.49 | F76: 17.84 | G76: 3.82 | H76: 45.40 | I76: 21.74 | J76: 10.37 | K76: 49.60 | M76: 273.9657 | N76: 284.1429 | O76: 0.8211 | P76: 0.5953 | R76: =S76/V76 -> 121.7852113 | S76: 0.9714903657 | T76: 0.007597887759 | U76: 5.62E-05 | V76: 0.007977079939 | W76: 0.008496713668 | X76: 0.000154485703 | Y76: 0.001123532386 | Z76: 0 | AA76: 0 | AB76: 0 | AC76: 0 | AD76: 0 | AE76: 0 | AG76: 0.9586680524 | AH76: 0.002907140048 | AI76: 0 | AJ76: 0 | AK76: 0.001292062244 | AL76: 0.0006881635863 | AM76: 0 | AN76: 0.0004213246447 | AO76: 0.002401550475 | AP76: 0 | AQ76: 0 | AR76: 0.0002527947868 | AS76: 0 | AT76: 0 | AU76: 0.001278018089 | AV76: 0.0006600752767 | AW76: 0 | AX76: 0 | AY76: 0.0002949272513 | AZ76: 0.000238750632 | BA76: 0 | BB76: 0 | BC76: 0 | BD76: 0 | BE76: 0 | BF76: 0 | BG76: 0 | BH76: 0 | BI76: 0 | BJ76: 0 | BK76: 0 | BL76: 0 | BM76: 0 | BN76: 0 | BO76: 0 | BP76: 0 | BQ76: 0 | BR76: 0 | BS76: 0.0002949272513 | BT76: 0 | BU76: 0 | BV76: 0 | BW76: 0 | BX76: 0 | BY76: 0 | BZ76: 0 | CA76: 0 | CB76: 0 | CC76: 0 | CD76: 0 | CE76: 0 | CG76: 6.643333333 | CH76: 5.49 | CJ76: 17.84 | CK76: 3.82 | CL76: 45.40 | CM76: 21.74 | CN76: 10.37 | CO76: 49.60 | CQ76: 0.00 | CR76: 0.00 | CS76: 0.0120098 | CT76: 0.0102796 | CU76: 0.1880657 | CV76: 0.0070678 | CW76: 0.00 | CX76: 1.213158 | CY76: 0.2735758 | CZ76: 0.0362838 | DA76: 0.00 | DB76: 2.1513903 | DC76: 5.2987218 | DD76: 0.593112 | DE76: 0 | DF76: 0.0123525 | DG76: 0.0331143 | DH76: 0.0971699 | DI76: 0.0210244 | DJ76: 0.0004 | DK76: 0.0035008 | DL76: 0.0230213 | DM76: 0.00 | DN76: 0.00 | DO76: 0.0004 | DP76: 0 | DQ76: 0.00 | DR76: 0.00 | DS76: 0.00 | DT76: 0 | DU76: 0.00 | DV76: 9.9747 | DW76: 3.6451 | DX76: 6.3295 | DY76: 5.6765 | DZ76: 0.6530 | EA76: 0.3654 | EB76: 0.6346 | EC76: 0.5691 | ED76: 0.0655 | EF76: 0.06142691383 | EG76: 0.04499700645 | EH76: 0.03984541244 | EI76: 0.02487342928 | EJ76: 0.0325862894 | EK76: 0.03219297399 | EL76: 0.02539764236 | EM76: 0.02596872771 | EN76: 0.01843378117 | EO76: 0.02362429976 | EP76: 0.01072297979 | EQ76: 0.01920217058 | ER76: 0.01774525179 | ES76: 0.01482193441 | ET76: 0.01689417757 | EU76: 0.007022798649 | EV76: 0.009026145779 | EW76: 0.008889837932 | EX76: 0.008092530383 | EY76: 0.008535590736 | EZ76: 0.009845429199 | FA76: 0.004359696637 | FB76: 0.009844232256 | FC76: 0.01534509417 | FD76: 0.01112740283 | FE76: 0.01224348019 | FF76: 0.00855411941 | FG76: 0.007520008695 | FH76: 0.0016423013 | FI76: 0.007057031213 | FJ76: 0.02057664396 | FK76: 0.005485876194 | FL76: 0.005334822011 | FM76: 0.007469593463 | FN76: 0.006290509033 | FO76: 0.009884880434 | FP76: 0.008488622699 | FQ76: 0.002277303403 | FR76: 0.00404336859 | FS76: 0.005549745063 | FT76: 0.002585300728 | FU76: 0.005796889816 | FV76: 0.002478868573 | FW76: 0.005141731196 | FX76: 0.007109744575 | FY76: 0.004173212946 | FZ76: 0.001574745847 | GA76: 0.003137618022 | GB76: 0.0005360867487 | GC76: 0.005624673683 | GD76: 0.004869498522 | GE76: 0.002026567822 | GF76: 0.002935478319 | GG76: 0.003018354639 | GH76: 0.002293198803 | GI76: 0.0008347479203
A77: A3 | B77: DLY | C77: 6.323333333 | D77: 5.536666667 | F77: 13.52 | G77: 3.12 | H77: 50.51 | I77: 18.13 | J77: 8.07 | K77: 55.34 | M77: 286.7749 | N77: 288.6667 | O77: 0.3853 | P77: 1.6042 | R77: =S77/V77 -> 72.20385051 | S77: 0.9427037897 | T77: 0.02287412577 | U77: 0 | V77: 0.01305614289 | W77: 0.01355887093 | X77: 0.0002661501382 | Y77: 0.002247490056 | Z77: 0 | AA77: 0 | AB77: 0 | AC77: 0 | AD77: 0 | AE77: 0 | AG77: 0.9059750706 | AH77: 0.01242033978 | AI77: 0 | AJ77: 0 | AK77: 0.002025698274 | AL77: 0.002380565125 | AM77: 0 | AN77: 0.002129201106 | AO77: 0.0129822123 | AP77: 0 | AQ77: 0 | AR77: 0.0001774334255 | AS77: 0 | AT77: 0 | AU77: 0.001182889503 | AV77: 0.001301178454 | AW77: 0 | AX77: 0 | AY77: 0.0005027280389 | AZ77: 0.000635803108 | BA77: 0 | BB77: 0 | BC77: 0 | BD77: 0 | BE77: 0 | BF77: 0 | BG77: 0 | BH77: 0 | BI77: 0 | BJ77: 0 | BK77: 0 | BL77: 0 | BM77: 0 | BN77: 0 | BO77: 0 | BP77: 0 | BQ77: 0 | BR77: 0 | BS77: 0.0001330750691 | BT77: 0 | BU77: 0 | BV77: 0 | BW77: 0 | BX77: 0 | BY77: 0 | BZ77: 0 | CA77: 0 | CB77: 0 | CC77: 0 | CD77: 0 | CE77: 0 | CG77: 6.323333333 | CH77: 5.536666667 | CJ77: 13.52 | CK77: 3.12 | CL77: 50.51 | CM77: 18.13 | CN77: 8.07 | CO77: 55.34 | CQ77: 0.00 | CR77: 0.00 | CS77: 0.0104861 | CT77: 0.0070531 | CU77: 0.1420113 | CV77: 0.004581 | CW77: 0.00 | CX77: 1.0347528 | CY77: 0.24758 | CZ77: 0.0243159 | DA77: 0.00 | DB77: 2.0027488 | DC77: 4.2847791 | DD77: 1.6965672 | DE77: 0.0125247 | DF77: 0.0603048 | DG77: 0.0270919 | DH77: 0.0803059 | DI77: 0.0554623 | DJ77: 0.0005 | DK77: 0.0331948 | DL77: 0.2377924 | DM77: 0.00 | DN77: 0.00 | DO77: 0.0007 | DP77: 0.0077385 | DQ77: 0.00 | DR77: 0.00 | DS77: 0.00 | DT77: 0.0167923 | DU77: 0.00 | DV77: 9.9872 | DW77: 3.2496 | DX77: 6.7376 | DY77: 4.6250 | DZ77: 2.1126 | EA77: 0.3254 | EB77: 0.6746 | EC77: 0.4631 | ED77: 0.2115 | EF77: 0.06640158704 | EG77: 0.04882624521 | EH77: 0.04150916072 | EI77: 0.02736135396 | EJ77: 0.03160937989 | EK77: 0.02928360492 | EL77: 0.02566104912 | EM77: 0.02633279603 | EN77: 0.01804992666 | EO77: 0.02157441693 | EP77: 0.01143377478 | EQ77: 0.01678054707 | ER77: 0.01624017545 | ES77: 0.01442277094 | ET77: 0.01504257047 | EU77: 0.007703913949 | EV77: 0.009633183758 | EW77: 0.00854807854 | EX77: 0.008290958885 | EY77: 0.008692976014 | EZ77: 0.009531906214 | FA77: 0.005162815153 | FB77: 0.009195318979 | FC77: 0.01183999528 | FD77: 0.01056458821 | FE77: 0.01023156988 | FF77: 0.008216725697 | FG77: 0.007753244123 | FH77: 0.002564653558 | FI77: 0.007004131323 | FJ77: 0.01484945315 | FK77: 0.006290350665 | FL77: 0.005266035767 | FM77: 0.007003496851 | FN77: 0.006062535672 | FO77: 0.008782555486 | FP77: 0.007489938369 | FQ77: 0.003504702684 | FR77: 0.004459146387 | FS77: 0.00582924836 | FT77: 0.003532659093 | FU77: 0.005529381175 | FV77: 0.003291996048 | FW77: 0.00482226247 | FX77: 0.006118845035 | FY77: 0.004319205724 | FZ77: 0.002164301918 | GA77: 0.003627155722 | GB77: 0.00106777621 | GC77: 0.005561263377 | GD77: 0.004506414529 | GE77: 0.002828355857 | GF77: 0.003260550045 | GG77: 0.003240286605 | GH77: 0.002577303337 | GI77: 0.0009398508539
A78: A8 | B78: DLY | C78: 6.94 | D78: 5.52 | F78: 17.18 | G78: 3.27 | H78: 48.10 | I78: 21.38 | J78: 11.05 | K78: 51.80 | M78: 299.308 | N78: 305.1818 | O78: 0.2689 | P78: 1.9643 | R78: 62.59116022 | S78: 0.6783223064 | T78: 0.292099512 | U78: 0 | V78: 0.01083734994 | W78: 0.01210969075 | X78: 0.0001047810077 | Y78: 0.002814118492 | Z78: 0 | AA78: 0 | AB78: 1.50E-05 | AC78: 0 | AD78: 0 | AE78: 0 | AG78: 0.04697182888 | AH78: 0.2447534653 | AI78: 0 | AJ78: 0 | AK78: 0.02040235907 | AL78: 0.02721312457 | AM78: 0 | AN78: 0.03948747119 | AO78: 0.4406191061 | AP78: 0 | AQ78: 0 | AR78: 0.0003293117385 | AS78: 0 | AT78: 0 | AU78: 0.0015567464 | AV78: 0.0004191240308 | AW78: 0 | AX78: 0 | AY78: 0.0004789988923 | AZ78: 0.0004789988923 | BA78: 0 | BB78: 0 | BC78: 0 | BD78: 0 | BE78: 0 | BF78: 0 | BG78: 0 | BH78: 0 | BI78: 0 | BJ78: 0 | BK78: 0 | BL78: 0 | BM78: 0 | BN78: 0 | BO78: 0 | BP78: 0 | BQ78: 0 | BR78: 0 | BS78: 0.0003891866 | BT78: 0 | BU78: 0 | BV78: 0 | BW78: 0 | BX78: 0 | BY78: 0 | BZ78: 0 | CA78: 0 | CB78: 0 | CC78: 0 | CD78: 0 | CE78: 0 | CG78: 6.94 | CH78: 5.52 | CJ78: 17.18 | CK78: 3.27 | CL78: 48.10 | CM78: 21.38 | CN78: 11.05 | CO78: 51.80 | CQ78: 0.00 | CR78: 0.00 | CS78: 0.0141405 | CT78: 0.0119149 | CU78: 0.2032622 | CV78: 0.006351 | CW78: 0.00 | CX78: 1.200155 | CY78: 0.3168483 | CZ78: 0.0349293 | DA78: 0.00 | DB78: 1.9240565 | DC78: 5.1047507 | DD78: 0.925071 | DE78: 0 | DF78: 0.0338997 | DG78: 0.0342717 | DH78: 0.103682 | DI78: 0.0360487 | DJ78: 0.0004 | DK78: 0.0057153 | DL78: 0.0248331 | DM78: 0.00 | DN78: 0.00 | DO78: 0.0005 | DP78: 0.0035418 | DQ78: 0.00 | DR78: 0.00 | DS78: 0.00 | DT78: 0 | DU78: 0.00 | DV78: 9.9844 | DW78: 3.4237 | DX78: 6.5607 | DY78: 5.5352 | DZ78: 1.0256 | EA78: 0.3429 | EB78: 0.6571 | EC78: 0.5544 | ED78: 0.1027 | EF78: 0.073802388 | EG78: 0.05125758289 | EH78: 0.04416656138 | EI78: 0.03361327852 | EJ78: 0.03674341305 | EK78: 0.02038042719 | EL78: 0.02861512965 | EM78: 0.01862191129 | EN78: 0.0208575184 | EO78: 0.0154560135 | EP78: 0.0119814771 | EQ78: 0.01289777253 | ER78: 0.01252899048 | ES78: 0.01416554179 | ET78: 0.009840183898 | EU78: 0.009634311558 | EV78: 0.008239438323 | EW78: 0.007973061517 | EX78: 0.007268266248 | EY78: 0.007801083571 | EZ78: 0.006847495806 | FA78: 0.006853866933 | FB78: 0.007102149739 | FC78: 0.00595621766 | FD78: 0.008832505267 | FE78: 0.009426273036 | FF78: 0.008074787173 | FG78: 0.005880252593 | FH78: 0.005942902005 | FI78: 0.006832353762 | FJ78: 0.00896459996 | FK78: 0.005992193289 | FL78: 0.005306936142 | FM78: 0.006766370127 | FN78: 0.004957055102 | FO78: 0.007065940503 | FP78: 0.005176030726 | FQ78: 0.005894715051 | FR78: 0.007790125234 | FS78: 0.008021758162 | FT78: 0.004487694201 | FU78: 0.004772334903 | FV78: 0.005670047887 | FW78: 0.004866606341 | FX78: 0.004629494243 | FY78: 0.003648149603 | FZ78: 0.006226056111 | GA78: 0.00588917217 | GB78: 0.004908294746 | GC78: 0.004363329808 | GD78: 0.002942271243 | GE78: 0.004099650113 | GF78: 0.004236289542 | GG78: 0.004734724019 | GH78: 0.003499723589 | GI78: 0.001191421924
A79: A9 | B79: DLY | C79: 6.683333333 | D79: 5.52 | F79: 16.94 | G79: 3.28 | H79: 49.16 | I79: 18.88 | J79: 8.87 | K79: 51.93 | M79: 294.8489 | N79: 298 | O79: 0.1393 | P79: 2.5354 | R79: 68.06228956 | S79: 0.6651804077 | T79: 0.3099590319 | U79: 0 | V79: 0.009773112424 | W79: 0.007815199329 | X79: 8.23E-05 | Y79: 0.003488046858 | Z79: 0 | AA79: 0 | AB79: 0 | AC79: 0 | AD79: 0 | AE79: 0 | AG79: 0.01424834236 | AH79: 0.216522154 | AI79: 0 | AJ79: 0 | AK79: 0.2264104378 | AL79: 0.08038960825 | AM79: 0 | AN79: 0.01187910298 | AO79: 0.08361440629 | AP79: 0 | AQ79: 0 | AR79: 0.006219253361 | AS79: 0 | AT79: 0 | AU79: 0.00189210089 | AV79: 0.0003619671268 | AW79: 0 | AX79: 0 | AY79: 0.0008061995097 | AZ79: 0.001365603251 | BA79: 0 | BB79: 0 | BC79: 0 | BD79: 0 | BE79: 0 | BF79: 0 | BG79: 0 | BH79: 0 | BI79: 0 | BJ79: 0 | BK79: 0 | BL79: 0 | BM79: 0 | BN79: 0 | BO79: 0 | BP79: 0 | BQ79: 0 | BR79: 0 | BS79: 0.0006416689975 | BT79: 0 | BU79: 0 | BV79: 0 | BW79: 0 | BX79: 0 | BY79: 0 | BZ79: 0 | CA79: 0 | CB79: 0 | CC79: 0 | CD79: 0 | CE79: 0 | CG79: 6.683333333 | CH79: 5.52 | CJ79: 16.94 | CK79: 3.28 | CL79: 49.16 | CM79: 18.88 | CN79: 8.87 | CO79: 51.93 | CQ79: 0.00 | CR79: 0.00 | CS79: 0.0078345 | CT79: 0.0083639 | CU79: 0.1479321 | CV79: 0.0060947 | CW79: 0.00 | CX79: 0.9419976 | CY79: 0.3526413 | CZ79: 0.0312702 | DA79: 0.00 | DB79: 1.3591535 | DC79: 4.9163189 | DD79: 1.7658405 | DE79: 0.0065375 | DF79: 0.0811412 | DG79: 0.019393 | DH79: 0.0802814 | DI79: 0.069235 | DJ79: 0.0004 | DK79: 0.0229196 | DL79: 0.1441889 | DM79: 0.00 | DN79: 0.00 | DO79: 0.0004 | DP79: 0.0107953 | DQ79: 0.00 | DR79: 0.00 | DS79: 0.00 | DT79: 0.0133274 | DU79: 0.00 | DV79: 9.9861 | DW79: 2.5168 | DX79: 7.4693 | DY79: 5.3661 | DZ79: 2.1032 | EA79: 0.2520 | EB79: 0.7480 | EC79: 0.5374 | ED79: 0.2106 | EF79: 0.07341231162 | EG79: 0.05045527894 | EH79: 0.04802456673 | EI79: 0.03599119091 | EJ79: 0.038978113 | EK79: 0.01696616238 | EL79: 0.02737284044 | EM79: 0.01841096046 | EN79: 0.02181664442 | EO79: 0.01455084747 | EP79: 0.01218382661 | EQ79: 0.01125375203 | ER79: 0.01123051687 | ES79: 0.01542739348 | ET79: 0.008668565694 | EU79: 0.01022855113 | EV79: 0.006828296592 | EW79: 0.007459181959 | EX79: 0.007969325247 | EY79: 0.007787731834 | EZ79: 0.006034444918 | FA79: 0.007179134956 | FB79: 0.006677539533 | FC79: 0.005527183402 | FD79: 0.007986393135 | FE79: 0.01067997309 | FF79: 0.007379007437 | FG79: 0.004818128224 | FH79: 0.008947707793 | FI79: 0.006835772494 | FJ79: 0.01112674523 | FK79: 0.00587310744 | FL79: 0.006288653423 | FM79: 0.005962094338 | FN79: 0.003929150224 | FO79: 0.007013579231 | FP79: 0.004381825128 | FQ79: 0.005778343075 | FR79: 0.006946156899 | FS79: 0.007978179388 | FT79: 0.00464485993 | FU79: 0.004037655212 | FV79: 0.007541027074 | FW79: 0.00440414146 | FX79: 0.003662927375 | FY79: 0.004398043797 | FZ79: 0.005998847375 | GA79: 0.005510477476 | GB79: 0.003961671093 | GC79: 0.003942180846 | GD79: 0.002806038674 | GE79: 0.004935348137 | GF79: 0.004603498842 | GG79: 0.004654396229 | GH79: 0.00325101493 | GI79: 0.001509227261
A80: A12 | B80: DLY | C80: 7.003333333 | D80: 5.42 | F80: 16.74 | G80: 3.74 | H80: 50.21 | I80: 22.01 | J80: 11.38 | K80: 51.79 | M80: 298.0607 | N80: 298.875 | O80: 0.1464 | P80: 2.4452 | R80: 35.5516992 | S80: 0.833652656 | T80: 0.09740755184 | U80: 6.78E-05 | V80: 0.02344902423 | W80: 0.0302310992 | X80: 0.0004747452483 | Y80: 0.004866138795 | Z80: 0 | AA80: 0 | AB80: 0 | AC80: 0 | AD80: 0 | AE80: 0 | AG80: 0.2023262517 | AH80: 0.08286000102 | AI80: 0 | AJ80: 0 | AK80: 0.2193662151 | AL80: 0.1361501551 | AM80: 0 | AN80: 0.001593787619 | AO80: 0.1936282406 | AP80: 0 | AQ80: 0 | AR80: 0.0006612523101 | AS80: 0 | AT80: 0 | AU80: 0.002543278116 | AV80: 0.002339815867 | AW80: 0 | AX80: 0 | AY80: 0.0007121178725 | AZ80: 0.001288594245 | BA80: 0 | BB80: 0 | BC80: 0 | BD80: 0 | BE80: 0 | BF80: 0 | BG80: 0 | BH80: 0 | BI80: 0 | BJ80: 0 | BK80: 0 | BL80: 0 | BM80: 0 | BN80: 0 | BO80: 0 | BP80: 0 | BQ80: 0 | BR80: 0 | BS80: 0.0003051933739 | BT80: 0 | BU80: 0 | BV80: 0 | BW80: 0 | BX80: 0 | BY80: 0 | BZ80: 0 | CA80: 0 | CB80: 0 | CC80: 0 | CD80: 0 | CE80: 0 | CG80: 7.003333333 | CH80: 5.42 | CJ80: 16.74 | CK80: 3.74 | CL80: 50.21 | CM80: 22.01 | CN80: 11.38 | CO80: 51.79 | CQ80: 0.00 | CR80: 0.00 | CS80: 0.0123676 | CT80: 0.0104495 | CU80: 0.1924867 | CV80: 0.0085225 | CW80: 0.00 | CX80: 1.2261988 | CY80: 0.2946405 | CZ80: 0.032572 | DA80: 0.00 | DB80: 1.9721958 | DC80: 5.477258 | DD80: 0.5652907 | DE80: 0 | DF80: 0.0131004 | DG80: 0.0298275 | DH80: 0.0975199 | DI80: 0.0211885 | DJ80: 0.0004 | DK80: 0 | DL80: 0.0292891 | DM80: 0.00 | DN80: 0.00 | DO80: 0.0006 | DP80: 0 | DQ80: 0.00 | DR80: 0.00 | DS80: 0.00 | DT80: 0 | DU80: 0.00 | DV80: 9.9839 | DW80: 3.4771 | DX80: 6.5068 | DY80: 5.8779 | DZ80: 0.6289 | EA80: 0.3483 | EB80: 0.6517 | EC80: 0.5887 | ED80: 0.0630 | EF80: 0.07600488668 | EG80: 0.05151465394 | EH80: 0.04269975902 | EI80: 0.03699421385 | EJ80: 0.03644747329 | EK80: 0.02160820662 | EL80: 0.02752734999 | EM80: 0.01967317261 | EN80: 0.01940321788 | EO80: 0.01674469927 | EP80: 0.01172715495 | EQ80: 0.01125823405 | ER80: 0.01174290442 | ES80: 0.01484618209 | ET80: 0.01091699558 | EU80: 0.0100715633 | EV80: 0.008075007273 | EW80: 0.008026261932 | EX80: 0.008571104968 | EY80: 0.007567777424 | EZ80: 0.007217641664 | FA80: 0.006278302922 | FB80: 0.007585993676 | FC80: 0.005895129122 | FD80: 0.007822383279 | FE80: 0.008784576671 | FF80: 0.007399972853 | FG80: 0.005819080487 | FH80: 0.009062479931 | FI80: 0.008167374634 | FJ80: 0.007032443103 | FK80: 0.006007884348 | FL80: 0.004332769262 | FM80: 0.006408367804 | FN80: 0.004572405743 | FO80: 0.007565184138 | FP80: 0.00542987677 | FQ80: 0.005559203725 | FR80: 0.006745642552 | FS80: 0.007110494682 | FT80: 0.004866943984 | FU80: 0.004814256005 | FV80: 0.007048234738 | FW80: 0.004536542497 | FX80: 0.004408522726 | FY80: 0.004413688215 | FZ80: 0.006112163957 | GA80: 0.004884422309 | GB80: 0.00311221713 | GC80: 0.004300996239 | GD80: 0.003441585519 | GE80: 0.004676748603 | GF80: 0.003729693254 | GG80: 0.003898741759 | GH80: 0.002805661223 | GI80: 0.001049500683
A81: A13 | B81: DLY | C81: 6.3 | D81: 5.45 | F81: 15.35 | G81: 2.94 | H81: 49.58 | I81: 21.75 | J81: 10.93 | K81: 53.65 | M81: 289.1562 | N81: 293.1111 | O81: 0.2869 | P81: 1.7754 | R81: 90.29253731 | S81: 0.9563828946 | T81: 0.01933443997 | U81: 0 | V81: 0.01059204806 | W81: 0.007793850289 | X81: 0.0001264722156 | Y81: 0.001786420046 | Z81: 0 | AA81: 0 | AB81: 1.58E-05 | AC81: 0 | AD81: 0 | AE81: 0 | AG81: 0.006560746186 | AH81: 0.004015492846 | AI81: 0 | AJ81: 0 | AK81: 0.08513161015 | AL81: 0.06952810055 | AM81: 0 | AN81: 0.009833214766 | AO81: 0.2125207493 | AP81: 0 | AQ81: 0 | AR81: 0.0004742708086 | AS81: 0 | AT81: 0 | AU81: 0.001391194372 | AV81: 0.0004584617817 | AW81: 0 | AX81: 0 | AY81: 0.0004900798356 | AZ81: 0.0007272152399 | BA81: 0 | BB81: 0 | BC81: 0 | BD81: 0 | BE81: 0 | BF81: 0 | BG81: 0 | BH81: 0 | BI81: 0 | BJ81: 0 | BK81: 0 | BL81: 0 | BM81: 0 | BN81: 0 | BO81: 0 | BP81: 0 | BQ81: 0 | BR81: 0 | BS81: 0.00036360762 | BT81: 0 | BU81: 0 | BV81: 0 | BW81: 0 | BX81: 0 | BY81: 0 | BZ81: 0 | CA81: 0 | CB81: 0 | CC81: 0 | CD81: 0 | CE81: 0 | CG81: 6.3 | CH81: 5.45 | CJ81: 15.35 | CK81: 2.94 | CL81: 49.58 | CM81: 21.75 | CN81: 10.93 | CO81: 53.65 | CQ81: 0.00 | CR81: 0.00 | CS81: 0.0099875 | CT81: 0.0106948 | CU81: 0.1696247 | CV81: 0.0041762 | CW81: 0.00 | CX81: 1.0184261 | CY81: 0.3295963 | CZ81: 0.0232228 | DA81: 0.00 | DB81: 1.5430028 | DC81: 4.6170949 | DD81: 1.7945875 | DE81: 0.0052048 | DF81: 0.0876403 | DG81: 0.0237648 | DH81: 0.1057809 | DI81: 0.0764898 | DJ81: 0.0004 | DK81: 0.022778 | DL81: 0.1182971 | DM81: 0.00 | DN81: 0.00 | DO81: 0.0005 | DP81: 0.0132047 | DQ81: 0.00 | DR81: 0.00 | DS81: 0.00 | DT81: 0.0124795 | DU81: 0.00 | DV81: 9.9869 | DW81: 2.7996 | DX81: 7.1873 | DY81: 5.0699 | DZ81: 2.1175 | EA81: 0.2803 | EB81: 0.7197 | EC81: 0.5076 | ED81: 0.2120 | EF81: 0.07470286084 | EG81: 0.05140121021 | EH81: 0.0423047751 | EI81: 0.03769020942 | EJ81: 0.03648373684 | EK81: 0.02043187308 | EL81: 0.02770348889 | EM81: 0.0186516714 | EN81: 0.02214444694 | EO81: 0.01611201019 | EP81: 0.01207186269 | EQ81: 0.0129729026 | ER81: 0.01225006251 | ES81: 0.01435361282 | ET81: 0.010494323 | EU81: 0.01065600962 | EV81: 0.007728152864 | EW81: 0.007419200988 | EX81: 0.008156806982 | EY81: 0.007570797575 | EZ81: 0.007135055825 | FA81: 0.006151769841 | FB81: 0.007225078604 | FC81: 0.006194689394 | FD81: 0.008841747928 | FE81: 0.009641641417 | FF81: 0.007517320402 | FG81: 0.005574595365 | FH81: 0.008845636282 | FI81: 0.007891168416 | FJ81: 0.009436592266 | FK81: 0.006158266838 | FL81: 0.003623502984 | FM81: 0.006414799765 | FN81: 0.004594164122 | FO81: 0.00703400784 | FP81: 0.005330539625 | FQ81: 0.005617194991 | FR81: 0.006504035029 | FS81: 0.008014192984 | FT81: 0.004771453378 | FU81: 0.004678821957 | FV81: 0.00732743091 | FW81: 0.004201415755 | FX81: 0.004266853308 | FY81: 0.004531728969 | FZ81: 0.006425160505 | GA81: 0.005066722186 | GB81: 0.005840578469 | GC81: 0.004289248258 | GD81: 0.003538869759 | GE81: 0.004868268472 | GF81: 0.003265995901 | GG81: 0.004561236162 | GH81: 0.002747811201 | GI81: 0.000810475718
A82: B1 | B82: DLY | C82: 6.473333333 | D82: 5.52 | F82: 18.75 | G82: 3.16 | H82: 44.46 | I82: 21.85 | J82: 11.01 | K82: 49.74 | M82: 73.0514 | N82: 69.4286 | O82: 0.2915 | P82: 1.4385 | R82: 13270.8 | S82: 0.9996384344 | T82: 0.0001958480219 | U82: 0 | V82: 7.53E-05 | W82: 7.53E-05 | X82: 0 | Y82: 1.51E-05 | Z82: 0 | AA82: 0 | AB82: 0 | AC82: 0 | AD82: 0 | AE82: 0 | AG82: 0.0008135225527 | AH82: 1.51E-05 | AI82: 0 | AJ82: 0 | AK82: 0.435581066 | AL82: 0.03162192293 | AM82: 0 | AN82: 1.51E-05 | AO82: 0.2496158366 | AP82: 0 | AQ82: 0 | AR82: 0 | AS82: 0 | AT82: 0 | AU82: 1.51E-05 | AV82: 0 | AW82: 0 | AX82: 0 | AY82: 0 | AZ82: 0 | BA82: 0 | BB82: 0 | BC82: 0 | BD82: 0 | BE82: 0 | BF82: 0 | BG82: 0 | BH82: 0 | BI82: 0 | BJ82: 0 | BK82: 0 | BL82: 0 | BM82: 0 | BN82: 0 | BO82: 0 | BP82: 0 | BQ82: 0 | BR82: 0 | BS82: 1.51E-05 | BT82: 0 | BU82: 0 | BV82: 0 | BW82: 0 | BX82: 0 | BY82: 0 | BZ82: 0 | CA82: 0 | CB82: 0 | CC82: 0 | CD82: 0 | CE82: 0 | CG82: 6.473333333 | CH82: 5.52 | CJ82: 18.75 | CK82: 3.16 | CL82: 44.46 | CM82: 21.85 | CN82: 11.01 | CO82: 49.74 | CQ82: 0.00 | CR82: 0.00 | CS82: 0.0106071 | CT82: 0.0092875 | CU82: 0.1487283 | CV82: 0.0057652 | CW82: 0.00 | CX82: 0.9908161 | CY82: 0.3178163 | CZ82: 0.0271432 | DA82: 0.00 | DB82: 1.5827733 | DC82: 4.8848763 | DD82: 1.5837987 | DE82: 0.007466 | DF82: 0.0671006 | DG82: 0.0240863 | DH82: 0.0847169 | DI82: 0.0620224 | DJ82: 0.0004 | DK82: 0.0227614 | DL82: 0.1366281 | DM82: 0.00 | DN82: 0.00 | DO82: 0.0004 | DP82: 0.0096397 | DQ82: 0.00 | DR82: 0.00 | DS82: 0.00 | DT82: 0.0081358 | DU82: 0.00 | DV82: 9.9850 | DW82: 2.7943 | DX82: 7.1907 | DY82: 5.3028 | DZ82: 1.8879 | EA82: 0.2798 | EB82: 0.7202 | EC82: 0.5311 | ED82: 0.1891 | EF82: 0.07643068715 | EG82: 0.05086202285 | EH82: 0.04305630282 | EI82: 0.0393931602 | EJ82: 0.0396590492 | EK82: 0.02164668736 | EL82: 0.02795379178 | EM82: 0.01993151827 | EN82: 0.0173132399 | EO82: 0.01718959404 | EP82: 0.01237383008 | EQ82: 0.01057107588 | ER82: 0.0119001902 | ES82: 0.01528494065 | ET82: 0.01122495654 | EU82: 0.01106729703 | EV82: 0.008186704249 | EW82: 0.006599291008 | EX82: 0.008990292146 | EY82: 0.007659477145 | EZ82: 0.007322159507 | FA82: 0.006359589357 | FB82: 0.007837733792 | FC82: 0.005240194298 | FD82: 0.007560176224 | FE82: 0.009788557539 | FF82: 0.006661365893 | FG82: 0.005869005646 | FH82: 0.0104902305 | FI82: 0.009608190786 | FJ82: 0.008144013987 | FK82: 0.006574615375 | FL82: 0.003233342534 | FM82: 0.006692056901 | FN82: 0.00430636252 | FO82: 0.007430514984 | FP82: 0.005284049842 | FQ82: 0.005241328086 | FR82: 0.006387871065 | FS82: 0.007375715237 | FT82: 0.005019278882 | FU82: 0.004495437394 | FV82: 0.007059167964 | FW82: 0.004516821892 | FX82: 0.004208242628 | FY82: 0.004302079321 | FZ82: 0.006485455557 | GA82: 0.004978462518 | GB82: 0.002848626266 | GC82: 0.004466289597 | GD82: 0.003690463756 | GE82: 0.004588533975 | GF82: 0.003420984426 | GG82: 0.003626278765 | GH82: 0.002422353522 | GI82: 0.0007171838133
A83: B3 | B83: DLY | C83: 6.696666667 | D83: 5.526666667 | F83: 17.86 | G83: 3.50 | H83: 50.91 | I83: 24.57 | J83: 11.39 | K83: 48.08 | M83: 276.0451 | N83: 276.12 | O83: 0.1644 | P83: 2.1426 | R83: 71.31024931 | S83: 0.8145487913 | T83: 0.1528603974 | U83: 0 | V83: 0.01142260473 | W83: 0.0141121377 | X83: 0.0003322364258 | Y83: 0.00232565498 | Z83: 0 | AA83: 0 | AB83: 3.16E-05 | AC83: 0 | AD83: 0 | AE83: 0 | AG83: 0.004145044931 | AH83: 0.147228199 | AI83: 0 | AJ83: 0 | AK83: 0.1318820402 | AL83: 0.08595430958 | AM83: 0 | AN83: 0.0002056701683 | AO83: 0.2673870396 | AP83: 0 | AQ83: 0 | AR83: 4.75E-05 | AS83: 0 | AT83: 0 | AU83: 0.001218200228 | AV83: 0.0007435767624 | AW83: 0 | AX83: 0 | AY83: 0.0004113403367 | AZ83: 0.0007752183268 | BA83: 0 | BB83: 0 | BC83: 0 | BD83: 0 | BE83: 0 | BF83: 0 | BG83: 0 | BH83: 0 | BI83: 0 | BJ83: 0 | BK83: 0 | BL83: 0 | BM83: 0 | BN83: 0 | BO83: 0 | BP83: 0 | BQ83: 0 | BR83: 0 | BS83: 0.0002214909505 | BT83: 0 | BU83: 0 | BV83: 0 | BW83: 0 | BX83: 0 | BY83: 0 | BZ83: 0 | CA83: 0 | CB83: 0 | CC83: 0 | CD83: 0 | CE83: 0 | CG83: 6.696666667 | CH83: 5.526666667 | CJ83: 17.86 | CK83: 3.50 | CL83: 50.91 | CM83: 24.57 | CN83: 11.39 | CO83: 48.08 | CQ83: 0.00 | CR83: 0.00 | CS83: 0.0095666 | CT83: 0.009394 | CU83: 0.1477055 | CV83: 0.0058604 | CW83: 0.00 | CX83: 1.0175312 | CY83: 0.2513439 | CZ83: 0.0171476 | DA83: 0.00 | DB83: 1.8037106 | DC83: 4.7691025 | DD83: 1.5180877 | DE83: 0.0056344 | DF83: 0.0636588 | DG83: 0.0285704 | DH83: 0.0871114 | DI83: 0.0596098 | DJ83: 0.0004 | DK83: 0.0207962 | DL83: 0.1427483 | DM83: 0.00 | DN83: 0.00 | DO83: 0.0005 | DP83: 0 | DQ83: 0.00 | DR83: 0.00 | DS83: 0.00 | DT83: 0.0081029 | DU83: 0.00 | DV83: 9.9666 | DW83: 3.0345 | DX83: 6.9321 | DY83: 5.1134 | DZ83: 1.8186 | EA83: 0.3045 | EB83: 0.6955 | EC83: 0.5131 | ED83: 0.1825 | EF83: 0.07471619635 | EG83: 0.05125243438 | EH83: 0.04376802778 | EI83: 0.03684094147 | EJ83: 0.03603600727 | EK83: 0.01986508367 | EL83: 0.02792498855 | EM83: 0.0188084918 | EN83: 0.02083101227 | EO83: 0.01575417108 | EP83: 0.01205679867 | EQ83: 0.01233037577 | ER83: 0.01213648334 | ES83: 0.0143032941 | ET83: 0.01002003058 | EU83: 0.01041575178 | EV83: 0.00781474745 | EW83: 0.00758438563 | EX83: 0.008111358843 | EY83: 0.007644985281 | EZ83: 0.006930260855 | FA83: 0.006496275134 | FB83: 0.007250511214 | FC83: 0.005736729262 | FD83: 0.00836224178 | FE83: 0.01010549744 | FF83: 0.007348336096 | FG83: 0.00559990292 | FH83: 0.008700764625 | FI83: 0.007829637542 | FJ83: 0.009911718382 | FK83: 0.006200136142 | FL83: 0.00430229185 | FM83: 0.006416401505 | FN83: 0.004506312568 | FO83: 0.007032582999 | FP83: 0.005167221027 | FQ83: 0.005659614457 | FR83: 0.006903655208 | FS83: 0.008070826802 | FT83: 0.004695065272 | FU83: 0.004551852063 | FV83: 0.00700747014 | FW83: 0.004413627412 | FX83: 0.004223230751 | FY83: 0.004253728986 | FZ83: 0.006273811865 | GA83: 0.005438266056 | GB83: 0.005300381534 | GC83: 0.004306354502 | GD83: 0.003278295672 | GE83: 0.004720140339 | GF83: 0.003842626389 | GG83: 0.004602021092 | GH83: 0.003061614597 | GI83: 0.001007669985
A84: B4 | B84: DLY | C84: 6.92 | D84: 5.5 | F84: 16.82 | G84: 2.93 | H84: 47.43 | I84: 21.98 | J84: 11.58 | K84: 50.44 | M84: 299.2511 | N84: 302.8125 | O84: 0.1622 | P84: 2.2949 | R84: 76.97193878 | S84: 0.9103196512 | T84: 0.05337074414 | U84: 0.01190206815 | V84: 0.01182664313 | W84: 0.007798947067 | X84: 0.000105595028 | Y84: 0.00135765036 | Z84: 0 | AA84: 0 | AB84: 0 | AC84: 0 | AD84: 0 | AE84: 0 | AG84: 0.4933098007 | AH84: 0.04834743781 | AI84: 0 | AJ84: 0 | AK84: 0.01561297914 | AL84: 0.08670860298 | AM84: 0 | AN84: 0.0007089951879 | AO84: 0.1522680304 | AP84: 0 | AQ84: 0 | AR84: 0.000256445068 | AS84: 0 | AT84: 0 | AU84: 0.001086120288 | AV84: 0.002504110664 | AW84: 0 | AX84: 0 | AY84: 1.51E-05 | AZ84: 0.0003771250999 | BA84: 0 | BB84: 0 | BC84: 0 | BD84: 0 | BE84: 0 | BF84: 0 | BG84: 0 | BH84: 0 | BI84: 0 | BJ84: 0 | BK84: 0 | BL84: 0 | BM84: 0 | BN84: 0 | BO84: 0 | BP84: 0 | BQ84: 0 | BR84: 0 | BS84: 0.000135765036 | BT84: 0 | BU84: 0 | BV84: 0 | BW84: 0 | BX84: 0 | BY84: 0 | BZ84: 0 | CA84: 0 | CB84: 0 | CC84: 0 | CD84: 0 | CE84: 0 | CG84: 6.92 | CH84: 5.5 | CJ84: 16.82 | CK84: 2.93 | CL84: 47.43 | CM84: 21.98 | CN84: 11.58 | CO84: 50.44 | CQ84: 0.00 | CR84: 0.00 | CS84: 0.0111469 | CT84: 0.0097141 | CU84: 0.1713074 | CV84: 0.0052195 | CW84: 0.00 | CX84: 1.0480911 | CY84: 0.3409149 | CZ84: 0.0235501 | DA84: 0.00 | DB84: 1.574261 | DC84: 5.1372334 | DD84: 1.2324745 | DE84: 0 | DF84: 0.059577 | DG84: 0.0308096 | DH84: 0.0914106 | DI84: 0.0516778 | DJ84: 0.0004 | DK84: 0.010733 | DL84: 0.0449801 | DM84: 0.00 | DN84: 0.00 | DO84: 0.0004 | DP84: 0.0070808 | DQ84: 0.00 | DR84: 0.00 | DS84: 0.00 | DT84: 0.1360567 | DU84: 0.00 | DV84: 9.9871 | DW84: 2.8697 | DX84: 7.1174 | DY84: 5.5819 | DZ84: 1.5355 | EA84: 0.2873 | EB84: 0.7127 | EC84: 0.5589 | ED84: 0.1537 | EF84: 0.07075806766 | EG84: 0.05069464786 | EH84: 0.04290195925 | EI84: 0.03327587877 | EJ84: 0.03296864078 | EK84: 0.02500939423 | EL84: 0.02748421944 | EM84: 0.02163505693 | EN84: 0.01945299909 | EO84: 0.01860909385 | EP84: 0.01184764076 | EQ84: 0.0143227869 | ER84: 0.01414012456 | ES84: 0.0140805208 | ET84: 0.01260696877 | EU84: 0.00928920107 | EV84: 0.008802013983 | EW84: 0.007893195193 | EX84: 0.008075215688 | EY84: 0.008409177637 | EZ84: 0.008024014219 | FA84: 0.005962243365 | FB84: 0.008058323579 | FC84: 0.008587492954 | FD84: 0.009133291866 | FE84: 0.009467312165 | FF84: 0.008203759092 | FG84: 0.006702403639 | FH84: 0.005164900824 | FI84: 0.007263490056 | FJ84: 0.01131850056 | FK84: 0.006297459824 | FL84: 0.004778424547 | FM84: 0.006724372133 | FN84: 0.00536358003 | FO84: 0.007526120043 | FP84: 0.006113893074 | FQ84: 0.004770576572 | FR84: 0.006249992706 | FS84: 0.007338556369 | FT84: 0.004213574604 | FU84: 0.005165776063 | FV84: 0.005452125021 | FW84: 0.004669253095 | FX84: 0.005088317429 | FY84: 0.004224369215 | FZ84: 0.004503599565 | GA84: 0.004718149769 | GB84: 0.003458681144 | GC84: 0.004987664968 | GD84: 0.003775313365 | GE84: 0.003942950768 | GF84: 0.003312457916 | GG84: 0.00392915117 | GH84: 0.002825358352 | GI84: 0.0009453745964
A85: B5 | B85: DLY | C85: 6.69 | D85: 5.483333333 | F85: 16.61 | G85: 3.11 | H85: 48.49 | I85: 23.58 | J85: 12.05 | K85: 53.77 | M85: 303.0031 | N85: 299.8864 | O85: 0.1417 | P85: 2.4801 | R85: 127.0717703 | S85: 0.805532386 | T85: 0.1764357967 | U85: 1.52E-05 | V85: 0.006339192284 | W85: 0.005671908885 | X85: 0.0001213242542 | Y85: 0.0035790655 | Z85: 0 | AA85: 0 | AB85: 0 | AC85: 0 | AD85: 0 | AE85: 0 | AG85: 0.02515961722 | AH85: 0.02993675973 | AI85: 0 | AJ85: 0 | AK85: 0.1733571938 | AL85: 0.1714918334 | AM85: 0 | AN85: 0.1183821411 | AO85: 0.2587239722 | AP85: 0 | AQ85: 0 | AR85: 0.003958203794 | AS85: 0 | AT85: 0 | AU85: 0.0008189387161 | AV85: 0.0004852970169 | AW85: 0 | AX85: 0 | AY85: 0.0003488072309 | AZ85: 0.0003943038263 | BA85: 0 | BB85: 0 | BC85: 0 | BD85: 0 | BE85: 0 | BF85: 0 | BG85: 0 | BH85: 0 | BI85: 0 | BJ85: 0 | BK85: 0 | BL85: 0 | BM85: 0 | BN85: 0 | BO85: 0 | BP85: 0 | BQ85: 0 | BR85: 0 | BS85: 0.0001819863814 | BT85: 0 | BU85: 0 | BV85: 0 | BW85: 0 | BX85: 0 | BY85: 0 | BZ85: 0 | CA85: 0 | CB85: 0 | CC85: 0 | CD85: 0 | CE85: 0 | CG85: 6.69 | CH85: 5.483333333 | CJ85: 16.61 | CK85: 3.11 | CL85: 48.49 | CM85: 23.58 | CN85: 12.05 | CO85: 53.77 | CQ85: 0.00 | CR85: 0.00 | CS85: 0.0085314 | CT85: 0.0078017 | CU85: 0.144405 | CV85: 0.00552 | CW85: 0.00 | CX85: 0.8990333 | CY85: 0.2917431 | CZ85: 0.0271031 | DA85: 0.00 | DB85: 1.2876113 | DC85: 4.7990825 | DD85: 2.1158057 | DE85: 0.0051128 | DF85: 0.1025865 | DG85: 0.0191373 | DH85: 0.0803181 | DI85: 0.0800318 | DJ85: 0.0004 | DK85: 0.0158524 | DL85: 0.0784018 | DM85: 0.00 | DN85: 0.00 | DO85: 0.0005 | DP85: 0.0114262 | DQ85: 0.00 | DR85: 0.00 | DS85: 0.00 | DT85: 0.0072063 | DU85: 0.00 | DV85: 9.9876 | DW85: 2.3945 | DX85: 7.5931 | DY85: 5.1881 | DZ85: 2.4050 | EA85: 0.2397 | EB85: 0.7603 | EC85: 0.5195 | ED85: 0.2408 | EF85: 0.07563722715 | EG85: 0.05167768272 | EH85: 0.04312673686 | EI85: 0.03758203255 | EJ85: 0.0384988168 | EK85: 0.02162859899 | EL85: 0.0278412922 | EM85: 0.01953410826 | EN85: 0.01889146142 | EO85: 0.01674803563 | EP85: 0.01202613226 | EQ85: 0.01160635569 | ER85: 0.01173881852 | ES85: 0.01516959799 | ET85: 0.01059092394 | EU85: 0.01044922992 | EV85: 0.008174449036 | EW85: 0.007438149275 | EX85: 0.008247385215 | EY85: 0.007765419525 | EZ85: 0.007087674709 | FA85: 0.006602055409 | FB85: 0.007593447171 | FC85: 0.005689274582 | FD85: 0.008216193484 | FE85: 0.009381170631 | FF85: 0.007482322985 | FG85: 0.005821037783 | FH85: 0.008230438679 | FI85: 0.007902099553 | FJ85: 0.008013107135 | FK85: 0.006258130134 | FL85: 0.004491259465 | FM85: 0.006379807037 | FN85: 0.004711506124 | FO85: 0.007148950427 | FP85: 0.005161716494 | FQ85: 0.005717259687 | FR85: 0.006768936029 | FS85: 0.007438596259 | FT85: 0.005018623213 | FU85: 0.004803818101 | FV85: 0.00707587821 | FW85: 0.004389172136 | FX85: 0.004307723821 | FY85: 0.004217024874 | FZ85: 0.00639475186 | GA85: 0.005008906162 | GB85: 0.00326510377 | GC85: 0.004419022914 | GD85: 0.003319499817 | GE85: 0.004944831933 | GF85: 0.003532769634 | GG85: 0.00412974633 | GH85: 0.002690301383 | GI85: 0.0009364904289
A86: B8 | B86: DLY | C86: 6.45 | D86: 5.5 | F86: 17.00 | G86: 2.33 | H86: 47.11 | I86: 24.30 | J86: 11.09 | K86: 49.19 | M86: 301.6046 | N86: 304.5 | O86: 0.1821 | P86: 2.2908 | R86: 91.54956522 | S86: 0.7750327586 | T86: 0.1982450199 | U86: 4.42E-05 | V86: 0.008465717525 | W86: 0.003945760516 | X86: 7.36E-05 | Y86: 0.01195506544 | Z86: 0 | AA86: 0 | AB86: 0 | AC86: 0 | AD86: 0 | AE86: 0 | AG86: 0.008922130122 | AH86: 0.008127088824 | AI86: 0 | AJ86: 0 | AK86: 0.01629834661 | AL86: 0.0437125484 | AM86: 0 | AN86: 0.1463759367 | AO86: 0.2171787812 | AP86: 0 | AQ86: 0 | AR86: 0.002179002076 | AS86: 0 | AT86: 0 | AU86: 0.001118947012 | AV86: 0.001266176882 | AW86: 0 | AX86: 0 | AY86: 0.000912825194 | AZ86: 0.000353351688 | BA86: 0 | BB86: 0 | BC86: 0 | BD86: 0 | BE86: 0 | BF86: 0 | BG86: 0 | BH86: 0 | BI86: 0 | BJ86: 0 | BK86: 0 | BL86: 0 | BM86: 0 | BN86: 0 | BO86: 0 | BP86: 0 | BQ86: 0 | BR86: 0 | BS86: 0.000191398831 | BT86: 0 | BU86: 0 | BV86: 0 | BW86: 0 | BX86: 0 | BY86: 0 | BZ86: 0 | CA86: 0 | CB86: 0 | CC86: 0 | CD86: 0 | CE86: 0 | CG86: 6.45 | CH86: 5.5 | CJ86: 17.00 | CK86: 2.33 | CL86: 47.11 | CM86: 24.30 | CN86: 11.09 | CO86: 49.19 | CQ86: 0.00 | CR86: 0.00 | CS86: 0.0125274 | CT86: 0.0077915 | CU86: 0.1352809 | CV86: 0 | CW86: 0.00 | CX86: 1.024268 | CY86: 0.2614404 | CZ86: 0.0216766 | DA86: 0.00 | DB86: 1.8411687 | DC86: 4.3796234 | DD86: 1.7796168 | DE86: 0 | DF86: 0.053824 | DG86: 0.0259637 | DH86: 0.0714503 | DI86: 0.0509883 | DJ86: 0.0004 | DK86: 0.0372523 | DL86: 0.2663094 | DM86: 0.00 | DN86: 0.00 | DO86: 0.0005 | DP86: 0 | DQ86: 0.00 | DR86: 0.00 | DS86: 0.00 | DT86: 0.0168162 | DU86: 0.00 | DV86: 9.9869 | DW86: 3.0695 | DX86: 6.9173 | DY86: 4.7125 | DZ86: 2.2048 | EA86: 0.3074 | EB86: 0.6926 | EC86: 0.4719 | ED86: 0.2208 | EF86: 0.07301050049 | EG86: 0.05127076274 | EH86: 0.04666237963 | EI86: 0.03442526194 | EJ86: 0.03919475561 | EK86: 0.01951994712 | EL86: 0.02766471987 | EM86: 0.01980824146 | EN86: 0.01938253908 | EO86: 0.01565362658 | EP86: 0.01234564637 | EQ86: 0.01288396344 | ER86: 0.01236701931 | ES86: 0.0152915808 | ET86: 0.009557605464 | EU86: 0.009921611043 | EV86: 0.007371667649 | EW86: 0.007495541958 | EX86: 0.007262584303 | EY86: 0.008685086604 | EZ86: 0.006373795385 | FA86: 0.007357246461 | FB86: 0.006989765005 | FC86: 0.006034028494 | FD86: 0.009446543826 | FE86: 0.01061850572 | FF86: 0.007497298385 | FG86: 0.005283109832 | FH86: 0.006012489156 | FI86: 0.006222483841 | FJ86: 0.01158729525 | FK86: 0.006205751565 | FL86: 0.005802272605 | FM86: 0.005876190439 | FN86: 0.00455300945 | FO86: 0.006721993124 | FP86: 0.004792937345 | FQ86: 0.006196248372 | FR86: 0.006434031578 | FS86: 0.007865112637 | FT86: 0.005212187169 | FU86: 0.004342053351 | FV86: 0.006507893946 | FW86: 0.004108374637 | FX86: 0.004063613488 | FY86: 0.003851122827 | FZ86: 0.005900392151 | GA86: 0.005170513633 | GB86: 0.003170313326 | GC86: 0.004418762979 | GD86: 0.002954587142 | GE86: 0.005133462272 | GF86: 0.003842932332 | GG86: 0.004950239228 | GH86: 0.002899805116 | GI86: 0.001201673235
A87: B11 | B87: DLY | C87: 7.016666667 | D87: 5.413333333 | F87: 16.98 | G87: 3.69 | H87: 49.67 | I87: 22.95 | J87: 10.55 | K87: 48.91 | M87: 301.8678 | N87: 303.0667 | O87: 0.1161 | P87: 2.8298 | R87: 22.27408097 | S87: 0.8884331267 | T87: 0.03301904302 | U87: 0.0002227254167 | V87: 0.03988641004 | W87: 0.01739114295 | X87: 0.0009094621181 | Y87: 0.004250343368 | Z87: 0 | AA87: 0 | AB87: 1.86E-05 | AC87: 0 | AD87: 0 | AE87: 0 | AG87: 0.3628382642 | AH87: 0.01529381195 | AI87: 0 | AJ87: 0 | AK87: 0.1331712387 | AL87: 0.1733174951 | AM87: 0 | AN87: 0.00534541 | AO87: 0.0908348491 | AP87: 0 | AQ87: 0 | AR87: 0.0009465830209 | AS87: 0 | AT87: 0 | AU87: 0.00413898066 | AV87: 0.005159805486 | AW87: 0 | AX87: 0 | AY87: 9.28E-05 | AZ87: 0.002617023646 | BA87: 0 | BB87: 0 | BC87: 0 | BD87: 0 | BE87: 0 | BF87: 0 | BG87: 0 | BH87: 0 | BI87: 0 | BJ87: 0 | BK87: 0 | BL87: 0 | BM87: 0 | BN87: 0 | BO87: 0 | BP87: 0 | BQ87: 0 | BR87: 0 | BS87: 0.0006867367014 | BT87: 0 | BU87: 0 | BV87: 0 | BW87: 0 | BX87: 0 | BY87: 0 | BZ87: 0 | CA87: 0 | CB87: 0 | CC87: 0 | CD87: 0 | CE87: 0 | CG87: 7.016666667 | CH87: 5.413333333 | CJ87: 16.98 | CK87: 3.69 | CL87: 49.67 | CM87: 22.95 | CN87: 10.55 | CO87: 48.91 | CQ87: 0.00 | CR87: 0.00 | CS87: 0 | CT87: 0 | CU87: 0.1420367 | CV87: 0 | CW87: 0.00 | CX87: 1.0276622 | CY87: 0.2607619 | CZ87: 0.021768 | DA87: 0.00 | DB87: 1.8518841 | DC87: 4.3649014 | DD87: 1.7908921 | DE87: 0 | DF87: 0.0537153 | DG87: 0.0265914 | DH87: 0.0716938 | DI87: 0.0517258 | DJ87: 0.0005 | DK87: 0.0377754 | DL87: 0.2683923 | DM87: 0.00 | DN87: 0.00 | DO87: 0.0007 | DP87: 0 | DQ87: 0.00 | DR87: 0.00 | DS87: 0.00 | DT87: 0.016942 | DU87: 0.00 | DV87: 9.9879 | DW87: 3.0711 | DX87: 6.9168 | DY87: 4.6974 | DZ87: 2.2194 | EA87: 0.3075 | EB87: 0.6925 | EC87: 0.4703 | ED87: 0.2222 | EF87: 0.07467734533 | EG87: 0.05198623763 | EH87: 0.04251155498 | EI87: 0.0367514826 | EJ87: 0.03419098194 | EK87: 0.02251508948 | EL87: 0.0271839851 | EM87: 0.02051029936 | EN87: 0.01959998584 | EO87: 0.01750562834 | EP87: 0.01169917473 | EQ87: 0.01230862569 | ER87: 0.01231470161 | ES87: 0.01458224888 | ET87: 0.01140242389 | EU87: 0.009954653769 | EV87: 0.008257692554 | EW87: 0.008079998223 | EX87: 0.008661531401 | EY87: 0.007749698902 | EZ87: 0.007548905618 | FA87: 0.006024636579 | FB87: 0.007805194007 | FC87: 0.006888804571 | FD87: 0.008348517011 | FE87: 0.009078517271 | FF87: 0.007670397733 | FG87: 0.006074684312 | FH87: 0.008073686605 | FI87: 0.007905420418 | FJ87: 0.00841894001 | FK87: 0.006211392404 | FL87: 0.004429708837 | FM87: 0.006281658268 | FN87: 0.004778471608 | FO87: 0.00751121923 | FP87: 0.005715655339 | FQ87: 0.005247783679 | FR87: 0.006286477097 | FS87: 0.007145302474 | FT87: 0.004727166789 | FU87: 0.004987697843 | FV87: 0.007154730619 | FW87: 0.004253297782 | FX87: 0.004492589321 | FY87: 0.004651584499 | FZ87: 0.005562133723 | GA87: 0.00472085517 | GB87: 0.003251374126 | GC87: 0.004526583019 | GD87: 0.00363282113 | GE87: 0.004804739465 | GF87: 0.003435720536 | GG87: 0.003948402071 | GH87: 0.002644201634 | GI87: 0.0009999070804
A88: C2 | B88: DLY | C88: 6.64 | D88: 5.56 | F88: 17.64 | G88: 3.33 | H88: 45.11 | I88: 18.96 | J88: 8.94 | K88: 52.29 | M88: 287.3915 | N88: 286.625 | O88: 0.2695 | P88: 1.7512 | R88: 75.65806452 | S88: 0.9674465417 | T88: 0.008546726505 | U88: 1.65E-05 | V88: 0.01278709081 | W88: 0.005213833157 | X88: 0.0001484952482 | Y88: 0.001138463569 | Z88: 0 | AA88: 0 | AB88: 0 | AC88: 0 | AD88: 0 | AE88: 0 | AG88: 0.002606916579 | AH88: 0.00196343717 | AI88: 0 | AJ88: 0 | AK88: 0.2826194562 | AL88: 0.1976141763 | AM88: 0 | AN88: 0.0008249736008 | AO88: 0.3861536431 | AP88: 0 | AQ88: 0 | AR88: 0.0001979936642 | AS88: 0 | AT88: 0 | AU88: 0.0008909714889 | AV88: 0.0007589757128 | AW88: 0 | AX88: 0 | AY88: 1.65E-05 | AZ88: 0.0007094772967 | BA88: 0 | BB88: 0 | BC88: 0 | BD88: 0 | BE88: 0 | BF88: 0 | BG88: 0 | BH88: 0 | BI88: 0 | BJ88: 0 | BK88: 0 | BL88: 0 | BM88: 0 | BN88: 0 | BO88: 0 | BP88: 0 | BQ88: 0 | BR88: 0 | BS88: 0.0002639915523 | BT88: 0 | BU88: 0 | BV88: 0 | BW88: 0 | BX88: 0 | BY88: 0 | BZ88: 0 | CA88: 0 | CB88: 0 | CC88: 0 | CD88: 0 | CE88: 0 | CG88: 6.64 | CH88: 5.56 | CJ88: 17.64 | CK88: 3.33 | CL88: 45.11 | CM88: 18.96 | CN88: 8.94 | CO88: 52.29 | CQ88: 0.00 | CR88: 0.00 | CS88: 0.0189181 | CT88: 0.0138105 | CU88: 0.2116186 | CV88: 0.004824 | CW88: 0.00 | CX88: 1.2478101 | CY88: 0.3654035 | CZ88: 0.027989 | DA88: 0.00 | DB88: 1.984103 | DC88: 5.2387912 | DD88: 0.6683294 | DE88: 0 | DF88: 0.018267 | DG88: 0.0346609 | DH88: 0.0925218 | DI88: 0.0251384 | DJ88: 0.0004 | DK88: 0 | DL88: 0.0312482 | DM88: 0.00 | DN88: 0.00 | DO88: 0.0005 | DP88: 0 | DQ88: 0.00 | DR88: 0.00 | DS88: 0.00 | DT88: 0 | DU88: 0.00 | DV88: 9.9844 | DW88: 3.5398 | DX88: 6.4445 | DY88: 5.7015 | DZ88: 0.7430 | EA88: 0.3545 | EB88: 0.6455 | EC88: 0.5710 | ED88: 0.0744 | EF88: 0.07654818562 | EG88: 0.05185866798 | EH88: 0.04203430263 | EI88: 0.03849794988 | EJ88: 0.03927134602 | EK88: 0.02235243216 | EL88: 0.02847867184 | EM88: 0.01931608202 | EN88: 0.0180400852 | EO88: 0.0172892826 | EP88: 0.01221323894 | EQ88: 0.0108093018 | ER88: 0.01176321542 | ES88: 0.01512097519 | ET88: 0.01123276732 | EU88: 0.01068388257 | EV88: 0.008581084909 | EW88: 0.007267444993 | EX88: 0.008555623862 | EY88: 0.007644126077 | EZ88: 0.007441938805 | FA88: 0.006490834947 | FB88: 0.007742737116 | FC88: 0.005421182298 | FD88: 0.00790089198 | FE88: 0.008638146137 | FF88: 0.007407124721 | FG88: 0.006120543181 | FH88: 0.009092807691 | FI88: 0.008867853663 | FJ88: 0.005719459522 | FK88: 0.00634522778 | FL88: 0.003614929819 | FM88: 0.006749198179 | FN88: 0.00462174776 | FO88: 0.007435780427 | FP88: 0.005434865446 | FQ88: 0.005597735318 | FR88: 0.007004328263 | FS88: 0.007378276565 | FT88: 0.005063322759 | FU88: 0.004895083551 | FV88: 0.006775852412 | FW88: 0.004556314986 | FX88: 0.004515534972 | FY88: 0.00412540168 | FZ88: 0.006566583005 | GA88: 0.004979915218 | GB88: 0.002624681766 | GC88: 0.004491805969 | GD88: 0.003525132959 | GE88: 0.004658216909 | GF88: 0.003336397897 | GG88: 0.003785132011 | GH88: 0.00253232533 | GI88: 0.000780247339
A89: C4 | B89: DLY | C89: 6.61 | D89: 5.48 | F89: 16.57 | G89: 2.47 | H89: 46.92 | I89: 22.29 | J89: 10.33 | K89: 47.59 | M89: 291.7228 | N89: 293.6 | O89: 0.0658 | P89: 3.9295 | R89: 2.733705531 | S89: 0.6383010974 | T89: 0.02755714546 | U89: 0.0003941065907 | V89: 0.233492997 | W89: 0.0180379555 | X89: 0.006336021342 | Y89: 0.003698538774 | Z89: 0 | AA89: 0 | AB89: 0 | AC89: 0 | AD89: 0 | AE89: 0 | AG89: 0.3164979082 | AH89: 0.006426969017 | AI89: 0 | AJ89: 0 | AK89: 0.01922027527 | AL89: 0.01194446129 | AM89: 0 | AN89: 0.002455587219 | AO89: 0.01661310859 | AP89: 0 | AQ89: 0 | AR89: 0.001940217062 | AS89: 0 | AT89: 0 | AU89: 0.02331292063 | AV89: 0.004517067847 | AW89: 0 | AX89: 0 | AY89: 0.0001212635664 | AZ89: 0.03577275208 | BA89: 0 | BB89: 0 | BC89: 0 | BD89: 0 | BE89: 0 | BF89: 0 | BG89: 0 | BH89: 0 | BI89: 0 | BJ89: 0 | BK89: 0 | BL89: 0 | BM89: 0 | BN89: 0 | BO89: 0 | BP89: 0 | BQ89: 0 | BR89: 0 | BS89: 0.001242951555 | BT89: 0 | BU89: 0 | BV89: 0 | BW89: 0 | BX89: 0 | BY89: 0 | BZ89: 0 | CA89: 0 | CB89: 0 | CC89: 0 | CD89: 0 | CE89: 0 | CG89: 6.61 | CH89: 5.48 | CJ89: 16.57 | CK89: 2.47 | CL89: 46.92 | CM89: 22.29 | CN89: 10.33 | CO89: 47.59 | CQ89: 0.00 | CR89: 0.00 | CS89: 0.0083229 | CT89: 0.0090074 | CU89: 0.1553865 | CV89: 0.0052012 | CW89: 0.00 | CX89: 0.9506947 | CY89: 0.2588112 | CZ89: 0.0235434 | DA89: 0.00 | DB89: 1.5975367 | DC89: 4.9833451 | DD89: 1.6110831 | DE89: 0 | DF89: 0.058453 | DG89: 0.0370607 | DH89: 0.0842884 | DI89: 0.067422 | DJ89: 0.0004 | DK89: 0.0182348 | DL89: 0.1149721 | DM89: 0.00 | DN89: 0.00 | DO89: 0.0004 | DP89: 0 | DQ89: 0.00 | DR89: 0.00 | DS89: 0.00 | DT89: 0 | DU89: 0.00 | DV89: 9.9842 | DW89: 2.7824 | DX89: 7.2018 | DY89: 5.3316 | DZ89: 1.8702 | EA89: 0.2787 | EB89: 0.7213 | EC89: 0.5340 | ED89: 0.1873 | EF89: 0.07786158105 | EG89: 0.05556189097 | EH89: 0.04115540454 | EI89: 0.03698612366 | EJ89: 0.028621127 | EK89: 0.0224537653 | EL89: 0.02598661305 | EM89: 0.02055947442 | EN89: 0.02085211758 | EO89: 0.01657147451 | EP89: 0.01095947282 | EQ89: 0.0128339942 | ER89: 0.01212646338 | ES89: 0.01386781262 | ET89: 0.0110152446 | EU89: 0.009312844926 | EV89: 0.008504924898 | EW89: 0.00979819547 | EX89: 0.008611027315 | EY89: 0.007327686841 | EZ89: 0.007589768879 | FA89: 0.00516315219 | FB89: 0.007274454261 | FC89: 0.006917741562 | FD89: 0.008991318328 | FE89: 0.008064509181 | FF89: 0.008129576262 | FG89: 0.006348869372 | FH89: 0.00576267619 | FI89: 0.007239540217 | FJ89: 0.005025309734 | FK89: 0.006051329175 | FL89: 0.005589829004 | FM89: 0.00617248544 | FN89: 0.005264266887 | FO89: 0.007489515698 | FP89: 0.005713932558 | FQ89: 0.005046303503 | FR89: 0.006113675681 | FS89: 0.006021629567 | FT89: 0.004660798054 | FU89: 0.005340397638 | FV89: 0.00803553506 | FW89: 0.003887293297 | FX89: 0.004360083854 | FY89: 0.005315821779 | FZ89: 0.006096218659 | GA89: 0.005492069683 | GB89: 0.002949420479 | GC89: 0.004330520274 | GD89: 0.003593153819 | GE89: 0.005125698944 | GF89: 0.003647247914 | GG89: 0.004087436916 | GH89: 0.002251048929 | GI89: 0.001242214452
A90: C5 | B90: DLY | C90: 6.826666667 | D90: 5.463333333 | F90: 15.76 | G90: 3.78 | H90: 50.37 | I90: 18.47 | J90: 9.41 | K90: 55.73 | M90: 284.1094 | N90: 282.6364 | O90: 0.2432 | P90: 1.8003 | R90: 185.2120344 | S90: 0.9800618613 | T90: 0.006731964703 | U90: 3.03E-05 | V90: 0.00529156685 | W90: 0.00506413561 | X90: 7.58E-05 | Y90: 0.0008794007945 | Z90: 0 | AA90: 0 | AB90: 1.52E-05 | AC90: 0 | AD90: 0 | AE90: 0 | AG90: 0.001925584498 | AH90: 0.001273614944 | AI90: 0 | AJ90: 0 | AK90: 0.3835400431 | AL90: 0.05290050641 | AM90: 0 | AN90: 0.002714012797 | AO90: 0.2366043 | AP90: 0 | AQ90: 0 | AR90: 0 | AS90: 0 | AT90: 0 | AU90: 0.0004700245626 | AV90: 0.0003790520666 | AW90: 0 | AX90: 0 | AY90: 1.52E-05 | AZ90: 0.0002122691573 | BA90: 0 | BB90: 0 | BC90: 0 | BD90: 0 | BE90: 0 | BF90: 0 | BG90: 0 | BH90: 0 | BI90: 0 | BJ90: 0 | BK90: 0 | BL90: 0 | BM90: 0 | BN90: 0 | BO90: 0 | BP90: 0 | BQ90: 0 | BR90: 0 | BS90: 0.0001971070746 | BT90: 0 | BU90: 0 | BV90: 0 | BW90: 0 | BX90: 0 | BY90: 0 | BZ90: 0 | CA90: 0 | CB90: 0 | CC90: 0 | CD90: 0 | CE90: 0 | CG90: 6.826666667 | CH90: 5.463333333 | CJ90: 15.76 | CK90: 3.78 | CL90: 50.37 | CM90: 18.47 | CN90: 9.41 | CO90: 55.73 | CQ90: 0.00 | CR90: 0.00 | CS90: 0.0089754 | CT90: 0.0086018 | CU90: 0.1568127 | CV90: 0.0021654 | CW90: 0.00 | CX90: 0.9905892 | CY90: 0.2606567 | CZ90: 0.0173011 | DA90: 0.00 | DB90: 1.6720283 | DC90: 4.8974183 | DD90: 1.5741728 | DE90: 0.0035159 | DF90: 0.0702953 | DG90: 0.0324542 | DH90: 0.113722 | DI90: 0.0729665 | DJ90: 0.0004 | DK90: 0.0130765 | DL90: 0.074915 | DM90: 0.00 | DN90: 0.00 | DO90: 0.0004 | DP90: 0.0096729 | DQ90: 0.00 | DR90: 0.00 | DS90: 0.00 | DT90: 0.0069106 | DU90: 0.00 | DV90: 9.9870 | DW90: 2.8875 | DX90: 7.0995 | DY90: 5.2836 | DZ90: 1.8159 | EA90: 0.2891 | EB90: 0.7109 | EC90: 0.5291 | ED90: 0.1818 | EF90: 0.07600533523 | EG90: 0.05094307515 | EH90: 0.04323394359 | EI90: 0.03909248789 | EJ90: 0.03868704257 | EK90: 0.02123853071 | EL90: 0.0279120452 | EM90: 0.01968608652 | EN90: 0.01780709894 | EO90: 0.01688786417 | EP90: 0.01232547874 | EQ90: 0.01100872778 | ER90: 0.0120250906 | ES90: 0.01500875196 | ET90: 0.01098629565 | EU90: 0.01099025243 | EV90: 0.008057265885 | EW90: 0.006788837494 | EX90: 0.008839399783 | EY90: 0.007662787381 | EZ90: 0.007227401381 | FA90: 0.006330178149 | FB90: 0.00772427325 | FC90: 0.005374771558 | FD90: 0.007777315911 | FE90: 0.01012600755 | FF90: 0.006715668219 | FG90: 0.005777038999 | FH90: 0.01034835055 | FI90: 0.009305193794 | FJ90: 0.008944270031 | FK90: 0.006525244288 | FL90: 0.003306357025 | FM90: 0.006568768868 | FN90: 0.004321208783 | FO90: 0.007324435958 | FP90: 0.00527342191 | FQ90: 0.005260990766 | FR90: 0.006401618279 | FS90: 0.007561858336 | FT90: 0.004930303657 | FU90: 0.004491693036 | FV90: 0.007152798942 | FW90: 0.00441304035 | FX90: 0.004167751146 | FY90: 0.004317984163 | FZ90: 0.006418348916 | GA90: 0.00509111405 | GB90: 0.003413392597 | GC90: 0.004459851862 | GD90: 0.003627089873 | GE90: 0.004686432039 | GF90: 0.003440498098 | GG90: 0.003906743867 | GH90: 0.00251665228 | GI90: 0.0007348706286
A91: C6 | B91: DLY | C91: 6.893333333 | D91: 5.43 | F91: 16.77 | G91: 3.85 | H91: 51.50 | I91: 18.99 | J91: 9.75 | K91: 58.18 | M91: 300.9321 | N91: 289.8824 | O91: 0.2102 | P91: 1.8351 | R91: 169.0980926 | S91: 0.9819462025 | T91: 0.00503164557 | U91: 0.0001582278481 | V91: 0.005806962025 | W91: 0.003734177215 | X91: 0.0001740506329 | Y91: 0.0006487341772 | Z91: 0 | AA91: 0 | AB91: 4.75E-05 | AC91: 0 | AD91: 0 | AE91: 0 | AG91: 0.3192721519 | AH91: 0.001787974684 | AI91: 0 | AJ91: 0 | AK91: 0.257056962 | AL91: 0.2762974684 | AM91: 0 | AN91: 0.0003955696203 | AO91: 0.1033544304 | AP91: 0 | AQ91: 0 | AR91: 1.58E-05 | AS91: 0 | AT91: 0 | AU91: 0.0005379746835 | AV91: 0.0002689873418 | AW91: 0 | AX91: 0 | AY91: 1.58E-05 | AZ91: 0.0002215189873 | BA91: 0 | BB91: 0 | BC91: 0 | BD91: 0 | BE91: 0 | BF91: 0 | BG91: 0 | BH91: 0 | BI91: 0 | BJ91: 0 | BK91: 0 | BL91: 0 | BM91: 0 | BN91: 0 | BO91: 0 | BP91: 0 | BQ91: 0 | BR91: 0 | BS91: 0.0002848101266 | BT91: 0 | BU91: 0 | BV91: 0 | BW91: 0 | BX91: 0 | BY91: 0 | BZ91: 0 | CA91: 0 | CB91: 0 | CC91: 0 | CD91: 0 | CE91: 0 | CG91: 6.893333333 | CH91: 5.43 | CJ91: 16.77 | CK91: 3.85 | CL91: 51.50 | CM91: 18.99 | CN91: 9.75 | CO91: 58.18 | CQ91: 0.00 | CR91: 0.00 | CS91: 0.0070269 | CT91: 0.0071549 | CU91: 0.131908 | CV91: 0.0058819 | CW91: 0.00 | CX91: 0.9437548 | CY91: 0.3024935 | CZ91: 0.0323809 | DA91: 0.00 | DB91: 1.5523835 | DC91: 4.9249674 | DD91: 1.584515 | DE91: 0.0086193 | DF91: 0.0639813 | DG91: 0.0247958 | DH91: 0.0795512 | DI91: 0.0598541 | DJ91: 0.0004 | DK91: 0.0271958 | DL91: 0.1921678 | DM91: 0.00 | DN91: 0.00 | DO91: 0.0005 | DP91: 0.0081901 | DQ91: 0.00 | DR91: 0.00 | DS91: 0.00 | DT91: 0.0127243 | DU91: 0.00 | DV91: 9.9704 | DW91: 2.7003 | DX91: 7.2701 | DY91: 5.3211 | DZ91: 1.9491 | EA91: 0.2708 | EB91: 0.7292 | EC91: 0.5337 | ED91: 0.1955 | EF91: 0.07559129659 | EG91: 0.05154511955 | EH91: 0.04163709592 | EI91: 0.0388464663 | EJ91: 0.03713512301 | EK91: 0.02351031039 | EL91: 0.02746886361 | EM91: 0.02071214993 | EN91: 0.01899940711 | EO91: 0.01850466015 | EP91: 0.01194488113 | EQ91: 0.01098293364 | ER91: 0.01167730325 | ES91: 0.01540455544 | ET91: 0.01195987616 | EU91: 0.01051653284 | EV91: 0.00853090278 | EW91: 0.00749226962 | EX91: 0.009253907331 | EY91: 0.007690937036 | EZ91: 0.007861236086 | FA91: 0.006176972703 | FB91: 0.008206099438 | FC91: 0.006450415308 | FD91: 0.007490203639 | FE91: 0.008469945228 | FF91: 0.007415495094 | FG91: 0.006243639472 | FH91: 0.009445777002 | FI91: 0.008909066194 | FJ91: 0.006642018401 | FK91: 0.006396499864 | FL91: 0.003910147058 | FM91: 0.006536942154 | FN91: 0.004558976221 | FO91: 0.007699911836 | FP91: 0.005724456181 | FQ91: 0.005260432366 | FR91: 0.006229110959 | FS91: 0.007071964633 | FT91: 0.005036773243 | FU91: 0.005022933391 | FV91: 0.007381795165 | FW91: 0.004398518349 | FX91: 0.004556399298 | FY91: 0.004670761352 | FZ91: 0.005814159751 | GA91: 0.004223465321 | GB91: 0.002583431706 | GC91: 0.004518989488 | GD91: 0.003840503499 | GE91: 0.004934029556 | GF91: 0.003193784747 | GG91: 0.003296172996 | GH91: 0.002302436052 | GI91: 0.0008728437238
